Workbook

Sheet kadft
B4: 県 名 | F4: 市町村名 | I4: =""&IF(グラフ用!$G$6<>"NO",グラフ用!G8,グラフ用!$G$10)&" " -> 旧市町村名 | T4: 地域類型区分
B5: 長野県 | T5: =INDEX(地域類型区分!C2:C550,グラフ用!F3) -> 設定 | W5: =INDEX(地域類型区分!D2:D550,グラフ用!F3) -> されていません
U7: 前回 | W7: との比較
B9: 土地の状況 | W9: 単位：㏊
E11: 総土地面積 | H11: 林野面積 | K11: 耕地面積計（農山村地域調査結果） | W11: 耕作放棄地 面積
N12: 田面積 | Q12: 畑面積 | T12: 樹園地面積
B13: 2010年 | E13: =INDEX('2010'!$D$6:$AV$550,グラフ用!$F$3,1) -> 1,356,223 | H13: =INDEX('2010'!$D$6:$AV$550,グラフ用!$F$3,2) -> 1,022,777 | K13: =INDEX('2010'!$D$6:$AV$550,グラフ用!$F$3,3) -> 110,877 | N13: =INDEX('2010'!$D$6:$AV$550,グラフ用!$F$3,4) -> 56,367 | Q13: =INDEX('2010'!$D$6:$AV$550,グラフ用!$F$3,5) -> 36,605 | T13: =INDEX('2010'!$D$6:$AV$550,グラフ用!$F$3,6) -> 17,905 | W13: =INDEX('2010'!$D$6:$AV$550,グラフ用!$F$3,7) -> 17,146
B14: 2015年 | E14: =INDEX('2015'!$D$6:$AV$538,グラフ用!$F$3,1) -> 1,356,156 | H14: =INDEX('2015'!$D$6:$AV$538,グラフ用!$F$3,2) -> 1,031,536 | K14: =INDEX('2015'!$D$6:$AV$538,グラフ用!$F$3,3) -> 109,842 | N14: =INDEX('2015'!$D$6:$AV$538,グラフ用!$F$3,4) -> 54,547 | Q14: =INDEX('2015'!$D$6:$AV$538,グラフ用!$F$3,5) -> 38,218 | T14: =INDEX('2015'!$D$6:$AV$538,グラフ用!$F$3,6) -> 17,077 | W14: =INDEX('2015'!$D$6:$AV$538,グラフ用!$F$3,7) -> 16,776
B15: 比率(%) | F15: － | H15: ※1 | I15: =IFERROR(ROUND(H14/$E$14*100,1),"nc") -> 76.1 | K15: ※1 | L15: =IFERROR(ROUND(K14/$E$14*100,1),"nc") -> 8.1 | N15: ※2 | O15: =IFERROR(ROUND(N14/$K$14*100,1),"nc") -> 49.7 | Q15: ※2 | R15: =IFERROR(ROUND(Q14/$K$14*100,1),"nc") -> 34.8 | T15: ※2 | U15: =IFERROR(ROUND(T14/$K$14*100,1),"nc") -> 15.5 | W15: ※3 | X15: =IFERROR(ROUND(W14/グラフ用!B12*100,1),"nc") -> 13.2
B16: 県計 比率(%) | F16: － | H16: ※1 | I16: 76.1 | K16: ※1 | L16: 8.1 | N16: ※2 | O16: 49.7 | Q16: ※2 | R16: 34.8 | T16: ※2 | U16: 15.5 | W16: ※3 | X16: 13.2
B17: ※1 総土地面積に対する比率 ※2 耕地面積計に対する比率 ※3 耕作放棄地率は耕作放棄地面積と耕地面積の和に対する割合
D18: =IF($U$7="県計",[1]グラフ用シート!C13,IF($U$7="前回",[1]グラフ用シート!E13)) -> 林野面積及び耕地面積 | K18: =IF($U$7="県計",[1]グラフ用シート!C18,IF($U$7="前回",[1]グラフ用シート!E18)) -> 地目別の耕地面積割合 | Q18: （％） | R18: 76 | U18: =IF($U$7="県計",[1]グラフ用シート!F23,IF($U$7="前回",[1]グラフ用シート!D23)) -> 耕作放棄地面積 | Y18: =IF(kadft!$U$7="県計",グラフ用!$I$18,IF(kadft!$U$7="前回",グラフ用!$I$16)) -> (㏊) | Z18: =IF([1]練習!$U$7="県計",$I$18,IF([1]練習!$U$7="前回",$I$16)) -> 76
P19: 内円 | Q19: =IF($U$7="県計",グラフ用!J15,IF($U$7="前回",グラフ用!G14)) -> 2010年
A20: =IF(kadft!$U$7="県計",グラフ用!$I$18,IF(kadft!$U$7="前回",グラフ用!$I$16)) -> (㏊) | B20: =IF([1]練習!$U$7="県計",$I$18,IF([1]練習!$U$7="前回",$I$16)) -> 76 | P20: 外円 | Q20: =IF($U$7="県計",グラフ用!G13,IF($U$7="前回",グラフ用!G15)) -> 2015年
B28: 法制上の指定地域面積 | N28: 単位：㏊ | U28: 森林地域 | W28: =E35 -> (1.0)
E30: 森林地域 | G30: 農業地域 | I30: 市街化 区域 | K30: 市街化 調整区域 | M30: 商業関連地域 | O30: 工業関連地域
Q31: 工業関連地域 | X31: 農業地域
B32: 項目別面積 | E32: =INDEX(指定地域!$C$2:$I$550,グラフ用!$F$3,1) -> 328,006 | G32: =INDEX(指定地域!$C$2:$I$550,グラフ用!$F$3,2) -> 492,501 | I32: =INDEX(指定地域!$C$2:$I$550,グラフ用!$F$3,3) -> 12,629 | K32: =INDEX(指定地域!$C$2:$I$550,グラフ用!$F$3,4) -> 54,999 | M32: =INDEX(指定地域!$C$2:$I$550,グラフ用!$F$3,5) -> 2,344 | O32: =INDEX(指定地域!$C$2:$I$550,グラフ用!$F$3,6) -> 7,321 | R32: =O35 -> (1.0) | X32: =G35 -> (1.0)
B33: 比率(%) | E33: =ROUND(E32/$E$14*100,1) -> 24.2 | G33: =ROUND(G32/$E$14*100,1) -> 36.3 | I33: =ROUND(I32/$E$14*100,1) -> 0.9 | K33: =ROUND(K32/$E$14*100,1) -> 4.1 | M33: =ROUND(M32/$E$14*100,1) -> 0.2 | O33: =ROUND(O32/$E$14*100,1) -> 0.5
B34: 県計 比率(%) | E34: 24.2 | G34: 36.3 | I34: 0.9 | K34: 4.1 | M34: 0.2 | O34: 0.5
B35: 特化係数 | E35: =E33/E34 -> 1.0 | G35: =G33/G34 -> 1.0 | I35: =I33/I34 -> 1.0 | K35: =K33/K34 -> 1.0 | M35: =M33/M34 -> 1.0 | O35: =O33/O34 -> 1.0 | Q35: 商業関連地域 | X35: 市街化区域
B36: ※ 商業関連地域は、近隣商業地域と商業地域の合計。 工業関連地域は、準工業地域と工業地域及び工業専用地域の合計。 | R36: =M35 -> (1.0) | X36: =I35 -> (1.0)
B37: ※ 比率は、総土地面積（2015年）に対する比率である。
B38: ※ 特化係数は、比率／県計比率で算出。1.0を超えるほど特化している。 | T38: 市街化調整区域 | W38: =K35 -> (1.0)
B40: 農業生産関連事業経営体数 | T40: 単位：経営体
E42: 農業経営体 数計 | H42: 生産関連事業を実施している実経営体数 | K42: 事業種類別経営体数
K43: 農産物の加工 | N43: 消費者に直接販売 | Q43: 観光農園 | T43: その他
B45: 2010年 | E45: =INDEX('2010'!$D$6:$AV$550,グラフ用!$F$3,8) -> 64,289 | H45: =INDEX('2010'!$D$6:$AV$550,グラフ用!$F$3,9) -> 17,375 | K45: =INDEX('2010'!$D$6:$AV$550,グラフ用!$F$3,10) -> 3,454 | N45: =INDEX('2010'!$D$6:$AV$550,グラフ用!$F$3,11) -> 15,528 | Q45: =INDEX('2010'!$D$6:$AV$550,グラフ用!$F$3,12) -> 811 | T45: =INDEX('2010'!$D$6:$AV$550,グラフ用!$F$3,13) -> 930
B46: 2015年 | E46: =INDEX('2015'!$D$6:$AV$538,グラフ用!$F$3,8) -> 53,808 | H46: =INDEX('2015'!$D$6:$AV$538,グラフ用!$F$3,9) -> 12,618 | K46: =INDEX('2015'!$D$6:$AV$538,グラフ用!$F$3,10) -> 2,644 | N46: =INDEX('2015'!$D$6:$AV$538,グラフ用!$F$3,11) -> 11,044 | Q46: =INDEX('2015'!$D$6:$AV$538,グラフ用!$F$3,12) -> 592 | T46: =INDEX('2015'!$D$6:$AV$538,グラフ用!$F$3,13) -> 675
B47: 比率(%) | E47: － | H47: =IFERROR(ROUND(H46/$E$46*100,1),"nc") -> 23.5 | K47: =IFERROR(ROUND(K46/$E$46*100,1),"nc") -> 4.9 | N47: =IFERROR(ROUND(N46/$E$46*100,1),"nc") -> 20.5 | Q47: =IFERROR(ROUND(Q46/$E$46*100,1),"nc") -> 1.1 | T47: =IFERROR(ROUND(T46/$E$46*100,1),"nc") -> 1.3
B48: 県計 比率(%) | E48: － | H48: 23.5 | K48: 4.9 | N48: 20.5 | Q48: 1.1 | T48: 1.3
B49: ※ 比率は、農業経営体数計に対する比率である。 ※ その他は、貸農園・体験農園、農家民宿、農家レストラン等である。
B50: =IF(kadft!$U$7="県計",グラフ用!$I$18,IF(kadft!$U$7="前回",グラフ用!$I$17)) -> (経営体) | D50: =IF($U$7="県計",グラフ用!$C$45,IF($U$7="前回",グラフ用!$D$45)) -> 事業実施経営体数 | O50: =IF($U$7="県計",グラフ用!$C$51,IF($U$7="前回",グラフ用!$D$51)) -> 事業種類別経営体数
Y57: =IF(kadft!$U$7="県計",グラフ用!$I$18,IF(kadft!$U$7="前回",グラフ用!$I$17)) -> (経営体)
B58: 農業集落の状況 | V58: 単位：集落
E60: 農業集落数計 | G60: 水田率別農業集落数 | M60: 農家率別農業集落数
G61: 水田集落（70％以上） | I61: 田畑集落 （30～70） | K61: 畑地集落 （30％未満） | M61: 10％未満 | O61: 10～30 | Q61: 30～50 | S61: 50～70 | U61: 70～90 | W61: 90％以上
B63: 2010年 | E63: =INDEX('2010'!$D$6:$AV$550,グラフ用!$F$3,14) -> 4,736 | G63: =INDEX('2010'!$D$6:$AV$550,グラフ用!$F$3,15) -> 1,226 | I63: =INDEX('2010'!$D$6:$AV$550,グラフ用!$F$3,16) -> 2,063 | K63: =INDEX('2010'!$D$6:$AV$550,グラフ用!$F$3,17) -> 1,447 | M63: =INDEX('2010'!$D$6:$AV$550,グラフ用!$F$3,18) -> 858 | O63: =INDEX('2010'!$D$6:$AV$550,グラフ用!$F$3,19) -> 1,126 | Q63: =INDEX('2010'!$D$6:$AV$550,グラフ用!$F$3,20) -> 1,109 | S63: =INDEX('2010'!$D$6:$AV$550,グラフ用!$F$3,21) -> 1,063 | U63: =INDEX('2010'!$D$6:$AV$550,グラフ用!$F$3,22) -> 471 | W63: =INDEX('2010'!$D$6:$AV$550,グラフ用!$F$3,23) -> 109
B64: 2015年 | E64: =INDEX('2015'!$D$6:$AV$538,グラフ用!$F$3,14) -> 4,727 | G64: =INDEX('2015'!$D$6:$AV$538,グラフ用!$F$3,15) -> 1,132 | I64: =INDEX('2015'!$D$6:$AV$538,グラフ用!$F$3,16) -> 2,019 | K64: =INDEX('2015'!$D$6:$AV$538,グラフ用!$F$3,17) -> 1,576 | M64: =INDEX('2015'!$D$6:$AV$538,グラフ用!$F$3,18) -> 996 | O64: =INDEX('2015'!$D$6:$AV$538,グラフ用!$F$3,19) -> 1,279 | Q64: =INDEX('2015'!$D$6:$AV$538,グラフ用!$F$3,20) -> 1,142 | S64: =INDEX('2015'!$D$6:$AV$538,グラフ用!$F$3,21) -> 966 | U64: =INDEX('2015'!$D$6:$AV$538,グラフ用!$F$3,22) -> 275 | W64: =INDEX('2015'!$D$6:$AV$538,グラフ用!$F$3,23) -> 69
B65: 構成比(%) | E65: － | G65: =IFERROR(ROUND(G64/$E$64*100,1),"nc") -> 23.9 | I65: =IFERROR(ROUND(I64/$E$64*100,1),"nc") -> 42.7 | K65: =IFERROR(ROUND(K64/$E$64*100,1),"nc") -> 33.3 | M65: =IFERROR(ROUND(M64/$E$64*100,1),"nc") -> 21.1 | O65: =IFERROR(ROUND(O64/$E$64*100,1),"nc") -> 27.1 | Q65: =IFERROR(ROUND(Q64/$E$64*100,1),"nc") -> 24.2 | S65: =IFERROR(ROUND(S64/$E$64*100,1),"nc") -> 20.4 | U65: =IFERROR(ROUND(U64/$E$64*100,1),"nc") -> 5.8 | W65: =IFERROR(ROUND(W64/$E$64*100,1),"nc") -> 1.5
B66: 県計 構成比(%) | E66: － | G66: 23.9 | I66: 42.7 | K66: 33.3 | M66: 21.1 | O66: 27.1 | Q66: 24.2 | S66: 20.4 | U66: 5.8 | W66: 1.5
C67: =IF($U$7="県計",グラフ用!$D$61,IF($U$7="前回",グラフ用!$F$61)) -> 水田率別農業集落数 | D67: =IF($T$58="県計",$G$65,IF($T$58="前回",$G$64)) -> FALSE | E67: FALSE | F67: FALSE | G67: FALSE | H67: FALSE | I67: FALSE | J67: FALSE | K67: FALSE | L67: =IF(kadft!$U$7="県計",グラフ用!$I$18,IF(kadft!$U$7="前回",グラフ用!$J$16)) -> （集落） | O67: =IF($U$7="県計",グラフ用!$D$66,IF($U$7="前回",グラフ用!$F$66)) -> 農家率別農業集落数 | P67: =IF($T$58="県計",$G$65,IF($T$58="前回",$G$64)) -> FALSE | Q67: FALSE | R67: FALSE | S67: FALSE | T67: FALSE | U67: FALSE | V67: FALSE | W67: FALSE
L74: =IF(kadft!$U$7="県計",グラフ用!$I$18,IF(kadft!$U$7="前回",グラフ用!$J$16)) -> （集落）
B75: 寄り合いの実施状況 | W75: 単位：集落
E77: 農業生産にかかる事項 | H77: 農道・水路・ため池等の管理 | K77: 集落共有財産・施設の管理 | N77: 環境美化・自然環境の保全 | Q77: 農業集落行事の計画・推進 | T77: 農業集落内の福祉・厚生 | W77: 寄り合いを開催しなかった
B79: 2010年 | E79: =INDEX('2010'!$D$6:$AV$550,グラフ用!$F$3,24) -> 3,044 | H79: =INDEX('2010'!$D$6:$AV$550,グラフ用!$F$3,25) -> 3,681 | K79: =INDEX('2010'!$D$6:$AV$550,グラフ用!$F$3,26) -> 3,618 | N79: =INDEX('2010'!$D$6:$AV$550,グラフ用!$F$3,27) -> 3,923 | Q79: =INDEX('2010'!$D$6:$AV$550,グラフ用!$F$3,28) -> 4,153 | T79: =INDEX('2010'!$D$6:$AV$550,グラフ用!$F$3,29) -> 3,394 | W79: =INDEX('2010'!$D$6:$AV$550,グラフ用!$F$3,30) -> 225
B80: 2015年 | E80: =INDEX('2015'!$D$6:$AV$538,グラフ用!$F$3,24) -> 3,187 | H80: =INDEX('2015'!$D$6:$AV$538,グラフ用!$F$3,25) -> 4,198 | K80: =INDEX('2015'!$D$6:$AV$538,グラフ用!$F$3,26) -> 3,931 | N80: =INDEX('2015'!$D$6:$AV$538,グラフ用!$F$3,27) -> 4,512 | Q80: =INDEX('2015'!$D$6:$AV$538,グラフ用!$F$3,28) -> 4,484 | T80: =INDEX('2015'!$D$6:$AV$538,グラフ用!$F$3,29) -> 4,146 | W80: =INDEX('2015'!$D$6:$AV$538,グラフ用!$F$3,30) -> 155
B81: 比率(%) | E81: =IFERROR(ROUND(E80/$E$64*100,1),"nc") -> 67.4 | H81: =IFERROR(ROUND(H80/$E$64*100,1),"nc") -> 88.8 | K81: =IFERROR(ROUND(K80/$E$64*100,1),"nc") -> 83.2 | N81: =IFERROR(ROUND(N80/$E$64*100,1),"nc") -> 95.5 | Q81: =IFERROR(ROUND(Q80/$E$64*100,1),"nc") -> 94.9 | T81: =IFERROR(ROUND(T80/$E$64*100,1),"nc") -> 87.7 | W81: =IFERROR(ROUND(W80/$E$64*100,1),"nc") -> 3.3
B82: 県計 比率(%) | E82: 67.4 | H82: 88.8 | K82: 83.2 | N82: 95.5 | Q82: 94.9 | T82: 87.7 | W82: 3.3
B83: ※ 比率は、「農業集落の状況」の農業集落数計に対する比率。 | L83: =IF($U$7="県計",グラフ用!$D$83,IF($U$7="前回",グラフ用!$F$83)) -> 寄り合いの実施状況 | M83: =IF($T$58="県計",$G$65,IF($T$58="前回",$G$64)) -> FALSE | N83: FALSE | O83: FALSE | P83: FALSE | Q83: FALSE
Y92: =IF(kadft!$U$7="県計",グラフ用!$I$18,IF(kadft!$U$7="前回",グラフ用!$J$16)) -> （集落）
B93: 保全管理の実施状況 | V93: 単位：集落
E95: 農地のある集落 | I95: 森林のある集落 | M95: ため池・湖沼のある集落 | Q95: 河川・水路のある集落 | U95: 農業用用排水路のある集落
G96: 農地の保全をしている | K96: 森林の保全をしている | O96: ため池・湖沼の保全をしている | S96: 河川・水路の保全をしている | W96: 農業用用排水路の保全をしている
B98: 2010年 | E98: =INDEX('2010'!$D$6:$AV$550,グラフ用!$F$3,31) -> 4,557 | G98: =INDEX('2010'!$D$6:$AV$550,グラフ用!$F$3,32) -> 1,913 | I98: =INDEX('2010'!$D$6:$AV$550,グラフ用!$F$3,33) -> 3,716 | K98: =INDEX('2010'!$D$6:$AV$550,グラフ用!$F$3,34) -> 1,080 | M98: =INDEX('2010'!$D$6:$AV$550,グラフ用!$F$3,35) -> 1,028 | O98: =INDEX('2010'!$D$6:$AV$550,グラフ用!$F$3,36) -> 565 | Q98: =INDEX('2010'!$D$6:$AV$550,グラフ用!$F$3,37) -> 4,326 | S98: =INDEX('2010'!$D$6:$AV$550,グラフ用!$F$3,38) -> 2,532 | U98: =INDEX('2010'!$D$6:$AV$550,グラフ用!$F$3,39) -> 4,385 | W98: =INDEX('2010'!$D$6:$AV$550,グラフ用!$F$3,40) -> 3,777
B99: 2015年 | E99: =INDEX('2015'!$D$6:$AV$538,グラフ用!$F$3,31) -> 4,561 | G99: =INDEX('2015'!$D$6:$AV$538,グラフ用!$F$3,32) -> 2,176 | I99: =INDEX('2015'!$D$6:$AV$538,グラフ用!$F$3,33) -> 3,686 | K99: =INDEX('2015'!$D$6:$AV$538,グラフ用!$F$3,34) -> 1,382 | M99: =INDEX('2015'!$D$6:$AV$538,グラフ用!$F$3,35) -> 961 | O99: =INDEX('2015'!$D$6:$AV$538,グラフ用!$F$3,36) -> 588 | Q99: =INDEX('2015'!$D$6:$AV$538,グラフ用!$F$3,37) -> 4,363 | S99: =INDEX('2015'!$D$6:$AV$538,グラフ用!$F$3,38) -> 2,882 | U99: =INDEX('2015'!$D$6:$AV$538,グラフ用!$F$3,39) -> 4,384 | W99: =INDEX('2015'!$D$6:$AV$538,グラフ用!$F$3,40) -> 3,959
B100: 比率(%) | G100: =IFERROR(ROUND(G99/$E$99*100,1),"nc") -> 47.7 | K100: =IFERROR(ROUND(K99/$I$99*100,1),"nc") -> 37.5 | O100: =IFERROR(ROUND(O99/$M$99*100,1),"nc") -> 61.2 | S100: =IFERROR(ROUND(S99/$Q$99*100,1),"nc") -> 66.1 | W100: =IFERROR(ROUND(W99/$U$99*100,1),"nc") -> 90.3
B101: 県計 比率(%) | G101: 47.7 | K101: 37.5 | O101: 61.2 | S101: 66.1 | W101: 90.3
A102: =IF(kadft!$U$7="県計",グラフ用!$I$18,IF(kadft!$U$7="前回",グラフ用!$J$16)) -> （集落） | G102: =IF($U$7="県計",グラフ用!$C$102,IF($U$7="前回",グラフ用!$F$102)) -> 保全管理の実施状況

Sheet グラフ用 (hidden)
B3: 県計 | D3: =IFERROR(MATCH(kadft!F5,地域類型区分!B2:B505,0),"1") -> 1 | E3: =IFERROR(MATCH(kadft!J5,地域類型区分!B2:B505,0)," ") ->  | F3: =""&IF(E3<>" ",E3,D3)&"" -> 1
B4: 前回 | D4: 市町村列 | E4: 旧市町村列 | F4: 優先列
G6: =IF(COUNTIF(元データ!AC6:AC65,kadft!J5),"OK","NO") -> OK | H6: 市町村に対し旧市町村の該当有無
G8: 旧市町村名
C10: 林野面積 | D10: 耕地面積 | G10: 旧市町村を再選択して下さい
B12: =kadft!W14+kadft!K14 -> 126,618 | C12: 林野率 | D12: 耕地率 | G12: =INDEX(地域類型区分!$B$2:$B$550,F3,1) -> 長野県
C13: 林野率及び耕地率 | E13: 林野面積及び耕地面積 | G13: =G12 -> 長野県 | H13: 優先表示地域名
D14: =IF(kadft!$U$7="県計",$C$12,IF(kadft!$U$7="前回",$C$10)) -> 林野面積 | E14: =IF(kadft!$U$7="県計",$D$12,IF(kadft!$U$7="前回",$D$10)) -> 耕地面積 | G14: 2010年
C15: =IF(kadft!$U$7="県計",$J$15,IF(kadft!$U$7="前回",$G$14)) -> 2010年 | D15: =IF(kadft!$U$7="県計",kadft!$I$16,IF(kadft!$U$7="前回",kadft!$H$13)) -> 1022777 | E15: =IF(kadft!$U$7="県計",kadft!$L$16,IF(kadft!$U$7="前回",kadft!$K$13)) -> 110877 | G15: 2015年 | J15: 県 計
C16: =IF(kadft!$U$7="県計",$G$13,IF(kadft!$U$7="前回",$G$15)) -> 2015年 | D16: =IF(kadft!$U$7="県計",kadft!$I$15,IF(kadft!$U$7="前回",kadft!$H$14)) -> 1031536 | E16: =IF(kadft!$U$7="県計",kadft!$L$15,IF(kadft!$U$7="前回",kadft!$K$14)) -> 109842 | I16: (㏊) | J16: （集落）
I17: (経営体)
C18: 地目別の耕地面積割合 | E18: 地目別の耕地面積割合 | I18: （％）
D19: =kadft!N12 -> 田面積 | E19: =kadft!Q12 -> 畑面積 | F19: =kadft!T12 -> 樹園地面積
C20: =IF(kadft!$U$7="県計",$G$13,IF(kadft!$U$7="前回",$G$15)) -> 2015年 | D20: =IF(kadft!$U$7="県計",kadft!$O$15,IF(kadft!$U$7="前回",ROUND(kadft!$N$14/kadft!K14*100,1))) -> 49.7 | E20: =IF(kadft!$U$7="県計",kadft!$R$15,IF(kadft!$U$7="前回",ROUND(kadft!$Q$14/kadft!K14*100,1))) -> 34.8 | F20: =IF(kadft!$U$7="県計",kadft!$U$15,IF(kadft!$U$7="前回",ROUND(kadft!$T$14/kadft!K14*100,1))) -> 15.5
C21: =IF(kadft!$U$7="県計",$J$15,IF(kadft!$U$7="前回",$G$14)) -> 2010年 | D21: =IF(kadft!$U$7="県計",kadft!$O$16,IF(kadft!$U$7="前回",ROUND(kadft!$N$13/kadft!K13*100,1))) -> 50.8 | E21: =IF(kadft!$U$7="県計",kadft!$R$16,IF(kadft!$U$7="前回",ROUND(kadft!$Q$13/kadft!K13*100,1))) -> 33 | F21: =IF(kadft!$U$7="県計",kadft!$U$16,IF(kadft!$U$7="前回",ROUND(kadft!$T$13/kadft!K13*100,1))) -> 16.1 | I21: 単位１
D23: 耕作放棄地面積 | F23: 耕作放棄地率
C24: =IF(kadft!$U$7="県計",$J$15,IF(kadft!$U$7="前回",$G$14)) -> 2010年 | D24: =IF(kadft!$U$7="県計",kadft!$X$16,IF(kadft!$U$7="前回",ROUND(kadft!$W$13,0))) -> 17146
C25: =IF(kadft!$U$7="県計",$G$13,IF(kadft!$U$7="前回",$G$15)) -> 2015年 | D25: =IF(kadft!$U$7="県計",kadft!$X$15,IF(kadft!$U$7="前回",ROUND(kadft!$W$14,0))) -> 16776
G26: IF($U$6="県計",BH17,IF($U$6="前回",BJ17))
D31: =kadft!E30 -> 森林地域 | E31: =kadft!G30 -> 農業地域 | F31: 市街化区域 | G31: 市街化調整区域 | H31: 商業関連地域 | I31: 工業関連地域
C32: =G13 -> 長野県 | D32: =IF(kadft!E$35=0,0.001,kadft!E$35) -> 1.0 | E32: =IF(kadft!G$35=0,0.001,kadft!G$35) -> 1.0 | F32: =IF(kadft!I$35=0,0.001,kadft!I$35) -> 1.0 | G32: =IF(kadft!K$35=0,0.001,kadft!K$35) -> 1.0 | H32: =IF(kadft!M$35=0,0.001,kadft!M$35) -> 1.0 | I32: =IF(kadft!O$35=0,0.001,kadft!O$35) -> 1.0 | J32: =IF(kadft!K$35=0,0.01,kadft!K$35) -> 1.0
C33: 県 計 | D33: 1.0 | E33: 1.0 | F33: 1.0 | G33: 1.0 | H33: 1.0 | I33: 1.0
I41: 単位１
I44: =IF(kadft!$U$7="県計",$I$18,IF(kadft!$U$7="前回",$I$17)) -> (経営体)
C45: 事業実施率 | D45: 事業実施経営体数
C46: 事業有り | D46: 事業無し
B47: =IF(kadft!$U$7="県計",$J$15,IF(kadft!$U$7="前回",$G$14)) -> 2010年 | C47: =IF(kadft!$U$7="県計",kadft!$H$48,IF(kadft!$U$7="前回",kadft!$H$45)) -> 17375 | D47: =IF(kadft!$U$7="県計",kadft!$H$48,IF(kadft!$U$7="前回",kadft!$H$45)) -> 17375
B48: =IF(kadft!$U$7="県計",$G$13,IF(kadft!$U$7="前回",$G$15)) -> 2015年 | C48: =IF(kadft!$U$7="県計",kadft!$H$47,IF(kadft!$U$7="前回",kadft!$H$46)) -> 12618 | D48: =E45/kadft!E46 -> 0
C51: 事業種類別実施率 | D51: 事業種類別経営体数
C52: =kadft!T43 -> その他 | D52: =kadft!Q43 -> 観光農園 | E52: =kadft!N43 -> 消費者に直接販売 | F52: =kadft!K43 -> 農産物の加工
B53: =IF(kadft!$U$7="県計",$J$15,IF(kadft!$U$7="前回",$G$14)) -> 2010年 | C53: =IF(kadft!$U$7="県計",kadft!$T$48,IF(kadft!$U$7="前回",kadft!$T$45)) -> 930 | D53: =IF(kadft!$U$7="県計",kadft!$Q$48,IF(kadft!$U$7="前回",kadft!$Q$45)) -> 811 | E53: =IF(kadft!$U$7="県計",kadft!$N$48,IF(kadft!$U$7="前回",kadft!$N$45)) -> 15528 | F53: =IF(kadft!$U$7="県計",kadft!$K$48,IF(kadft!$U$7="前回",kadft!$K$45)) -> 3454
B54: =IF(kadft!$U$7="県計",$G$13,IF(kadft!$U$7="前回",$G$15)) -> 2015年 | C54: =IF(kadft!$U$7="県計",kadft!$T$47,IF(kadft!$U$7="前回",kadft!$T$46)) -> 675 | D54: =IF(kadft!$U$7="県計",kadft!$Q$47,IF(kadft!$U$7="前回",kadft!$Q$46)) -> 592 | E54: =IF(kadft!$U$7="県計",kadft!$N$47,IF(kadft!$U$7="前回",kadft!$N$46)) -> 11044 | F54: =IF(kadft!$U$7="県計",kadft!$K$47,IF(kadft!$U$7="前回",kadft!$K$46)) -> 2644
D61: 水田率別農業集落数割合 | F61: 水田率別農業集落数
D62: 水田集落 | E62: 田畑集落 | F62: 畑地集落
C63: =IF(kadft!$U$7="県計",$G$13,IF(kadft!$U$7="前回",$G$15)) -> 2015年 | D63: =IF(kadft!$U$7="県計",kadft!$G$65,IF(kadft!$U$7="前回",kadft!$G$64)) -> 1132 | E63: =IF(kadft!$U$7="県計",kadft!$I$65,IF(kadft!$U$7="前回",kadft!$I$64)) -> 2019 | F63: =IF(kadft!$U$7="県計",kadft!$K$65,IF(kadft!$U$7="前回",kadft!$K$64)) -> 1576
C64: =IF(kadft!$U$7="県計",$J$15,IF(kadft!$U$7="前回",$G$14)) -> 2010年 | D64: =IF(kadft!$U$7="県計",kadft!$G$66,IF(kadft!$U$7="前回",kadft!$G$63)) -> 1226 | E64: =IF(kadft!$U$7="県計",kadft!$I$66,IF(kadft!$U$7="前回",kadft!$I$63)) -> 2063 | F64: =IF(kadft!$U$7="県計",kadft!$K$66,IF(kadft!$U$7="前回",kadft!$K$63)) -> 1447
D66: 農家率別農業集落数割合 | F66: 農家率別農業集落数
D67: １０%未満 | E67: 10～30 | F67: 30～50 | G67: 50～70 | H67: 70～90 | I67: 90%以上
C68: =IF(kadft!$U$7="県計",$J$15,IF(kadft!$U$7="前回",$G$14)) -> 2010年 | D68: =IF(kadft!$U$7="県計",kadft!$M$66,IF(kadft!$U$7="前回",kadft!$M$63)) -> 858 | E68: =IF(kadft!$U$7="県計",kadft!$O$66,IF(kadft!$U$7="前回",kadft!$O$63)) -> 1126 | F68: =IF(kadft!$U$7="県計",kadft!$Q$66,IF(kadft!$U$7="前回",kadft!$Q$63)) -> 1109 | G68: =IF(kadft!$U$7="県計",kadft!$S$66,IF(kadft!$U$7="前回",kadft!$S$63)) -> 1063 | H68: =IF(kadft!$U$7="県計",kadft!$U$66,IF(kadft!$U$7="前回",kadft!$U$63)) -> 471 | I68: =IF(kadft!$U$7="県計",kadft!$W$66,IF(kadft!$U$7="前回",kadft!$W$63)) -> 109
C69: =IF(kadft!$U$7="県計",$G$13,IF(kadft!$U$7="前回",$G$15)) -> 2015年 | D69: =IF(kadft!$U$7="県計",kadft!$M$65,IF(kadft!$U$7="前回",kadft!$M$64)) -> 996 | E69: =IF(kadft!$U$7="県計",kadft!$O$65,IF(kadft!$U$7="前回",kadft!$O$64)) -> 1279 | F69: =IF(kadft!$U$7="県計",kadft!$Q$65,IF(kadft!$U$7="前回",kadft!$Q$64)) -> 1142 | G69: =IF(kadft!$U$7="県計",kadft!$S$65,IF(kadft!$U$7="前回",kadft!$S$64)) -> 966 | H69: =IF(kadft!$U$7="県計",kadft!$U$65,IF(kadft!$U$7="前回",kadft!$U$64)) -> 275 | I69: =IF(kadft!$U$7="県計",kadft!$W$65,IF(kadft!$U$7="前回",kadft!$W$64)) -> 69
J71: 単位１
J72: =IF(kadft!$U$7="県計",$I$18,IF(kadft!$U$7="前回",$J$16)) -> （集落）
D83: 寄り合いの実施率 | F83: 寄り合いの実施状況
B85: =kadft!W77 -> 寄り合いを開催しなかった | C85: =kadft!T77 -> 農業集落内の福祉・厚生 | D85: =kadft!Q77 -> 農業集落行事の計画・推進 | E85: =kadft!N77 -> 環境美化・自然環境の保全 | F85: =kadft!K77 -> 集落共有財産・施設の管理 | G85: =kadft!H77 -> 農道・水路・ため池等の管理 | H85: =kadft!E77 -> 農業生産にかかる事項
A86: =IF(kadft!$U$7="県計",$J$15,IF(kadft!$U$7="前回",$G$14)) -> 2010年 | B86: =IF(kadft!$U$7="県計",kadft!$W$82,IF(kadft!$U$7="前回",kadft!$W$79)) -> 225 | C86: =IF(kadft!$U$7="県計",kadft!$T$82,IF(kadft!$U$7="前回",kadft!$T$79)) -> 3394 | D86: =IF(kadft!$U$7="県計",kadft!$Q$82,IF(kadft!$U$7="前回",kadft!$Q$79)) -> 4153 | E86: =IF(kadft!$U$7="県計",kadft!$N$82,IF(kadft!$U$7="前回",kadft!$N$79)) -> 3923 | F86: =IF(kadft!$U$7="県計",kadft!$K$82,IF(kadft!$U$7="前回",kadft!$K$79)) -> 3618 | G86: =IF(kadft!$U$7="県計",kadft!$H$82,IF(kadft!$U$7="前回",kadft!$H$79)) -> 3681 | H86: =IF(kadft!$U$7="県計",kadft!$E$82,IF(kadft!$U$7="前回",kadft!$E$79)) -> 3044
A87: =IF(kadft!$U$7="県計",$G$13,IF(kadft!$U$7="前回",$G$15)) -> 2015年 | B87: =IF(kadft!$U$7="県計",kadft!$W$81,IF(kadft!$U$7="前回",kadft!$W$80)) -> 155 | C87: =IF(kadft!$U$7="県計",kadft!$T$81,IF(kadft!$U$7="前回",kadft!$T$80)) -> 4146 | D87: =IF(kadft!$U$7="県計",kadft!$Q$81,IF(kadft!$U$7="前回",kadft!$Q$80)) -> 4484 | E87: =IF(kadft!$U$7="県計",kadft!$N$81,IF(kadft!$U$7="前回",kadft!$N$80)) -> 4512 | F87: =IF(kadft!$U$7="県計",kadft!$K$81,IF(kadft!$U$7="前回",kadft!$K$80)) -> 3931 | G87: =IF(kadft!$U$7="県計",kadft!$H$81,IF(kadft!$U$7="前回",kadft!$H$80)) -> 4198 | H87: =IF(kadft!$U$7="県計",kadft!$E$81,IF(kadft!$U$7="前回",kadft!$E$80)) -> 3187
C102: 保全管理の実施率 | F102: 保全管理の実施状況
C103: 農地の保全 | D103: 森林の保全 | E103: ため池・湖沼の保全 | F103: 河川・水路の保全 | G103: 農業用用排水路の保全
B104: =IF(kadft!$U$7="県計",$J$15,IF(kadft!$U$7="前回",$G$14)) -> 2010年 | C104: =IF(kadft!$U$7="県計",kadft!$G$101,IF(kadft!$U$7="前回",kadft!$G$98)) -> 1913 | D104: =IF(kadft!$U$7="県計",kadft!$K$101,IF(kadft!$U$7="前回",kadft!$K$98)) -> 1080 | E104: =IF(kadft!$U$7="県計",kadft!$O$101,IF(kadft!$U$7="前回",kadft!$O$98)) -> 565 | F104: =IF(kadft!$U$7="県計",kadft!$S$101,IF(kadft!$U$7="前回",kadft!$S$98)) -> 2532 | G104: =IF(kadft!$U$7="県計",kadft!$W$101,IF(kadft!$U$7="前回",kadft!$W$98)) -> 3777
B105: =IF(kadft!$U$7="県計",$G$13,IF(kadft!$U$7="前回",$G$15)) -> 2015年 | C105: =IF(kadft!$U$7="県計",kadft!$G$100,IF(kadft!$U$7="前回",kadft!$G$99)) -> 2176 | D105: =IF(kadft!$U$7="県計",kadft!$K$100,IF(kadft!$U$7="前回",kadft!$K$99)) -> 1382 | E105: =IF(kadft!$U$7="県計",kadft!$O$100,IF(kadft!$U$7="前回",kadft!$O$99)) -> 588 | F105: =IF(kadft!$U$7="県計",kadft!$S$100,IF(kadft!$U$7="前回",kadft!$S$99)) -> 2882 | G105: =IF(kadft!$U$7="県計",kadft!$W$100,IF(kadft!$U$7="前回",kadft!$W$99)) -> 3959

Sheet 2010 (hidden)
A1: 農山村地域調査
A2: １ 総土地面積及び林野面積
D3: 1 | E3: 2 | F3: 3 | G3: 4 | H3: 5 | I3: 6 | J3: 7 | K3: 8 | L3: 9 | M3: 10 | N3: 11 | O3: 12 | P3: 13 | Q3: 14 | R3: 15 | S3: 16 | T3: 17 | U3: 18 | V3: 19 | W3: 20 | X3: 21 | Y3: 22 | Z3: 23 | AA3: 24 | AB3: 25 | AC3: 26 | AD3: 27 | AE3: 28 | AF3: 29 | AG3: 30 | AH3: 31 | AI3: 32 | AJ3: 33 | AK3: 34 | AL3: 35 | AM3: 36 | AN3: 37 | AO3: 38 | AP3: 39 | AQ3: 40 | AR3: 41 | AS3: 42 | AT3: 43 | AU3: 44 | AV3: 45
D4: 総土地面積 | F4: 耕地面積 | K4: 生産関連 | Q4: 水田率 | U4: 農家率 | AA4: 寄り合いの議題_農業生産にかかる事項 | AH4: 保全管理
A5: 新旧市区町村 | D5: 総土地 面 積 | E5: 林野面積 | F5: 耕地面積 | G5: 田面積 | H5: 畑面積 | I5: 樹園地面積 | J5: 耕作 放棄地 面積 | K5: 計 | L5: 農業生産関連事業を行っている実経営体数 | M5: 事業種類別_農産物の加工 | N5: 事業種類別_消費者に直接販売 | O5: 事業種類別_観光農園 | P5: その他 | Q5: 計 | R5: 水田集落 （70％以上） | S5: 田畑集落 （30～70） | T5: 畑地集落 （30％未満） | U5: 10％未満 | V5: 10～30 | W5: 30～50 | X5: 50～70 | Y5: 70～90 | Z5: 90％以上 | AA5: 寄り合いの議題_農業生産にかかる事項 | AB5: 寄り合いの議題_農道・農業用用排水路・ため池の管理 | AC5: 寄り合いの議題_集落共有財産・共用施設の管理 | AD5: 寄り合いの議題_環境美化・自然環境の保全 | AE5: 寄り合いの議題_農業集落行事（祭り・イベント等）の計画・推進 | AF5: 寄り合いの議題_農業集落内の福祉・厚生 | AG5: 寄り合いを開催しなかった | AH5: 農地_ある | AI5: 農地_保全している | AJ5: 森林_ある | AK5: 森林_保全している | AL5: ため池・湖沼_ある | AM5: ため池・湖沼_保全している | AN5: 河川・水路_ある | AO5: 河川・水路_保全している | AP5: 農業用用排水路_ある | AQ5: 農業用用排水路_保全している
A6: 1 | B6: 長野県 | D6: 1,356,223 | E6: 1,022,777 | F6: 110877 | G6: 56367 | H6: 36605 | I6: 17905 | J6: 17146 | K6: 64,289 | L6: 17,375 | M6: 3,454 | N6: 15,528 | O6: 811 | P6: 930 | Q6: 4,736 | R6: 1,226 | S6: 2,063 | T6: 1,447 | U6: 858 | V6: 1,126 | W6: 1,109 | X6: 1,063 | Y6: 471 | Z6: 109 | AA6: 3,044 | AB6: 3,681 | AC6: 3,618 | AD6: 3,923 | AE6: 4,153 | AF6: 3,394 | AG6: 225 | AH6: 4,557 | AI6: 1,913 | AJ6: 3,716 | AK6: 1,080 | AL6: 1,028 | AM6: 565 | AN6: 4,326 | AO6: 2,532 | AP6: 4,385 | AQ6: 3,777
A7: 2 | B7: 長野市 | D7: 83,485 | E7: 51,140 | F7: 8692 | G7: 2695 | H7: 3024 | I7: 2973 | J7: 2481 | K7: 6,659 | L7: 1,671 | M7: 149 | N7: 1,609 | O7: 44 | P7: 72 | Q7: 652 | R7: 42 | S7: 319 | T7: 291 | U7: 97 | V7: 98 | W7: 133 | X7: 184 | Y7: 110 | Z7: 30 | AA7: 462 | AB7: 511 | AC7: 475 | AD7: 488 | AE7: 566 | AF7: 423 | AG7: 27 | AH7: 647 | AI7: 256 | AJ7: 468 | AK7: 108 | AL7: 91 | AM7: 58 | AN7: 529 | AO7: 255 | AP7: 596 | AQ7: 560
A8: 3 | C8: 長野市（旧） | D8: 3,036 | E8: 382 | F8: 59 | G8: 28 | H8: 13 | I8: 18 | J8: 61 | K8: 127 | L8: 48 | M8: 4 | N8: 47 | O8: - | P8: - | Q8: 13 | R8: 2 | S8: 4 | T8: 7 | U8: 13 | V8: - | W8: - | X8: - | Y8: - | Z8: - | AA8: 10 | AB8: 0 | AC8: 0 | AD8: 13 | AE8: 10 | AF8: 0 | AG8: 0 | AH8: 11 | AI8: 0 | AJ8: 7 | AK8: 0 | AL8: 0 | AM8: 0 | AN8: 8 | AO8: 1 | AP8: 10 | AQ8: 9
A9: 4 | C9: 芋井村 | D9: 3,128 | E9: 2,033 | F9: 222 | G9: 87 | H9: 84 | I9: 51 | J9: 161 | K9: 189 | L9: 48 | M9: 1 | N9: 45 | O9: - | P9: 2 | Q9: 30 | R9: 2 | S9: 18 | T9: 10 | U9: 1 | V9: 1 | W9: 6 | X9: 8 | Y9: 10 | Z9: 4 | AA9: 28 | AB9: 30 | AC9: 30 | AD9: 30 | AE9: 30 | AF9: 20 | AG9: 0 | AH9: 30 | AI9: 24 | AJ9: 30 | AK9: 1 | AL9: 3 | AM9: 2 | AN9: 29 | AO9: 13 | AP9: 30 | AQ9: 30
A10: 5 | C10: 浅川村 | D10: 2,389 | E10: 1,909 | F10: 82 | G10: 19 | H10: 17 | I10: 46 | J10: 32 | K10: 122 | L10: 26 | M10: 1 | N10: 26 | O10: - | P10: - | Q10: 16 | R10: - | S10: 4 | T10: 12 | U10: 3 | V10: 7 | W10: 1 | X10: 4 | Y10: 1 | Z10: - | AA10: 15 | AB10: 12 | AC10: 15 | AD10: 12 | AE10: 15 | AF10: 9 | AG10: 1 | AH10: 15 | AI10: 6 | AJ10: 15 | AK10: 0 | AL10: 2 | AM10: 0 | AN10: 15 | AO10: 0 | AP10: 13 | AQ10: 10
A11: 6 | C11: 若槻村 | D11: 1,312 | E11: 525 | F11: 148 | G11: 51 | H11: 20 | I11: 77 | J11: 44 | K11: 173 | L11: 39 | M11: 7 | N11: 38 | O11: - | P11: 1 | Q11: 9 | R11: - | S11: 5 | T11: 4 | U11: 5 | V11: 1 | W11: 2 | X11: - | Y11: - | Z11: 1 | AA11: 8 | AB11: 8 | AC11: 8 | AD11: 7 | AE11: 8 | AF11: 7 | AG11: 1 | AH11: 9 | AI11: 2 | AJ11: 7 | AK11: 0 | AL11: 6 | AM11: 0 | AN11: 7 | AO11: 0 | AP11: 8 | AQ11: 8
A12: 7 | C12: 古里村 | D12: 517 | E12: 7 | F12: 176 | G12: 73 | H12: 11 | I12: 92 | J12: 29 | K12: 170 | L12: 37 | M12: 3 | N12: 35 | O12: - | P12: - | Q12: 7 | R12: 2 | S12: 4 | T12: 1 | U12: 6 | V12: 1 | W12: - | X12: - | Y12: - | Z12: - | AA12: 0 | AB12: 7 | AC12: 7 | AD12: 0 | AE12: 7 | AF12: 0 | AG12: 0 | AH12: 7 | AI12: 0 | AJ12: 1 | AK12: 0 | AL12: 3 | AM12: 0 | AN12: 5 | AO12: 0 | AP12: 7 | AQ12: 7
A13: 8 | C13: 長沼村 | D13: 690 | E13: - | F13: 438 | G13: 115 | H13: 18 | I13: 305 | J13: 25 | K13: 282 | L13: 136 | M13: 21 | N13: 133 | O13: 17 | P13: 4 | Q13: 4 | R13: - | S13: 1 | T13: 3 | U13: - | V13: - | W13: 3 | X13: 1 | Y13: - | Z13: - | AA13: 2 | AB13: 4 | AC13: 4 | AD13: 0 | AE13: 4 | AF13: 0 | AG13: 0 | AH13: 4 | AI13: 0 | AJ13: 0 | AK13: 0 | AL13: 0 | AM13: 0 | AN13: 4 | AO13: 0 | AP13: 4 | AQ13: 4
A14: 9 | C14: 柳原村（長野市） | D14: 400 | E14: - | F14: 104 | G14: 42 | H14: 22 | I14: 40 | J14: 7 | K14: 93 | L14: 28 | M14: 1 | N14: 28 | O14: - | P14: - | Q14: 4 | R14: 1 | S14: 2 | T14: 1 | U14: 3 | V14: - | W14: 1 | X14: - | Y14: - | Z14: - | AA14: 1 | AB14: 4 | AC14: 4 | AD14: 0 | AE14: 4 | AF14: 0 | AG14: 0 | AH14: 4 | AI14: 0 | AJ14: 0 | AK14: 0 | AL14: 0 | AM14: 0 | AN14: 2 | AO14: 0 | AP14: 4 | AQ14: 4
A15: 10 | C15: 朝陽村 | D15: 637 | E15: - | F15: 155 | G15: 55 | H15: 41 | I15: 59 | J15: 25 | K15: 144 | L15: 35 | M15: 2 | N15: 33 | O15: - | P15: 4 | Q15: 5 | R15: 2 | S15: 1 | T15: 2 | U15: 3 | V15: 1 | W15: - | X15: 1 | Y15: - | Z15: - | AA15: 0 | AB15: 5 | AC15: 5 | AD15: 0 | AE15: 5 | AF15: 0 | AG15: 0 | AH15: 5 | AI15: 0 | AJ15: 0 | AK15: 0 | AL15: 0 | AM15: 0 | AN15: 2 | AO15: 0 | AP15: 5 | AQ15: 5
A16: 11 | C16: 大豆島村 | D16: 519 | E16: - | F16: 129 | G16: 67 | H16: 42 | I16: 20 | J16: 19 | K16: 113 | L16: 15 | M16: - | N16: 15 | O16: - | P16: - | Q16: 6 | R16: 2 | S16: 4 | T16: - | U16: 4 | V16: 2 | W16: - | X16: - | Y16: - | Z16: - | AA16: 6 | AB16: 0 | AC16: 0 | AD16: 2 | AE16: 3 | AF16: 0 | AG16: 0 | AH16: 6 | AI16: 0 | AJ16: 0 | AK16: 0 | AL16: 0 | AM16: 0 | AN16: 4 | AO16: 0 | AP16: 6 | AQ16: 6
A17: 12 | C17: 安茂里村 | D17: 1,445 | E17: 825 | F17: 84 | G17: 15 | H17: 19 | I17: 50 | J17: 27 | K17: 56 | L17: 15 | M17: - | N17: 15 | O17: - | P17: - | Q17: 7 | R17: - | S17: 2 | T17: 5 | U17: 7 | V17: - | W17: - | X17: - | Y17: - | Z17: - | AA17: 5 | AB17: 6 | AC17: 2 | AD17: 3 | AE17: 5 | AF17: 4 | AG17: 1 | AH17: 7 | AI17: 0 | AJ17: 5 | AK17: 0 | AL17: 0 | AM17: 0 | AN17: 6 | AO17: 0 | AP17: 6 | AQ17: 6
A18: 13 | C18: 小田切村 | D18: 1,849 | E18: 1,255 | F18: 81 | G18: 13 | H18: 41 | I18: 27 | J18: 101 | K18: 61 | L18: 10 | M18: - | N18: 10 | O18: - | P18: - | Q18: 30 | R18: - | S18: 7 | T18: 23 | U18: 3 | V18: - | W18: 4 | X18: 9 | Y18: 9 | Z18: 5 | AA18: 14 | AB18: 22 | AC18: 21 | AD18: 13 | AE18: 21 | AF18: 24 | AG18: 5 | AH18: 28 | AI18: 4 | AJ18: 30 | AK18: 0 | AL18: 1 | AM18: 1 | AN18: 25 | AO18: 1 | AP18: 18 | AQ18: 17
A19: 14 | C19: 篠ノ井町 | D19: 656 | E19: 11 | F19: 154 | G19: 20 | H19: 17 | I19: 117 | J19: 25 | K19: 179 | L19: 50 | M19: 4 | N19: 48 | O19: - | P19: - | Q19: 6 | R19: - | S19: 1 | T19: 5 | U19: 3 | V19: - | W19: 2 | X19: 1 | Y19: - | Z19: - | AA19: 6 | AB19: 6 | AC19: 6 | AD19: 6 | AE19: 6 | AF19: 6 | AG19: 0 | AH19: 6 | AI19: 0 | AJ19: 2 | AK19: 0 | AL19: 1 | AM19: 1 | AN19: 2 | AO19: 0 | AP19: 6 | AQ19: 6
A20: 15 | C20: 川柳村 | D20: 399 | E20: 128 | F20: 116 | G20: 65 | H20: 14 | I20: 37 | J20: 29 | K20: 114 | L20: 28 | M20: - | N20: 28 | O20: - | P20: - | Q20: 5 | R20: 3 | S20: 2 | T20: - | U20: - | V20: 1 | W20: 2 | X20: 2 | Y20: - | Z20: - | AA20: 5 | AB20: 5 | AC20: 5 | AD20: 5 | AE20: 5 | AF20: 5 | AG20: 0 | AH20: 5 | AI20: 3 | AJ20: 3 | AK20: 0 | AL20: 0 | AM20: 0 | AN20: 3 | AO20: 2 | AP20: 5 | AQ20: 5
A21: 16 | C21: 塩崎村 | D21: 832 | E21: 147 | F21: 268 | G21: 99 | H21: 55 | I21: 114 | J21: 37 | K21: 254 | L21: 48 | M21: 2 | N21: 47 | O21: - | P21: 2 | Q21: 10 | R21: 1 | S21: 3 | T21: 6 | U21: 1 | V21: 1 | W21: 5 | X21: 3 | Y21: - | Z21: - | AA21: 10 | AB21: 10 | AC21: 10 | AD21: 10 | AE21: 10 | AF21: 10 | AG21: 0 | AH21: 10 | AI21: 1 | AJ21: 3 | AK21: 0 | AL21: 2 | AM21: 1 | AN21: 10 | AO21: 4 | AP21: 10 | AQ21: 10
A22: 17 | C22: 東福寺村 | D22: 426 | E22: - | F22: 201 | G22: 52 | H22: 58 | I22: 91 | J22: 16 | K22: 187 | L22: 27 | M22: - | N22: 27 | O22: 1 | P22: 1 | Q22: 7 | R22: - | S22: 4 | T22: 3 | U22: 1 | V22: 2 | W22: 2 | X22: 1 | Y22: 1 | Z22: - | AA22: 0 | AB22: 7 | AC22: 7 | AD22: 7 | AE22: 7 | AF22: 7 | AG22: 0 | AH22: 7 | AI22: 0 | AJ22: 0 | AK22: 0 | AL22: 0 | AM22: 0 | AN22: 7 | AO22: 6 | AP22: 7 | AQ22: 6
A23: 18 | C23: 信里村 | D23: 1,313 | E23: 502 | F23: 284 | G23: 111 | H23: 109 | I23: 64 | J23: 99 | K23: 163 | L23: 33 | M23: 3 | N23: 32 | O23: 3 | P23: 1 | Q23: 14 | R23: - | S23: 12 | T23: 2 | U23: - | V23: - | W23: 1 | X23: 7 | Y23: 5 | Z23: 1 | AA23: 14 | AB23: 13 | AC23: 14 | AD23: 14 | AE23: 14 | AF23: 10 | AG23: 0 | AH23: 14 | AI23: 14 | AJ23: 14 | AK23: 7 | AL23: 14 | AM23: 14 | AN23: 12 | AO23: 10 | AP23: 14 | AQ23: 14
A24: 19 | C24: 西寺尾村２－１ | D24: 203 | E24: - | F24: 81 | G24: 30 | H24: 32 | I24: 19 | J24: 7 | K24: 70 | L24: 11 | M24: 2 | N24: 10 | O24: - | P24: 1 | Q24: 7 | R24: - | S24: 4 | T24: 3 | U24: 2 | V24: 3 | W24: - | X24: 2 | Y24: - | Z24: - | AA24: 0 | AB24: 7 | AC24: 7 | AD24: 7 | AE24: 7 | AF24: 7 | AG24: 0 | AH24: 7 | AI24: 0 | AJ24: 0 | AK24: 0 | AL24: 0 | AM24: 0 | AN24: 7 | AO24: 7 | AP24: 7 | AQ24: 7
A25: 20 | C25: 共和村 | D25: 1,009 | E25: 446 | F25: 311 | G25: 48 | H25: 21 | I25: 242 | J25: 29 | K25: 279 | L25: 71 | M25: 3 | N25: 67 | O25: 1 | P25: 3 | Q25: 13 | R25: - | S25: 1 | T25: 12 | U25: 2 | V25: 2 | W25: 4 | X25: 5 | Y25: - | Z25: - | AA25: 12 | AB25: 6 | AC25: 3 | AD25: 11 | AE25: 11 | AF25: 8 | AG25: 0 | AH25: 13 | AI25: 5 | AJ25: 7 | AK25: 0 | AL25: 0 | AM25: 0 | AN25: 12 | AO25: 1 | AP25: 13 | AQ25: 13
A26: 21 | C26: 川中島村 | D26: 481 | E26: - | F26: 171 | G26: 87 | H26: 45 | I26: 39 | J26: 21 | K26: 136 | L26: 21 | M26: 2 | N26: 21 | O26: - | P26: - | Q26: 13 | R26: - | S26: 12 | T26: 1 | U26: 5 | V26: 6 | W26: 2 | X26: - | Y26: - | Z26: - | AA26: 8 | AB26: 9 | AC26: 9 | AD26: 7 | AE26: 9 | AF26: 7 | AG26: 1 | AH26: 13 | AI26: 0 | AJ26: 0 | AK26: 0 | AL26: 0 | AM26: 0 | AN26: 2 | AO26: 0 | AP26: 13 | AQ26: 13
A27: 22 | C27: 中津村（長野市） | D27: 322 | E27: - | F27: 84 | G27: 40 | H27: 6 | I27: 38 | J27: 10 | K27: 87 | L27: 21 | M27: 1 | N27: 21 | O27: - | P27: - | Q27: 6 | R27: 2 | S27: 3 | T27: 1 | U27: 3 | V27: - | W27: 3 | X27: - | Y27: - | Z27: - | AA27: 3 | AB27: 4 | AC27: 4 | AD27: 4 | AE27: 4 | AF27: 4 | AG27: 2 | AH27: 6 | AI27: 0 | AJ27: 0 | AK27: 0 | AL27: 0 | AM27: 0 | AN27: 0 | AO27: 0 | AP27: 6 | AQ27: 6
A28: 23 | C28: 御厨村 | D28: 260 | E28: - | F28: 76 | G28: 39 | H28: 19 | I28: 18 | J28: 12 | K28: 87 | L28: 18 | M28: - | N28: 18 | O28: - | P28: - | Q28: 10 | R28: - | S28: 10 | T28: - | U28: 2 | V28: 6 | W28: 1 | X28: 1 | Y28: - | Z28: - | AA28: 6 | AB28: 6 | AC28: 6 | AD28: 6 | AE28: 5 | AF28: 4 | AG28: 4 | AH28: 10 | AI28: 0 | AJ28: 0 | AK28: 0 | AL28: 0 | AM28: 0 | AN28: 0 | AO28: 0 | AP28: 10 | AQ28: 10
A29: 24 | C29: 信田村 | D29: 2,239 | E29: 1,439 | F29: 303 | G29: 169 | H29: 61 | I29: 73 | J29: 74 | K29: 232 | L29: 31 | M29: 1 | N29: 29 | O29: - | P29: 2 | Q29: 17 | R29: 4 | S29: 12 | T29: 1 | U29: - | V29: 1 | W29: - | X29: 4 | Y29: 10 | Z29: 2 | AA29: 17 | AB29: 17 | AC29: 17 | AD29: 17 | AE29: 16 | AF29: 8 | AG29: 0 | AH29: 17 | AI29: 16 | AJ29: 17 | AK29: 4 | AL29: 8 | AM29: 6 | AN29: 14 | AO29: 11 | AP29: 16 | AQ29: 16
A30: 25 | C30: 更府村 | D30: 1,291 | E30: 806 | F30: 150 | G30: 57 | H30: 84 | I30: 9 | J30: 94 | K30: 67 | L30: 13 | M30: 1 | N30: 12 | O30: - | P30: 1 | Q30: 10 | R30: - | S30: 7 | T30: 3 | U30: - | V30: 1 | W30: - | X30: 5 | Y30: 3 | Z30: 1 | AA30: 10 | AB30: 10 | AC30: 10 | AD30: 10 | AE30: 10 | AF30: 10 | AG30: 0 | AH30: 10 | AI30: 10 | AJ30: 10 | AK30: 5 | AL30: 7 | AM30: 6 | AN30: 10 | AO30: 7 | AP30: 10 | AQ30: 10
A31: 26 | C31: 青木島村 | D31: 588 | E31: - | F31: 64 | G31: 22 | H31: 11 | I31: 31 | J31: 12 | K31: 59 | L31: 12 | M31: - | N31: 12 | O31: 1 | P31: - | Q31: 9 | R31: - | S31: 5 | T31: 4 | U31: 5 | V31: 2 | W31: 2 | X31: - | Y31: - | Z31: - | AA31: 1 | AB31: 1 | AC31: 5 | AD31: 5 | AE31: 1 | AF31: 2 | AG31: 4 | AH31: 9 | AI31: 0 | AJ31: 0 | AK31: 0 | AL31: 0 | AM31: 0 | AN31: 4 | AO31: 0 | AP31: 8 | AQ31: 7
A32: 27 | C32: 稲里村 | D32: 414 | E32: - | F32: 75 | G32: 43 | H32: 15 | I32: 17 | J32: 10 | K32: 85 | L32: 16 | M32: - | N32: 15 | O32: - | P32: 1 | Q32: 18 | R32: 3 | S32: 13 | T32: 2 | U32: 11 | V32: 4 | W32: 2 | X32: 1 | Y32: - | Z32: - | AA32: 5 | AB32: 7 | AC32: 0 | AD32: 2 | AE32: 18 | AF32: 17 | AG32: 0 | AH32: 18 | AI32: 0 | AJ32: 0 | AK32: 0 | AL32: 0 | AM32: 0 | AN32: 0 | AO32: 0 | AP32: 18 | AQ32: 8
A33: 28 | C33: 小島田村 | D33: 288 | E33: - | F33: 121 | G33: 46 | H33: 47 | I33: 28 | J33: 12 | K33: 70 | L33: 16 | M33: - | N33: 16 | O33: 3 | P33: 1 | Q33: 10 | R33: - | S33: 9 | T33: 1 | U33: - | V33: 4 | W33: 4 | X33: 2 | Y33: - | Z33: - | AA33: 10 | AB33: 0 | AC33: 0 | AD33: 0 | AE33: 5 | AF33: 0 | AG33: 0 | AH33: 10 | AI33: 0 | AJ33: 0 | AK33: 0 | AL33: 0 | AM33: 0 | AN33: 3 | AO33: 0 | AP33: 10 | AQ33: 9
A34: 29 | C34: 真島村 | D34: 470 | E34: - | F34: 151 | G34: 43 | H34: 24 | I34: 84 | J34: 14 | K34: 190 | L34: 67 | M34: 9 | N34: 65 | O34: - | P34: 1 | Q34: 7 | R34: - | S34: 4 | T34: 3 | U34: - | V34: 1 | W34: 4 | X34: 1 | Y34: 1 | Z34: - | AA34: 7 | AB34: 6 | AC34: 6 | AD34: 4 | AE34: 6 | AF34: 5 | AG34: 0 | AH34: 7 | AI34: 1 | AJ34: 0 | AK34: 0 | AL34: 0 | AM34: 0 | AN34: 6 | AO34: 4 | AP34: 7 | AQ34: 7
A35: 30 | C35: 松代町 | D35: 155 | E35: - | F35: 3 | G35: 1 | H35: 1 | I35: 1 | J35: 13 | K35: 37 | L35: 11 | M35: 1 | N35: 11 | O35: - | P35: - | Q35: 1 | R35: - | S35: 1 | T35: - | U35: - | V35: - | W35: 1 | X35: - | Y35: - | Z35: - | AA35: 1 | AB35: 1 | AC35: 1 | AD35: 1 | AE35: 1 | AF35: 1 | AG35: 0 | AH35: 1 | AI35: 0 | AJ35: 0 | AK35: 0 | AL35: 0 | AM35: 0 | AN35: 0 | AO35: 0 | AP35: 1 | AQ35: 1
A36: 31 | C36: 東条村 | D36: 846 | E36: 478 | F36: 141 | G36: 29 | H36: 44 | I36: 68 | J36: 50 | K36: 97 | L36: 13 | M36: 1 | N36: 13 | O36: - | P36: - | Q36: 14 | R36: 1 | S36: 3 | T36: 10 | U36: 4 | V36: 3 | W36: 3 | X36: 4 | Y36: - | Z36: - | AA36: 6 | AB36: 13 | AC36: 13 | AD36: 12 | AE36: 10 | AF36: 3 | AG36: 1 | AH36: 14 | AI36: 0 | AJ36: 10 | AK36: 2 | AL36: 1 | AM36: 0 | AN36: 9 | AO36: 2 | AP36: 12 | AQ36: 12
A37: 32 | C37: 清野村 | D37: 582 | E37: 217 | F37: 221 | G37: 24 | H37: 188 | I37: 9 | J37: 23 | K37: 132 | L37: 26 | M37: - | N37: 24 | O37: - | P37: 3 | Q37: 8 | R37: - | S37: 3 | T37: 5 | U37: - | V37: 3 | W37: - | X37: 2 | Y37: 3 | Z37: - | AA37: 8 | AB37: 7 | AC37: 8 | AD37: 8 | AE37: 8 | AF37: 8 | AG37: 0 | AH37: 8 | AI37: 0 | AJ37: 7 | AK37: 0 | AL37: 2 | AM37: 2 | AN37: 2 | AO37: 1 | AP37: 7 | AQ37: 7
A38: 33 | C38: 豊栄村 | D38: 2,116 | E38: 1,807 | F38: 135 | G38: 47 | H38: 55 | I38: 33 | J38: 44 | K38: 61 | L38: 12 | M38: - | N38: 11 | O38: - | P38: 2 | Q38: 6 | R38: 1 | S38: 2 | T38: 3 | U38: 1 | V38: - | W38: 3 | X38: 2 | Y38: - | Z38: - | AA38: 3 | AB38: 6 | AC38: 6 | AD38: 5 | AE38: 6 | AF38: 1 | AG38: 0 | AH38: 6 | AI38: 3 | AJ38: 6 | AK38: 0 | AL38: 0 | AM38: 0 | AN38: 6 | AO38: 5 | AP38: 6 | AQ38: 6
A39: 34 | C39: 寺尾村 | D39: 1,042 | E39: 440 | F39: 304 | G39: 19 | H39: 217 | I39: 68 | J39: 46 | K39: 141 | L39: 17 | M39: 1 | N39: 17 | O39: 1 | P39: - | Q39: 5 | R39: - | S39: - | T39: 5 | U39: - | V39: 2 | W39: 3 | X39: - | Y39: - | Z39: - | AA39: 2 | AB39: 5 | AC39: 5 | AD39: 5 | AE39: 5 | AF39: 5 | AG39: 0 | AH39: 5 | AI39: 0 | AJ39: 3 | AK39: 1 | AL39: 3 | AM39: 1 | AN39: 5 | AO39: 2 | AP39: 5 | AQ39: 5
A40: 35 | C40: 西寺尾村２－２ | D40: 103 | E40: - | F40: 68 | G40: 3 | H40: 55 | I40: 10 | J40: 8 | K40: 48 | L40: 9 | M40: 1 | N40: 8 | O40: - | P40: - | Q40: 1 | R40: - | S40: - | T40: 1 | U40: - | V40: - | W40: - | X40: 1 | Y40: - | Z40: - | AA40: 0 | AB40: 1 | AC40: 1 | AD40: 1 | AE40: 1 | AF40: 1 | AG40: 0 | AH40: 1 | AI40: 0 | AJ40: 0 | AK40: 0 | AL40: 0 | AM40: 0 | AN40: 1 | AO40: 1 | AP40: 1 | AQ40: 1
A41: 36 | C41: 西条村 | D41: 1,254 | E41: 1,021 | F41: 73 | G41: 27 | H41: 29 | I41: 17 | J41: 40 | K41: 57 | L41: 12 | M41: - | N41: 12 | O41: - | P41: - | Q41: 8 | R41: - | S41: 5 | T41: 3 | U41: - | V41: 3 | W41: 3 | X41: 1 | Y41: 1 | Z41: - | AA41: 8 | AB41: 8 | AC41: 8 | AD41: 8 | AE41: 8 | AF41: 7 | AG41: 0 | AH41: 8 | AI41: 2 | AJ41: 6 | AK41: 1 | AL41: 0 | AM41: 0 | AN41: 6 | AO41: 5 | AP41: 7 | AQ41: 7
A42: 37 | C42: 保科村 | D42: 3,380 | E42: 2,921 | F42: 192 | G42: 32 | H42: 42 | I42: 118 | J42: 46 | K42: 146 | L42: 26 | M42: - | N42: 25 | O42: - | P42: 1 | Q42: 13 | R42: - | S42: 3 | T42: 10 | U42: - | V42: 6 | W42: 3 | X42: 4 | Y42: - | Z42: - | AA42: 11 | AB42: 4 | AC42: 4 | AD42: 3 | AE42: 9 | AF42: 1 | AG42: 0 | AH42: 13 | AI42: 0 | AJ42: 12 | AK42: 5 | AL42: 0 | AM42: 0 | AN42: 13 | AO42: 11 | AP42: 12 | AQ42: 11
A43: 38 | C43: 川田村 | D43: 758 | E43: 177 | F43: 265 | G43: 96 | H43: 55 | I43: 114 | J43: 39 | K43: 190 | L43: 17 | M43: 1 | N43: 16 | O43: 1 | P43: - | Q43: 7 | R43: - | S43: 6 | T43: 1 | U43: - | V43: 1 | W43: 4 | X43: 2 | Y43: - | Z43: - | AA43: 7 | AB43: 6 | AC43: 2 | AD43: 2 | AE43: 7 | AF43: 0 | AG43: 0 | AH43: 7 | AI43: 1 | AJ43: 3 | AK43: 0 | AL43: 1 | AM43: 0 | AN43: 7 | AO43: 6 | AP43: 7 | AQ43: 7
A44: 39 | C44: 綿内村 | D44: 1,472 | E44: 746 | F44: 340 | G44: 76 | H44: 56 | I44: 208 | J44: 37 | K44: 295 | L44: 52 | M44: 5 | N44: 51 | O44: - | P44: 4 | Q44: 18 | R44: 3 | S44: 5 | T44: 10 | U44: 1 | V44: 7 | W44: 2 | X44: 7 | Y44: 1 | Z44: - | AA44: 16 | AB44: 16 | AC44: 16 | AD44: 16 | AE44: 17 | AF44: 15 | AG44: 1 | AH44: 18 | AI44: 1 | AJ44: 6 | AK44: 6 | AL44: 1 | AM44: 0 | AN44: 13 | AO44: 11 | AP44: 16 | AQ44: 16
A45: 40 | C45: 七二会村 | D45: 1,614 | E45: 783 | F45: 156 | G45: 45 | H45: 98 | I45: 13 | J45: 203 | K45: 38 | L45: 8 | M45: 1 | N45: 7 | O45: - | P45: 2 | Q45: 28 | R45: - | S45: 14 | T45: 14 | U45: 1 | V45: 4 | W45: 7 | X45: 10 | Y45: 6 | Z45: - | AA45: 18 | AB45: 14 | AC45: 18 | AD45: 19 | AE45: 27 | AF45: 19 | AG45: 0 | AH45: 28 | AI45: 13 | AJ45: 28 | AK45: 0 | AL45: 0 | AM45: 0 | AN45: 27 | AO45: 2 | AP45: 21 | AQ45: 20
A46: 41 | C46: 神郷村 | D46: 1,000 | E46: 315 | F46: 305 | G46: 61 | H46: 40 | I46: 204 | J46: 41 | K46: 319 | L46: 170 | M46: 25 | N46: 165 | O46: 11 | P46: 5 | Q46: 12 | R46: 1 | S46: - | T46: 11 | U46: 2 | V46: 4 | W46: 2 | X46: 3 | Y46: - | Z46: 1 | AA46: 10 | AB46: 5 | AC46: 1 | AD46: 2 | AE46: 4 | AF46: 3 | AG46: 2 | AH46: 12 | AI46: 0 | AJ46: 8 | AK46: 1 | AL46: 3 | AM46: 3 | AN46: 11 | AO46: 2 | AP46: 11 | AQ46: 11
A47: 42 | C47: 鳥居村 | D47: 990 | E47: 330 | F47: 284 | G47: 73 | H47: 47 | I47: 164 | J47: 33 | K47: 259 | L47: 100 | M47: 15 | N47: 97 | O47: 4 | P47: 3 | Q47: 21 | R47: - | S47: 12 | T47: 9 | U47: 1 | V47: - | W47: 7 | X47: 5 | Y47: 5 | Z47: 3 | AA47: 6 | AB47: 21 | AC47: 10 | AD47: 13 | AE47: 20 | AF47: 12 | AG47: 0 | AH47: 21 | AI47: 0 | AJ47: 12 | AK47: 1 | AL47: 1 | AM47: 1 | AN47: 18 | AO47: 2 | AP47: 21 | AQ47: 21
A48: 43 | C48: 戸隠村 | D48: 10,316 | E48: 7,795 | F48: 380 | G48: 103 | H48: 276 | I48: 1 | J48: 87 | K48: 200 | L48: 47 | M48: 4 | N48: 44 | O48: - | P48: 2 | Q48: 26 | R48: 1 | S48: 12 | T48: 13 | U48: - | V48: 1 | W48: 7 | X48: 10 | Y48: 5 | Z48: 3 | AA48: 26 | AB48: 24 | AC48: 26 | AD48: 26 | AE48: 26 | AF48: 24 | AG48: 0 | AH48: 26 | AI48: 25 | AJ48: 25 | AK48: 21 | AL48: 4 | AM48: 4 | AN48: 26 | AO48: 25 | AP48: 26 | AQ48: 25
A49: 44 | C49: 柵村 | D49: 2,960 | E49: 2,244 | F49: 206 | G49: 69 | H49: 133 | I49: 4 | J49: 60 | K49: 137 | L49: 22 | M49: 1 | N49: 20 | O49: - | P49: 1 | Q49: 30 | R49: - | S49: 20 | T49: 10 | U49: - | V49: 2 | W49: 4 | X49: 11 | Y49: 12 | Z49: 1 | AA49: 25 | AB49: 26 | AC49: 23 | AD49: 27 | AE49: 27 | AF49: 21 | AG49: 2 | AH49: 30 | AI49: 21 | AJ49: 30 | AK49: 13 | AL49: 3 | AM49: 3 | AN49: 30 | AO49: 27 | AP49: 30 | AQ49: 30
A50: 45 | C50: 鬼無里村 | D50: 12,796 | E50: 10,982 | F50: 245 | G50: 122 | H50: 123 | I50: 0 | J50: 100 | K50: 134 | L50: 22 | M50: 3 | N50: 18 | O50: - | P50: 5 | Q50: 28 | R50: 1 | S50: 24 | T50: 3 | U50: - | V50: 2 | W50: 7 | X50: 12 | Y50: 5 | Z50: 2 | AA50: 16 | AB50: 21 | AC50: 21 | AD50: 25 | AE50: 24 | AF50: 23 | AG50: 2 | AH50: 28 | AI50: 5 | AJ50: 28 | AK50: 21 | AL50: 4 | AM50: 1 | AN50: 28 | AO50: 15 | AP50: 28 | AQ50: 27
A51: 46 | C51: 大岡村 | D51: 3,568 | E51: 2,758 | F51: 199 | G51: 111 | H51: 76 | I51: 12 | J51: 68 | K51: 109 | L51: 18 | M51: 3 | N51: 16 | O51: - | P51: 4 | Q51: 37 | R51: 8 | S51: 24 | T51: 5 | U51: - | V51: 5 | W51: 4 | X51: 15 | Y51: 12 | Z51: 1 | AA51: 21 | AB51: 34 | AC51: 35 | AD51: 35 | AE51: 33 | AF51: 27 | AG51: 0 | AH51: 37 | AI51: 36 | AJ51: 37 | AK51: 1 | AL51: 6 | AM51: 2 | AN51: 37 | AO51: 37 | AP51: 37 | AQ51: 36
A52: 47 | C52: 牧郷村２－２ | D52: 1,018 | E52: 728 | F52: 66 | G52: 41 | H52: 25 | I52: 0 | J52: 14 | K52: 51 | L52: 12 | M52: 2 | N52: 11 | O52: 1 | P52: 1 | Q52: 8 | R52: 2 | S52: 5 | T52: 1 | U52: - | V52: - | W52: 3 | X52: 1 | Y52: 1 | Z52: 3 | AA52: 6 | AB52: 7 | AC52: 8 | AD52: 8 | AE52: 5 | AF52: 2 | AG52: 0 | AH52: 8 | AI52: 8 | AJ52: 8 | AK52: 1 | AL52: 2 | AM52: 1 | AN52: 8 | AO52: 7 | AP52: 8 | AQ52: 7
A53: 48 | C53: 水内村（長野市） | D53: 846 | E53: 456 | F53: 113 | G53: 17 | H53: 65 | I53: 31 | J53: 57 | K53: 72 | L53: 26 | M53: 3 | N53: 24 | O53: - | P53: 1 | Q53: 17 | R53: - | S53: 3 | T53: 14 | U53: 4 | V53: 2 | W53: 4 | X53: 6 | Y53: 1 | Z53: - | AA53: 16 | AB53: 16 | AC53: 13 | AD53: 15 | AE53: 17 | AF53: 17 | AG53: 0 | AH53: 17 | AI53: 5 | AJ53: 17 | AK53: 0 | AL53: 1 | AM53: 1 | AN53: 17 | AO53: 2 | AP53: 14 | AQ53: 9
A54: 49 | C54: 津和村 | D54: 2,483 | E54: 1,713 | F54: 96 | G54: 1 | H54: 79 | I54: 16 | J54: 121 | K54: 62 | L54: 26 | M54: 3 | N54: 24 | O54: - | P54: 1 | Q54: 23 | R54: - | S54: - | T54: 23 | U54: - | V54: 3 | W54: 3 | X54: 8 | Y54: 7 | Z54: 2 | AA54: 23 | AB54: 18 | AC54: 13 | AD54: 23 | AE54: 23 | AF54: 23 | AG54: 0 | AH54: 23 | AI54: 23 | AJ54: 23 | AK54: 14 | AL54: 2 | AM54: 0 | AN54: 18 | AO54: 5 | AP54: 11 | AQ54: 6
A55: 50 | C55: 日原村 | D55: 751 | E55: 689 | F55: 48 | G55: 17 | H55: 23 | I55: 8 | J55: 20 | K55: 36 | L55: 14 | M55: 2 | N55: 14 | O55: - | P55: 1 | Q55: 5 | R55: - | S55: 3 | T55: 2 | U55: - | V55: 1 | W55: 2 | X55: 1 | Y55: 1 | Z55: - | AA55: 5 | AB55: 5 | AC55: 5 | AD55: 5 | AE55: 5 | AF55: 5 | AG55: 0 | AH55: 5 | AI55: 1 | AJ55: 5 | AK55: 0 | AL55: 2 | AM55: 1 | AN55: 5 | AO55: 1 | AP55: 5 | AQ55: 4
A56: 51 | C56: 八坂村２－２ | D56: 307 | E56: 260 | F56: 33 | G56: 9 | H56: 23 | I56: 1 | J56: 16 | K56: 8 | L56: 3 | M56: - | N56: 3 | O56: - | P56: 1 | Q56: 1 | R56: - | S56: - | T56: 1 | U56: - | V56: - | W56: 1 | X56: - | Y56: - | Z56: - | AA56: 1 | AB56: 1 | AC56: 1 | AD56: 1 | AE56: 1 | AF56: 1 | AG56: 0 | AH56: 1 | AI56: 1 | AJ56: 1 | AK56: 0 | AL56: 1 | AM56: 1 | AN56: 1 | AO56: 1 | AP56: 1 | AQ56: 1
A57: 52 | C57: 信級村 | D57: 1,418 | E57: 1,184 | F57: 44 | G57: 12 | H57: 24 | I57: 8 | J57: 12 | K57: 22 | L57: 5 | M57: - | N57: 5 | O57: - | P57: 2 | Q57: 6 | R57: - | S57: 3 | T57: 3 | U57: - | V57: - | W57: 2 | X57: 4 | Y57: - | Z57: - | AA57: 1 | AB57: 5 | AC57: 2 | AD57: 3 | AE57: 4 | AF57: 2 | AG57: 0 | AH57: 6 | AI57: 4 | AJ57: 6 | AK57: 0 | AL57: 1 | AM57: 1 | AN57: 6 | AO57: 5 | AP57: 6 | AQ57: 6
A58: 53 | C58: 牧郷村２－１ | D58: 1,268 | E58: 748 | F58: 173 | G58: 68 | H58: 76 | I58: 29 | J58: 46 | K58: 114 | L58: 41 | M58: 4 | N58: 39 | O58: - | P58: 1 | Q58: 14 | R58: - | S58: 11 | T58: 3 | U58: - | V58: 1 | W58: 2 | X58: 6 | Y58: 5 | Z58: - | AA58: 5 | AB58: 13 | AC58: 8 | AD58: 8 | AE58: 10 | AF58: 6 | AG58: 0 | AH58: 14 | AI58: 9 | AJ58: 14 | AK58: 0 | AL58: 3 | AM58: 2 | AN58: 14 | AO58: 5 | AP58: 14 | AQ58: 14
A59: 54 | C59: 栄村（長野市） | D59: 1,520 | E59: 781 | F59: 148 | G59: 24 | H59: 104 | I59: 20 | J59: 113 | K59: 80 | L59: 32 | M59: 4 | N59: 31 | O59: - | P59: 2 | Q59: 14 | R59: - | S59: 4 | T59: 10 | U59: - | V59: 1 | W59: 4 | X59: 8 | Y59: 1 | Z59: - | AA59: 11 | AB59: 14 | AC59: 14 | AD59: 14 | AE59: 14 | AF59: 14 | AG59: 0 | AH59: 14 | AI59: 4 | AJ59: 14 | AK59: 1 | AL59: 2 | AM59: 2 | AN59: 14 | AO59: 7 | AP59: 11 | AQ59: 10
A60: 55 | C60: 日里村 | D60: 1,809 | E60: 1,152 | F60: 166 | G60: 32 | H60: 124 | I60: 10 | J60: 114 | K60: 25 | L60: 10 | M60: 1 | N60: 10 | O60: - | P60: 5 | Q60: 8 | R60: - | S60: 2 | T60: 6 | U60: - | V60: - | W60: 1 | X60: 3 | Y60: 4 | Z60: - | AA60: 7 | AB60: 8 | AC60: 8 | AD60: 8 | AE60: 8 | AF60: 8 | AG60: 0 | AH60: 8 | AI60: 8 | AJ60: 8 | AK60: 2 | AL60: 1 | AM60: 1 | AN60: 8 | AO60: 1 | AP60: 7 | AQ60: 7
A61: 56 | B61: 松本市 | D61: 91,935 | E61: 69,288 | F61: @ | G61: @ | H61: @ | I61: @ | J61: @ | K61: @ | L61: @ | M61: @ | N61: @ | O61: @ | P61: @ | Q61: 255 | R61: 101 | S61: 96 | T61: 58 | U61: @ | V61: @ | W61: @ | X61: @ | Y61: @ | Z61: @ | AA61: @ | AB61: @ | AC61: @ | AD61: @ | AE61: @ | AF61: @ | AG61: @ | AH61: @ | AI61: @ | AJ61: @ | AK61: @ | AL61: @ | AM61: @ | AN61: @ | AO61: @ | AP61: @ | AQ61: @
A62: 57 | C62: 松本市（旧） | D62: 2,132 | E62: 74 | F62: 74 | G62: 52 | H62: 20 | I62: 2 | J62: 16 | K62: 137 | L62: 52 | M62: 2 | N62: 52 | O62: - | P62: 1 | Q62: 11 | R62: 3 | S62: 2 | T62: 6 | U62: 11 | V62: - | W62: - | X62: - | Y62: - | Z62: - | AA62: 4 | AB62: 2 | AC62: 4 | AD62: 9 | AE62: 8 | AF62: 8 | AG62: 1 | AH62: 7 | AI62: 1 | AJ62: 3 | AK62: 1 | AL62: 3 | AM62: 2 | AN62: 11 | AO62: 4 | AP62: 9 | AQ62: 2
A63: 58 | C63: 島内村 | D63: 1,516 | E63: 298 | F63: 469 | G63: 449 | H63: 20 | I63: 0 | J63: 23 | K63: 295 | L63: 39 | M63: 2 | N63: 38 | O63: 1 | P63: - | Q63: 15 | R63: 12 | S63: 2 | T63: 1 | U63: 4 | V63: 7 | W63: 3 | X63: 1 | Y63: - | Z63: - | AA63: 10 | AB63: 10 | AC63: 12 | AD63: 15 | AE63: 15 | AF63: 14 | AG63: 0 | AH63: 15 | AI63: 4 | AJ63: 4 | AK63: 1 | AL63: 2 | AM63: 0 | AN63: 15 | AO63: 6 | AP63: 15 | AQ63: 4
A64: 59 | C64: 中山村 | D64: 2,143 | E64: 1,478 | F64: 212 | G64: 117 | H64: 85 | I64: 10 | J64: 59 | K64: 152 | L64: 26 | M64: 2 | N64: 25 | O64: - | P64: 2 | Q64: 6 | R64: 2 | S64: 3 | T64: 1 | U64: 1 | V64: 2 | W64: 2 | X64: 1 | Y64: - | Z64: - | AA64: 6 | AB64: 6 | AC64: 6 | AD64: 6 | AE64: 6 | AF64: 6 | AG64: 0 | AH64: 6 | AI64: 6 | AJ64: 6 | AK64: 5 | AL64: 3 | AM64: 2 | AN64: 6 | AO64: 5 | AP64: 6 | AQ64: 5
A65: 60 | C65: 島立村 | D65: 620 | E65: - | F65: 294 | G65: 288 | H65: 4 | I65: 2 | J65: 2 | K65: 223 | L65: 38 | M65: - | N65: 38 | O65: 1 | P65: 1 | Q65: 10 | R65: 10 | S65: - | T65: - | U65: 4 | V65: 4 | W65: 2 | X65: - | Y65: - | Z65: - | AA65: 8 | AB65: 6 | AC65: 9 | AD65: 10 | AE65: 10 | AF65: 10 | AG65: 0 | AH65: 10 | AI65: 1 | AJ65: 0 | AK65: 0 | AL65: 1 | AM65: 0 | AN65: 10 | AO65: 2 | AP65: 10 | AQ65: 1
A66: 61 | C66: 和田村（松本市） | D66: 785 | E66: - | F66: 559 | G66: 487 | H66: 72 | I66: 0 | J66: 6 | K66: 277 | L66: 30 | M66: 1 | N66: 29 | O66: - | P66: 1 | Q66: 9 | R66: 9 | S66: - | T66: - | U66: - | V66: 3 | W66: 6 | X66: - | Y66: - | Z66: - | AA66: 7 | AB66: 1 | AC66: 0 | AD66: 4 | AE66: 1 | AF66: 0 | AG66: 2 | AH66: 9 | AI66: 0 | AJ66: 0 | AK66: 0 | AL66: 0 | AM66: 0 | AN66: 9 | AO66: 9 | AP66: 9 | AQ66: 9
A67: 62 | C67: 笹賀村 | D67: 883 | E67: 8 | F67: 405 | G67: 336 | H67: 28 | I67: 41 | J67: 19 | K67: 260 | L67: 44 | M67: 7 | N67: 39 | O67: - | P67: 2 | Q67: 10 | R67: 9 | S67: 1 | T67: - | U67: 4 | V67: 4 | W67: 1 | X67: 1 | Y67: - | Z67: - | AA67: 10 | AB67: 5 | AC67: 3 | AD67: 5 | AE67: 3 | AF67: 2 | AG67: 0 | AH67: 10 | AI67: 0 | AJ67: 0 | AK67: 0 | AL67: 1 | AM67: 0 | AN67: 10 | AO67: 3 | AP67: 10 | AQ67: 3
A68: 63 | C68: 芳川村 | D68: 566 | E68: - | F68: 153 | G68: 140 | H68: 13 | I68: 0 | J68: 9 | K68: 113 | L68: 10 | M68: 2 | N68: 9 | O68: - | P68: 1 | Q68: 5 | R68: 5 | S68: - | T68: - | U68: 5 | V68: - | W68: - | X68: - | Y68: - | Z68: - | AA68: 4 | AB68: 4 | AC68: 4 | AD68: 4 | AE68: 4 | AF68: 4 | AG68: 1 | AH68: 5 | AI68: 3 | AJ68: 0 | AK68: 0 | AL68: 3 | AM68: 2 | AN68: 5 | AO68: 4 | AP68: 5 | AQ68: 4
A69: 64 | C69: 寿村 | D69: 942 | E69: 101 | F69: 338 | G69: 229 | H69: 59 | I69: 50 | J69: 29 | K69: 238 | L69: 43 | M69: 2 | N69: 42 | O69: 5 | P69: 3 | Q69: 8 | R69: 4 | S69: 4 | T69: - | U69: 5 | V69: 3 | W69: - | X69: - | Y69: - | Z69: - | AA69: 8 | AB69: 8 | AC69: 8 | AD69: 8 | AE69: 8 | AF69: 8 | AG69: 0 | AH69: 8 | AI69: 8 | AJ69: 3 | AK69: 3 | AL69: 5 | AM69: 5 | AN69: 8 | AO69: 8 | AP69: 8 | AQ69: 8
A70: 65 | C70: 岡田村 | D70: 1,070 | E70: 578 | F70: 205 | G70: 120 | H70: 52 | I70: 33 | J70: 36 | K70: 158 | L70: 56 | M70: - | N70: 56 | O70: - | P70: - | Q70: 7 | R70: 2 | S70: 4 | T70: 1 | U70: 2 | V70: 1 | W70: 3 | X70: 1 | Y70: - | Z70: - | AA70: 6 | AB70: 7 | AC70: 4 | AD70: 2 | AE70: 7 | AF70: 7 | AG70: 0 | AH70: 7 | AI70: 0 | AJ70: 5 | AK70: 2 | AL70: 7 | AM70: 5 | AN70: 7 | AO70: 5 | AP70: 7 | AQ70: 5
A71: 66 | C71: 入山辺村 | D71: 7,748 | E71: 7,302 | F71: 235 | G71: 72 | H71: 83 | I71: 80 | J71: 77 | K71: 146 | L71: 52 | M71: - | N71: 51 | O71: - | P71: 1 | Q71: 22 | R71: - | S71: 13 | T71: 9 | U71: 1 | V71: 8 | W71: 5 | X71: 6 | Y71: 1 | Z71: 1 | AA71: 20 | AB71: 13 | AC71: 10 | AD71: 19 | AE71: 20 | AF71: 18 | AG71: 0 | AH71: 22 | AI71: 4 | AJ71: 21 | AK71: 10 | AL71: 19 | AM71: 0 | AN71: 22 | AO71: 5 | AP71: 22 | AQ71: 3
A72: 67 | C72: 里山辺村 | D72: 1,115 | E72: 611 | F72: 205 | G72: 113 | H72: 21 | I72: 71 | J72: 18 | K72: 181 | L72: 64 | M72: 3 | N72: 61 | O72: 4 | P72: 2 | Q72: 12 | R72: 1 | S72: 10 | T72: 1 | U72: 5 | V72: 3 | W72: 4 | X72: - | Y72: - | Z72: - | AA72: 12 | AB72: 5 | AC72: 6 | AD72: 11 | AE72: 11 | AF72: 12 | AG72: 0 | AH72: 12 | AI72: 0 | AJ72: 5 | AK72: 2 | AL72: 10 | AM72: 3 | AN72: 12 | AO72: 6 | AP72: 12 | AQ72: 1
A73: 68 | C73: 今井村 | D73: 1,157 | E73: 28 | F73: 702 | G73: 253 | H73: 198 | I73: 251 | J73: 41 | K73: 329 | L73: 143 | M73: 17 | N73: 143 | O73: 10 | P73: 2 | Q73: 14 | R73: 3 | S73: 7 | T73: 4 | U73: 1 | V73: 4 | W73: 5 | X73: 4 | Y73: - | Z73: - | AA73: 13 | AB73: 3 | AC73: 2 | AD73: 9 | AE73: 5 | AF73: 3 | AG73: 1 | AH73: 14 | AI73: 0 | AJ73: 3 | AK73: 0 | AL73: 2 | AM73: 0 | AN73: 13 | AO73: 11 | AP73: 14 | AQ73: 10
A74: 69 | C74: 新村 | D74: 468 | E74: - | F74: 279 | G74: 266 | H74: 9 | I74: 4 | J74: 3 | K74: 222 | L74: 17 | M74: 1 | N74: 17 | O74: - | P74: - | Q74: 5 | R74: 5 | S74: - | T74: - | U74: - | V74: 3 | W74: 2 | X74: - | Y74: - | Z74: - | AA74: 5 | AB74: 0 | AC74: 0 | AD74: 2 | AE74: 2 | AF74: 0 | AG74: 0 | AH74: 5 | AI74: 0 | AJ74: 0 | AK74: 0 | AL74: 0 | AM74: 0 | AN74: 5 | AO74: 5 | AP74: 5 | AQ74: 5
A75: 70 | C75: 神林村 | D75: 568 | E75: - | F75: 330 | G75: 303 | H75: 13 | I75: 14 | J75: 2 | K75: 234 | L75: 33 | M75: - | N75: 33 | O75: - | P75: - | Q75: 7 | R75: 7 | S75: - | T75: - | U75: - | V75: 5 | W75: 2 | X75: - | Y75: - | Z75: - | AA75: 7 | AB75: 1 | AC75: 0 | AD75: 5 | AE75: 1 | AF75: 0 | AG75: 0 | AH75: 7 | AI75: 0 | AJ75: 0 | AK75: 0 | AL75: 0 | AM75: 0 | AN75: 7 | AO75: 6 | AP75: 7 | AQ75: 3
A76: 71 | C76: 片丘村２－２ | D76: 1,144 | E76: 656 | F76: 188 | G76: 74 | H76: 112 | I76: 2 | J76: 33 | K76: 79 | L76: 9 | M76: - | N76: 9 | O76: - | P76: - | Q76: 2 | R76: - | S76: 2 | T76: - | U76: - | V76: 1 | W76: 1 | X76: - | Y76: - | Z76: - | AA76: 1 | AB76: 1 | AC76: 1 | AD76: 1 | AE76: 1 | AF76: 1 | AG76: 1 | AH76: 2 | AI76: 1 | AJ76: 2 | AK76: 1 | AL76: 2 | AM76: 1 | AN76: 2 | AO76: 1 | AP76: 2 | AQ76: 1
A77: 72 | C77: 本郷村（松本市） | D77: 3,692 | E77: 2,918 | F77: 228 | G77: 123 | H77: 89 | I77: 16 | J77: 58 | K77: 145 | L77: 43 | M77: 1 | N77: 42 | O77: - | P77: 1 | Q77: 8 | R77: 3 | S77: 4 | T77: 1 | U77: 3 | V77: 1 | W77: 2 | X77: 2 | Y77: - | Z77: - | AA77: 6 | AB77: 6 | AC77: 3 | AD77: 1 | AE77: 6 | AF77: 5 | AG77: 2 | AH77: 8 | AI77: 0 | AJ77: 8 | AK77: 4 | AL77: 8 | AM77: 5 | AN77: 8 | AO77: 6 | AP77: 8 | AQ77: 5
A78: 73 | C78: 洗馬村２－２ | D78: 38 | E78: - | F78: 13 | G78: 0 | H78: 7 | I78: 6 | J78: x | K78: 2 | L78: x | M78: x | N78: x | O78: x | P78: x | Q78: 1 | R78: - | S78: - | T78: 1 | U78: 1 | V78: - | W78: - | X78: - | Y78: - | Z78: - | AA78: 0 | AB78: 0 | AC78: 0 | AD78: 0 | AE78: 0 | AF78: 0 | AG78: 1 | AH78: 1 | AI78: 0 | AJ78: 0 | AK78: 0 | AL78: 1 | AM78: 0 | AN78: 1 | AO78: 0 | AP78: 1 | AQ78: 0
A79: 74 | C79: 錦部村 | D79: 3,565 | E79: 3,224 | F79: 210 | G79: 145 | H79: 56 | I79: 9 | J79: 65 | K79: 74 | L79: 21 | M79: - | N79: 21 | O79: - | P79: - | Q79: 6 | R79: 4 | S79: 2 | T79: - | U79: - | V79: 1 | W79: 3 | X79: 1 | Y79: 1 | Z79: - | AA79: 6 | AB79: 6 | AC79: 6 | AD79: 6 | AE79: 6 | AF79: 6 | AG79: 0 | AH79: 6 | AI79: 6 | AJ79: 6 | AK79: 6 | AL79: 5 | AM79: 4 | AN79: 6 | AO79: 6 | AP79: 6 | AQ79: 6
A80: 75 | C80: 会田村 | D80: 1,251 | E80: 936 | F80: 130 | G80: 51 | H80: 68 | I80: 11 | J80: 74 | K80: 38 | L80: 7 | M80: 1 | N80: 7 | O80: - | P80: - | Q80: 7 | R80: - | S80: 5 | T80: 2 | U80: - | V80: 3 | W80: 1 | X80: 3 | Y80: - | Z80: - | AA80: 7 | AB80: 7 | AC80: 7 | AD80: 7 | AE80: 7 | AF80: 7 | AG80: 0 | AH80: 7 | AI80: 7 | AJ80: 7 | AK80: 5 | AL80: 3 | AM80: 3 | AN80: 7 | AO80: 7 | AP80: 7 | AQ80: 7
A81: 76 | C81: 五常村 | D81: 1,180 | E81: 766 | F81: 35 | G81: 15 | H81: 12 | I81: 8 | J81: 37 | K81: 25 | L81: 10 | M81: - | N81: 10 | O81: - | P81: - | Q81: 7 | R81: - | S81: 4 | T81: 3 | U81: 3 | V81: 1 | W81: 1 | X81: 1 | Y81: 1 | Z81: - | AA81: 4 | AB81: 4 | AC81: 4 | AD81: 4 | AE81: 4 | AF81: 4 | AG81: 3 | AH81: 7 | AI81: 5 | AJ81: 7 | AK81: 3 | AL81: 2 | AM81: 2 | AN81: 6 | AO81: 5 | AP81: 5 | AQ81: 5
A82: 77 | C82: 中川村 | D82: 3,029 | E82: 2,426 | F82: 156 | G82: 64 | H82: 85 | I82: 7 | J82: 73 | K82: 58 | L82: 9 | M82: 1 | N82: 9 | O82: - | P82: - | Q82: 10 | R82: - | S82: 8 | T82: 2 | U82: - | V82: - | W82: 2 | X82: 6 | Y82: 2 | Z82: - | AA82: 10 | AB82: 10 | AC82: 10 | AD82: 10 | AE82: 10 | AF82: 10 | AG82: 0 | AH82: 10 | AI82: 10 | AJ82: 10 | AK82: 10 | AL82: 5 | AM82: 5 | AN82: 10 | AO82: 10 | AP82: 10 | AQ82: 10
A83: 78 | C83: 安曇村 | D83: 40,318 | E83: 34,462 | F83: 34 | G83: 0 | H83: 34 | I83: 0 | J83: x | K83: 3 | L83: x | M83: x | N83: x | O83: x | P83: x | Q83: 8 | R83: - | S83: - | T83: 8 | U83: 6 | V83: 2 | W83: - | X83: - | Y83: - | Z83: - | AA83: 3 | AB83: 1 | AC83: 7 | AD83: 8 | AE83: 8 | AF83: 8 | AG83: 0 | AH83: 7 | AI83: 0 | AJ83: 8 | AK83: 5 | AL83: 3 | AM83: 2 | AN83: 8 | AO83: 6 | AP83: 2 | AQ83: 0
A84: 79 | C84: 奈川村 | D84: 11,765 | E84: 11,085 | F84: 123 | G84: 46 | H84: 77 | I84: 0 | J84: 17 | K84: 88 | L84: 17 | M84: - | N84: 17 | O84: - | P84: 2 | Q84: 14 | R84: - | S84: 7 | T84: 7 | U84: - | V84: - | W84: 2 | X84: 10 | Y84: 2 | Z84: - | AA84: 6 | AB84: 11 | AC84: 12 | AD84: 14 | AE84: 12 | AF84: 11 | AG84: 0 | AH84: 14 | AI84: 7 | AJ84: 14 | AK84: 13 | AL84: 5 | AM84: 5 | AN84: 14 | AO84: 12 | AP84: 11 | AQ84: 10
A85: 80 | C85: 梓村 | D85: 3,594 | E85: 2,337 | F85: 834 | G85: 352 | H85: 181 | I85: 301 | J85: 23 | K85: 451 | L85: 170 | M85: 50 | N85: 165 | O85: 4 | P85: 4 | Q85: 16 | R85: 4 | S85: 6 | T85: 6 | U85: - | V85: 5 | W85: 3 | X85: 7 | Y85: 1 | Z85: - | AA85: 16 | AB85: 10 | AC85: 16 | AD85: 16 | AE85: 16 | AF85: 16 | AG85: 0 | AH85: 16 | AI85: 3 | AJ85: 14 | AK85: 9 | AL85: 2 | AM85: 1 | AN85: 12 | AO85: 11 | AP85: 16 | AQ85: 2
A86: 81 | C86: 倭村（松本市） | D86: 646 | E86: - | F86: 362 | G86: 341 | H86: 18 | I86: 3 | J86: 8 | K86: 233 | L86: 32 | M86: - | N86: 32 | O86: - | P86: 1 | Q86: 12 | R86: 12 | S86: - | T86: - | U86: 1 | V86: 7 | W86: 3 | X86: 1 | Y86: - | Z86: - | AA86: 12 | AB86: 3 | AC86: 12 | AD86: 12 | AE86: 12 | AF86: 12 | AG86: 0 | AH86: 12 | AI86: 0 | AJ86: 0 | AK86: 0 | AL86: 0 | AM86: 0 | AN86: 4 | AO86: 2 | AP86: 12 | AQ86: 0
A87: 82 | C87: 波田町 | D87: 5,942 | E87: 4,252 | F87: 919 | G87: 476 | H87: 311 | I87: 132 | J87: 30 | K87: 474 | L87: 126 | M87: 7 | N87: 119 | O87: 11 | P87: 10 | Q87: 23 | R87: 6 | S87: 12 | T87: 5 | U87: 8 | V87: 10 | W87: 4 | X87: 1 | Y87: - | Z87: - | AA87: 21 | AB87: 20 | AC87: 22 | AD87: 20 | AE87: 21 | AF87: 22 | AG87: 0 | AH87: 22 | AI87: 1 | AJ87: 8 | AK87: 1 | AL87: 2 | AM87: 0 | AN87: 11 | AO87: 1 | AP87: 22 | AQ87: 12
A88: 83 | B88: 上田市 | D88: 55,200 | E88: 39,882 | F88: 5638 | G88: 3016 | H88: 1942 | I88: 680 | J88: 1045 | K88: 2,865 | L88: 927 | M88: 37 | N88: 899 | O88: 14 | P88: 31 | Q88: 238 | R88: 75 | S88: 103 | T88: 60 | U88: 67 | V88: 82 | W88: 54 | X88: 29 | Y88: 5 | Z88: 1 | AA88: 166 | AB88: 197 | AC88: 186 | AD88: 212 | AE88: 220 | AF88: 202 | AG88: 2 | AH88: 217 | AI88: 82 | AJ88: 177 | AK88: 72 | AL88: 53 | AM88: 49 | AN88: 225 | AO88: 148 | AP88: 216 | AQ88: 189
A89: 84 | C89: 上田市（旧） | D89: 2,018 | E89: 665 | F89: 138 | G89: 69 | H89: 51 | I89: 18 | J89: 61 | K89: 61 | L89: 30 | M89: 1 | N89: 30 | O89: - | P89: 3 | Q89: 35 | R89: 2 | S89: 9 | T89: 24 | U89: 32 | V89: 2 | W89: 1 | X89: - | Y89: - | Z89: - | AA89: 10 | AB89: 14 | AC89: 22 | AD89: 31 | AE89: 32 | AF89: 32 | AG89: 0 | AH89: 16 | AI89: 1 | AJ89: 11 | AK89: 3 | AL89: 2 | AM89: 2 | AN89: 35 | AO89: 30 | AP89: 16 | AQ89: 10
A90: 85 | C90: 塩尻村 | D90: 774 | E90: 367 | F90: 89 | G90: 69 | H90: 15 | I90: 5 | J90: 14 | K90: 46 | L90: 7 | M90: - | N90: 6 | O90: - | P90: 1 | Q90: 3 | R90: 3 | S90: - | T90: - | U90: - | V90: 3 | W90: - | X90: - | Y90: - | Z90: - | AA90: 2 | AB90: 2 | AC90: 2 | AD90: 3 | AE90: 3 | AF90: 3 | AG90: 0 | AH90: 3 | AI90: 0 | AJ90: 3 | AK90: 2 | AL90: 0 | AM90: 0 | AN90: 3 | AO90: 3 | AP90: 3 | AQ90: 2
A91: 86 | C91: 川辺村（上田市） | D91: 683 | E91: 176 | F91: 149 | G91: 105 | H91: 29 | I91: 15 | J91: 14 | K91: 87 | L91: 39 | M91: 1 | N91: 39 | O91: - | P91: - | Q91: 6 | R91: 3 | S91: 2 | T91: 1 | U91: 3 | V91: 3 | W91: - | X91: - | Y91: - | Z91: - | AA91: 6 | AB91: 6 | AC91: 6 | AD91: 6 | AE91: 6 | AF91: 6 | AG91: 0 | AH91: 6 | AI91: 0 | AJ91: 5 | AK91: 3 | AL91: 2 | AM91: 2 | AN91: 6 | AO91: 6 | AP91: 6 | AQ91: 6
A92: 87 | C92: 泉田村２－２ | D92: 514 | E92: 334 | F92: 87 | G92: 61 | H92: 17 | I92: 9 | J92: 8 | K92: 88 | L92: 30 | M92: - | N92: 30 | O92: - | P92: 1 | Q92: 8 | R92: 4 | S92: 3 | T92: 1 | U92: 1 | V92: 4 | W92: 1 | X92: 2 | Y92: - | Z92: - | AA92: 8 | AB92: 8 | AC92: 7 | AD92: 7 | AE92: 7 | AF92: 5 | AG92: 0 | AH92: 8 | AI92: 1 | AJ92: 5 | AK92: 3 | AL92: 3 | AM92: 3 | AN92: 8 | AO92: 8 | AP92: 8 | AQ92: 8
A93: 88 | C93: 神川村 | D93: 507 | E93: 6 | F93: 117 | G93: 91 | H93: 23 | I93: 3 | J93: 7 | K93: 83 | L93: 18 | M93: - | N93: 18 | O93: - | P93: - | Q93: 10 | R93: 6 | S93: 2 | T93: 2 | U93: 9 | V93: 1 | W93: - | X93: - | Y93: - | Z93: - | AA93: 9 | AB93: 10 | AC93: 7 | AD93: 10 | AE93: 10 | AF93: 10 | AG93: 0 | AH93: 10 | AI93: 3 | AJ93: 5 | AK93: 2 | AL93: 0 | AM93: 0 | AN93: 9 | AO93: 5 | AP93: 10 | AQ93: 9
A94: 89 | C94: 神科村 | D94: 1,874 | E94: 833 | F94: 356 | G94: 176 | H94: 39 | I94: 141 | J94: 56 | K94: 289 | L94: 169 | M94: 2 | N94: 168 | O94: 1 | P94: 2 | Q94: 15 | R94: 3 | S94: 5 | T94: 7 | U94: 7 | V94: 6 | W94: - | X94: 1 | Y94: 1 | Z94: - | AA94: 13 | AB94: 10 | AC94: 11 | AD94: 14 | AE94: 13 | AF94: 12 | AG94: 0 | AH94: 15 | AI94: 4 | AJ94: 11 | AK94: 2 | AL94: 0 | AM94: 0 | AN94: 12 | AO94: 8 | AP94: 15 | AQ94: 14
A95: 90 | C95: 豊里村 | D95: 503 | E95: 155 | F95: 231 | G95: 134 | H95: 34 | I95: 63 | J95: 17 | K95: 143 | L95: 61 | M95: 2 | N95: 58 | O95: 1 | P95: 2 | Q95: 9 | R95: 4 | S95: 2 | T95: 3 | U95: 1 | V95: 2 | W95: 5 | X95: 1 | Y95: - | Z95: - | AA95: 8 | AB95: 8 | AC95: 9 | AD95: 9 | AE95: 8 | AF95: 9 | AG95: 0 | AH95: 9 | AI95: 2 | AJ95: 6 | AK95: 1 | AL95: 2 | AM95: 2 | AN95: 8 | AO95: 3 | AP95: 9 | AQ95: 8
A96: 91 | C96: 殿城村 | D96: 1,113 | E96: 662 | F96: 164 | G96: 83 | H96: 57 | I96: 24 | J96: 47 | K96: 53 | L96: 17 | M96: 2 | N96: 17 | O96: 1 | P96: - | Q96: 5 | R96: 2 | S96: 3 | T96: - | U96: - | V96: 3 | W96: 1 | X96: 1 | Y96: - | Z96: - | AA96: 5 | AB96: 4 | AC96: 3 | AD96: 3 | AE96: 4 | AF96: 5 | AG96: 0 | AH96: 5 | AI96: 3 | AJ96: 5 | AK96: 1 | AL96: 2 | AM96: 2 | AN96: 5 | AO96: 0 | AP96: 5 | AQ96: 5
A97: 92 | C97: 中塩田村 | D97: 963 | E97: 185 | F97: 365 | G97: 282 | H97: 60 | I97: 23 | J97: 22 | K97: 218 | L97: 80 | M97: - | N97: 80 | O97: - | P97: - | Q97: 9 | R97: 8 | S97: 1 | T97: - | U97: 1 | V97: 7 | W97: 1 | X97: - | Y97: - | Z97: - | AA97: 9 | AB97: 9 | AC97: 9 | AD97: 9 | AE97: 9 | AF97: 9 | AG97: 0 | AH97: 9 | AI97: 6 | AJ97: 3 | AK97: 3 | AL97: 7 | AM97: 7 | AN97: 9 | AO97: 9 | AP97: 9 | AQ97: 9
A98: 93 | C98: 別所村 | D98: 668 | E98: 515 | F98: 40 | G98: 20 | H98: 15 | I98: 5 | J98: 19 | K98: 5 | L98: 2 | M98: - | N98: 2 | O98: - | P98: - | Q98: 4 | R98: 1 | S98: 2 | T98: 1 | U98: 2 | V98: 2 | W98: - | X98: - | Y98: - | Z98: - | AA98: 0 | AB98: 3 | AC98: 4 | AD98: 4 | AE98: 4 | AF98: 4 | AG98: 0 | AH98: 4 | AI98: 0 | AJ98: 4 | AK98: 0 | AL98: 2 | AM98: 1 | AN98: 4 | AO98: 1 | AP98: 4 | AQ98: 3
A99: 94 | C99: 西塩田村 | D99: 2,448 | E99: 1,920 | F99: 314 | G99: 175 | H99: 90 | I99: 49 | J99: 52 | K99: 187 | L99: 42 | M99: 4 | N99: 39 | O99: - | P99: 2 | Q99: 7 | R99: 2 | S99: 2 | T99: 3 | U99: - | V99: 3 | W99: 2 | X99: 2 | Y99: - | Z99: - | AA99: 5 | AB99: 5 | AC99: 5 | AD99: 5 | AE99: 7 | AF99: 6 | AG99: 0 | AH99: 7 | AI99: 3 | AJ99: 5 | AK99: 5 | AL99: 7 | AM99: 6 | AN99: 7 | AO99: 6 | AP99: 7 | AQ99: 6
A100: 95 | C100: 東塩田村 | D100: 2,280 | E100: 1,332 | F100: 571 | G100: 309 | H100: 173 | I100: 89 | J100: 102 | K100: 292 | L100: 92 | M100: 9 | N100: 92 | O100: 6 | P100: 2 | Q100: 8 | R100: 1 | S100: 3 | T100: 4 | U100: - | V100: 1 | W100: 7 | X100: - | Y100: - | Z100: - | AA100: 7 | AB100: 8 | AC100: 7 | AD100: 8 | AE100: 7 | AF100: 5 | AG100: 0 | AH100: 8 | AI100: 8 | AJ100: 8 | AK100: 8 | AL100: 7 | AM100: 7 | AN100: 8 | AO100: 8 | AP100: 8 | AQ100: 8
A101: 96 | C101: 泉田村２－１ | D101: 443 | E101: 201 | F101: 122 | G101: 95 | H101: 20 | I101: 7 | J101: 6 | K101: 79 | L101: 13 | M101: - | N101: 13 | O101: - | P101: - | Q101: 4 | R101: 2 | S101: 2 | T101: - | U101: - | V101: 3 | W101: 1 | X101: - | Y101: - | Z101: - | AA101: 1 | AB101: 4 | AC101: 4 | AD101: 4 | AE101: 4 | AF101: 2 | AG101: 0 | AH101: 4 | AI101: 0 | AJ101: 3 | AK101: 2 | AL101: 1 | AM101: 1 | AN101: 2 | AO101: 0 | AP101: 4 | AQ101: 4
A102: 97 | C102: 室賀村 | D102: 2,131 | E102: 1,855 | F102: 135 | G102: 76 | H102: 41 | I102: 18 | J102: 35 | K102: 59 | L102: 20 | M102: 1 | N102: 19 | O102: - | P102: - | Q102: 8 | R102: 1 | S102: 6 | T102: 1 | U102: - | V102: 1 | W102: 2 | X102: 3 | Y102: 2 | Z102: - | AA102: 3 | AB102: 8 | AC102: 8 | AD102: 1 | AE102: 7 | AF102: 5 | AG102: 0 | AH102: 8 | AI102: 3 | AJ102: 8 | AK102: 2 | AL102: 4 | AM102: 4 | AN102: 7 | AO102: 7 | AP102: 8 | AQ102: 8
A103: 98 | C103: 浦里村２－１ | D103: 754 | E103: 401 | F103: 216 | G103: 138 | H103: 44 | I103: 34 | J103: 30 | K103: 103 | L103: 39 | M103: 2 | N103: 36 | O103: - | P103: 1 | Q103: 4 | R103: 1 | S103: 3 | T103: - | U103: - | V103: 3 | W103: 1 | X103: - | Y103: - | Z103: - | AA103: 4 | AB103: 4 | AC103: 4 | AD103: 4 | AE103: 3 | AF103: 4 | AG103: 0 | AH103: 4 | AI103: 4 | AJ103: 4 | AK103: 4 | AL103: 2 | AM103: 2 | AN103: 4 | AO103: 4 | AP103: 4 | AQ103: 4
A104: 99 | C104: 丸子町 | D104: 1,444 | E104: 855 | F104: 122 | G104: 78 | H104: 39 | I104: 5 | J104: 47 | K104: 49 | L104: 21 | M104: 2 | N104: 20 | O104: 2 | P104: - | Q104: 12 | R104: 6 | S104: 5 | T104: 1 | U104: 5 | V104: 6 | W104: 1 | X104: - | Y104: - | Z104: - | AA104: 11 | AB104: 12 | AC104: 12 | AD104: 12 | AE104: 12 | AF104: 12 | AG104: 0 | AH104: 12 | AI104: 2 | AJ104: 9 | AK104: 9 | AL104: 1 | AM104: 1 | AN104: 12 | AO104: 11 | AP104: 12 | AQ104: 11
A105: 100 | C105: 東内村 | D105: 1,474 | E105: 1,212 | F105: 103 | G105: 75 | H105: 24 | I105: 4 | J105: 24 | K105: 74 | L105: 15 | M105: 1 | N105: 14 | O105: - | P105: - | Q105: 6 | R105: 5 | S105: 1 | T105: - | U105: - | V105: 1 | W105: 3 | X105: 2 | Y105: - | Z105: - | AA105: 2 | AB105: 6 | AC105: 5 | AD105: 6 | AE105: 6 | AF105: 5 | AG105: 0 | AH105: 6 | AI105: 0 | AJ105: 6 | AK105: 0 | AL105: 0 | AM105: 0 | AN105: 6 | AO105: 0 | AP105: 6 | AQ105: 6
A106: 101 | C106: 西内村 | D106: 5,044 | E106: 4,745 | F106: 90 | G106: 57 | H106: 30 | I106: 3 | J106: 39 | K106: 25 | L106: 4 | M106: 1 | N106: 2 | O106: - | P106: 1 | Q106: 11 | R106: 4 | S106: 7 | T106: - | U106: 1 | V106: 5 | W106: 2 | X106: 2 | Y106: 1 | Z106: - | AA106: 2 | AB106: 11 | AC106: 6 | AD106: 6 | AE106: 11 | AF106: 6 | AG106: 0 | AH106: 11 | AI106: 3 | AJ106: 11 | AK106: 3 | AL106: 0 | AM106: 0 | AN106: 11 | AO106: 4 | AP106: 11 | AQ106: 8
A107: 102 | C107: 依田村 | D107: 1,300 | E107: 630 | F107: 268 | G107: 159 | H107: 69 | I107: 40 | J107: 73 | K107: 162 | L107: 51 | M107: 2 | N107: 51 | O107: - | P107: - | Q107: 8 | R107: 2 | S107: 6 | T107: - | U107: - | V107: 4 | W107: 4 | X107: - | Y107: - | Z107: - | AA107: 5 | AB107: 8 | AC107: 4 | AD107: 8 | AE107: 8 | AF107: 8 | AG107: 0 | AH107: 8 | AI107: 4 | AJ107: 7 | AK107: 0 | AL107: 5 | AM107: 5 | AN107: 8 | AO107: 4 | AP107: 8 | AQ107: 8
A108: 103 | C108: 長瀬村 | D108: 355 | E108: 63 | F108: 104 | G108: 73 | H108: 23 | I108: 8 | J108: 30 | K108: 50 | L108: 16 | M108: - | N108: 15 | O108: - | P108: 1 | Q108: 8 | R108: 4 | S108: 4 | T108: - | U108: 2 | V108: 5 | W108: 1 | X108: - | Y108: - | Z108: - | AA108: 4 | AB108: 4 | AC108: 2 | AD108: 8 | AE108: 6 | AF108: 6 | AG108: 0 | AH108: 8 | AI108: 6 | AJ108: 3 | AK108: 2 | AL108: 1 | AM108: 1 | AN108: 7 | AO108: 7 | AP108: 8 | AQ108: 8
A109: 104 | C109: 塩川村 | D109: 953 | E109: 273 | F109: 221 | G109: 151 | H109: 63 | I109: 7 | J109: 66 | K109: 126 | L109: 38 | M109: 2 | N109: 37 | O109: - | P109: - | Q109: 6 | R109: 3 | S109: 3 | T109: - | U109: 1 | V109: 1 | W109: 2 | X109: 2 | Y109: - | Z109: - | AA109: 6 | AB109: 6 | AC109: 4 | AD109: 5 | AE109: 6 | AF109: 4 | AG109: 0 | AH109: 6 | AI109: 4 | AJ109: 6 | AK109: 4 | AL109: 2 | AM109: 1 | AN109: 6 | AO109: 3 | AP109: 6 | AQ109: 6
A110: 105 | C110: 傍陽村 | D110: 7,604 | E110: 6,418 | F110: 263 | G110: 93 | H110: 122 | I110: 48 | J110: 79 | K110: 91 | L110: 27 | M110: 1 | N110: 26 | O110: 1 | P110: 2 | Q110: 14 | R110: - | S110: 7 | T110: 7 | U110: 2 | V110: 1 | W110: 5 | X110: 6 | Y110: - | Z110: - | AA110: 10 | AB110: 12 | AC110: 11 | AD110: 12 | AE110: 10 | AF110: 10 | AG110: 2 | AH110: 12 | AI110: 6 | AJ110: 14 | AK110: 7 | AL110: 0 | AM110: 0 | AN110: 13 | AO110: 8 | AP110: 11 | AQ110: 11
A111: 106 | C111: 本原村 | D111: 857 | E111: 624 | F111: 165 | G111: 89 | H111: 46 | I111: 30 | J111: 35 | K111: 83 | L111: 31 | M111: 1 | N111: 31 | O111: 1 | P111: - | Q111: 11 | R111: 2 | S111: 9 | T111: - | U111: - | V111: 8 | W111: - | X111: 2 | Y111: - | Z111: 1 | AA111: 10 | AB111: 8 | AC111: 7 | AD111: 11 | AE111: 11 | AF111: 9 | AG111: 0 | AH111: 11 | AI111: 6 | AJ111: 9 | AK111: 0 | AL111: 0 | AM111: 0 | AN111: 8 | AO111: 6 | AP111: 11 | AQ111: 10
A112: 107 | C112: 長村 | D112: 9,729 | E112: 7,859 | F112: 773 | G112: 82 | H112: 681 | I112: 10 | J112: 84 | K112: 162 | L112: 30 | M112: 1 | N112: 23 | O112: 1 | P112: 9 | Q112: 10 | R112: - | S112: 7 | T112: 3 | U112: - | V112: 4 | W112: 4 | X112: 2 | Y112: - | Z112: - | AA112: 9 | AB112: 10 | AC112: 10 | AD112: 9 | AE112: 9 | AF112: 8 | AG112: 0 | AH112: 10 | AI112: 7 | AJ112: 10 | AK112: 6 | AL112: 3 | AM112: 2 | AN112: 10 | AO112: 7 | AP112: 10 | AQ112: 9
A113: 108 | C113: 武石村 | D113: 8,767 | E113: 7,596 | F113: 435 | G113: 276 | H113: 137 | I113: 22 | J113: 77 | K113: 250 | L113: 35 | M113: 2 | N113: 33 | O113: - | P113: 4 | Q113: 17 | R113: 6 | S113: 9 | T113: 2 | U113: - | V113: 3 | W113: 10 | X113: 3 | Y113: 1 | Z113: - | AA113: 17 | AB113: 17 | AC113: 17 | AD113: 17 | AE113: 17 | AF113: 17 | AG113: 0 | AH113: 17 | AI113: 6 | AJ113: 16 | AK113: 0 | AL113: 0 | AM113: 0 | AN113: 17 | AO113: 0 | AP113: 17 | AQ113: 8
A114: 109 | B114: 岡谷市 | D114: 8,514 | E114: 5,681 | F114: 248 | G114: 89 | H114: 150 | I114: 9 | J114: 95 | K114: 118 | L114: 61 | M114: 3 | N114: 61 | O114: - | P114: - | Q114: 25 | R114: - | S114: 15 | T114: 10 | U114: 22 | V114: 2 | W114: - | X114: - | Y114: 1 | Z114: - | AA114: 20 | AB114: 20 | AC114: 25 | AD114: 25 | AE114: 25 | AF114: 24 | AG114: 0 | AH114: 23 | AI114: 2 | AJ114: 18 | AK114: 5 | AL114: 11 | AM114: 5 | AN114: 23 | AO114: 23 | AP114: 19 | AQ114: 19
A115: 110 | C115: 岡谷市（旧） | D115: 4,100 | E115: 2,949 | F115: 60 | G115: 13 | H115: 43 | I115: 4 | J115: 30 | K115: 46 | L115: 20 | M115: - | N115: 20 | O115: - | P115: - | Q115: 12 | R115: - | S115: 6 | T115: 6 | U115: 11 | V115: - | W115: - | X115: - | Y115: 1 | Z115: - | AA115: 9 | AB115: 8 | AC115: 12 | AD115: 12 | AE115: 12 | AF115: 12 | AG115: 0 | AH115: 11 | AI115: 0 | AJ115: 6 | AK115: 1 | AL115: 5 | AM115: 3 | AN115: 11 | AO115: 11 | AP115: 7 | AQ115: 7
A116: 111 | C116: 湊村 | D116: 1,327 | E116: 663 | F116: 37 | G116: 7 | H116: 29 | I116: 1 | J116: 11 | K116: 14 | L116: 10 | M116: - | N116: 10 | O116: - | P116: - | Q116: 3 | R116: - | S116: - | T116: 3 | U116: 3 | V116: - | W116: - | X116: - | Y116: - | Z116: - | AA116: 1 | AB116: 2 | AC116: 3 | AD116: 3 | AE116: 3 | AF116: 2 | AG116: 0 | AH116: 2 | AI116: 1 | AJ116: 3 | AK116: 1 | AL116: 2 | AM116: 0 | AN116: 2 | AO116: 2 | AP116: 2 | AQ116: 2
A117: 112 | C117: 川岸村 | D117: 1,970 | E117: 1,313 | F117: 83 | G117: 30 | H117: 51 | I117: 2 | J117: 42 | K117: 20 | L117: 9 | M117: 1 | N117: 9 | O117: - | P117: - | Q117: 6 | R117: - | S117: 5 | T117: 1 | U117: 4 | V117: 2 | W117: - | X117: - | Y117: - | Z117: - | AA117: 6 | AB117: 6 | AC117: 6 | AD117: 6 | AE117: 6 | AF117: 6 | AG117: 0 | AH117: 6 | AI117: 0 | AJ117: 6 | AK117: 2 | AL117: 2 | AM117: 1 | AN117: 6 | AO117: 6 | AP117: 6 | AQ117: 6
A118: 113 | C118: 長地村２－１ | D118: 1,117 | E118: 756 | F118: 68 | G118: 39 | H118: 27 | I118: 2 | J118: 12 | K118: 38 | L118: 22 | M118: 2 | N118: 22 | O118: - | P118: - | Q118: 4 | R118: - | S118: 4 | T118: - | U118: 4 | V118: - | W118: - | X118: - | Y118: - | Z118: - | AA118: 4 | AB118: 4 | AC118: 4 | AD118: 4 | AE118: 4 | AF118: 4 | AG118: 0 | AH118: 4 | AI118: 1 | AJ118: 3 | AK118: 1 | AL118: 2 | AM118: 1 | AN118: 4 | AO118: 4 | AP118: 4 | AQ118: 4
A119: 114 | B119: 飯田市 | D119: 65,876 | E119: 53,247 | F119: 3110 | G119: 1196 | H119: 934 | I119: 980 | J119: 666 | K119: 2,539 | L119: 1,781 | M119: 1,246 | N119: 1,097 | O119: 78 | P119: 108 | Q119: 310 | R119: 13 | S119: 179 | T119: 118 | U119: 61 | V119: 82 | W119: 72 | X119: 53 | Y119: 35 | Z119: 7 | AA119: 123 | AB119: 215 | AC119: 243 | AD119: 291 | AE119: 293 | AF119: 256 | AG119: 8 | AH119: 298 | AI119: 74 | AJ119: 245 | AK119: 26 | AL119: 66 | AM119: 27 | AN119: 293 | AO119: 247 | AP119: 293 | AQ119: 279
A120: 115 | C120: 飯田市（旧） | D120: 9,524 | E120: 8,839 | F120: 90 | G120: 26 | H120: 14 | I120: 50 | J120: 19 | K120: 136 | L120: 98 | M120: 73 | N120: 68 | O120: 1 | P120: 3 | Q120: 20 | R120: 4 | S120: 3 | T120: 13 | U120: 17 | V120: 2 | W120: - | X120: - | Y120: - | Z120: 1 | AA120: 1 | AB120: 2 | AC120: 14 | AD120: 17 | AE120: 18 | AF120: 15 | AG120: 2 | AH120: 13 | AI120: 3 | AJ120: 15 | AK120: 1 | AL120: 3 | AM120: 0 | AN120: 19 | AO120: 6 | AP120: 11 | AQ120: 9
A121: 116 | C121: 竜丘村 | D121: 751 | E121: 232 | F121: 216 | G121: 88 | H121: 77 | I121: 51 | J121: 48 | K121: 149 | L121: 97 | M121: 54 | N121: 63 | O121: 1 | P121: 13 | Q121: 20 | R121: - | S121: 18 | T121: 2 | U121: 5 | V121: 9 | W121: 4 | X121: 1 | Y121: 1 | Z121: - | AA121: 1 | AB121: 18 | AC121: 16 | AD121: 20 | AE121: 20 | AF121: 20 | AG121: 0 | AH121: 20 | AI121: 0 | AJ121: 19 | AK121: 0 | AL121: 0 | AM121: 0 | AN121: 20 | AO121: 7 | AP121: 20 | AQ121: 19
A122: 117 | C122: 下久堅村 | D122: 1,194 | E122: 474 | F122: 245 | G122: 78 | H122: 99 | I122: 68 | J122: 71 | K122: 146 | L122: 108 | M122: 86 | N122: 47 | O122: 3 | P122: 8 | Q122: 27 | R122: - | S122: 20 | T122: 7 | U122: - | V122: 4 | W122: 9 | X122: 10 | Y122: 4 | Z122: - | AA122: 8 | AB122: 27 | AC122: 27 | AD122: 27 | AE122: 27 | AF122: 27 | AG122: 0 | AH122: 27 | AI122: 21 | AJ122: 27 | AK122: 0 | AL122: 16 | AM122: 9 | AN122: 16 | AO122: 2 | AP122: 27 | AQ122: 27
A123: 118 | C123: 座光寺村 | D123: 876 | E123: 337 | F123: 208 | G123: 58 | H123: 32 | I123: 118 | J123: 22 | K123: 208 | L123: 184 | M123: 158 | N123: 96 | O123: 3 | P123: 4 | Q123: 15 | R123: - | S123: 6 | T123: 9 | U123: 3 | V123: 7 | W123: 4 | X123: 1 | Y123: - | Z123: - | AA123: 4 | AB123: 14 | AC123: 15 | AD123: 15 | AE123: 15 | AF123: 15 | AG123: 0 | AH123: 15 | AI123: 0 | AJ123: 2 | AK123: 1 | AL123: 4 | AM123: 1 | AN123: 15 | AO123: 14 | AP123: 12 | AQ123: 12
A124: 119 | C124: 松尾村 | D124: 673 | E124: 42 | F124: 130 | G124: 69 | H124: 45 | I124: 16 | J124: 17 | K124: 122 | L124: 71 | M124: 32 | N124: 52 | O124: - | P124: 1 | Q124: 11 | R124: 1 | S124: 9 | T124: 1 | U124: 7 | V124: 4 | W124: - | X124: - | Y124: - | Z124: - | AA124: 10 | AB124: 11 | AC124: 11 | AD124: 11 | AE124: 11 | AF124: 11 | AG124: 0 | AH124: 11 | AI124: 0 | AJ124: 4 | AK124: 0 | AL124: 0 | AM124: 0 | AN124: 9 | AO124: 9 | AP124: 11 | AQ124: 11
A125: 120 | C125: 山本村 | D125: 2,227 | E125: 1,348 | F125: 330 | G125: 164 | H125: 113 | I125: 53 | J125: 83 | K125: 253 | L125: 139 | M125: 67 | N125: 100 | O125: 3 | P125: 11 | Q125: 26 | R125: 2 | S125: 21 | T125: 3 | U125: 2 | V125: 5 | W125: 7 | X125: 8 | Y125: 4 | Z125: - | AA125: 26 | AB125: 26 | AC125: 26 | AD125: 26 | AE125: 26 | AF125: 26 | AG125: 0 | AH125: 26 | AI125: 0 | AJ125: 21 | AK125: 0 | AL125: 11 | AM125: 9 | AN125: 26 | AO125: 26 | AP125: 26 | AQ125: 26
A126: 121 | C126: 三穂村 | D126: 1,237 | E126: 703 | F126: 226 | G126: 100 | H126: 54 | I126: 72 | J126: 46 | K126: 168 | L126: 150 | M126: 139 | N126: 50 | O126: 4 | P126: 9 | Q126: 13 | R126: - | S126: 12 | T126: 1 | U126: - | V126: - | W126: 3 | X126: 1 | Y126: 8 | Z126: 1 | AA126: 13 | AB126: 13 | AC126: 13 | AD126: 13 | AE126: 13 | AF126: 13 | AG126: 0 | AH126: 13 | AI126: 9 | AJ126: 12 | AK126: 0 | AL126: 5 | AM126: 1 | AN126: 13 | AO126: 13 | AP126: 13 | AQ126: 13
A127: 122 | C127: 伊賀良村 | D127: 3,482 | E127: 2,079 | F127: 462 | G127: 167 | H127: 108 | I127: 187 | J127: 58 | K127: 443 | L127: 356 | M127: 310 | N127: 195 | O127: 9 | P127: 20 | Q127: 31 | R127: - | S127: 19 | T127: 12 | U127: 3 | V127: 18 | W127: 7 | X127: 2 | Y127: - | Z127: 1 | AA127: 18 | AB127: 19 | AC127: 17 | AD127: 21 | AE127: 24 | AF127: 18 | AG127: 3 | AH127: 31 | AI127: 3 | AJ127: 23 | AK127: 3 | AL127: 9 | AM127: 4 | AN127: 30 | AO127: 28 | AP127: 31 | AQ127: 29
A128: 123 | C128: 川路村 | D128: 626 | E128: 219 | F128: 114 | G128: 46 | H128: 35 | I128: 33 | J128: 16 | K128: 53 | L128: 32 | M128: 10 | N128: 28 | O128: 2 | P128: 1 | Q128: 7 | R128: - | S128: 7 | T128: - | U128: - | V128: 4 | W128: 2 | X128: 1 | Y128: - | Z128: - | AA128: 7 | AB128: 7 | AC128: 7 | AD128: 7 | AE128: 7 | AF128: 7 | AG128: 0 | AH128: 7 | AI128: 1 | AJ128: 7 | AK128: 1 | AL128: 4 | AM128: 1 | AN128: 7 | AO128: 7 | AP128: 7 | AQ128: 7
A129: 124 | C129: 千代村 | D129: 5,852 | E129: 5,329 | F129: 155 | G129: 49 | H129: 45 | I129: 61 | J129: 69 | K129: 93 | L129: 74 | M129: 60 | N129: 43 | O129: 5 | P129: 13 | Q129: 28 | R129: 1 | S129: 13 | T129: 14 | U129: - | V129: 5 | W129: 10 | X129: 9 | Y129: 4 | Z129: - | AA129: 7 | AB129: 14 | AC129: 27 | AD129: 28 | AE129: 28 | AF129: 27 | AG129: 0 | AH129: 28 | AI129: 3 | AJ129: 28 | AK129: 11 | AL129: 5 | AM129: 2 | AN129: 28 | AO129: 28 | AP129: 28 | AQ129: 26
A130: 125 | C130: 竜江村 | D130: 1,186 | E130: 621 | F130: 183 | G130: 50 | H130: 47 | I130: 86 | J130: 55 | K130: 132 | L130: 108 | M130: 58 | N130: 83 | O130: 37 | P130: 14 | Q130: 23 | R130: - | S130: 9 | T130: 14 | U130: - | V130: 4 | W130: 10 | X130: 7 | Y130: 2 | Z130: - | AA130: 4 | AB130: 16 | AC130: 19 | AD130: 22 | AE130: 23 | AF130: 22 | AG130: 0 | AH130: 23 | AI130: 13 | AJ130: 23 | AK130: 1 | AL130: 4 | AM130: 0 | AN130: 23 | AO130: 22 | AP130: 23 | AQ130: 20
A131: 126 | C131: 上久堅村 | D131: 1,674 | E131: 1,096 | F131: 162 | G131: 67 | H131: 75 | I131: 20 | J131: 55 | K131: 94 | L131: 42 | M131: 7 | N131: 37 | O131: 6 | P131: 4 | Q131: 14 | R131: 2 | S131: 9 | T131: 3 | U131: - | V131: - | W131: 7 | X131: 4 | Y131: 3 | Z131: - | AA131: 8 | AB131: 10 | AC131: 14 | AD131: 12 | AE131: 14 | AF131: 14 | AG131: 0 | AH131: 14 | AI131: 13 | AJ131: 14 | AK131: 4 | AL131: 4 | AM131: 0 | AN131: 14 | AO131: 14 | AP131: 14 | AQ131: 11
A132: 127 | C132: 鼎町 | D132: 611 | E132: 33 | F132: 134 | G132: 50 | H132: 34 | I132: 50 | J132: 13 | K132: 152 | L132: 105 | M132: 78 | N132: 68 | O132: 3 | P132: - | Q132: 9 | R132: 1 | S132: 5 | T132: 3 | U132: 8 | V132: 1 | W132: - | X132: - | Y132: - | Z132: - | AA132: 5 | AB132: 8 | AC132: 9 | AD132: 9 | AE132: 9 | AF132: 9 | AG132: 0 | AH132: 9 | AI132: 0 | AJ132: 5 | AK132: 0 | AL132: 0 | AM132: 0 | AN132: 9 | AO132: 9 | AP132: 9 | AQ132: 9
A133: 128 | C133: 上郷町 | D133: 2,643 | E133: 1,734 | F133: 299 | G133: 152 | H133: 87 | I133: 60 | J133: 20 | K133: 306 | L133: 190 | M133: 111 | N133: 143 | O133: 1 | P133: 5 | Q133: 24 | R133: 2 | S133: 15 | T133: 7 | U133: 12 | V133: 10 | W133: 1 | X133: 1 | Y133: - | Z133: - | AA133: 11 | AB133: 23 | AC133: 24 | AD133: 24 | AE133: 24 | AF133: 24 | AG133: 0 | AH133: 24 | AI133: 1 | AJ133: 5 | AK133: 0 | AL133: 0 | AM133: 0 | AN133: 24 | AO133: 24 | AP133: 24 | AQ133: 24
A134: 129 | C134: 上村 | D134: 13,256 | E134: 11,348 | F134: 40 | G134: 6 | H134: 22 | I134: 12 | J134: 37 | K134: 28 | L134: 11 | M134: 1 | N134: 10 | O134: - | P134: 1 | Q134: 11 | R134: - | S134: 2 | T134: 9 | U134: - | V134: 2 | W134: 3 | X134: 1 | Y134: 4 | Z134: 1 | AA134: 0 | AB134: 0 | AC134: 0 | AD134: 11 | AE134: 11 | AF134: 0 | AG134: 0 | AH134: 11 | AI134: 3 | AJ134: 9 | AK134: 0 | AL134: 1 | AM134: 0 | AN134: 11 | AO134: 11 | AP134: 11 | AQ134: 11
A135: 130 | C135: 木沢村 | D135: 11,384 | E135: 10,718 | F135: 36 | G135: 7 | H135: 17 | I135: 12 | J135: 12 | K135: 13 | L135: 1 | M135: - | N135: - | O135: - | P135: 1 | Q135: 8 | R135: - | S135: 3 | T135: 5 | U135: - | V135: 2 | W135: 2 | X135: 2 | Y135: 1 | Z135: 1 | AA135: 0 | AB135: 0 | AC135: 1 | AD135: 8 | AE135: 8 | AF135: 0 | AG135: 0 | AH135: 8 | AI135: 1 | AJ135: 8 | AK135: 4 | AL135: 0 | AM135: 0 | AN135: 8 | AO135: 8 | AP135: 8 | AQ135: 8
A136: 131 | C136: 和田村（飯田市） | D136: 2,865 | E136: 2,559 | F136: 32 | G136: 9 | H136: 12 | I136: 11 | J136: 8 | K136: 19 | L136: 6 | M136: 1 | N136: 6 | O136: - | P136: - | Q136: 9 | R136: - | S136: 4 | T136: 5 | U136: 1 | V136: 4 | W136: 2 | X136: 1 | Y136: - | Z136: 1 | AA136: 0 | AB136: 2 | AC136: 2 | AD136: 9 | AE136: 7 | AF136: 3 | AG136: 0 | AH136: 8 | AI136: 1 | AJ136: 9 | AK136: 0 | AL136: 0 | AM136: 0 | AN136: 9 | AO136: 9 | AP136: 8 | AQ136: 8
A137: 132 | C137: 八重河内村 | D137: 3,871 | E137: 3,684 | F137: 29 | G137: 6 | H137: 10 | I137: 13 | J137: 10 | K137: 13 | L137: 3 | M137: - | N137: 3 | O137: - | P137: - | Q137: 7 | R137: - | S137: 3 | T137: 4 | U137: 1 | V137: - | W137: 1 | X137: 2 | Y137: 3 | Z137: - | AA137: 0 | AB137: 4 | AC137: 1 | AD137: 6 | AE137: 4 | AF137: 4 | AG137: 1 | AH137: 6 | AI137: 2 | AJ137: 7 | AK137: 0 | AL137: 0 | AM137: 0 | AN137: 7 | AO137: 6 | AP137: 6 | AQ137: 6
A138: 133 | C138: 南和田村 | D138: 1,944 | E138: 1,852 | F138: 19 | G138: 4 | H138: 8 | I138: 7 | J138: 7 | K138: 11 | L138: 6 | M138: 1 | N138: 5 | O138: - | P138: - | Q138: 7 | R138: - | S138: 1 | T138: 6 | U138: 2 | V138: 1 | W138: - | X138: 2 | Y138: 1 | Z138: 1 | AA138: 0 | AB138: 1 | AC138: 0 | AD138: 5 | AE138: 4 | AF138: 1 | AG138: 2 | AH138: 4 | AI138: 0 | AJ138: 7 | AK138: 0 | AL138: 0 | AM138: 0 | AN138: 5 | AO138: 4 | AP138: 4 | AQ138: 3
A139: 134 | B139: 諏訪市 | D139: 10,906 | E139: 7,336 | F139: 680 | G139: 436 | H139: 224 | I139: 20 | J139: 127 | K139: 477 | L139: 114 | M139: 12 | N139: 112 | O139: 2 | P139: 2 | Q139: 44 | R139: 12 | S139: 16 | T139: 16 | U139: 31 | V139: 9 | W139: 1 | X139: - | Y139: 3 | Z139: - | AA139: 34 | AB139: 29 | AC139: 41 | AD139: 42 | AE139: 42 | AF139: 40 | AG139: 2 | AH139: 35 | AI139: 12 | AJ139: 24 | AK139: 8 | AL139: 13 | AM139: 5 | AN139: 44 | AO139: 15 | AP139: 29 | AQ139: 29
A140: 135 | C140: 諏訪市（旧） | D140: 6,743 | E140: 4,299 | F140: 352 | G140: 194 | H140: 146 | I140: 12 | J140: 84 | K140: 266 | L140: 67 | M140: 10 | N140: 66 | O140: 2 | P140: 1 | Q140: 31 | R140: 4 | S140: 13 | T140: 14 | U140: 23 | V140: 6 | W140: 1 | X140: - | Y140: 1 | Z140: - | AA140: 23 | AB140: 18 | AC140: 30 | AD140: 31 | AE140: 31 | AF140: 31 | AG140: 0 | AH140: 24 | AI140: 5 | AJ140: 16 | AK140: 6 | AL140: 11 | AM140: 4 | AN140: 31 | AO140: 9 | AP140: 18 | AQ140: 18
A141: 136 | C141: 中洲村 | D141: 660 | E141: 151 | F141: 136 | G141: 99 | H141: 33 | I141: 4 | J141: 12 | K141: 83 | L141: 23 | M141: 1 | N141: 23 | O141: - | P141: - | Q141: 5 | R141: 4 | S141: 1 | T141: - | U141: 5 | V141: - | W141: - | X141: - | Y141: - | Z141: - | AA141: 5 | AB141: 5 | AC141: 5 | AD141: 5 | AE141: 5 | AF141: 3 | AG141: 0 | AH141: 5 | AI141: 1 | AJ141: 1 | AK141: 1 | AL141: 0 | AM141: 0 | AN141: 5 | AO141: 2 | AP141: 5 | AQ141: 5
A142: 137 | C142: 湖南村 | D142: 3,503 | E142: 2,886 | F142: 192 | G142: 143 | H142: 45 | I142: 4 | J142: 30 | K142: 128 | L142: 24 | M142: 1 | N142: 23 | O142: - | P142: 1 | Q142: 8 | R142: 4 | S142: 2 | T142: 2 | U142: 3 | V142: 3 | W142: - | X142: - | Y142: 2 | Z142: - | AA142: 6 | AB142: 6 | AC142: 6 | AD142: 6 | AE142: 6 | AF142: 6 | AG142: 2 | AH142: 6 | AI142: 6 | AJ142: 7 | AK142: 1 | AL142: 2 | AM142: 1 | AN142: 8 | AO142: 4 | AP142: 6 | AQ142: 6
A143: 138 | B143: 須坂市 | D143: 14,984 | E143: 10,040 | F143: 1906 | G143: 314 | H143: 276 | I143: 1316 | J143: 302 | K143: 1,567 | L143: 421 | M143: 31 | N143: 411 | O143: 13 | P143: 9 | Q143: 60 | R143: 1 | S143: 15 | T143: 44 | U143: 16 | V143: 8 | W143: 19 | X143: 15 | Y143: 2 | Z143: - | AA143: 37 | AB143: 49 | AC143: 46 | AD143: 39 | AE143: 40 | AF143: 37 | AG143: 3 | AH143: 59 | AI143: 8 | AJ143: 34 | AK143: 18 | AL143: 4 | AM143: 3 | AN143: 54 | AO143: 42 | AP143: 55 | AQ143: 52
A144: 139 | C144: 須坂町 | D144: 1,522 | E144: 347 | F144: 404 | G144: 36 | H144: 47 | I144: 321 | J144: 44 | K144: 296 | L144: 111 | M144: 8 | N144: 108 | O144: 7 | P144: 3 | Q144: 13 | R144: - | S144: 1 | T144: 12 | U144: 8 | V144: 2 | W144: 2 | X144: 1 | Y144: - | Z144: - | AA144: 11 | AB144: 10 | AC144: 13 | AD144: 11 | AE144: 13 | AF144: 13 | AG144: 0 | AH144: 12 | AI144: 0 | AJ144: 7 | AK144: 2 | AL144: 2 | AM144: 2 | AN144: 9 | AO144: 4 | AP144: 11 | AQ144: 10
A145: 140 | C145: 井上村 | D145: 824 | E145: 154 | F145: 247 | G145: 76 | H145: 21 | I145: 150 | J145: 33 | K145: 339 | L145: 60 | M145: 4 | N145: 58 | O145: - | P145: 2 | Q145: 7 | R145: - | S145: 2 | T145: 5 | U145: 1 | V145: 1 | W145: 2 | X145: 3 | Y145: - | Z145: - | AA145: 7 | AB145: 6 | AC145: 7 | AD145: 7 | AE145: 7 | AF145: 7 | AG145: 0 | AH145: 7 | AI145: 0 | AJ145: 1 | AK145: 0 | AL145: 0 | AM145: 0 | AN145: 7 | AO145: 7 | AP145: 6 | AQ145: 6
A146: 141 | C146: 豊洲村 | D146: 819 | E146: 7 | F146: 395 | G146: 58 | H146: 15 | I146: 322 | J146: 17 | K146: 266 | L146: 96 | M146: 11 | N146: 95 | O146: 5 | P146: - | Q146: 7 | R146: - | S146: 1 | T146: 6 | U146: 2 | V146: 1 | W146: 3 | X146: 1 | Y146: - | Z146: - | AA146: 7 | AB146: 5 | AC146: 7 | AD146: 7 | AE146: 7 | AF146: 7 | AG146: 0 | AH146: 7 | AI146: 0 | AJ146: 3 | AK146: 1 | AL146: 0 | AM146: 0 | AN146: 5 | AO146: 4 | AP146: 5 | AQ146: 5
A147: 142 | C147: 日野村（須坂市） | D147: 441 | E147: - | F147: 199 | G147: 25 | H147: 6 | I147: 168 | J147: 26 | K147: 205 | L147: 58 | M147: 5 | N147: 56 | O147: 1 | P147: 1 | Q147: 6 | R147: - | S147: 1 | T147: 5 | U147: 1 | V147: 1 | W147: 3 | X147: 1 | Y147: - | Z147: - | AA147: 6 | AB147: 6 | AC147: 6 | AD147: 6 | AE147: 6 | AF147: 6 | AG147: 0 | AH147: 6 | AI147: 0 | AJ147: 0 | AK147: 0 | AL147: 0 | AM147: 0 | AN147: 6 | AO147: 6 | AP147: 6 | AQ147: 6
A148: 143 | C148: 高甫村 | D148: 1,132 | E148: 585 | F148: 305 | G148: 13 | H148: 20 | I148: 272 | J148: 26 | K148: 234 | L148: 35 | M148: 1 | N148: 35 | O148: - | P148: - | Q148: 4 | R148: - | S148: - | T148: 4 | U148: 1 | V148: 1 | W148: - | X148: 2 | Y148: - | Z148: - | AA148: 4 | AB148: 4 | AC148: 4 | AD148: 4 | AE148: 4 | AF148: 4 | AG148: 0 | AH148: 4 | AI148: 0 | AJ148: 2 | AK148: 2 | AL148: 0 | AM148: 0 | AN148: 4 | AO148: 4 | AP148: 4 | AQ148: 4
A149: 144 | C149: 仁礼村 | D149: 7,937 | E149: 6,962 | F149: 227 | G149: 90 | H149: 75 | I149: 62 | J149: 111 | K149: 149 | L149: 46 | M149: 2 | N149: 44 | O149: - | P149: 2 | Q149: 14 | R149: 1 | S149: 9 | T149: 4 | U149: 2 | V149: 2 | W149: 5 | X149: 4 | Y149: 1 | Z149: - | AA149: 1 | AB149: 12 | AC149: 3 | AD149: 3 | AE149: 2 | AF149: 0 | AG149: 1 | AH149: 14 | AI149: 6 | AJ149: 12 | AK149: 7 | AL149: 1 | AM149: 1 | AN149: 14 | AO149: 12 | AP149: 14 | AQ149: 14
A150: 145 | C150: 豊丘村 | D150: 2,309 | E150: 1,985 | F150: 129 | G150: 16 | H150: 92 | I150: 21 | J150: 45 | K150: 78 | L150: 15 | M150: - | N150: 15 | O150: - | P150: 1 | Q150: 9 | R150: - | S150: 1 | T150: 8 | U150: 1 | V150: - | W150: 4 | X150: 3 | Y150: 1 | Z150: - | AA150: 1 | AB150: 6 | AC150: 6 | AD150: 1 | AE150: 1 | AF150: 0 | AG150: 2 | AH150: 9 | AI150: 2 | AJ150: 9 | AK150: 6 | AL150: 1 | AM150: 0 | AN150: 9 | AO150: 5 | AP150: 9 | AQ150: 7
A151: 146 | B151: 小諸市 | D151: 9,866 | E151: 3,589 | F151: 2783 | G151: 1188 | H151: 950 | I151: 645 | J151: 672 | K151: 1,323 | L151: 216 | M151: 17 | N151: 197 | O151: 18 | P151: 19 | Q151: 55 | R151: 6 | S151: 29 | T151: 20 | U151: 17 | V151: 16 | W151: 8 | X151: 12 | Y151: 2 | Z151: - | AA151: 27 | AB151: 45 | AC151: 54 | AD151: 48 | AE151: 51 | AF151: 53 | AG151: 0 | AH151: 52 | AI151: 20 | AJ151: 47 | AK151: 8 | AL151: 20 | AM151: 9 | AN151: 55 | AO151: 32 | AP151: 51 | AQ151: 45
A152: 147 | C152: 小諸町 | D152: 1,893 | E152: 710 | F152: 442 | G152: 171 | H152: 124 | I152: 147 | J152: 92 | K152: 115 | L152: 30 | M152: 4 | N152: 28 | O152: 5 | P152: 4 | Q152: 16 | R152: 4 | S152: 6 | T152: 6 | U152: 11 | V152: 5 | W152: - | X152: - | Y152: - | Z152: - | AA152: 2 | AB152: 10 | AC152: 16 | AD152: 15 | AE152: 14 | AF152: 15 | AG152: 0 | AH152: 13 | AI152: 1 | AJ152: 11 | AK152: 0 | AL152: 0 | AM152: 0 | AN152: 16 | AO152: 6 | AP152: 13 | AQ152: 10
A153: 148 | C153: 大里村 | D153: 2,875 | E153: 1,605 | F153: 421 | G153: 186 | H153: 132 | I153: 103 | J153: 138 | K153: 229 | L153: 29 | M153: 1 | N153: 24 | O153: 2 | P153: 4 | Q153: 5 | R153: - | S153: 4 | T153: 1 | U153: - | V153: 1 | W153: 1 | X153: 2 | Y153: 1 | Z153: - | AA153: 0 | AB153: 5 | AC153: 5 | AD153: 2 | AE153: 5 | AF153: 5 | AG153: 0 | AH153: 5 | AI153: 5 | AJ153: 5 | AK153: 3 | AL153: 3 | AM153: 0 | AN153: 5 | AO153: 5 | AP153: 5 | AQ153: 5
A154: 149 | C154: 北大井村 | D154: 1,053 | E154: 189 | F154: 380 | G154: 155 | H154: 174 | I154: 51 | J154: 97 | K154: 163 | L154: 11 | M154: 2 | N154: 9 | O154: 2 | P154: - | Q154: 12 | R154: 2 | S154: 4 | T154: 6 | U154: 3 | V154: 4 | W154: 2 | X154: 3 | Y154: - | Z154: - | AA154: 9 | AB154: 11 | AC154: 12 | AD154: 12 | AE154: 11 | AF154: 12 | AG154: 0 | AH154: 12 | AI154: 7 | AJ154: 9 | AK154: 0 | AL154: 2 | AM154: 1 | AN154: 12 | AO154: 8 | AP154: 11 | AQ154: 10
A155: 150 | C155: 南大井村 | D155: 882 | E155: 113 | F155: 390 | G155: 183 | H155: 152 | I155: 55 | J155: 60 | K155: 189 | L155: 16 | M155: 3 | N155: 14 | O155: 3 | P155: 1 | Q155: 4 | R155: - | S155: 3 | T155: 1 | U155: 2 | V155: 2 | W155: - | X155: - | Y155: - | Z155: - | AA155: 4 | AB155: 4 | AC155: 4 | AD155: 4 | AE155: 4 | AF155: 4 | AG155: 0 | AH155: 4 | AI155: 1 | AJ155: 4 | AK155: 1 | AL155: 1 | AM155: 1 | AN155: 4 | AO155: 4 | AP155: 4 | AQ155: 4
A156: 151 | C156: 三岡村 | D156: 670 | E156: 40 | F156: 439 | G156: 217 | H156: 56 | I156: 166 | J156: 37 | K156: 252 | L156: 45 | M156: 3 | N156: 42 | O156: 2 | P156: 2 | Q156: 3 | R156: - | S156: 3 | T156: - | U156: - | V156: 2 | W156: 1 | X156: - | Y156: - | Z156: - | AA156: 3 | AB156: 3 | AC156: 3 | AD156: 3 | AE156: 3 | AF156: 3 | AG156: 0 | AH156: 3 | AI156: 1 | AJ156: 3 | AK156: 0 | AL156: 1 | AM156: 0 | AN156: 3 | AO156: 1 | AP156: 3 | AQ156: 3
A157: 152 | C157: 川辺村（小諸市） | D157: 1,691 | E157: 779 | F157: 337 | G157: 132 | H157: 170 | I157: 35 | J157: 127 | K157: 195 | L157: 53 | M157: 1 | N157: 51 | O157: 2 | P157: 6 | Q157: 10 | R157: - | S157: 6 | T157: 4 | U157: - | V157: 1 | W157: 3 | X157: 5 | Y157: 1 | Z157: - | AA157: 8 | AB157: 8 | AC157: 10 | AD157: 9 | AE157: 10 | AF157: 10 | AG157: 0 | AH157: 10 | AI157: 2 | AJ157: 10 | AK157: 1 | AL157: 10 | AM157: 4 | AN157: 10 | AO157: 4 | AP157: 10 | AQ157: 9
A158: 153 | C158: 小沼村２－２ | D158: 87 | E158: 5 | F158: 76 | G158: 51 | H158: 21 | I158: 4 | J158: x | K158: 69 | L158: x | M158: x | N158: x | O158: x | P158: x | Q158: 1 | R158: - | S158: 1 | T158: - | U158: - | V158: - | W158: - | X158: 1 | Y158: - | Z158: - | AA158: 1 | AB158: 1 | AC158: 1 | AD158: 1 | AE158: 1 | AF158: 1 | AG158: 0 | AH158: 1 | AI158: 0 | AJ158: 1 | AK158: 0 | AL158: 0 | AM158: 0 | AN158: 1 | AO158: 1 | AP158: 1 | AQ158: 1
A159: 154 | C159: 滋野村２－２ | D159: 621 | E159: 139 | F159: 246 | G159: 93 | H159: 75 | I159: 78 | J159: 100 | K159: 110 | L159: 27 | M159: 3 | N159: 25 | O159: 1 | P159: 1 | Q159: 3 | R159: - | S159: 2 | T159: 1 | U159: - | V159: 1 | W159: 1 | X159: 1 | Y159: - | Z159: - | AA159: 0 | AB159: 3 | AC159: 3 | AD159: 2 | AE159: 3 | AF159: 3 | AG159: 0 | AH159: 3 | AI159: 3 | AJ159: 3 | AK159: 3 | AL159: 3 | AM159: 3 | AN159: 3 | AO159: 3 | AP159: 3 | AQ159: 3
A160: 155 | C160: 小沼村２－１－２ | D160: 94 | E160: 9 | F160: 52 | G160: 0 | H160: 46 | I160: 6 | J160: x | K160: 1 | L160: x | M160: x | N160: x | O160: x | P160: x | Q160: 1 | R160: - | S160: - | T160: 1 | U160: 1 | V160: - | W160: - | X160: - | Y160: - | Z160: - | AA160: 0 | AB160: 0 | AC160: 0 | AD160: 0 | AE160: 0 | AF160: 0 | AG160: 0 | AH160: 1 | AI160: 0 | AJ160: 1 | AK160: 0 | AL160: 0 | AM160: 0 | AN160: 1 | AO160: 0 | AP160: 1 | AQ160: 0
A161: 156 | B161: 伊那市 | D161: 66,781 | E161: 52,320 | F161: 5211 | G161: 3486 | H161: 1575 | I161: 150 | J161: 453 | K161: 1,733 | L161: 403 | M161: 30 | N161: 390 | O161: 30 | P161: 21 | Q161: 237 | R161: 120 | S161: 73 | T161: 44 | U161: 47 | V161: 65 | W161: 71 | X161: 42 | Y161: 10 | Z161: 2 | AA161: 199 | AB161: 214 | AC161: 230 | AD161: 230 | AE161: 230 | AF161: 188 | AG161: 7 | AH161: 220 | AI161: 135 | AJ161: 197 | AK161: 92 | AL161: 39 | AM161: 17 | AN161: 231 | AO161: 114 | AP161: 224 | AQ161: 210
A162: 157 | C162: 伊那町 | D162: 5,725 | E162: 3,301 | F162: 1025 | G162: 683 | H162: 327 | I162: 15 | J162: 46 | K162: 374 | L162: 73 | M162: 4 | N162: 71 | O162: 1 | P162: - | Q162: 38 | R162: 14 | S162: 13 | T162: 11 | U162: 25 | V162: 9 | W162: 2 | X162: 2 | Y162: - | Z162: - | AA162: 26 | AB162: 32 | AC162: 38 | AD162: 38 | AE162: 38 | AF162: 36 | AG162: 0 | AH162: 33 | AI162: 10 | AJ162: 22 | AK162: 5 | AL162: 3 | AM162: 3 | AN162: 37 | AO162: 13 | AP162: 37 | AQ162: 29
A163: 158 | C163: 西箕輪村２－１ | D163: 2,374 | E163: 1,258 | F163: 652 | G163: 118 | H163: 471 | I163: 63 | J163: 117 | K163: 208 | L163: 78 | M163: 13 | N163: 77 | O163: 21 | P163: 11 | Q163: 9 | R163: - | S163: 1 | T163: 8 | U163: 1 | V163: 2 | W163: 5 | X163: 1 | Y163: - | Z163: - | AA163: 9 | AB163: 9 | AC163: 9 | AD163: 9 | AE163: 9 | AF163: 8 | AG163: 0 | AH163: 9 | AI163: 4 | AJ163: 9 | AK163: 6 | AL163: 3 | AM163: 2 | AN163: 9 | AO163: 4 | AP163: 9 | AQ163: 9
A164: 159 | C164: 手良村 | D164: 2,481 | E164: 1,911 | F164: 276 | G164: 205 | H164: 57 | I164: 14 | J164: 17 | K164: 119 | L164: 29 | M164: 1 | N164: 28 | O164: 2 | P164: - | Q164: 20 | R164: 13 | S164: 7 | T164: - | U164: - | V164: 1 | W164: 8 | X164: 10 | Y164: 1 | Z164: - | AA164: 20 | AB164: 20 | AC164: 20 | AD164: 20 | AE164: 20 | AF164: 10 | AG164: 0 | AH164: 20 | AI164: 13 | AJ164: 16 | AK164: 3 | AL164: 5 | AM164: 3 | AN164: 20 | AO164: 9 | AP164: 20 | AQ164: 20
A165: 160 | C165: 美篶村 | D165: 1,355 | E165: 301 | F165: 497 | G165: 443 | H165: 47 | I165: 7 | J165: 10 | K165: 237 | L165: 52 | M165: 2 | N165: 51 | O165: - | P165: 1 | Q165: 11 | R165: 11 | S165: - | T165: - | U165: - | V165: 7 | W165: 4 | X165: - | Y165: - | Z165: - | AA165: 11 | AB165: 11 | AC165: 11 | AD165: 11 | AE165: 11 | AF165: 4 | AG165: 0 | AH165: 11 | AI165: 5 | AJ165: 10 | AK165: 2 | AL165: 1 | AM165: 0 | AN165: 11 | AO165: 4 | AP165: 11 | AQ165: 10
A166: 161 | C166: 富県村 | D166: 3,312 | E166: 2,302 | F166: 602 | G166: 484 | H166: 109 | I166: 9 | J166: 40 | K166: 159 | L166: 35 | M166: 1 | N166: 34 | O166: 2 | P166: 2 | Q166: 25 | R166: 19 | S166: 5 | T166: 1 | U166: - | V166: 6 | W166: 9 | X166: 6 | Y166: 3 | Z166: 1 | AA166: 25 | AB166: 25 | AC166: 25 | AD166: 25 | AE166: 25 | AF166: 19 | AG166: 0 | AH166: 25 | AI166: 22 | AJ166: 22 | AK166: 18 | AL166: 8 | AM166: 7 | AN166: 25 | AO166: 22 | AP166: 25 | AQ166: 25
A167: 162 | C167: 東春近村 | D167: 1,672 | E167: 345 | F167: 722 | G167: 603 | H167: 111 | I167: 8 | J167: 17 | K167: 182 | L167: 34 | M167: 3 | N167: 33 | O167: - | P167: 1 | Q167: 25 | R167: 21 | S167: 2 | T167: 2 | U167: - | V167: 10 | W167: 12 | X167: 2 | Y167: 1 | Z167: - | AA167: 25 | AB167: 25 | AC167: 25 | AD167: 25 | AE167: 25 | AF167: 22 | AG167: 0 | AH167: 25 | AI167: 11 | AJ167: 16 | AK167: 6 | AL167: 1 | AM167: 1 | AN167: 24 | AO167: 13 | AP167: 25 | AQ167: 25
A168: 163 | C168: 西春近村 | D168: 3,796 | E168: 2,690 | F168: 628 | G168: 389 | H168: 230 | I168: 9 | J168: 31 | K168: 217 | L168: 37 | M168: 4 | N168: 35 | O168: 2 | P168: 1 | Q168: 23 | R168: 9 | S168: 9 | T168: 5 | U168: - | V168: 10 | W168: 7 | X168: 5 | Y168: 1 | Z168: - | AA168: 23 | AB168: 23 | AC168: 23 | AD168: 23 | AE168: 23 | AF168: 23 | AG168: 0 | AH168: 23 | AI168: 20 | AJ168: 21 | AK168: 19 | AL168: 1 | AM168: 0 | AN168: 23 | AO168: 19 | AP168: 23 | AQ168: 23
A169: 164 | C169: 高遠町 | D169: 1,210 | E169: 945 | F169: 29 | G169: 16 | H169: 13 | I169: 0 | J169: 17 | K169: 8 | L169: 1 | M169: - | N169: 1 | O169: - | P169: - | Q169: 15 | R169: 3 | S169: 5 | T169: 7 | U169: 6 | V169: 8 | W169: 1 | X169: - | Y169: - | Z169: - | AA169: 1 | AB169: 7 | AC169: 15 | AD169: 15 | AE169: 15 | AF169: 9 | AG169: 0 | AH169: 11 | AI169: 0 | AJ169: 11 | AK169: 0 | AL169: 2 | AM169: 0 | AN169: 13 | AO169: 4 | AP169: 11 | AQ169: 7
A170: 165 | C170: 長藤村 | D170: 2,156 | E170: 1,879 | F170: 134 | G170: 76 | H170: 41 | I170: 17 | J170: 49 | K170: 24 | L170: 14 | M170: - | N170: 14 | O170: - | P170: - | Q170: 11 | R170: 1 | S170: 10 | T170: - | U170: - | V170: 3 | W170: 4 | X170: 4 | Y170: - | Z170: - | AA170: 11 | AB170: 11 | AC170: 11 | AD170: 11 | AE170: 11 | AF170: 10 | AG170: 0 | AH170: 11 | AI170: 9 | AJ170: 11 | AK170: 7 | AL170: 0 | AM170: 0 | AN170: 11 | AO170: 9 | AP170: 11 | AQ170: 11
A171: 166 | C171: 三義村 | D171: 4,738 | E171: 4,358 | F171: 57 | G171: 35 | H171: 22 | I171: 0 | J171: 16 | K171: 17 | L171: 6 | M171: - | N171: 5 | O171: - | P171: 2 | Q171: 14 | R171: 2 | S171: 7 | T171: 5 | U171: 6 | V171: 1 | W171: 3 | X171: 3 | Y171: - | Z171: 1 | AA171: 7 | AB171: 10 | AC171: 10 | AD171: 10 | AE171: 10 | AF171: 7 | AG171: 4 | AH171: 10 | AI171: 7 | AJ171: 14 | AK171: 8 | AL171: 0 | AM171: 0 | AN171: 14 | AO171: 6 | AP171: 10 | AQ171: 10
A172: 167 | C172: 藤沢村 | D172: 4,418 | E172: 3,876 | F172: 113 | G172: 87 | H172: 26 | I172: 0 | J172: 30 | K172: 13 | L172: 3 | M172: - | N172: 3 | O172: - | P172: - | Q172: 7 | R172: 5 | S172: 2 | T172: - | U172: - | V172: 2 | W172: 2 | X172: 3 | Y172: - | Z172: - | AA172: 7 | AB172: 7 | AC172: 7 | AD172: 7 | AE172: 7 | AF172: 5 | AG172: 0 | AH172: 7 | AI172: 7 | AJ172: 7 | AK172: 6 | AL172: 1 | AM172: 1 | AN172: 7 | AO172: 7 | AP172: 7 | AQ172: 7
A173: 168 | C173: 河南村 | D173: 1,489 | E173: 925 | F173: 259 | G173: 193 | H173: 64 | I173: 2 | J173: 25 | K173: 64 | L173: 16 | M173: 1 | N173: 16 | O173: 2 | P173: - | Q173: 6 | R173: 4 | S173: 2 | T173: - | U173: - | V173: 1 | W173: 3 | X173: 2 | Y173: - | Z173: - | AA173: 6 | AB173: 6 | AC173: 6 | AD173: 6 | AE173: 6 | AF173: 5 | AG173: 0 | AH173: 6 | AI173: 6 | AJ173: 6 | AK173: 5 | AL173: 5 | AM173: 0 | AN173: 6 | AO173: 4 | AP173: 6 | AQ173: 6
A174: 169 | C174: 伊那里村 | D174: 18,528 | E174: 16,396 | F174: 56 | G174: 40 | H174: 16 | I174: 0 | J174: 14 | K174: 10 | L174: 6 | M174: - | N174: 6 | O174: - | P174: - | Q174: 15 | R174: 8 | S174: 3 | T174: 4 | U174: 8 | V174: 2 | W174: 3 | X174: 2 | Y174: - | Z174: - | AA174: 11 | AB174: 11 | AC174: 12 | AD174: 12 | AE174: 12 | AF174: 12 | AG174: 3 | AH174: 11 | AI174: 4 | AJ174: 14 | AK174: 3 | AL174: 1 | AM174: 0 | AN174: 14 | AO174: 0 | AP174: 11 | AQ174: 11
A175: 170 | C175: 美和村 | D175: 13,527 | E175: 11,833 | F175: 161 | G175: 114 | H175: 41 | I175: 6 | J175: 21 | K175: 101 | L175: 19 | M175: 1 | N175: 16 | O175: - | P175: 3 | Q175: 18 | R175: 10 | S175: 7 | T175: 1 | U175: 1 | V175: 3 | W175: 8 | X175: 2 | Y175: 4 | Z175: - | AA175: 17 | AB175: 17 | AC175: 18 | AD175: 18 | AE175: 18 | AF175: 18 | AG175: 0 | AH175: 18 | AI175: 17 | AJ175: 18 | AK175: 4 | AL175: 8 | AM175: 0 | AN175: 17 | AO175: 0 | AP175: 18 | AQ175: 17
A176: 171 | B176: 駒ヶ根市 | D176: 16,592 | E176: 11,967 | F176: 1896 | G176: 1434 | H176: 386 | I176: 76 | J176: 101 | K176: 832 | L176: 253 | M176: 16 | N176: 248 | O176: 11 | P176: 5 | Q176: 84 | R176: 62 | S176: 15 | T176: 7 | U176: 25 | V176: 22 | W176: 17 | X176: 14 | Y176: 6 | Z176: - | AA176: 74 | AB176: 82 | AC176: 84 | AD176: 84 | AE176: 84 | AF176: 82 | AG176: 0 | AH176: 79 | AI176: 50 | AJ176: 56 | AK176: 7 | AL176: 10 | AM176: 1 | AN176: 82 | AO176: 82 | AP176: 80 | AQ176: 80
A177: 172 | C177: 赤穂町 | D177: 7,912 | E177: 4,825 | F177: 1220 | G177: 978 | H177: 207 | I177: 35 | J177: 38 | K177: 419 | L177: 108 | M177: 7 | N177: 108 | O177: 5 | P177: 1 | Q177: 67 | R177: 53 | S177: 8 | T177: 6 | U177: 25 | V177: 21 | W177: 13 | X177: 7 | Y177: 1 | Z177: - | AA177: 57 | AB177: 65 | AC177: 67 | AD177: 67 | AE177: 67 | AF177: 65 | AG177: 0 | AH177: 62 | AI177: 34 | AJ177: 39 | AK177: 5 | AL177: 5 | AM177: 0 | AN177: 65 | AO177: 65 | AP177: 63 | AQ177: 63
A178: 173 | C178: 中沢村 | D178: 6,900 | E178: 5,928 | F178: 394 | G178: 273 | H178: 103 | I178: 18 | J178: 48 | K178: 227 | L178: 61 | M178: 5 | N178: 59 | O178: 1 | P178: 2 | Q178: 12 | R178: 7 | S178: 4 | T178: 1 | U178: - | V178: 1 | W178: 3 | X178: 4 | Y178: 4 | Z178: - | AA178: 12 | AB178: 12 | AC178: 12 | AD178: 12 | AE178: 12 | AF178: 12 | AG178: 0 | AH178: 12 | AI178: 11 | AJ178: 12 | AK178: 2 | AL178: 2 | AM178: 1 | AN178: 12 | AO178: 12 | AP178: 12 | AQ178: 12
A179: 174 | C179: 伊那村 | D179: 1,780 | E179: 1,214 | F179: 282 | G179: 183 | H179: 76 | I179: 23 | J179: 15 | K179: 186 | L179: 84 | M179: 4 | N179: 81 | O179: 5 | P179: 2 | Q179: 5 | R179: 2 | S179: 3 | T179: - | U179: - | V179: - | W179: 1 | X179: 3 | Y179: 1 | Z179: - | AA179: 5 | AB179: 5 | AC179: 5 | AD179: 5 | AE179: 5 | AF179: 5 | AG179: 0 | AH179: 5 | AI179: 5 | AJ179: 5 | AK179: 0 | AL179: 3 | AM179: 0 | AN179: 5 | AO179: 5 | AP179: 5 | AQ179: 5
A180: 175 | B180: 中野市 | D180: 11,206 | E180: 4,478 | F180: 3081 | G180: 651 | H180: 916 | I180: 1514 | J180: 469 | K180: 2,315 | L180: 711 | M180: 61 | N180: 699 | O180: 48 | P180: 10 | Q180: 74 | R180: 4 | S180: 26 | T180: 44 | U180: 12 | V180: 15 | W180: 17 | X180: 18 | Y180: 10 | Z180: 2 | AA180: 53 | AB180: 65 | AC180: 66 | AD180: 62 | AE180: 70 | AF180: 68 | AG180: 3 | AH180: 71 | AI180: 15 | AJ180: 54 | AK180: 13 | AL180: 21 | AM180: 7 | AN180: 74 | AO180: 42 | AP180: 74 | AQ180: 73
A181: 176 | C181: 中野町 | D181: 769 | E181: 120 | F181: 215 | G181: 56 | H181: 56 | I181: 103 | J181: 41 | K181: 199 | L181: 50 | M181: 5 | N181: 49 | O181: 4 | P181: - | Q181: 11 | R181: - | S181: 4 | T181: 7 | U181: 7 | V181: 4 | W181: - | X181: - | Y181: - | Z181: - | AA181: 7 | AB181: 6 | AC181: 6 | AD181: 5 | AE181: 9 | AF181: 7 | AG181: 2 | AH181: 8 | AI181: 0 | AJ181: 4 | AK181: 0 | AL181: 0 | AM181: 0 | AN181: 11 | AO181: 3 | AP181: 11 | AQ181: 11
A182: 177 | C182: 日野村（中野市） | D182: 1,061 | E182: 713 | F182: 192 | G182: 31 | H182: 104 | I182: 57 | J182: 41 | K182: 159 | L182: 33 | M182: 1 | N182: 33 | O182: 2 | P182: - | Q182: 4 | R182: - | S182: - | T182: 4 | U182: - | V182: - | W182: 2 | X182: 2 | Y182: - | Z182: - | AA182: 4 | AB182: 2 | AC182: 4 | AD182: 3 | AE182: 4 | AF182: 4 | AG182: 0 | AH182: 4 | AI182: 1 | AJ182: 4 | AK182: 1 | AL182: 1 | AM182: 1 | AN182: 4 | AO182: 4 | AP182: 4 | AQ182: 4
A183: 178 | C183: 延徳村 | D183: 789 | E183: 290 | F183: 252 | G183: 107 | H183: 123 | I183: 22 | J183: 35 | K183: 200 | L183: 37 | M183: 3 | N183: 37 | O183: 3 | P183: 3 | Q183: 6 | R183: - | S183: 5 | T183: 1 | U183: - | V183: 3 | W183: 1 | X183: 1 | Y183: 1 | Z183: - | AA183: 6 | AB183: 5 | AC183: 4 | AD183: 2 | AE183: 6 | AF183: 6 | AG183: 0 | AH183: 6 | AI183: 0 | AJ183: 4 | AK183: 2 | AL183: 2 | AM183: 2 | AN183: 6 | AO183: 5 | AP183: 6 | AQ183: 6
A184: 179 | C184: 平野村 | D184: 741 | E184: 75 | F184: 270 | G184: 56 | H184: 150 | I184: 64 | J184: 49 | K184: 211 | L184: 55 | M184: 1 | N184: 54 | O184: 5 | P184: 2 | Q184: 7 | R184: - | S184: 2 | T184: 5 | U184: 4 | V184: 3 | W184: - | X184: - | Y184: - | Z184: - | AA184: 4 | AB184: 7 | AC184: 7 | AD184: 7 | AE184: 7 | AF184: 7 | AG184: 0 | AH184: 7 | AI184: 2 | AJ184: 2 | AK184: 1 | AL184: 1 | AM184: 0 | AN184: 7 | AO184: 7 | AP184: 7 | AQ184: 7
A185: 180 | C185: 高丘村 | D185: 670 | E185: 66 | F185: 310 | G185: 39 | H185: 91 | I185: 180 | J185: 29 | K185: 208 | L185: 99 | M185: 12 | N185: 98 | O185: 13 | P185: 2 | Q185: 5 | R185: - | S185: - | T185: 5 | U185: - | V185: 2 | W185: 2 | X185: 1 | Y185: - | Z185: - | AA185: 5 | AB185: 5 | AC185: 5 | AD185: 5 | AE185: 5 | AF185: 5 | AG185: 0 | AH185: 5 | AI185: 0 | AJ185: 5 | AK185: 0 | AL185: 1 | AM185: 1 | AN185: 5 | AO185: 3 | AP185: 5 | AQ185: 5
A186: 181 | C186: 長丘村 | D186: 712 | E186: 135 | F186: 302 | G186: 72 | H186: 80 | I186: 150 | J186: 55 | K186: 208 | L186: 66 | M186: 3 | N186: 63 | O186: 5 | P186: 1 | Q186: 5 | R186: - | S186: 2 | T186: 3 | U186: - | V186: - | W186: 1 | X186: 2 | Y186: 1 | Z186: 1 | AA186: 3 | AB186: 5 | AC186: 5 | AD186: 5 | AE186: 5 | AF186: 5 | AG186: 0 | AH186: 5 | AI186: 1 | AJ186: 5 | AK186: 2 | AL186: 1 | AM186: 1 | AN186: 5 | AO186: 5 | AP186: 5 | AQ186: 5
A187: 182 | C187: 平岡村（中野市） | D187: 708 | E187: 1 | F187: 428 | G187: 12 | H187: 60 | I187: 356 | J187: 36 | K187: 362 | L187: 121 | M187: 17 | N187: 118 | O187: 13 | P187: - | Q187: 8 | R187: - | S187: 1 | T187: 7 | U187: - | V187: 3 | W187: 4 | X187: - | Y187: 1 | Z187: - | AA187: 8 | AB187: 8 | AC187: 8 | AD187: 8 | AE187: 8 | AF187: 8 | AG187: 0 | AH187: 8 | AI187: 0 | AJ187: 2 | AK187: 0 | AL187: 0 | AM187: 0 | AN187: 8 | AO187: 7 | AP187: 8 | AQ187: 8
A188: 183 | C188: 科野村 | D188: 1,013 | E188: 510 | F188: 294 | G188: 29 | H188: 40 | I188: 225 | J188: 34 | K188: 217 | L188: 56 | M188: 3 | N188: 56 | O188: 1 | P188: - | Q188: 3 | R188: - | S188: - | T188: 3 | U188: - | V188: - | W188: 1 | X188: 1 | Y188: 1 | Z188: - | AA188: 3 | AB188: 3 | AC188: 3 | AD188: 3 | AE188: 3 | AF188: 3 | AG188: 0 | AH188: 3 | AI188: 0 | AJ188: 3 | AK188: 2 | AL188: 1 | AM188: 0 | AN188: 3 | AO188: 2 | AP188: 3 | AQ188: 3
A189: 184 | C189: 倭村（中野市） | D189: 1,261 | E189: 750 | F189: 291 | G189: 78 | H189: 129 | I189: 84 | J189: 38 | K189: 195 | L189: 55 | M189: 7 | N189: 52 | O189: 1 | P189: 1 | Q189: 5 | R189: - | S189: 2 | T189: 3 | U189: - | V189: - | W189: 1 | X189: 3 | Y189: 1 | Z189: - | AA189: 5 | AB189: 5 | AC189: 5 | AD189: 5 | AE189: 4 | AF189: 4 | AG189: 0 | AH189: 5 | AI189: 0 | AJ189: 5 | AK189: 1 | AL189: 0 | AM189: 0 | AN189: 5 | AO189: 2 | AP189: 5 | AQ189: 5
A190: 185 | C190: 豊井村 | D190: 1,424 | E190: 530 | F190: 300 | G190: 68 | H190: 36 | I190: 196 | J190: 50 | K190: 186 | L190: 81 | M190: 9 | N190: 81 | O190: 1 | P190: 1 | Q190: 8 | R190: - | S190: 5 | T190: 3 | U190: - | V190: - | W190: 5 | X190: 2 | Y190: 1 | Z190: - | AA190: 1 | AB190: 8 | AC190: 8 | AD190: 8 | AE190: 8 | AF190: 8 | AG190: 0 | AH190: 8 | AI190: 4 | AJ190: 8 | AK190: 0 | AL190: 3 | AM190: 1 | AN190: 8 | AO190: 3 | AP190: 8 | AQ190: 8
A191: 186 | C191: 永田村 | D191: 2,058 | E191: 1,288 | F191: 227 | G191: 103 | H191: 47 | I191: 77 | J191: 61 | K191: 170 | L191: 58 | M191: - | N191: 58 | O191: - | P191: - | Q191: 12 | R191: 4 | S191: 5 | T191: 3 | U191: 1 | V191: - | W191: - | X191: 6 | Y191: 4 | Z191: 1 | AA191: 7 | AB191: 11 | AC191: 11 | AD191: 11 | AE191: 11 | AF191: 11 | AG191: 1 | AH191: 12 | AI191: 7 | AJ191: 12 | AK191: 4 | AL191: 11 | AM191: 1 | AN191: 12 | AO191: 1 | AP191: 12 | AQ191: 11
A192: 187 | B192: 大町市 | D192: 56,499 | E192: 40,797 | F192: 2575 | G192: 2219 | H192: 265 | I192: 91 | J192: 167 | K192: 1,356 | L192: 274 | M192: 26 | N192: 243 | O192: 4 | P192: 34 | Q192: 175 | R192: 108 | S192: 15 | T192: 52 | U192: 53 | V192: 32 | W192: 31 | X192: 38 | Y192: 12 | Z192: 9 | AA192: 107 | AB192: 75 | AC192: 112 | AD192: 121 | AE192: 125 | AF192: 103 | AG192: 33 | AH192: 147 | AI192: 39 | AJ192: 128 | AK192: 35 | AL192: 19 | AM192: 11 | AN192: 122 | AO192: 58 | AP192: 129 | AQ192: 68
A193: 188 | C193: 大町 | D193: 2,207 | E193: 1,013 | F193: 289 | G193: 240 | H193: 30 | I193: 19 | J193: 22 | K193: 210 | L193: 54 | M193: 8 | N193: 49 | O193: 3 | P193: 5 | Q193: 25 | R193: 13 | S193: 4 | T193: 8 | U193: 19 | V193: 6 | W193: - | X193: - | Y193: - | Z193: - | AA193: 16 | AB193: 6 | AC193: 25 | AD193: 23 | AE193: 19 | AF193: 20 | AG193: 0 | AH193: 24 | AI193: 0 | AJ193: 6 | AK193: 3 | AL193: 1 | AM193: 0 | AN193: 17 | AO193: 4 | AP193: 17 | AQ193: 1
A194: 189 | C194: 平村 | D194: 35,779 | E194: 25,037 | F194: 619 | G194: 553 | H194: 47 | I194: 19 | J194: 58 | K194: 314 | L194: 51 | M194: 7 | N194: 37 | O194: 1 | P194: 13 | Q194: 28 | R194: 27 | S194: - | T194: 1 | U194: 2 | V194: 7 | W194: 8 | X194: 10 | Y194: 1 | Z194: - | AA194: 27 | AB194: 24 | AC194: 27 | AD194: 22 | AE194: 28 | AF194: 21 | AG194: 0 | AH194: 28 | AI194: 3 | AJ194: 20 | AK194: 8 | AL194: 6 | AM194: 1 | AN194: 28 | AO194: 28 | AP194: 28 | AQ194: 15
A195: 190 | C195: 常盤村（大町市） | D195: 7,043 | E195: 5,105 | F195: 1117 | G195: 1026 | H195: 52 | I195: 39 | J195: 17 | K195: 489 | L195: 110 | M195: 8 | N195: 107 | O195: - | P195: 4 | Q195: 32 | R195: 32 | S195: - | T195: - | U195: 4 | V195: 5 | W195: 8 | X195: 9 | Y195: 4 | Z195: 2 | AA195: 18 | AB195: 13 | AC195: 14 | AD195: 18 | AE195: 20 | AF195: 13 | AG195: 6 | AH195: 32 | AI195: 16 | AJ195: 18 | AK195: 13 | AL195: 4 | AM195: 3 | AN195: 32 | AO195: 18 | AP195: 32 | AQ195: 20
A196: 191 | C196: 社村 | D196: 1,455 | E196: 877 | F196: 283 | G196: 261 | H196: 22 | I196: 0 | J196: 11 | K196: 182 | L196: 25 | M196: 1 | N196: 25 | O196: - | P196: - | Q196: 10 | R196: 10 | S196: - | T196: - | U196: - | V196: 3 | W196: 2 | X196: 5 | Y196: - | Z196: - | AA196: 10 | AB196: 1 | AC196: 8 | AD196: 10 | AE196: 7 | AF196: 9 | AG196: 0 | AH196: 10 | AI196: 0 | AJ196: 4 | AK196: 2 | AL196: 0 | AM196: 0 | AN196: 10 | AO196: 2 | AP196: 10 | AQ196: 1
A197: 192 | C197: 八坂村２－１ | D197: 3,361 | E197: 2,823 | F197: 130 | G197: 49 | H197: 71 | I197: 10 | J197: 28 | K197: 78 | L197: 18 | M197: 2 | N197: 15 | O197: - | P197: 2 | Q197: 37 | R197: 9 | S197: 6 | T197: 22 | U197: 12 | V197: 4 | W197: 6 | X197: 8 | Y197: 3 | Z197: 4 | AA197: 21 | AB197: 18 | AC197: 22 | AD197: 25 | AE197: 25 | AF197: 24 | AG197: 12 | AH197: 26 | AI197: 11 | AJ197: 37 | AK197: 0 | AL197: 3 | AM197: 2 | AN197: 22 | AO197: 0 | AP197: 19 | AQ197: 15
A198: 193 | C198: 広津村３－３ | D198: 33 | E198: 25 | F198: 0 | G198: 0 | H198: 0 | I198: 0 | J198: - | K198: - | L198: - | M198: - | N198: - | O198: - | P198: - | Q198: 1 | R198: - | S198: - | T198: 1 | U198: 1 | V198: - | W198: - | X198: - | Y198: - | Z198: - | AA198: 0 | AB198: 0 | AC198: 0 | AD198: 0 | AE198: 0 | AF198: 0 | AG198: 1 | AH198: 1 | AI198: 0 | AJ198: 1 | AK198: 0 | AL198: 0 | AM198: 0 | AN198: 1 | AO198: 0 | AP198: 0 | AQ198: 0
A199: 194 | C199: 美麻村 | D199: 6,621 | E199: 5,917 | F199: 137 | G199: 90 | H199: 43 | I199: 4 | J199: 33 | K199: 83 | L199: 16 | M199: - | N199: 10 | O199: - | P199: 10 | Q199: 42 | R199: 17 | S199: 5 | T199: 20 | U199: 15 | V199: 7 | W199: 7 | X199: 6 | Y199: 4 | Z199: 3 | AA199: 15 | AB199: 13 | AC199: 16 | AD199: 23 | AE199: 26 | AF199: 16 | AG199: 14 | AH199: 26 | AI199: 9 | AJ199: 42 | AK199: 9 | AL199: 5 | AM199: 5 | AN199: 12 | AO199: 6 | AP199: 23 | AQ199: 16
A200: 195 | B200: 飯山市 | D200: 20,232 | E200: 12,005 | F200: 3508 | G200: 1932 | H200: 1538 | I200: 38 | J200: 472 | K200: 1,599 | L200: 299 | M200: 15 | N200: 265 | O200: 9 | P200: 47 | Q200: 117 | R200: 28 | S200: 51 | T200: 38 | U200: 19 | V200: 11 | W200: 22 | X200: 44 | Y200: 18 | Z200: 3 | AA200: 82 | AB200: 94 | AC200: 100 | AD200: 93 | AE200: 104 | AF200: 78 | AG200: 9 | AH200: 109 | AI200: 55 | AJ200: 103 | AK200: 14 | AL200: 41 | AM200: 29 | AN200: 112 | AO200: 75 | AP200: 105 | AQ200: 95
... 305 more rows

Sheet 2015 (hidden)
A1: 農山村地域調査
A2: １ 総土地面積及び林野面積
D3: 1 | E3: 2 | F3: 3 | G3: 4 | H3: 5 | I3: 6 | J3: 7 | K3: 8 | L3: 9 | M3: 10 | N3: 11 | O3: 12 | P3: 13 | Q3: 14 | R3: 15 | S3: 16 | T3: 17 | U3: 18 | V3: 19 | W3: 20 | X3: 21 | Y3: 22 | Z3: 23 | AA3: 24 | AB3: 25 | AC3: 26 | AD3: 27 | AE3: 28 | AF3: 29 | AG3: 30 | AH3: 31 | AI3: 32 | AJ3: 33 | AK3: 34 | AL3: 35 | AM3: 36 | AN3: 37 | AO3: 38 | AP3: 39 | AQ3: 40 | AR3: 41 | AS3: 42 | AT3: 43 | AU3: 44 | AV3: 45
D4: 総土地面積 | F4: 耕地面積 | K4: 生産関連 | Q4: 水田率 | U4: 農家率 | Y4: 寄り合いの議題_農業生産にかかる事項 | AH4: 保全管理
A5: 新旧市区町村 | D5: 総土地 面 積 | E5: 林野面積 | F5: 耕地面積 | G5: 田面積 | H5: 畑面積 | I5: 樹園地面積 | J5: 耕作 放棄地 面積 | K5: 計 | L5: 農業生産関連事業を行っている実経営体数 | M5: 事業種類別_農産物の加工 | N5: 事業種類別_消費者に直接販売 | O5: 事業種類別_観光農園 | P5: その他 | Q5: 計 | R5: 水田集落 （70％以上） | S5: 田畑集落 （30～70） | T5: 畑地集落 （30％未満） | U5: 10％未満 | V5: 10～30 | W5: 30～50 | X5: 50～70 | Y5: 70～90 | Z5: 90％以上 | AA5: 寄り合いの議題_農業生産にかかる事項 | AB5: 寄り合いの議題_農道・農業用用排水路・ため池の管理 | AC5: 寄り合いの議題_集落共有財産・共用施設の管理 | AD5: 寄り合いの議題_環境美化・自然環境の保全 | AE5: 寄り合いの議題_農業集落行事（祭り・イベント等）の計画・推進 | AF5: 寄り合いの議題_農業集落内の福祉・厚生 | AG5: 寄り合いを開催しなかった | AH5: 農地_ある | AI5: 農地_保全している | AJ5: 森林_ある | AK5: 森林_保全している | AL5: ため池・湖沼_ある | AM5: ため池・湖沼_保全している | AN5: 河川・水路_ある | AO5: 河川・水路_保全している | AP5: 農業用用排水路_ある | AQ5: 農業用用排水路_保全している
A6: 1 | B6: 長野県 | D6: 1356156 | E6: 1031536 | F6: 109842 | G6: 54547 | H6: 38218 | I6: 17077 | J6: 16775.87 | K6: 53808 | L6: 12618 | M6: 2644 | N6: 11044 | O6: 592 | P6: 675 | Q6: 4727 | R6: 1132 | S6: 2019 | T6: 1576 | U6: 996 | V6: 1279 | W6: 1142 | X6: 966 | Y6: 275 | Z6: 69 | AA6: 3187 | AB6: 4198 | AC6: 3931 | AD6: 4512 | AE6: 4484 | AF6: 4146 | AG6: 155 | AH6: 4561 | AI6: 2176 | AJ6: 3686 | AK6: 1382 | AL6: 961 | AM6: 588 | AN6: 4363 | AO6: 2882 | AP6: 4384 | AQ6: 3959
A7: 2 | B7: 長野市 | D7: 83481 | E7: 52501 | F7: 8563 | G7: 2406 | H7: 3114 | I7: 3043 | J7: 2271.19 | K7: 5491 | L7: 1205 | M7: 111 | N7: 1151 | O7: 36 | P7: 59 | Q7: 647 | R7: 26 | S7: 301 | T7: 320 | U7: 101 | V7: 116 | W7: 161 | X7: 163 | Y7: 75 | Z7: 31 | AA7: 446 | AB7: 586 | AC7: 489 | AD7: 608 | AE7: 615 | AF7: 573 | AG7: 21 | AH7: 644 | AI7: 235 | AJ7: 465 | AK7: 104 | AL7: 89 | AM7: 60 | AN7: 523 | AO7: 237 | AP7: 593 | AQ7: 553
A8: 3 | C8: 長野市（旧） | D8: 3063 | E8: 378 | F8: 46 | G8: 19 | H8: 11 | I8: 16 | J8: 69.2 | K8: 109 | L8: 36 | M8: 6 | N8: 34 | O8: 3 | P8: - | Q8: 10 | R8: 1 | S8: 4 | T8: 5 | U8: 10 | V8: - | W8: - | X8: - | Y8: - | Z8: - | AA8: 10 | AB8: 8 | AC8: 0 | AD8: 10 | AE8: 10 | AF8: 6 | AG8: 0 | AH8: 10 | AI8: 0 | AJ8: 7 | AK8: 0 | AL8: 0 | AM8: 0 | AN8: 5 | AO8: 1 | AP8: 9 | AQ8: 8
A9: 4 | C9: 芋井村 | D9: 3103 | E9: 2091 | F9: 223 | G9: 82 | H9: 90 | I9: 51 | J9: 91.43 | K9: 144 | L9: 33 | M9: 2 | N9: 31 | O9: 1 | P9: 6 | Q9: 30 | R9: 2 | S9: 17 | T9: 11 | U9: 1 | V9: 2 | W9: 6 | X9: 9 | Y9: 11 | Z9: 1 | AA9: 30 | AB9: 30 | AC9: 30 | AD9: 30 | AE9: 30 | AF9: 30 | AG9: 0 | AH9: 30 | AI9: 24 | AJ9: 30 | AK9: 1 | AL9: 3 | AM9: 2 | AN9: 30 | AO9: 16 | AP9: 30 | AQ9: 30
A10: 5 | C10: 浅川村 | D10: 2461 | E10: 1932 | F10: 81 | G10: 18 | H10: 17 | I10: 46 | J10: 32.36 | K10: 103 | L10: 20 | M10: 1 | N10: 20 | O10: - | P10: - | Q10: 16 | R10: - | S10: 3 | T10: 13 | U10: 5 | V10: 5 | W10: 1 | X10: 3 | Y10: 1 | Z10: 1 | AA10: 15 | AB10: 13 | AC10: 14 | AD10: 14 | AE10: 15 | AF10: 15 | AG10: 1 | AH10: 15 | AI10: 6 | AJ10: 15 | AK10: 0 | AL10: 2 | AM10: 0 | AN10: 15 | AO10: 0 | AP10: 13 | AQ10: 10
A11: 6 | C11: 若槻村 | D11: 1281 | E11: 518 | F11: 144 | G11: 41 | H11: 24 | I11: 79 | J11: 52.49 | K11: 143 | L11: 38 | M11: 5 | N11: 37 | O11: 1 | P11: 2 | Q11: 9 | R11: - | S11: 4 | T11: 5 | U11: 4 | V11: 1 | W11: 2 | X11: - | Y11: - | Z11: 2 | AA11: 8 | AB11: 8 | AC11: 8 | AD11: 7 | AE11: 8 | AF11: 7 | AG11: 1 | AH11: 9 | AI11: 2 | AJ11: 7 | AK11: 1 | AL11: 6 | AM11: 1 | AN11: 7 | AO11: 0 | AP11: 8 | AQ11: 8
A12: 7 | C12: 古里村 | D12: 514 | E12: 7 | F12: 157 | G12: 65 | H12: 14 | I12: 78 | J12: 30.69 | K12: 149 | L12: 30 | M12: - | N12: 30 | O12: - | P12: - | Q12: 7 | R12: 2 | S12: 2 | T12: 3 | U12: 6 | V12: 1 | W12: - | X12: - | Y12: - | Z12: - | AA12: 0 | AB12: 7 | AC12: 7 | AD12: 7 | AE12: 7 | AF12: 7 | AG12: 0 | AH12: 7 | AI12: 0 | AJ12: 1 | AK12: 0 | AL12: 3 | AM12: 0 | AN12: 5 | AO12: 0 | AP12: 7 | AQ12: 7
A13: 8 | C13: 長沼村 | D13: 701 | E13: - | F13: 414 | G13: 95 | H13: 17 | I13: 302 | J13: 28.75 | K13: 259 | L13: 104 | M13: 20 | N13: 98 | O13: 15 | P13: 4 | Q13: 4 | R13: - | S13: 1 | T13: 3 | U13: - | V13: - | W13: 3 | X13: 1 | Y13: - | Z13: - | AA13: 0 | AB13: 4 | AC13: 4 | AD13: 4 | AE13: 4 | AF13: 4 | AG13: 0 | AH13: 4 | AI13: 0 | AJ13: 0 | AK13: 0 | AL13: 0 | AM13: 0 | AN13: 4 | AO13: 0 | AP13: 4 | AQ13: 4
A14: 9 | C14: 柳原村（長野市） | D14: 401 | E14: - | F14: 142 | G14: 50 | H14: 25 | I14: 67 | J14: 7.52 | K14: 81 | L14: 20 | M14: 2 | N14: 20 | O14: - | P14: - | Q14: 4 | R14: 1 | S14: 1 | T14: 2 | U14: 3 | V14: - | W14: 1 | X14: - | Y14: - | Z14: - | AA14: 1 | AB14: 4 | AC14: 4 | AD14: 4 | AE14: 4 | AF14: 4 | AG14: 0 | AH14: 4 | AI14: 0 | AJ14: 0 | AK14: 0 | AL14: 0 | AM14: 0 | AN14: 2 | AO14: 0 | AP14: 4 | AQ14: 4
A15: 10 | C15: 朝陽村 | D15: 614 | E15: - | F15: 156 | G15: 50 | H15: 65 | I15: 41 | J15: 26.39 | K15: 120 | L15: 31 | M15: 5 | N15: 28 | O15: - | P15: 1 | Q15: 5 | R15: 1 | S15: 2 | T15: 2 | U15: 3 | V15: 1 | W15: 1 | X15: - | Y15: - | Z15: - | AA15: 1 | AB15: 5 | AC15: 5 | AD15: 5 | AE15: 5 | AF15: 5 | AG15: 0 | AH15: 5 | AI15: 0 | AJ15: 0 | AK15: 0 | AL15: 0 | AM15: 0 | AN15: 2 | AO15: 0 | AP15: 5 | AQ15: 5
A16: 11 | C16: 大豆島村 | D16: 505 | E16: - | F16: 113 | G16: 49 | H16: 43 | I16: 21 | J16: 21.06 | K16: 100 | L16: 15 | M16: 1 | N16: 14 | O16: - | P16: - | Q16: 6 | R16: 1 | S16: 4 | T16: 1 | U16: 5 | V16: 1 | W16: - | X16: - | Y16: - | Z16: - | AA16: 6 | AB16: 6 | AC16: 3 | AD16: 6 | AE16: 6 | AF16: 6 | AG16: 0 | AH16: 6 | AI16: 0 | AJ16: 0 | AK16: 0 | AL16: 0 | AM16: 0 | AN16: 4 | AO16: 0 | AP16: 6 | AQ16: 6
A17: 12 | C17: 安茂里村 | D17: 1444 | E17: 828 | F17: 80 | G17: 11 | H17: 19 | I17: 50 | J17: 29.1 | K17: 49 | L17: 9 | M17: 1 | N17: 8 | O17: - | P17: - | Q17: 7 | R17: - | S17: 2 | T17: 5 | U17: 7 | V17: - | W17: - | X17: - | Y17: - | Z17: - | AA17: 5 | AB17: 7 | AC17: 2 | AD17: 7 | AE17: 7 | AF17: 7 | AG17: 0 | AH17: 7 | AI17: 0 | AJ17: 5 | AK17: 0 | AL17: 0 | AM17: 0 | AN17: 6 | AO17: 0 | AP17: 6 | AQ17: 6
A18: 13 | C18: 小田切村 | D18: 1850 | E18: 1317 | F18: 81 | G18: 13 | H18: 41 | I18: 27 | J18: 86.29 | K18: 43 | L18: 10 | M18: - | N18: 9 | O18: - | P18: 1 | Q18: 30 | R18: - | S18: 7 | T18: 23 | U18: 3 | V18: 3 | W18: 4 | X18: 10 | Y18: 3 | Z18: 7 | AA18: 9 | AB18: 22 | AC18: 21 | AD18: 22 | AE18: 27 | AF18: 18 | AG18: 3 | AH18: 28 | AI18: 4 | AJ18: 30 | AK18: 0 | AL18: 1 | AM18: 1 | AN18: 25 | AO18: 1 | AP18: 18 | AQ18: 17
A19: 14 | C19: 篠ノ井町 | D19: 663 | E19: 34 | F19: 155 | G19: 15 | H19: 17 | I19: 123 | J19: 32.09 | K19: 152 | L19: 32 | M19: 4 | N19: 31 | O19: - | P19: - | Q19: 6 | R19: - | S19: - | T19: 6 | U19: 3 | V19: - | W19: 2 | X19: 1 | Y19: - | Z19: - | AA19: 6 | AB19: 6 | AC19: 6 | AD19: 6 | AE19: 6 | AF19: 6 | AG19: 0 | AH19: 6 | AI19: 0 | AJ19: 2 | AK19: 1 | AL19: 1 | AM19: 1 | AN19: 3 | AO19: 1 | AP19: 6 | AQ19: 5
A20: 15 | C20: 川柳村 | D20: 393 | E20: 82 | F20: 113 | G20: 59 | H20: 15 | I20: 39 | J20: 31.54 | K20: 92 | L20: 14 | M20: - | N20: 14 | O20: - | P20: - | Q20: 5 | R20: 2 | S20: 3 | T20: - | U20: - | V20: 1 | W20: 4 | X20: - | Y20: - | Z20: - | AA20: 5 | AB20: 5 | AC20: 5 | AD20: 5 | AE20: 5 | AF20: 5 | AG20: 0 | AH20: 5 | AI20: 3 | AJ20: 3 | AK20: 0 | AL20: 0 | AM20: 0 | AN20: 3 | AO20: 2 | AP20: 5 | AQ20: 5
A21: 16 | C21: 塩崎村 | D21: 833 | E21: 190 | F21: 269 | G21: 91 | H21: 57 | I21: 121 | J21: 42.37 | K21: 227 | L21: 39 | M21: 3 | N21: 39 | O21: - | P21: 1 | Q21: 10 | R21: 1 | S21: 3 | T21: 6 | U21: 1 | V21: 3 | W21: 4 | X21: 2 | Y21: - | Z21: - | AA21: 10 | AB21: 10 | AC21: 10 | AD21: 10 | AE21: 10 | AF21: 10 | AG21: 0 | AH21: 10 | AI21: 1 | AJ21: 2 | AK21: 0 | AL21: 2 | AM21: 1 | AN21: 10 | AO21: 4 | AP21: 10 | AQ21: 10
A22: 17 | C22: 東福寺村 | D22: 419 | E22: - | F22: 203 | G22: 45 | H22: 63 | I22: 95 | J22: 15.75 | K22: 155 | L22: 14 | M22: 1 | N22: 14 | O22: - | P22: 1 | Q22: 7 | R22: - | S22: 3 | T22: 4 | U22: 1 | V22: 2 | W22: 2 | X22: 2 | Y22: - | Z22: - | AA22: 0 | AB22: 7 | AC22: 7 | AD22: 7 | AE22: 7 | AF22: 7 | AG22: 0 | AH22: 7 | AI22: 0 | AJ22: 0 | AK22: 0 | AL22: 0 | AM22: 0 | AN22: 7 | AO22: 7 | AP22: 7 | AQ22: 7
A23: 18 | C23: 信里村 | D23: 1292 | E23: 490 | F23: 283 | G23: 103 | H23: 114 | I23: 66 | J23: 101.27 | K23: 133 | L23: 30 | M23: 1 | N23: 27 | O23: - | P23: 6 | Q23: 14 | R23: - | S23: 12 | T23: 2 | U23: - | V23: 1 | W23: 2 | X23: 5 | Y23: 6 | Z23: - | AA23: 13 | AB23: 14 | AC23: 14 | AD23: 14 | AE23: 14 | AF23: 12 | AG23: 0 | AH23: 14 | AI23: 14 | AJ23: 14 | AK23: 6 | AL23: 14 | AM23: 14 | AN23: 12 | AO23: 10 | AP23: 14 | AQ23: 14
A24: 19 | C24: 西寺尾村２－１ | D24: 218 | E24: - | F24: 72 | G24: 22 | H24: 33 | I24: 17 | J24: 4.72 | K24: 60 | L24: 12 | M24: - | N24: 12 | O24: 1 | P24: - | Q24: 7 | R24: - | S24: 2 | T24: 5 | U24: 3 | V24: 2 | W24: - | X24: 2 | Y24: - | Z24: - | AA24: 0 | AB24: 7 | AC24: 7 | AD24: 7 | AE24: 7 | AF24: 7 | AG24: 0 | AH24: 7 | AI24: 0 | AJ24: 0 | AK24: 0 | AL24: 0 | AM24: 0 | AN24: 7 | AO24: 7 | AP24: 7 | AQ24: 7
A25: 20 | C25: 共和村 | D25: 1048 | E25: 474 | F25: 322 | G25: 46 | H25: 21 | I25: 255 | J25: 28.27 | K25: 269 | L25: 34 | M25: 4 | N25: 31 | O25: 1 | P25: 2 | Q25: 13 | R25: - | S25: - | T25: 13 | U25: 2 | V25: 2 | W25: 3 | X25: 6 | Y25: - | Z25: - | AA25: 12 | AB25: 13 | AC25: 3 | AD25: 13 | AE25: 13 | AF25: 12 | AG25: 0 | AH25: 13 | AI25: 5 | AJ25: 7 | AK25: 0 | AL25: 0 | AM25: 0 | AN25: 12 | AO25: 1 | AP25: 13 | AQ25: 13
A26: 21 | C26: 川中島村 | D26: 462 | E26: - | F26: 163 | G26: 79 | H26: 45 | I26: 39 | J26: 21.63 | K26: 117 | L26: 21 | M26: 1 | N26: 21 | O26: - | P26: - | Q26: 13 | R26: - | S26: 10 | T26: 3 | U26: 6 | V26: 5 | W26: 2 | X26: - | Y26: - | Z26: - | AA26: 7 | AB26: 13 | AC26: 9 | AD26: 13 | AE26: 13 | AF26: 13 | AG26: 0 | AH26: 13 | AI26: 0 | AJ26: 0 | AK26: 0 | AL26: 0 | AM26: 0 | AN26: 2 | AO26: 0 | AP26: 13 | AQ26: 13
A27: 22 | C27: 中津村（長野市） | D27: 311 | E27: - | F27: 82 | G27: 37 | H27: 6 | I27: 39 | J27: 12.44 | K27: 74 | L27: 16 | M27: 1 | N27: 16 | O27: - | P27: - | Q27: 6 | R27: 2 | S27: 2 | T27: 2 | U27: 3 | V27: - | W27: 3 | X27: - | Y27: - | Z27: - | AA27: 4 | AB27: 4 | AC27: 4 | AD27: 4 | AE27: 4 | AF27: 4 | AG27: 2 | AH27: 6 | AI27: 0 | AJ27: 0 | AK27: 0 | AL27: 0 | AM27: 0 | AN27: 0 | AO27: 0 | AP27: 6 | AQ27: 6
A28: 23 | C28: 御厨村 | D28: 254 | E28: - | F28: 81 | G28: 38 | H28: 19 | I28: 24 | J28: 12 | K28: 86 | L28: 14 | M28: - | N28: 14 | O28: - | P28: - | Q28: 10 | R28: 1 | S28: 9 | T28: - | U28: 2 | V28: 5 | W28: 2 | X28: 1 | Y28: - | Z28: - | AA28: 6 | AB28: 6 | AC28: 6 | AD28: 6 | AE28: 6 | AF28: 4 | AG28: 4 | AH28: 10 | AI28: 0 | AJ28: 0 | AK28: 0 | AL28: 0 | AM28: 0 | AN28: 0 | AO28: 0 | AP28: 10 | AQ28: 10
A29: 24 | C29: 信田村 | D29: 2208 | E29: 1502 | F29: 301 | G29: 164 | H29: 62 | I29: 75 | J29: 68.86 | K29: 191 | L29: 14 | M29: 2 | N29: 11 | O29: - | P29: 4 | Q29: 17 | R29: 4 | S29: 12 | T29: 1 | U29: - | V29: 1 | W29: 1 | X29: 6 | Y29: 6 | Z29: 3 | AA29: 17 | AB29: 17 | AC29: 17 | AD29: 17 | AE29: 17 | AF29: 17 | AG29: 0 | AH29: 17 | AI29: 17 | AJ29: 17 | AK29: 6 | AL29: 8 | AM29: 7 | AN29: 14 | AO29: 10 | AP29: 16 | AQ29: 16
A30: 25 | C30: 更府村 | D30: 1307 | E30: 746 | F30: 137 | G30: 43 | H30: 85 | I30: 9 | J30: 63.84 | K30: 46 | L30: 15 | M30: - | N30: 15 | O30: - | P30: 1 | Q30: 10 | R30: - | S30: 7 | T30: 3 | U30: - | V30: 1 | W30: 1 | X30: 5 | Y30: 1 | Z30: 2 | AA30: 8 | AB30: 10 | AC30: 9 | AD30: 10 | AE30: 10 | AF30: 10 | AG30: 0 | AH30: 10 | AI30: 10 | AJ30: 10 | AK30: 5 | AL30: 7 | AM30: 6 | AN30: 10 | AO30: 7 | AP30: 10 | AQ30: 10
A31: 26 | C31: 青木島村 | D31: 573 | E31: - | F31: 65 | G31: 22 | H31: 11 | I31: 32 | J31: 13.34 | K31: 46 | L31: 9 | M31: 1 | N31: 9 | O31: - | P31: - | Q31: 9 | R31: - | S31: 5 | T31: 4 | U31: 6 | V31: 3 | W31: - | X31: - | Y31: - | Z31: - | AA31: 1 | AB31: 4 | AC31: 5 | AD31: 5 | AE31: 5 | AF31: 5 | AG31: 4 | AH31: 9 | AI31: 0 | AJ31: 0 | AK31: 0 | AL31: 0 | AM31: 0 | AN31: 4 | AO31: 0 | AP31: 8 | AQ31: 5
A32: 27 | C32: 稲里村 | D32: 413 | E32: - | F32: 67 | G32: 36 | H32: 14 | I32: 17 | J32: 11.56 | K32: 55 | L32: 10 | M32: 1 | N32: 9 | O32: - | P32: 1 | Q32: 17 | R32: 2 | S32: 13 | T32: 2 | U32: 9 | V32: 5 | W32: 3 | X32: - | Y32: - | Z32: - | AA32: 4 | AB32: 16 | AC32: 0 | AD32: 17 | AE32: 17 | AF32: 17 | AG32: 0 | AH32: 17 | AI32: 0 | AJ32: 0 | AK32: 0 | AL32: 0 | AM32: 0 | AN32: 0 | AO32: 0 | AP32: 17 | AQ32: 16
A33: 28 | C33: 小島田村 | D33: 272 | E33: - | F33: 114 | G33: 38 | H33: 48 | I33: 28 | J33: 11.57 | K33: 50 | L33: 15 | M33: 2 | N33: 15 | O33: 3 | P33: - | Q33: 10 | R33: - | S33: 9 | T33: 1 | U33: - | V33: 4 | W33: 5 | X33: 1 | Y33: - | Z33: - | AA33: 10 | AB33: 10 | AC33: 0 | AD33: 8 | AE33: 8 | AF33: 9 | AG33: 0 | AH33: 10 | AI33: 0 | AJ33: 0 | AK33: 0 | AL33: 0 | AM33: 0 | AN33: 3 | AO33: 0 | AP33: 10 | AQ33: 10
A34: 29 | C34: 真島村 | D34: 468 | E34: - | F34: 151 | G34: 40 | H34: 24 | I34: 87 | J34: 19.57 | K34: 176 | L34: 45 | M34: 8 | N34: 40 | O34: - | P34: 3 | Q34: 7 | R34: - | S34: 4 | T34: 3 | U34: - | V34: 1 | W34: 4 | X34: 2 | Y34: - | Z34: - | AA34: 5 | AB34: 7 | AC34: 6 | AD34: 7 | AE34: 6 | AF34: 7 | AG34: 0 | AH34: 7 | AI34: 1 | AJ34: 0 | AK34: 0 | AL34: 0 | AM34: 0 | AN34: 5 | AO34: 0 | AP34: 7 | AQ34: 7
A35: 30 | C35: 松代町 | D35: 150 | E35: - | F35: 3 | G35: 1 | H35: 1 | I35: 1 | J35: 15.84 | K35: 26 | L35: 6 | M35: - | N35: 6 | O35: - | P35: - | Q35: 1 | R35: - | S35: 1 | T35: - | U35: - | V35: 1 | W35: - | X35: - | Y35: - | Z35: - | AA35: 1 | AB35: 1 | AC35: 1 | AD35: 1 | AE35: 1 | AF35: 1 | AG35: 0 | AH35: 1 | AI35: 0 | AJ35: 0 | AK35: 0 | AL35: 0 | AM35: 0 | AN35: 0 | AO35: 0 | AP35: 1 | AQ35: 1
A36: 31 | C36: 東条村 | D36: 836 | E36: 475 | F36: 141 | G36: 25 | H36: 44 | I36: 72 | J36: 44.35 | K36: 85 | L36: 17 | M36: - | N36: 16 | O36: 1 | P36: 2 | Q36: 14 | R36: - | S36: 3 | T36: 11 | U36: 5 | V36: 5 | W36: - | X36: 4 | Y36: - | Z36: - | AA36: 3 | AB36: 13 | AC36: 13 | AD36: 14 | AE36: 14 | AF36: 13 | AG36: 0 | AH36: 14 | AI36: 0 | AJ36: 10 | AK36: 2 | AL36: 1 | AM36: 0 | AN36: 9 | AO36: 6 | AP36: 12 | AQ36: 11
A37: 32 | C37: 清野村 | D37: 583 | E37: 226 | F37: 223 | G37: 22 | H37: 192 | I37: 9 | J37: 29.22 | K37: 117 | L37: 24 | M37: - | N37: 24 | O37: - | P37: - | Q37: 8 | R37: - | S37: 2 | T37: 6 | U37: - | V37: 3 | W37: 2 | X37: 1 | Y37: 2 | Z37: - | AA37: 7 | AB37: 8 | AC37: 7 | AD37: 8 | AE37: 8 | AF37: 7 | AG37: 0 | AH37: 8 | AI37: 0 | AJ37: 6 | AK37: 0 | AL37: 3 | AM37: 2 | AN37: 3 | AO37: 1 | AP37: 7 | AQ37: 7
A38: 33 | C38: 豊栄村 | D38: 2147 | E38: 1833 | F38: 138 | G38: 46 | H38: 57 | I38: 35 | J38: 43.72 | K38: 47 | L38: 13 | M38: - | N38: 13 | O38: - | P38: - | Q38: 6 | R38: 1 | S38: 2 | T38: 3 | U38: 1 | V38: - | W38: 4 | X38: 1 | Y38: - | Z38: - | AA38: 3 | AB38: 6 | AC38: 6 | AD38: 6 | AE38: 6 | AF38: 6 | AG38: 0 | AH38: 6 | AI38: 4 | AJ38: 6 | AK38: 0 | AL38: 0 | AM38: 0 | AN38: 6 | AO38: 5 | AP38: 6 | AQ38: 6
A39: 34 | C39: 寺尾村 | D39: 1064 | E39: 501 | F39: 313 | G39: 18 | H39: 223 | I39: 72 | J39: 50.5 | K39: 112 | L39: 15 | M39: 3 | N39: 14 | O39: - | P39: 3 | Q39: 5 | R39: - | S39: - | T39: 5 | U39: - | V39: 3 | W39: 2 | X39: - | Y39: - | Z39: - | AA39: 2 | AB39: 5 | AC39: 5 | AD39: 5 | AE39: 5 | AF39: 5 | AG39: 0 | AH39: 5 | AI39: 0 | AJ39: 3 | AK39: 2 | AL39: 3 | AM39: 1 | AN39: 5 | AO39: 2 | AP39: 5 | AQ39: 4
A40: 35 | C40: 西寺尾村２－２ | D40: 98 | E40: - | F40: 70 | G40: 3 | H40: 57 | I40: 10 | J40: 8.61 | K40: 41 | L40: 9 | M40: - | N40: 9 | O40: - | P40: - | Q40: 1 | R40: - | S40: - | T40: 1 | U40: - | V40: - | W40: 1 | X40: - | Y40: - | Z40: - | AA40: 0 | AB40: 1 | AC40: 1 | AD40: 1 | AE40: 1 | AF40: 1 | AG40: 0 | AH40: 1 | AI40: 0 | AJ40: 0 | AK40: 0 | AL40: 0 | AM40: 0 | AN40: 1 | AO40: 1 | AP40: 1 | AQ40: 1
A41: 36 | C41: 西条村 | D41: 1250 | E41: 1069 | F41: 73 | G41: 27 | H41: 29 | I41: 17 | J41: 44.53 | K41: 37 | L41: 4 | M41: - | N41: 4 | O41: - | P41: - | Q41: 8 | R41: - | S41: 5 | T41: 3 | U41: - | V41: 4 | W41: 2 | X41: 1 | Y41: 1 | Z41: - | AA41: 8 | AB41: 8 | AC41: 8 | AD41: 8 | AE41: 8 | AF41: 7 | AG41: 0 | AH41: 8 | AI41: 2 | AJ41: 6 | AK41: 1 | AL41: 0 | AM41: 0 | AN41: 6 | AO41: 5 | AP41: 7 | AQ41: 6
A42: 37 | C42: 保科村 | D42: 3384 | E42: 3035 | F42: 192 | G42: 30 | H42: 42 | I42: 120 | J42: 41.35 | K42: 119 | L42: 14 | M42: 2 | N42: 12 | O42: - | P42: 1 | Q42: 13 | R42: - | S42: 2 | T42: 11 | U42: - | V42: 7 | W42: 5 | X42: 1 | Y42: - | Z42: - | AA42: 12 | AB42: 13 | AC42: 6 | AD42: 13 | AE42: 12 | AF42: 13 | AG42: 0 | AH42: 13 | AI42: 0 | AJ42: 12 | AK42: 6 | AL42: 0 | AM42: 0 | AN42: 13 | AO42: 11 | AP42: 12 | AQ42: 12
A43: 38 | C43: 川田村 | D43: 768 | E43: 178 | F43: 271 | G43: 94 | H43: 58 | I43: 119 | J43: 38.7 | K43: 163 | L43: 22 | M43: - | N43: 21 | O43: 1 | P43: 2 | Q43: 7 | R43: - | S43: 6 | T43: 1 | U43: - | V43: 1 | W43: 4 | X43: 2 | Y43: - | Z43: - | AA43: 7 | AB43: 7 | AC43: 2 | AD43: 7 | AE43: 7 | AF43: 2 | AG43: 0 | AH43: 7 | AI43: 1 | AJ43: 3 | AK43: 0 | AL43: 1 | AM43: 0 | AN43: 7 | AO43: 6 | AP43: 7 | AQ43: 7
A44: 39 | C44: 綿内村 | D44: 1486 | E44: 735 | F44: 333 | G44: 68 | H44: 56 | I44: 209 | J44: 40.05 | K44: 234 | L44: 37 | M44: 4 | N44: 36 | O44: 1 | P44: 1 | Q44: 18 | R44: 1 | S44: 5 | T44: 12 | U44: 2 | V44: 6 | W44: 4 | X44: 5 | Y44: 1 | Z44: - | AA44: 17 | AB44: 17 | AC44: 17 | AD44: 17 | AE44: 17 | AF44: 17 | AG44: 1 | AH44: 18 | AI44: 1 | AJ44: 6 | AK44: 6 | AL44: 1 | AM44: 0 | AN44: 13 | AO44: 11 | AP44: 16 | AQ44: 16
A45: 40 | C45: 七二会村 | D45: 1607 | E45: 803 | F45: 151 | G45: 42 | H45: 96 | I45: 13 | J45: 174.61 | K45: 20 | L45: 3 | M45: - | N45: 3 | O45: - | P45: - | Q45: 28 | R45: - | S45: 14 | T45: 14 | U45: 1 | V45: 4 | W45: 9 | X45: 12 | Y45: 1 | Z45: 1 | AA45: 19 | AB45: 22 | AC45: 23 | AD45: 26 | AE45: 28 | AF45: 28 | AG45: 0 | AH45: 28 | AI45: 11 | AJ45: 28 | AK45: 0 | AL45: 0 | AM45: 0 | AN45: 27 | AO45: 2 | AP45: 21 | AQ45: 20
A46: 41 | C46: 神郷村 | D46: 999 | E46: 318 | F46: 312 | G46: 59 | H46: 39 | I46: 214 | J46: 40.34 | K46: 289 | L46: 107 | M46: 9 | N46: 103 | O46: 7 | P46: 2 | Q46: 11 | R46: 1 | S46: - | T46: 10 | U46: 2 | V46: 4 | W46: 2 | X46: 2 | Y46: 1 | Z46: - | AA46: 11 | AB46: 11 | AC46: 5 | AD46: 11 | AE46: 11 | AF46: 11 | AG46: 0 | AH46: 11 | AI46: 0 | AJ46: 8 | AK46: 0 | AL46: 3 | AM46: 3 | AN46: 10 | AO46: 2 | AP46: 10 | AQ46: 10
A47: 42 | C47: 鳥居村 | D47: 986 | E47: 332 | F47: 283 | G47: 67 | H47: 47 | I47: 169 | J47: 38.11 | K47: 220 | L47: 59 | M47: 8 | N47: 56 | O47: 1 | P47: 2 | Q47: 21 | R47: - | S47: 10 | T47: 11 | U47: 1 | V47: 1 | W47: 9 | X47: 5 | Y47: 5 | Z47: - | AA47: 6 | AB47: 21 | AC47: 11 | AD47: 21 | AE47: 21 | AF47: 21 | AG47: 0 | AH47: 21 | AI47: 0 | AJ47: 12 | AK47: 1 | AL47: 1 | AM47: 1 | AN47: 17 | AO47: 0 | AP47: 21 | AQ47: 21
A48: 43 | C48: 戸隠村 | D48: 10375 | E48: 7973 | F48: 388 | G48: 101 | H48: 286 | I48: 1 | J48: 88.5 | K48: 151 | L48: 37 | M48: 2 | N48: 36 | O48: - | P48: 2 | Q48: 26 | R48: 1 | S48: 12 | T48: 13 | U48: - | V48: 3 | W48: 12 | X48: 6 | Y48: 3 | Z48: 2 | AA48: 25 | AB48: 26 | AC48: 25 | AD48: 26 | AE48: 26 | AF48: 26 | AG48: 0 | AH48: 26 | AI48: 26 | AJ48: 25 | AK48: 23 | AL48: 4 | AM48: 4 | AN48: 26 | AO48: 25 | AP48: 26 | AQ48: 25
A49: 44 | C49: 柵村 | D49: 2869 | E49: 2257 | F49: 207 | G49: 67 | H49: 136 | I49: 4 | J49: 54.41 | K49: 78 | L49: 18 | M49: 2 | N49: 16 | O49: - | P49: 1 | Q49: 30 | R49: - | S49: 19 | T49: 11 | U49: 1 | V49: 4 | W49: 8 | X49: 12 | Y49: 5 | Z49: - | AA49: 28 | AB49: 29 | AC49: 28 | AD49: 29 | AE49: 29 | AF49: 29 | AG49: 1 | AH49: 30 | AI49: 25 | AJ49: 29 | AK49: 13 | AL49: 2 | AM49: 2 | AN49: 27 | AO49: 22 | AP49: 30 | AQ49: 30
A50: 45 | C50: 鬼無里村 | D50: 12797 | E50: 11426 | F50: 209 | G50: 88 | H50: 121 | I50: - | J50: 67.27 | K50: 96 | L50: 10 | M50: - | N50: 8 | O50: - | P50: 3 | Q50: 28 | R50: 1 | S50: 19 | T50: 8 | U50: - | V50: 2 | W50: 10 | X50: 10 | Y50: 6 | Z50: - | AA50: 19 | AB50: 25 | AC50: 26 | AD50: 26 | AE50: 24 | AF50: 26 | AG50: 2 | AH50: 28 | AI50: 5 | AJ50: 28 | AK50: 22 | AL50: 1 | AM50: 1 | AN50: 28 | AO50: 12 | AP50: 28 | AQ50: 26
A51: 46 | C51: 大岡村 | D51: 3576 | E51: 2830 | F51: 169 | G51: 83 | H51: 74 | I51: 12 | J51: 49.97 | K51: 86 | L51: 20 | M51: 2 | N51: 19 | O51: - | P51: 4 | Q51: 37 | R51: 1 | S51: 30 | T51: 6 | U51: 2 | V51: 4 | W51: 6 | X51: 13 | Y51: 9 | Z51: 3 | AA51: 23 | AB51: 34 | AC51: 30 | AD51: 33 | AE51: 34 | AF51: 31 | AG51: 2 | AH51: 37 | AI51: 34 | AJ51: 37 | AK51: 1 | AL51: 5 | AM51: 2 | AN51: 36 | AO51: 30 | AP51: 37 | AQ51: 34
A52: 47 | C52: 牧郷村２－２ | D52: 1004 | E52: 767 | F52: 55 | G52: 31 | H52: 24 | I52: - | J52: 15.48 | K52: 46 | L52: 10 | M52: - | N52: 10 | O52: - | P52: 1 | Q52: 8 | R52: - | S52: 7 | T52: 1 | U52: - | V52: - | W52: 1 | X52: 2 | Y52: 2 | Z52: 3 | AA52: 7 | AB52: 7 | AC52: 8 | AD52: 8 | AE52: 5 | AF52: 8 | AG52: 0 | AH52: 8 | AI52: 8 | AJ52: 8 | AK52: 0 | AL52: 3 | AM52: 1 | AN52: 8 | AO52: 7 | AP52: 8 | AQ52: 7
A53: 48 | C53: 水内村（長野市） | D53: 840 | E53: 466 | F53: 113 | G53: 16 | H53: 66 | I53: 31 | J53: 48.81 | K53: 49 | L53: 17 | M53: - | N53: 17 | O53: - | P53: - | Q53: 17 | R53: - | S53: 2 | T53: 15 | U53: 3 | V53: 4 | W53: 7 | X53: 2 | Y53: - | Z53: 1 | AA53: 15 | AB53: 16 | AC53: 13 | AD53: 16 | AE53: 17 | AF53: 15 | AG53: 0 | AH53: 17 | AI53: 5 | AJ53: 17 | AK53: 0 | AL53: 1 | AM53: 1 | AN53: 17 | AO53: 2 | AP53: 14 | AQ53: 8
A54: 49 | C54: 津和村 | D54: 2482 | E54: 1814 | F54: 93 | G54: 0 | H54: 78 | I54: 15 | J54: 115.82 | K54: 30 | L54: 9 | M54: - | N54: 9 | O54: - | P54: - | Q54: 23 | R54: - | S54: - | T54: 23 | U54: - | V54: 5 | W54: 4 | X54: 8 | Y54: 3 | Z54: 3 | AA54: 9 | AB54: 5 | AC54: 10 | AD54: 23 | AE54: 22 | AF54: 14 | AG54: 0 | AH54: 23 | AI54: 0 | AJ54: 23 | AK54: 1 | AL54: 2 | AM54: 0 | AN54: 19 | AO54: 0 | AP54: 11 | AQ54: 0
A55: 50 | C55: 日原村 | D55: 753 | E55: 647 | F55: 46 | G55: 15 | H55: 23 | I55: 8 | J55: 27.18 | K55: 28 | L55: 7 | M55: - | N55: 7 | O55: - | P55: - | Q55: 5 | R55: - | S55: 3 | T55: 2 | U55: - | V55: 1 | W55: 2 | X55: 1 | Y55: 1 | Z55: - | AA55: 5 | AB55: 5 | AC55: 5 | AD55: 5 | AE55: 5 | AF55: 5 | AG55: 0 | AH55: 5 | AI55: 1 | AJ55: 5 | AK55: 0 | AL55: 2 | AM55: 1 | AN55: 5 | AO55: 1 | AP55: 5 | AQ55: 4
A56: 51 | C56: 八坂村２－２ | D56: 309 | E56: 260 | F56: 33 | G56: 7 | H56: 25 | I56: 1 | J56: 10.58 | K56: 7 | L56: 3 | M56: - | N56: 3 | O56: - | P56: - | Q56: 1 | R56: - | S56: - | T56: 1 | U56: - | V56: - | W56: - | X56: 1 | Y56: - | Z56: - | AA56: 1 | AB56: 1 | AC56: 1 | AD56: 1 | AE56: 1 | AF56: 1 | AG56: 0 | AH56: 1 | AI56: 1 | AJ56: 1 | AK56: 0 | AL56: 1 | AM56: 1 | AN56: 1 | AO56: 1 | AP56: 1 | AQ56: 1
A57: 52 | C57: 信級村 | D57: 1416 | E57: 1209 | F57: 44 | G57: 12 | H57: 24 | I57: 8 | J57: 2.79 | K57: 6 | L57: 1 | M57: 1 | N57: 1 | O57: - | P57: - | Q57: 6 | R57: - | S57: 3 | T57: 3 | U57: - | V57: - | W57: 1 | X57: 4 | Y57: - | Z57: 1 | AA57: 0 | AB57: 6 | AC57: 2 | AD57: 5 | AE57: 6 | AF57: 1 | AG57: 0 | AH57: 6 | AI57: 3 | AJ57: 6 | AK57: 0 | AL57: 2 | AM57: 1 | AN57: 6 | AO57: 5 | AP57: 6 | AQ57: 6
A58: 53 | C58: 牧郷村２－１ | D58: 1282 | E58: 775 | F58: 171 | G58: 65 | H58: 77 | I58: 29 | J58: 45.23 | K58: 95 | L58: 31 | M58: 1 | N58: 31 | O58: - | P58: - | Q58: 14 | R58: - | S58: 11 | T58: 3 | U58: - | V58: 1 | W58: 3 | X58: 6 | Y58: 3 | Z58: 1 | AA58: 6 | AB58: 14 | AC58: 8 | AD58: 11 | AE58: 14 | AF58: 9 | AG58: 0 | AH58: 14 | AI58: 9 | AJ58: 14 | AK58: 0 | AL58: 3 | AM58: 3 | AN58: 14 | AO58: 6 | AP58: 14 | AQ58: 14
A59: 54 | C59: 栄村（長野市） | D59: 1520 | E59: 795 | F59: 151 | G59: 23 | H59: 108 | I59: 20 | J59: 78.23 | K59: 66 | L59: 28 | M59: 4 | N59: 26 | O59: - | P59: 1 | Q59: 14 | R59: - | S59: 4 | T59: 10 | U59: - | V59: 3 | W59: 5 | X59: 4 | Y59: 2 | Z59: - | AA59: 11 | AB59: 14 | AC59: 14 | AD59: 14 | AE59: 14 | AF59: 14 | AG59: 0 | AH59: 14 | AI59: 4 | AJ59: 14 | AK59: 0 | AL59: 2 | AM59: 2 | AN59: 14 | AO59: 6 | AP59: 11 | AQ59: 10
A60: 55 | C60: 日里村 | D60: 1829 | E60: 1188 | F60: 166 | G60: 25 | H60: 131 | I60: 10 | J60: 90.89 | K60: 14 | L60: 4 | M60: 1 | N60: 4 | O60: - | P60: 1 | Q60: 8 | R60: - | S60: - | T60: 8 | U60: - | V60: - | W60: 2 | X60: 4 | Y60: 2 | Z60: - | AA60: 8 | AB60: 8 | AC60: 8 | AD60: 8 | AE60: 8 | AF60: 8 | AG60: 0 | AH60: 8 | AI60: 8 | AJ60: 8 | AK60: 6 | AL60: 1 | AM60: 1 | AN60: 8 | AO60: 1 | AP60: 7 | AQ60: 7
A61: 56 | B61: 松本市 | D61: 97847 | E61: 74687 | F61: 7512 | G61: 4938 | H61: 1612 | I61: 962 | J61: 734.87 | K61: 3930 | L61: 827 | M61: 86 | N61: 790 | O61: 18 | P61: 32 | Q61: 246 | R61: 105 | S61: 87 | T61: 54 | U61: 64 | V61: 78 | W61: 49 | X61: 48 | Y61: 5 | Z61: 2 | AA61: 216 | AB61: 214 | AC61: 196 | AD61: 240 | AE61: 239 | AF61: 237 | AG61: 6 | AH61: 244 | AI61: 91 | AJ61: 134 | AK61: 91 | AL61: 61 | AM61: 42 | AN61: 232 | AO61: 202 | AP61: 234 | AQ61: 197
A62: 57 | C62: 松本市（旧） | D62: 2097 | E62: 48 | F62: 76 | G62: 41 | H62: 22 | I62: 13 | J62: 16.2 | K62: 109 | L62: 30 | M62: 5 | N62: 27 | O62: - | P62: 2 | Q62: 4 | R62: 2 | S62: 1 | T62: 1 | U62: 4 | V62: - | W62: - | X62: - | Y62: - | Z62: - | AA62: 4 | AB62: 3 | AC62: 3 | AD62: 4 | AE62: 4 | AF62: 4 | AG62: 0 | AH62: 4 | AI62: 1 | AJ62: 3 | AK62: 1 | AL62: 3 | AM62: 2 | AN62: 4 | AO62: 4 | AP62: 4 | AQ62: 3
A63: 58 | C63: 島内村 | D63: 1538 | E63: 310 | F63: 501 | G63: 473 | H63: 28 | I63: - | J63: 23.02 | K63: 248 | L63: 29 | M63: 2 | N63: 27 | O63: 1 | P63: 2 | Q63: 14 | R63: 11 | S63: 1 | T63: 2 | U63: 4 | V63: 5 | W63: 4 | X63: 1 | Y63: - | Z63: - | AA63: 11 | AB63: 12 | AC63: 11 | AD63: 14 | AE63: 14 | AF63: 14 | AG63: 0 | AH63: 14 | AI63: 11 | AJ63: 4 | AK63: 2 | AL63: 1 | AM63: 1 | AN63: 14 | AO63: 12 | AP63: 14 | AQ63: 11
A64: 59 | C64: 中山村 | D64: 2140 | E64: 1399 | F64: 296 | G64: 166 | H64: 118 | I64: 12 | J64: 60.77 | K64: 117 | L64: 32 | M64: - | N64: 32 | O64: 1 | P64: 1 | Q64: 6 | R64: 1 | S64: 4 | T64: 1 | U64: 1 | V64: 2 | W64: 1 | X64: 2 | Y64: - | Z64: - | AA64: 6 | AB64: 6 | AC64: 6 | AD64: 6 | AE64: 6 | AF64: 6 | AG64: 0 | AH64: 6 | AI64: 5 | AJ64: 6 | AK64: 4 | AL64: 2 | AM64: 2 | AN64: 6 | AO64: 6 | AP64: 6 | AQ64: 6
A65: 60 | C65: 島立村 | D65: 630 | E65: - | F65: 298 | G65: 286 | H65: 10 | I65: 2 | J65: 3.59 | K65: 184 | L65: 24 | M65: 5 | N65: 22 | O65: - | P65: - | Q65: 10 | R65: 10 | S65: - | T65: - | U65: 4 | V65: 5 | W65: - | X65: 1 | Y65: - | Z65: - | AA65: 9 | AB65: 10 | AC65: 10 | AD65: 10 | AE65: 10 | AF65: 10 | AG65: 0 | AH65: 10 | AI65: 9 | AJ65: 0 | AK65: 0 | AL65: 0 | AM65: 0 | AN65: 10 | AO65: 8 | AP65: 10 | AQ65: 8
A66: 61 | C66: 和田村（松本市） | D66: 783 | E66: - | F66: 505 | G66: 427 | H66: 78 | I66: - | J66: 6.22 | K66: 230 | L66: 24 | M66: 3 | N66: 22 | O66: - | P66: 2 | Q66: 9 | R66: 8 | S66: 1 | T66: - | U66: - | V66: 4 | W66: 5 | X66: - | Y66: - | Z66: - | AA66: 8 | AB66: 9 | AC66: 6 | AD66: 9 | AE66: 9 | AF66: 9 | AG66: 0 | AH66: 9 | AI66: 0 | AJ66: 0 | AK66: 0 | AL66: 0 | AM66: 0 | AN66: 9 | AO66: 9 | AP66: 9 | AQ66: 9
A67: 62 | C67: 笹賀村 | D67: 883 | E67: 6 | F67: 335 | G67: 288 | H67: 20 | I67: 27 | J67: 12.35 | K67: 211 | L67: 24 | M67: - | N67: 22 | O67: - | P67: 3 | Q67: 10 | R67: 9 | S67: 1 | T67: - | U67: 5 | V67: 3 | W67: 1 | X67: 1 | Y67: - | Z67: - | AA67: 10 | AB67: 8 | AC67: 8 | AD67: 10 | AE67: 10 | AF67: 10 | AG67: 0 | AH67: 10 | AI67: 0 | AJ67: 0 | AK67: 0 | AL67: 0 | AM67: 0 | AN67: 10 | AO67: 10 | AP67: 10 | AQ67: 8
A68: 63 | C68: 芳川村 | D68: 572 | E68: - | F68: 136 | G68: 122 | H68: 14 | I68: - | J68: 7.18 | K68: 77 | L68: 7 | M68: - | N68: 7 | O68: - | P68: - | Q68: 4 | R68: 4 | S68: - | T68: - | U68: 4 | V68: - | W68: - | X68: - | Y68: - | Z68: - | AA68: 4 | AB68: 4 | AC68: 4 | AD68: 4 | AE68: 4 | AF68: 4 | AG68: 0 | AH68: 4 | AI68: 3 | AJ68: 0 | AK68: 0 | AL68: 0 | AM68: 0 | AN68: 4 | AO68: 4 | AP68: 4 | AQ68: 4
A69: 64 | C69: 寿村 | D69: 949 | E69: 165 | F69: 362 | G69: 254 | H69: 61 | I69: 47 | J69: 29.81 | K69: 181 | L69: 37 | M69: 2 | N69: 37 | O69: 1 | P69: - | Q69: 8 | R69: 6 | S69: 2 | T69: - | U69: 7 | V69: - | W69: 1 | X69: - | Y69: - | Z69: - | AA69: 8 | AB69: 8 | AC69: 8 | AD69: 8 | AE69: 8 | AF69: 8 | AG69: 0 | AH69: 8 | AI69: 4 | AJ69: 3 | AK69: 3 | AL69: 5 | AM69: 4 | AN69: 8 | AO69: 8 | AP69: 8 | AQ69: 8
A70: 65 | C70: 岡田村 | D70: 1058 | E70: 613 | F70: 199 | G70: 123 | H70: 48 | I70: 28 | J70: 30.7 | K70: 140 | L70: 33 | M70: 1 | N70: 32 | O70: 1 | P70: 1 | Q70: 7 | R70: 2 | S70: 4 | T70: 1 | U70: 2 | V70: 2 | W70: 2 | X70: 1 | Y70: - | Z70: - | AA70: 7 | AB70: 7 | AC70: 5 | AD70: 7 | AE70: 7 | AF70: 7 | AG70: 0 | AH70: 7 | AI70: 0 | AJ70: 5 | AK70: 3 | AL70: 6 | AM70: 4 | AN70: 7 | AO70: 7 | AP70: 7 | AQ70: 7
A71: 66 | C71: 入山辺村 | D71: 7748 | E71: 7241 | F71: 246 | G71: 76 | H71: 92 | I71: 78 | J71: 63.06 | K71: 132 | L71: 52 | M71: 6 | N71: 50 | O71: - | P71: 2 | Q71: 22 | R71: - | S71: 11 | T71: 11 | U71: 2 | V71: 8 | W71: 4 | X71: 7 | Y71: - | Z71: 1 | AA71: 20 | AB71: 22 | AC71: 12 | AD71: 22 | AE71: 22 | AF71: 22 | AG71: 0 | AH71: 22 | AI71: 1 | AJ71: 22 | AK71: 22 | AL71: 3 | AM71: 0 | AN71: 22 | AO71: 22 | AP71: 22 | AQ71: 22
A72: 67 | C72: 里山辺村 | D72: 1145 | E72: 610 | F72: 204 | G72: 110 | H72: 23 | I72: 71 | J72: 18.68 | K72: 167 | L72: 37 | M72: 3 | N72: 35 | O72: 3 | P72: 3 | Q72: 12 | R72: 1 | S72: 8 | T72: 3 | U72: 5 | V72: 5 | W72: 2 | X72: - | Y72: - | Z72: - | AA72: 12 | AB72: 10 | AC72: 7 | AD72: 12 | AE72: 12 | AF72: 12 | AG72: 0 | AH72: 12 | AI72: 0 | AJ72: 5 | AK72: 2 | AL72: 5 | AM72: 2 | AN72: 12 | AO72: 8 | AP72: 12 | AQ72: 6
A73: 68 | C73: 今井村 | D73: 1157 | E73: 26 | F73: 616 | G73: 273 | H73: 157 | I73: 186 | J73: 47.21 | K73: 306 | L73: 142 | M73: 29 | N73: 135 | O73: 2 | P73: 2 | Q73: 14 | R73: 2 | S73: 8 | T73: 4 | U73: 1 | V73: 3 | W73: 6 | X73: 4 | Y73: - | Z73: - | AA73: 14 | AB73: 10 | AC73: 1 | AD73: 14 | AE73: 13 | AF73: 13 | AG73: 0 | AH73: 14 | AI73: 0 | AJ73: 2 | AK73: 0 | AL73: 0 | AM73: 0 | AN73: 13 | AO73: 13 | AP73: 14 | AQ73: 10
A74: 69 | C74: 新村 | D74: 462 | E74: - | F74: 275 | G74: 264 | H74: 9 | I74: 2 | J74: 2.19 | K74: 198 | L74: 12 | M74: - | N74: 12 | O74: - | P74: 1 | Q74: 5 | R74: 5 | S74: - | T74: - | U74: - | V74: 4 | W74: 1 | X74: - | Y74: - | Z74: - | AA74: 5 | AB74: 5 | AC74: 4 | AD74: 5 | AE74: 5 | AF74: 5 | AG74: 0 | AH74: 5 | AI74: 5 | AJ74: 0 | AK74: 0 | AL74: 0 | AM74: 0 | AN74: 5 | AO74: 5 | AP74: 5 | AQ74: 5
A75: 70 | C75: 神林村 | D75: 559 | E75: - | F75: 308 | G75: 287 | H75: 12 | I75: 9 | J75: 3.96 | K75: 206 | L75: 19 | M75: 3 | N75: 17 | O75: - | P75: 1 | Q75: 7 | R75: 7 | S75: - | T75: - | U75: 1 | V75: 5 | W75: 1 | X75: - | Y75: - | Z75: - | AA75: 7 | AB75: 7 | AC75: 7 | AD75: 7 | AE75: 7 | AF75: 7 | AG75: 0 | AH75: 7 | AI75: 2 | AJ75: 0 | AK75: 0 | AL75: 0 | AM75: 0 | AN75: 7 | AO75: 7 | AP75: 7 | AQ75: 7
A76: 71 | C76: 片丘村２－２ | D76: 1155 | E76: 672 | F76: 204 | G76: 98 | H76: 101 | I76: 5 | J76: 20.38 | K76: 61 | L76: 9 | M76: 1 | N76: 9 | O76: 1 | P76: - | Q76: 2 | R76: - | S76: 1 | T76: 1 | U76: - | V76: 2 | W76: - | X76: - | Y76: - | Z76: - | AA76: 1 | AB76: 1 | AC76: 2 | AD76: 2 | AE76: 2 | AF76: 2 | AG76: 0 | AH76: 2 | AI76: 0 | AJ76: 2 | AK76: 1 | AL76: 2 | AM76: 1 | AN76: 2 | AO76: 2 | AP76: 2 | AQ76: 1
A77: 72 | C77: 本郷村（松本市） | D77: 3698 | E77: 3000 | F77: 187 | G77: 123 | H77: 56 | I77: 8 | J77: 50.19 | K77: 125 | L77: 38 | M77: 3 | N77: 35 | O77: - | P77: 1 | Q77: 8 | R77: 3 | S77: 5 | T77: - | U77: 4 | V77: - | W77: 2 | X77: 1 | Y77: - | Z77: 1 | AA77: 7 | AB77: 7 | AC77: 4 | AD77: 7 | AE77: 7 | AF77: 7 | AG77: 1 | AH77: 8 | AI77: 1 | AJ77: 8 | AK77: 3 | AL77: 7 | AM77: 3 | AN77: 8 | AO77: 6 | AP77: 8 | AQ77: 6
A78: 73 | C78: 洗馬村２－２ | D78: 39 | E78: - | F78: 7 | G78: - | H78: 1 | I78: 6 | J78: x | K78: 2 | L78: x | M78: x | N78: x | O78: x | P78: x | Q78: 1 | R78: - | S78: - | T78: 1 | U78: 1 | V78: - | W78: - | X78: - | Y78: - | Z78: - | AA78: 0 | AB78: 0 | AC78: 0 | AD78: 1 | AE78: 1 | AF78: 1 | AG78: 0 | AH78: 1 | AI78: 0 | AJ78: 0 | AK78: 0 | AL78: 0 | AM78: 0 | AN78: 1 | AO78: 0 | AP78: 1 | AQ78: 0
A79: 74 | C79: 錦部村 | D79: 3546 | E79: 3264 | F79: 184 | G79: 121 | H79: 56 | I79: 7 | J79: 57.97 | K79: 56 | L79: 13 | M79: - | N79: 13 | O79: - | P79: - | Q79: 6 | R79: 2 | S79: 4 | T79: - | U79: - | V79: 1 | W79: 4 | X79: 1 | Y79: - | Z79: - | AA79: 6 | AB79: 6 | AC79: 6 | AD79: 6 | AE79: 6 | AF79: 6 | AG79: 0 | AH79: 6 | AI79: 6 | AJ79: 6 | AK79: 6 | AL79: 5 | AM79: 3 | AN79: 6 | AO79: 6 | AP79: 6 | AQ79: 6
A80: 75 | C80: 会田村 | D80: 1262 | E80: 926 | F80: 146 | G80: 83 | H80: 58 | I80: 5 | J80: 66.27 | K80: 35 | L80: 8 | M80: 2 | N80: 7 | O80: - | P80: 1 | Q80: 7 | R80: 2 | S80: 5 | T80: - | U80: - | V80: 3 | W80: 1 | X80: 3 | Y80: - | Z80: - | AA80: 7 | AB80: 7 | AC80: 7 | AD80: 7 | AE80: 7 | AF80: 7 | AG80: 0 | AH80: 7 | AI80: 7 | AJ80: 7 | AK80: 5 | AL80: 3 | AM80: 3 | AN80: 7 | AO80: 7 | AP80: 7 | AQ80: 7
A81: 76 | C81: 五常村 | D81: 1177 | E81: 921 | F81: 56 | G81: 33 | H81: 16 | I81: 7 | J81: 32.15 | K81: 18 | L81: 6 | M81: - | N81: 6 | O81: - | P81: - | Q81: 7 | R81: 1 | S81: 3 | T81: 3 | U81: 3 | V81: 1 | W81: 1 | X81: 1 | Y81: 1 | Z81: - | AA81: 4 | AB81: 4 | AC81: 4 | AD81: 4 | AE81: 4 | AF81: 4 | AG81: 3 | AH81: 7 | AI81: 4 | AJ81: 7 | AK81: 2 | AL81: 2 | AM81: 2 | AN81: 6 | AO81: 4 | AP81: 5 | AQ81: 4
A82: 77 | C82: 中川村 | D82: 3030 | E82: 2436 | F82: 181 | G82: 89 | H82: 84 | I82: 8 | J82: 74.55 | K82: 27 | L82: 3 | M82: - | N82: 3 | O82: - | P82: - | Q82: 10 | R82: 1 | S82: 9 | T82: - | U82: - | V82: - | W82: 2 | X82: 6 | Y82: 2 | Z82: - | AA82: 10 | AB82: 10 | AC82: 10 | AD82: 10 | AE82: 10 | AF82: 10 | AG82: 0 | AH82: 10 | AI82: 10 | AJ82: 10 | AK82: 10 | AL82: 5 | AM82: 5 | AN82: 10 | AO82: 10 | AP82: 10 | AQ82: 10
A83: 78 | C83: 安曇村 | D83: 40273 | E83: 35346 | F83: 29 | G83: - | H83: 29 | I83: - | J83: x | K83: 2 | L83: x | M83: x | N83: x | O83: x | P83: x | Q83: 8 | R83: - | S83: - | T83: 8 | U83: 6 | V83: 2 | W83: - | X83: - | Y83: - | Z83: - | AA83: 3 | AB83: 3 | AC83: 8 | AD83: 8 | AE83: 8 | AF83: 8 | AG83: 0 | AH83: 7 | AI83: 2 | AJ83: 8 | AK83: 6 | AL83: 3 | AM83: 2 | AN83: 8 | AO83: 6 | AP83: 2 | AQ83: 1
A84: 79 | C84: 奈川村 | D84: 11763 | E84: 11114 | F84: 108 | G84: 41 | H84: 67 | I84: - | J84: 13.03 | K84: 67 | L84: 7 | M84: 1 | N84: 6 | O84: - | P84: - | Q84: 14 | R84: - | S84: 6 | T84: 8 | U84: 1 | V84: - | W84: 3 | X84: 8 | Y84: 2 | Z84: - | AA84: 8 | AB84: 10 | AC84: 13 | AD84: 13 | AE84: 13 | AF84: 11 | AG84: 1 | AH84: 14 | AI84: 9 | AJ84: 14 | AK84: 13 | AL84: 4 | AM84: 4 | AN84: 14 | AO84: 10 | AP84: 11 | AQ84: 8
A85: 80 | C85: 梓村 | D85: 3612 | E85: 2358 | F85: 786 | G85: 335 | H85: 139 | I85: 312 | J85: 33.11 | K85: 400 | L85: 101 | M85: 16 | N85: 98 | O85: 2 | P85: 7 | Q85: 16 | R85: 6 | S85: 3 | T85: 7 | U85: - | V85: 5 | W85: 3 | X85: 8 | Y85: - | Z85: - | AA85: 16 | AB85: 14 | AC85: 16 | AD85: 16 | AE85: 16 | AF85: 16 | AG85: 0 | AH85: 16 | AI85: 6 | AJ85: 14 | AK85: 6 | AL85: 3 | AM85: 2 | AN85: 16 | AO85: 15 | AP85: 16 | AQ85: 11
A86: 81 | C86: 倭村（松本市） | D86: 636 | E86: - | F86: 329 | G86: 313 | H86: 15 | I86: 1 | J86: 5.63 | K86: 195 | L86: 32 | M86: 1 | N86: 31 | O86: - | P86: - | Q86: 12 | R86: 12 | S86: - | T86: - | U86: 2 | V86: 7 | W86: 2 | X86: 1 | Y86: - | Z86: - | AA86: 12 | AB86: 12 | AC86: 12 | AD86: 12 | AE86: 12 | AF86: 12 | AG86: 0 | AH86: 12 | AI86: 4 | AJ86: 0 | AK86: 0 | AL86: 0 | AM86: 0 | AN86: 12 | AO86: 12 | AP86: 12 | AQ86: 12
A87: 82 | C87: 波田町 | D87: 5935 | E87: 4232 | F87: 938 | G87: 512 | H87: 298 | I87: 128 | J87: 29.12 | K87: 436 | L87: 108 | M87: 3 | N87: 105 | O87: 6 | P87: 3 | Q87: 23 | R87: 10 | S87: 10 | T87: 3 | U87: 7 | V87: 11 | W87: 3 | X87: 2 | Y87: - | Z87: - | AA87: 17 | AB87: 19 | AC87: 22 | AD87: 22 | AE87: 22 | AF87: 22 | AG87: 1 | AH87: 22 | AI87: 1 | AJ87: 8 | AK87: 2 | AL87: 2 | AM87: 2 | AN87: 11 | AO87: 1 | AP87: 22 | AQ87: 17
A88: 83 | B88: 上田市 | D88: 55204 | E88: 39718 | F88: 5466 | G88: 2910 | H88: 1919 | I88: 637 | J88: 962.49 | K88: 2339 | L88: 632 | M88: 37 | N88: 614 | O88: 8 | P88: 21 | Q88: 238 | R88: 74 | S88: 106 | T88: 58 | U88: 83 | V88: 79 | W88: 50 | X88: 24 | Y88: 2 | Z88: - | AA88: 162 | AB88: 213 | AC88: 207 | AD88: 236 | AE88: 236 | AF88: 230 | AG88: 2 | AH88: 217 | AI88: 89 | AJ88: 176 | AK88: 87 | AL88: 52 | AM88: 49 | AN88: 230 | AO88: 177 | AP88: 217 | AQ88: 200
A89: 84 | C89: 上田市（旧） | D89: 2006 | E89: 657 | F89: 127 | G89: 63 | H89: 49 | I89: 15 | J89: 56.66 | K89: 58 | L89: 26 | M89: 1 | N89: 24 | O89: - | P89: 2 | Q89: 35 | R89: 1 | S89: 10 | T89: 24 | U89: 32 | V89: 2 | W89: 1 | X89: - | Y89: - | Z89: - | AA89: 9 | AB89: 15 | AC89: 25 | AD89: 35 | AE89: 35 | AF89: 33 | AG89: 0 | AH89: 16 | AI89: 1 | AJ89: 11 | AK89: 3 | AL89: 2 | AM89: 2 | AN89: 34 | AO89: 31 | AP89: 16 | AQ89: 11
A90: 85 | C90: 塩尻村 | D90: 756 | E90: 363 | F90: 84 | G90: 65 | H90: 14 | I90: 5 | J90: 10.43 | K90: 35 | L90: 4 | M90: - | N90: 4 | O90: - | P90: - | Q90: 3 | R90: 3 | S90: - | T90: - | U90: - | V90: 3 | W90: - | X90: - | Y90: - | Z90: - | AA90: 3 | AB90: 3 | AC90: 3 | AD90: 3 | AE90: 3 | AF90: 3 | AG90: 0 | AH90: 3 | AI90: 0 | AJ90: 3 | AK90: 2 | AL90: 0 | AM90: 0 | AN90: 3 | AO90: 3 | AP90: 3 | AQ90: 2
A91: 86 | C91: 川辺村（上田市） | D91: 690 | E91: 174 | F91: 141 | G91: 97 | H91: 29 | I91: 15 | J91: 15.49 | K91: 81 | L91: 16 | M91: - | N91: 16 | O91: - | P91: - | Q91: 6 | R91: 3 | S91: 2 | T91: 1 | U91: 6 | V91: - | W91: - | X91: - | Y91: - | Z91: - | AA91: 6 | AB91: 6 | AC91: 6 | AD91: 6 | AE91: 6 | AF91: 6 | AG91: 0 | AH91: 6 | AI91: 0 | AJ91: 5 | AK91: 3 | AL91: 2 | AM91: 2 | AN91: 6 | AO91: 6 | AP91: 6 | AQ91: 6
A92: 87 | C92: 泉田村２－２ | D92: 518 | E92: 332 | F92: 85 | G92: 59 | H92: 17 | I92: 9 | J92: 10.21 | K92: 76 | L92: 24 | M92: - | N92: 24 | O92: - | P92: - | Q92: 8 | R92: 4 | S92: 3 | T92: 1 | U92: 1 | V92: 4 | W92: 1 | X92: 2 | Y92: - | Z92: - | AA92: 8 | AB92: 8 | AC92: 8 | AD92: 8 | AE92: 8 | AF92: 8 | AG92: 0 | AH92: 8 | AI92: 1 | AJ92: 5 | AK92: 3 | AL92: 3 | AM92: 3 | AN92: 8 | AO92: 8 | AP92: 8 | AQ92: 8
A93: 88 | C93: 神川村 | D93: 495 | E93: 6 | F93: 111 | G93: 88 | H93: 20 | I93: 3 | J93: 8.18 | K93: 55 | L93: 8 | M93: - | N93: 8 | O93: - | P93: - | Q93: 10 | R93: 6 | S93: 2 | T93: 2 | U93: 10 | V93: - | W93: - | X93: - | Y93: - | Z93: - | AA93: 9 | AB93: 9 | AC93: 8 | AD93: 10 | AE93: 10 | AF93: 10 | AG93: 0 | AH93: 10 | AI93: 2 | AJ93: 5 | AK93: 2 | AL93: 0 | AM93: 0 | AN93: 10 | AO93: 10 | AP93: 10 | AQ93: 9
A94: 89 | C94: 神科村 | D94: 1874 | E94: 828 | F94: 339 | G94: 171 | H94: 38 | I94: 130 | J94: 54.71 | K94: 253 | L94: 113 | M94: 2 | N94: 113 | O94: - | P94: - | Q94: 15 | R94: 3 | S94: 6 | T94: 6 | U94: 8 | V94: 5 | W94: 1 | X94: 1 | Y94: - | Z94: - | AA94: 13 | AB94: 15 | AC94: 12 | AD94: 15 | AE94: 15 | AF94: 15 | AG94: 0 | AH94: 15 | AI94: 4 | AJ94: 11 | AK94: 2 | AL94: 0 | AM94: 0 | AN94: 12 | AO94: 9 | AP94: 15 | AQ94: 14
A95: 90 | C95: 豊里村 | D95: 507 | E95: 153 | F95: 218 | G95: 127 | H95: 34 | I95: 57 | J95: 17.94 | K95: 128 | L95: 50 | M95: - | N95: 50 | O95: - | P95: - | Q95: 9 | R95: 4 | S95: 2 | T95: 3 | U95: 1 | V95: 5 | W95: 2 | X95: 1 | Y95: - | Z95: - | AA95: 9 | AB95: 9 | AC95: 9 | AD95: 9 | AE95: 9 | AF95: 9 | AG95: 0 | AH95: 9 | AI95: 4 | AJ95: 6 | AK95: 2 | AL95: 2 | AM95: 2 | AN95: 9 | AO95: 8 | AP95: 9 | AQ95: 9
A96: 91 | C96: 殿城村 | D96: 1123 | E96: 659 | F96: 159 | G96: 80 | H96: 57 | I96: 22 | J96: 36.8 | K96: 42 | L96: 12 | M96: 2 | N96: 12 | O96: 1 | P96: 1 | Q96: 5 | R96: 2 | S96: 3 | T96: - | U96: - | V96: 3 | W96: 2 | X96: - | Y96: - | Z96: - | AA96: 5 | AB96: 5 | AC96: 5 | AD96: 5 | AE96: 5 | AF96: 5 | AG96: 0 | AH96: 5 | AI96: 3 | AJ96: 4 | AK96: 2 | AL96: 2 | AM96: 2 | AN96: 5 | AO96: 3 | AP96: 5 | AQ96: 5
A97: 92 | C97: 中塩田村 | D97: 968 | E97: 183 | F97: 353 | G97: 270 | H97: 60 | I97: 23 | J97: 22.23 | K97: 169 | L97: 35 | M97: 4 | N97: 34 | O97: - | P97: 2 | Q97: 9 | R97: 8 | S97: 1 | T97: - | U97: 5 | V97: 3 | W97: 1 | X97: - | Y97: - | Z97: - | AA97: 9 | AB97: 9 | AC97: 9 | AD97: 9 | AE97: 9 | AF97: 9 | AG97: 0 | AH97: 9 | AI97: 8 | AJ97: 3 | AK97: 3 | AL97: 7 | AM97: 7 | AN97: 9 | AO97: 9 | AP97: 9 | AQ97: 9
A98: 93 | C98: 別所村 | D98: 672 | E98: 512 | F98: 39 | G98: 20 | H98: 14 | I98: 5 | J98: 14.01 | K98: 3 | L98: 2 | M98: - | N98: 2 | O98: - | P98: - | Q98: 4 | R98: 1 | S98: 2 | T98: 1 | U98: 3 | V98: 1 | W98: - | X98: - | Y98: - | Z98: - | AA98: 1 | AB98: 4 | AC98: 4 | AD98: 4 | AE98: 4 | AF98: 4 | AG98: 0 | AH98: 4 | AI98: 0 | AJ98: 4 | AK98: 0 | AL98: 2 | AM98: 1 | AN98: 4 | AO98: 2 | AP98: 4 | AQ98: 4
A99: 94 | C99: 西塩田村 | D99: 2462 | E99: 1917 | F99: 300 | G99: 166 | H99: 90 | I99: 44 | J99: 49.85 | K99: 148 | L99: 24 | M99: 1 | N99: 23 | O99: - | P99: - | Q99: 7 | R99: 2 | S99: 2 | T99: 3 | U99: - | V99: 4 | W99: 3 | X99: - | Y99: - | Z99: - | AA99: 6 | AB99: 6 | AC99: 6 | AD99: 7 | AE99: 7 | AF99: 7 | AG99: 0 | AH99: 7 | AI99: 3 | AJ99: 5 | AK99: 5 | AL99: 7 | AM99: 6 | AN99: 7 | AO99: 6 | AP99: 7 | AQ99: 6
A100: 95 | C100: 東塩田村 | D100: 2305 | E100: 1326 | F100: 550 | G100: 297 | H100: 172 | I100: 81 | J100: 87.7 | K100: 230 | L100: 73 | M100: 6 | N100: 70 | O100: 2 | P100: 1 | Q100: 8 | R100: 1 | S100: 4 | T100: 3 | U100: - | V100: 5 | W100: 3 | X100: - | Y100: - | Z100: - | AA100: 8 | AB100: 8 | AC100: 8 | AD100: 8 | AE100: 8 | AF100: 8 | AG100: 0 | AH100: 8 | AI100: 8 | AJ100: 8 | AK100: 8 | AL100: 7 | AM100: 7 | AN100: 8 | AO100: 8 | AP100: 8 | AQ100: 8
A101: 96 | C101: 泉田村２－１ | D101: 446 | E101: 199 | F101: 120 | G101: 93 | H101: 20 | I101: 7 | J101: 5.86 | K101: 63 | L101: 6 | M101: - | N101: 6 | O101: - | P101: - | Q101: 4 | R101: 2 | S101: 2 | T101: - | U101: - | V101: 3 | W101: 1 | X101: - | Y101: - | Z101: - | AA101: 4 | AB101: 4 | AC101: 4 | AD101: 4 | AE101: 4 | AF101: 4 | AG101: 0 | AH101: 4 | AI101: 2 | AJ101: 3 | AK101: 2 | AL101: 1 | AM101: 1 | AN101: 2 | AO101: 2 | AP101: 4 | AQ101: 4
A102: 97 | C102: 室賀村 | D102: 2138 | E102: 1853 | F102: 135 | G102: 76 | H102: 41 | I102: 18 | J102: 34.81 | K102: 44 | L102: 15 | M102: - | N102: 15 | O102: - | P102: - | Q102: 8 | R102: 1 | S102: 6 | T102: 1 | U102: - | V102: 1 | W102: 3 | X102: 3 | Y102: 1 | Z102: - | AA102: 3 | AB102: 8 | AC102: 8 | AD102: 8 | AE102: 8 | AF102: 8 | AG102: 0 | AH102: 8 | AI102: 3 | AJ102: 8 | AK102: 7 | AL102: 4 | AM102: 4 | AN102: 8 | AO102: 8 | AP102: 8 | AQ102: 8
A103: 98 | C103: 浦里村２－１ | D103: 742 | E103: 400 | F103: 211 | G103: 134 | H103: 44 | I103: 33 | J103: 33 | K103: 87 | L103: 18 | M103: - | N103: 17 | O103: - | P103: 1 | Q103: 4 | R103: 1 | S103: 3 | T103: - | U103: - | V103: 3 | W103: 1 | X103: - | Y103: - | Z103: - | AA103: 4 | AB103: 4 | AC103: 4 | AD103: 4 | AE103: 4 | AF103: 4 | AG103: 0 | AH103: 4 | AI103: 4 | AJ103: 4 | AK103: 4 | AL103: 2 | AM103: 2 | AN103: 4 | AO103: 4 | AP103: 4 | AQ103: 4
A104: 99 | C104: 丸子町 | D104: 1444 | E104: 850 | F104: 120 | G104: 77 | H104: 38 | I104: 5 | J104: 36.87 | K104: 38 | L104: 17 | M104: 1 | N104: 16 | O104: - | P104: - | Q104: 12 | R104: 6 | S104: 5 | T104: 1 | U104: 8 | V104: 3 | W104: 1 | X104: - | Y104: - | Z104: - | AA104: 10 | AB104: 12 | AC104: 12 | AD104: 12 | AE104: 12 | AF104: 12 | AG104: 0 | AH104: 12 | AI104: 2 | AJ104: 9 | AK104: 9 | AL104: 1 | AM104: 1 | AN104: 12 | AO104: 12 | AP104: 12 | AQ104: 11
A105: 100 | C105: 東内村 | D105: 1484 | E105: 1199 | F105: 98 | G105: 74 | H105: 22 | I105: 2 | J105: 17.22 | K105: 64 | L105: 11 | M105: 1 | N105: 10 | O105: - | P105: - | Q105: 6 | R105: 5 | S105: 1 | T105: - | U105: - | V105: 2 | W105: 1 | X105: 3 | Y105: - | Z105: - | AA105: 2 | AB105: 6 | AC105: 6 | AD105: 6 | AE105: 6 | AF105: 6 | AG105: 0 | AH105: 6 | AI105: 0 | AJ105: 6 | AK105: 0 | AL105: 0 | AM105: 0 | AN105: 6 | AO105: 0 | AP105: 6 | AQ105: 6
A106: 101 | C106: 西内村 | D106: 5022 | E106: 4733 | F106: 88 | G106: 57 | H106: 29 | I106: 2 | J106: 38.74 | K106: 24 | L106: 6 | M106: 3 | N106: 6 | O106: - | P106: - | Q106: 11 | R106: 4 | S106: 7 | T106: - | U106: 1 | V106: 4 | W106: 2 | X106: 4 | Y106: - | Z106: - | AA106: 2 | AB106: 11 | AC106: 6 | AD106: 11 | AE106: 11 | AF106: 11 | AG106: 0 | AH106: 11 | AI106: 3 | AJ106: 11 | AK106: 3 | AL106: 0 | AM106: 0 | AN106: 11 | AO106: 4 | AP106: 11 | AQ106: 8
A107: 102 | C107: 依田村 | D107: 1286 | E107: 627 | F107: 256 | G107: 152 | H107: 67 | I107: 37 | J107: 71.82 | K107: 126 | L107: 40 | M107: 2 | N107: 39 | O107: - | P107: 1 | Q107: 8 | R107: 2 | S107: 6 | T107: - | U107: - | V107: 6 | W107: 2 | X107: - | Y107: - | Z107: - | AA107: 5 | AB107: 8 | AC107: 4 | AD107: 8 | AE107: 8 | AF107: 8 | AG107: 0 | AH107: 8 | AI107: 4 | AJ107: 7 | AK107: 0 | AL107: 5 | AM107: 5 | AN107: 8 | AO107: 4 | AP107: 8 | AQ107: 8
A108: 103 | C108: 長瀬村 | D108: 360 | E108: 62 | F108: 103 | G108: 73 | H108: 21 | I108: 9 | J108: 26.79 | K108: 44 | L108: 7 | M108: 1 | N108: 7 | O108: - | P108: - | Q108: 8 | R108: 4 | S108: 4 | T108: - | U108: 3 | V108: 4 | W108: - | X108: 1 | Y108: - | Z108: - | AA108: 4 | AB108: 8 | AC108: 6 | AD108: 8 | AE108: 8 | AF108: 6 | AG108: 0 | AH108: 8 | AI108: 6 | AJ108: 3 | AK108: 2 | AL108: 1 | AM108: 1 | AN108: 7 | AO108: 7 | AP108: 8 | AQ108: 8
A109: 104 | C109: 塩川村 | D109: 971 | E109: 270 | F109: 218 | G109: 148 | H109: 63 | I109: 7 | J109: 54.28 | K109: 102 | L109: 19 | M109: 2 | N109: 18 | O109: - | P109: - | Q109: 6 | R109: 3 | S109: 3 | T109: - | U109: 2 | V109: 1 | W109: 1 | X109: 2 | Y109: - | Z109: - | AA109: 6 | AB109: 6 | AC109: 4 | AD109: 6 | AE109: 6 | AF109: 4 | AG109: 0 | AH109: 6 | AI109: 4 | AJ109: 6 | AK109: 4 | AL109: 2 | AM109: 1 | AN109: 6 | AO109: 3 | AP109: 6 | AQ109: 6
A110: 105 | C110: 傍陽村 | D110: 7606 | E110: 6386 | F110: 261 | G110: 92 | H110: 121 | I110: 48 | J110: 75.08 | K110: 70 | L110: 20 | M110: 2 | N110: 20 | O110: 2 | P110: 1 | Q110: 14 | R110: - | S110: 7 | T110: 7 | U110: 2 | V110: 2 | W110: 7 | X110: 3 | Y110: - | Z110: - | AA110: 3 | AB110: 12 | AC110: 12 | AD110: 12 | AE110: 12 | AF110: 12 | AG110: 2 | AH110: 12 | AI110: 9 | AJ110: 14 | AK110: 10 | AL110: 0 | AM110: 0 | AN110: 14 | AO110: 10 | AP110: 12 | AQ110: 12
A111: 106 | C111: 本原村 | D111: 869 | E111: 619 | F111: 164 | G111: 88 | H111: 46 | I111: 30 | J111: 36.41 | K111: 68 | L111: 29 | M111: 4 | N111: 28 | O111: 1 | P111: 1 | Q111: 11 | R111: 2 | S111: 9 | T111: - | U111: 1 | V111: 7 | W111: 2 | X111: - | Y111: 1 | Z111: - | AA111: 6 | AB111: 10 | AC111: 11 | AD111: 11 | AE111: 11 | AF111: 11 | AG111: 0 | AH111: 11 | AI111: 7 | AJ111: 9 | AK111: 0 | AL111: 0 | AM111: 0 | AN111: 10 | AO111: 7 | AP111: 11 | AQ111: 10
A112: 107 | C112: 長村 | D112: 9699 | E112: 7835 | F112: 767 | G112: 78 | H112: 679 | I112: 10 | J112: 77.47 | K112: 140 | L112: 26 | M112: 2 | N112: 23 | O112: 1 | P112: 4 | Q112: 10 | R112: - | S112: 7 | T112: 3 | U112: - | V112: 4 | W112: 5 | X112: 1 | Y112: - | Z112: - | AA112: 10 | AB112: 10 | AC112: 10 | AD112: 10 | AE112: 10 | AF112: 10 | AG112: 0 | AH112: 10 | AI112: 7 | AJ112: 10 | AK112: 7 | AL112: 2 | AM112: 2 | AN112: 10 | AO112: 8 | AP112: 10 | AQ112: 9
A113: 108 | C113: 武石村 | D113: 8761 | E113: 7575 | F113: 419 | G113: 265 | H113: 134 | I113: 20 | J113: 69.93 | K113: 191 | L113: 31 | M113: 3 | N113: 29 | O113: 1 | P113: 7 | Q113: 17 | R113: 6 | S113: 9 | T113: 2 | U113: - | V113: 4 | W113: 10 | X113: 3 | Y113: - | Z113: - | AA113: 17 | AB113: 17 | AC113: 17 | AD113: 17 | AE113: 17 | AF113: 17 | AG113: 0 | AH113: 17 | AI113: 4 | AJ113: 16 | AK113: 4 | AL113: 0 | AM113: 0 | AN113: 17 | AO113: 5 | AP113: 17 | AQ113: 15
A114: 109 | B114: 岡谷市 | D114: 8510 | E114: 5778 | F114: 237 | G114: 82 | H114: 147 | I114: 8 | J114: 99.98 | K114: 88 | L114: 40 | M114: 4 | N114: 40 | O114: 2 | P114: 3 | Q114: 25 | R114: - | S114: 15 | T114: 10 | U114: 22 | V114: 2 | W114: - | X114: 1 | Y114: - | Z114: - | AA114: 20 | AB114: 20 | AC114: 24 | AD114: 24 | AE114: 24 | AF114: 24 | AG114: 1 | AH114: 23 | AI114: 2 | AJ114: 18 | AK114: 5 | AL114: 11 | AM114: 4 | AN114: 23 | AO114: 23 | AP114: 19 | AQ114: 19
A115: 110 | C115: 岡谷市（旧） | D115: 4100 | E115: 3216 | F115: 57 | G115: 13 | H115: 41 | I115: 3 | J115: 28.84 | K115: 32 | L115: 15 | M115: 1 | N115: 15 | O115: - | P115: - | Q115: 12 | R115: - | S115: 6 | T115: 6 | U115: 11 | V115: - | W115: - | X115: 1 | Y115: - | Z115: - | AA115: 9 | AB115: 8 | AC115: 12 | AD115: 12 | AE115: 12 | AF115: 12 | AG115: 0 | AH115: 11 | AI115: 0 | AJ115: 6 | AK115: 1 | AL115: 5 | AM115: 2 | AN115: 11 | AO115: 11 | AP115: 7 | AQ115: 7
A116: 111 | C116: 湊村 | D116: 1294 | E116: 627 | F116: 37 | G116: 7 | H116: 29 | I116: 1 | J116: 13.63 | K116: 5 | L116: 1 | M116: - | N116: 1 | O116: - | P116: - | Q116: 3 | R116: - | S116: - | T116: 3 | U116: 3 | V116: - | W116: - | X116: - | Y116: - | Z116: - | AA116: 1 | AB116: 2 | AC116: 2 | AD116: 2 | AE116: 2 | AF116: 2 | AG116: 1 | AH116: 2 | AI116: 1 | AJ116: 3 | AK116: 1 | AL116: 2 | AM116: 0 | AN116: 2 | AO116: 2 | AP116: 2 | AQ116: 2
A117: 112 | C117: 川岸村 | D117: 1908 | E117: 1231 | F117: 81 | G117: 28 | H117: 51 | I117: 2 | J117: 48.7 | K117: 14 | L117: 6 | M117: 1 | N117: 6 | O117: - | P117: 2 | Q117: 6 | R117: - | S117: 5 | T117: 1 | U117: 4 | V117: 2 | W117: - | X117: - | Y117: - | Z117: - | AA117: 6 | AB117: 6 | AC117: 6 | AD117: 6 | AE117: 6 | AF117: 6 | AG117: 0 | AH117: 6 | AI117: 0 | AJ117: 6 | AK117: 2 | AL117: 2 | AM117: 1 | AN117: 6 | AO117: 6 | AP117: 6 | AQ117: 6
A118: 113 | C118: 長地村２－１ | D118: 1208 | E118: 704 | F118: 62 | G118: 34 | H118: 26 | I118: 2 | J118: 8.81 | K118: 37 | L118: 18 | M118: 2 | N118: 18 | O118: 2 | P118: 1 | Q118: 4 | R118: - | S118: 4 | T118: - | U118: 4 | V118: - | W118: - | X118: - | Y118: - | Z118: - | AA118: 4 | AB118: 4 | AC118: 4 | AD118: 4 | AE118: 4 | AF118: 4 | AG118: 0 | AH118: 4 | AI118: 1 | AJ118: 3 | AK118: 1 | AL118: 2 | AM118: 1 | AN118: 4 | AO118: 4 | AP118: 4 | AQ118: 4
A119: 114 | B119: 飯田市 | D119: 65866 | E119: 54465 | F119: 3046 | G119: 1054 | H119: 1122 | I119: 870 | J119: 706.06 | K119: 2122 | L119: 1395 | M119: 1080 | N119: 687 | O119: 64 | P119: 56 | Q119: 310 | R119: 7 | S119: 171 | T119: 132 | U119: 77 | V119: 95 | W119: 70 | X119: 54 | Y119: 10 | Z119: 4 | AA119: 183 | AB119: 280 | AC119: 254 | AD119: 305 | AE119: 305 | AF119: 285 | AG119: 5 | AH119: 298 | AI119: 89 | AJ119: 245 | AK119: 57 | AL119: 66 | AM119: 33 | AN119: 293 | AO119: 246 | AP119: 293 | AQ119: 271
A120: 115 | C120: 飯田市（旧） | D120: 9521 | E120: 9174 | F120: 79 | G120: 21 | H120: 20 | I120: 38 | J120: 24.88 | K120: 110 | L120: 82 | M120: 68 | N120: 40 | O120: - | P120: - | Q120: 20 | R120: 3 | S120: 2 | T120: 15 | U120: 18 | V120: 1 | W120: 1 | X120: - | Y120: - | Z120: - | AA120: 3 | AB120: 12 | AC120: 13 | AD120: 18 | AE120: 18 | AF120: 18 | AG120: 2 | AH120: 13 | AI120: 4 | AJ120: 15 | AK120: 3 | AL120: 3 | AM120: 2 | AN120: 19 | AO120: 9 | AP120: 11 | AQ120: 11
A121: 116 | C121: 竜丘村 | D121: 776 | E121: 264 | F121: 202 | G121: 76 | H121: 87 | I121: 39 | J121: 51.35 | K121: 131 | L121: 70 | M121: 48 | N121: 45 | O121: 1 | P121: 3 | Q121: 20 | R121: - | S121: 16 | T121: 4 | U121: 6 | V121: 10 | W121: 1 | X121: 3 | Y121: - | Z121: - | AA121: 0 | AB121: 19 | AC121: 17 | AD121: 20 | AE121: 20 | AF121: 19 | AG121: 0 | AH121: 20 | AI121: 0 | AJ121: 19 | AK121: 5 | AL121: 0 | AM121: 0 | AN121: 20 | AO121: 16 | AP121: 20 | AQ121: 19
A122: 117 | C122: 下久堅村 | D122: 1193 | E122: 464 | F122: 231 | G122: 71 | H122: 100 | I122: 60 | J122: 70.21 | K122: 121 | L122: 75 | M122: 64 | N122: 19 | O122: 2 | P122: 4 | Q122: 27 | R122: - | S122: 19 | T122: 8 | U122: - | V122: 6 | W122: 10 | X122: 11 | Y122: - | Z122: - | AA122: 10 | AB122: 27 | AC122: 27 | AD122: 27 | AE122: 27 | AF122: 27 | AG122: 0 | AH122: 27 | AI122: 21 | AJ122: 27 | AK122: 6 | AL122: 16 | AM122: 9 | AN122: 16 | AO122: 3 | AP122: 27 | AQ122: 27
A123: 118 | C123: 座光寺村 | D123: 876 | E123: 345 | F123: 199 | G123: 48 | H123: 46 | I123: 105 | J123: 25.23 | K123: 195 | L123: 158 | M123: 141 | N123: 77 | O123: 4 | P123: 3 | Q123: 15 | R123: - | S123: 6 | T123: 9 | U123: 3 | V123: 7 | W123: 4 | X123: 1 | Y123: - | Z123: - | AA123: 10 | AB123: 15 | AC123: 15 | AD123: 15 | AE123: 15 | AF123: 15 | AG123: 0 | AH123: 15 | AI123: 7 | AJ123: 2 | AK123: 1 | AL123: 4 | AM123: 3 | AN123: 15 | AO123: 15 | AP123: 12 | AQ123: 12
A124: 119 | C124: 松尾村 | D124: 674 | E124: 39 | F124: 129 | G124: 60 | H124: 55 | I124: 14 | J124: 19.44 | K124: 97 | L124: 54 | M124: 32 | N124: 35 | O124: - | P124: 1 | Q124: 11 | R124: 1 | S124: 9 | T124: 1 | U124: 7 | V124: 4 | W124: - | X124: - | Y124: - | Z124: - | AA124: 10 | AB124: 11 | AC124: 11 | AD124: 11 | AE124: 11 | AF124: 11 | AG124: 0 | AH124: 11 | AI124: 0 | AJ124: 4 | AK124: 1 | AL124: 0 | AM124: 0 | AN124: 9 | AO124: 9 | AP124: 11 | AQ124: 11
A125: 120 | C125: 山本村 | D125: 2205 | E125: 1350 | F125: 330 | G125: 145 | H125: 135 | I125: 50 | J125: 94.85 | K125: 187 | L125: 96 | M125: 50 | N125: 61 | O125: - | P125: 2 | Q125: 26 | R125: - | S125: 23 | T125: 3 | U125: 3 | V125: 7 | W125: 8 | X125: 7 | Y125: 1 | Z125: - | AA125: 25 | AB125: 26 | AC125: 26 | AD125: 26 | AE125: 26 | AF125: 26 | AG125: 0 | AH125: 26 | AI125: 0 | AJ125: 21 | AK125: 0 | AL125: 11 | AM125: 9 | AN125: 26 | AO125: 26 | AP125: 26 | AQ125: 26
A126: 121 | C126: 三穂村 | D126: 1252 | E126: 701 | F126: 224 | G126: 87 | H126: 77 | I126: 60 | J126: 47.2 | K126: 145 | L126: 126 | M126: 120 | N126: 28 | O126: 4 | P126: 2 | Q126: 13 | R126: - | S126: 12 | T126: 1 | U126: - | V126: 2 | W126: 1 | X126: 7 | Y126: 3 | Z126: - | AA126: 13 | AB126: 13 | AC126: 13 | AD126: 13 | AE126: 13 | AF126: 13 | AG126: 0 | AH126: 13 | AI126: 10 | AJ126: 12 | AK126: 1 | AL126: 5 | AM126: 2 | AN126: 13 | AO126: 13 | AP126: 13 | AQ126: 13
A127: 122 | C127: 伊賀良村 | D127: 3506 | E127: 2109 | F127: 451 | G127: 146 | H127: 134 | I127: 171 | J127: 73.33 | K127: 372 | L127: 290 | M127: 265 | N127: 123 | O127: 12 | P127: 15 | Q127: 31 | R127: - | S127: 16 | T127: 15 | U127: 13 | V127: 13 | W127: 3 | X127: 2 | Y127: - | Z127: - | AA127: 20 | AB127: 31 | AC127: 23 | AD127: 31 | AE127: 31 | AF127: 31 | AG127: 0 | AH127: 31 | AI127: 3 | AJ127: 23 | AK127: 6 | AL127: 9 | AM127: 3 | AN127: 30 | AO127: 27 | AP127: 31 | AQ127: 30
A128: 123 | C128: 川路村 | D128: 575 | E128: 219 | F128: 114 | G128: 42 | H128: 42 | I128: 30 | J128: 17.94 | K128: 42 | L128: 19 | M128: 11 | N128: 13 | O128: 1 | P128: - | Q128: 7 | R128: - | S128: 6 | T128: 1 | U128: - | V128: 4 | W128: 2 | X128: 1 | Y128: - | Z128: - | AA128: 6 | AB128: 7 | AC128: 7 | AD128: 7 | AE128: 7 | AF128: 7 | AG128: 0 | AH128: 7 | AI128: 5 | AJ128: 7 | AK128: 1 | AL128: 4 | AM128: 2 | AN128: 7 | AO128: 7 | AP128: 7 | AQ128: 7
A129: 124 | C129: 千代村 | D129: 5836 | E129: 5294 | F129: 155 | G129: 46 | H129: 51 | I129: 58 | J129: 62.57 | K129: 81 | L129: 57 | M129: 49 | N129: 24 | O129: 4 | P129: 13 | Q129: 28 | R129: 1 | S129: 12 | T129: 15 | U129: - | V129: 7 | W129: 14 | X129: 6 | Y129: 1 | Z129: - | AA129: 28 | AB129: 28 | AC129: 28 | AD129: 28 | AE129: 28 | AF129: 28 | AG129: 0 | AH129: 28 | AI129: 4 | AJ129: 28 | AK129: 14 | AL129: 5 | AM129: 1 | AN129: 28 | AO129: 28 | AP129: 28 | AQ129: 28
A130: 125 | C130: 竜江村 | D130: 1226 | E130: 617 | F130: 183 | G130: 45 | H130: 56 | I130: 82 | J130: 54.45 | K130: 119 | L130: 87 | M130: 43 | N130: 67 | O130: 28 | P130: 8 | Q130: 23 | R130: - | S130: 8 | T130: 15 | U130: - | V130: 7 | W130: 9 | X130: 6 | Y130: 1 | Z130: - | AA130: 13 | AB130: 23 | AC130: 23 | AD130: 23 | AE130: 23 | AF130: 22 | AG130: 0 | AH130: 23 | AI130: 17 | AJ130: 23 | AK130: 2 | AL130: 4 | AM130: 1 | AN130: 23 | AO130: 23 | AP130: 23 | AQ130: 23
A131: 126 | C131: 上久堅村 | D131: 1647 | E131: 1107 | F131: 162 | G131: 60 | H131: 83 | I131: 19 | J131: 51.76 | K131: 70 | L131: 29 | M131: 12 | N131: 20 | O131: 5 | P131: 1 | Q131: 14 | R131: 2 | S131: 9 | T131: 3 | U131: - | V131: 2 | W131: 7 | X131: 3 | Y131: 2 | Z131: - | AA131: 14 | AB131: 14 | AC131: 14 | AD131: 14 | AE131: 14 | AF131: 14 | AG131: 0 | AH131: 14 | AI131: 12 | AJ131: 14 | AK131: 10 | AL131: 4 | AM131: 1 | AN131: 14 | AO131: 14 | AP131: 14 | AQ131: 14
A132: 127 | C132: 鼎町 | D132: 613 | E132: 33 | F132: 134 | G132: 45 | H132: 46 | I132: 43 | J132: 18.1 | K132: 139 | L132: 88 | M132: 70 | N132: 41 | O132: 1 | P132: - | Q132: 9 | R132: - | S132: 6 | T132: 3 | U132: 8 | V132: 1 | W132: - | X132: - | Y132: - | Z132: - | AA132: 9 | AB132: 9 | AC132: 9 | AD132: 9 | AE132: 9 | AF132: 9 | AG132: 0 | AH132: 9 | AI132: 0 | AJ132: 5 | AK132: 2 | AL132: 0 | AM132: 0 | AN132: 9 | AO132: 9 | AP132: 9 | AQ132: 9
A133: 128 | C133: 上郷町 | D133: 2639 | E133: 1756 | F133: 299 | G133: 136 | H133: 107 | I133: 56 | J133: 28.33 | K133: 266 | L133: 148 | M133: 105 | N133: 80 | O133: 1 | P133: 3 | Q133: 24 | R133: - | S133: 17 | T133: 7 | U133: 15 | V133: 7 | W133: 2 | X133: - | Y133: - | Z133: - | AA133: 22 | AB133: 24 | AC133: 24 | AD133: 24 | AE133: 24 | AF133: 24 | AG133: 0 | AH133: 24 | AI133: 3 | AJ133: 5 | AK133: 0 | AL133: 0 | AM133: 0 | AN133: 24 | AO133: 24 | AP133: 24 | AQ133: 24
A134: 129 | C134: 上村 | D134: 13276 | E134: 12071 | F134: 40 | G134: 5 | H134: 25 | I134: 10 | J134: 32.77 | K134: 20 | L134: 8 | M134: 1 | N134: 7 | O134: 1 | P134: 1 | Q134: 11 | R134: - | S134: 2 | T134: 9 | U134: - | V134: 3 | W134: 3 | X134: 2 | Y134: 1 | Z134: 2 | AA134: 0 | AB134: 5 | AC134: 0 | AD134: 11 | AE134: 11 | AF134: 6 | AG134: 0 | AH134: 11 | AI134: 3 | AJ134: 9 | AK134: 1 | AL134: 1 | AM134: 0 | AN134: 11 | AO134: 6 | AP134: 11 | AQ134: 5
A135: 130 | C135: 木沢村 | D135: 11380 | E135: 10859 | F135: 34 | G135: 5 | H135: 20 | I135: 9 | J135: 10.29 | K135: 4 | L135: 1 | M135: - | N135: 1 | O135: - | P135: - | Q135: 8 | R135: - | S135: 2 | T135: 6 | U135: - | V135: 5 | W135: - | X135: 2 | Y135: - | Z135: 1 | AA135: 0 | AB135: 3 | AC135: 1 | AD135: 8 | AE135: 8 | AF135: 3 | AG135: 0 | AH135: 8 | AI135: 0 | AJ135: 8 | AK135: 4 | AL135: 0 | AM135: 0 | AN135: 8 | AO135: 5 | AP135: 8 | AQ135: 3
A136: 131 | C136: 和田村（飯田市） | D136: 2861 | E136: 2563 | F136: 32 | G136: 8 | H136: 15 | I136: 9 | J136: 9.06 | K136: 6 | L136: 2 | M136: - | N136: 2 | O136: - | P136: - | Q136: 9 | R136: - | S136: 3 | T136: 6 | U136: 1 | V136: 7 | W136: - | X136: - | Y136: - | Z136: 1 | AA136: 0 | AB136: 6 | AC136: 0 | AD136: 9 | AE136: 9 | AF136: 4 | AG136: 0 | AH136: 8 | AI136: 0 | AJ136: 9 | AK136: 0 | AL136: 0 | AM136: 0 | AN136: 9 | AO136: 7 | AP136: 8 | AQ136: 5
A137: 132 | C137: 八重河内村 | D137: 3871 | E137: 3679 | F137: 29 | G137: 4 | H137: 14 | I137: 11 | J137: 10.52 | K137: 7 | L137: - | M137: - | N137: - | O137: - | P137: - | Q137: 7 | R137: - | S137: 2 | T137: 5 | U137: 1 | V137: 1 | W137: 3 | X137: 1 | Y137: 1 | Z137: - | AA137: 0 | AB137: 5 | AC137: 1 | AD137: 6 | AE137: 6 | AF137: 5 | AG137: 1 | AH137: 6 | AI137: 0 | AJ137: 7 | AK137: 0 | AL137: 0 | AM137: 0 | AN137: 7 | AO137: 3 | AP137: 6 | AQ137: 3
A138: 133 | C138: 南和田村 | D138: 1939 | E138: 1821 | F138: 19 | G138: 4 | H138: 9 | I138: 6 | J138: 3.78 | K138: 10 | L138: 5 | M138: 1 | N138: 4 | O138: - | P138: - | Q138: 7 | R138: - | S138: 1 | T138: 6 | U138: 2 | V138: 1 | W138: 2 | X138: 2 | Y138: - | Z138: - | AA138: 0 | AB138: 2 | AC138: 2 | AD138: 5 | AE138: 5 | AF138: 3 | AG138: 2 | AH138: 4 | AI138: 0 | AJ138: 7 | AK138: 0 | AL138: 0 | AM138: 0 | AN138: 5 | AO138: 2 | AP138: 4 | AQ138: 1
A139: 134 | B139: 諏訪市 | D139: 10917 | E139: 7558 | F139: 651 | G139: 421 | H139: 214 | I139: 16 | J139: 125.94 | K139: 407 | L139: 102 | M139: 3 | N139: 98 | O139: 2 | P139: 4 | Q139: 44 | R139: 12 | S139: 16 | T139: 16 | U139: 34 | V139: 7 | W139: - | X139: 3 | Y139: - | Z139: - | AA139: 30 | AB139: 29 | AC139: 41 | AD139: 42 | AE139: 42 | AF139: 42 | AG139: 2 | AH139: 35 | AI139: 14 | AJ139: 24 | AK139: 8 | AL139: 13 | AM139: 6 | AN139: 44 | AO139: 20 | AP139: 29 | AQ139: 29
A140: 135 | C140: 諏訪市（旧） | D140: 6867 | E140: 4374 | F140: 344 | G140: 191 | H140: 144 | I140: 9 | J140: 84.32 | K140: 225 | L140: 60 | M140: 3 | N140: 57 | O140: 2 | P140: 2 | Q140: 31 | R140: 4 | S140: 13 | T140: 14 | U140: 25 | V140: 5 | W140: - | X140: 1 | Y140: - | Z140: - | AA140: 19 | AB140: 18 | AC140: 30 | AD140: 31 | AE140: 31 | AF140: 31 | AG140: 0 | AH140: 24 | AI140: 7 | AJ140: 16 | AK140: 6 | AL140: 11 | AM140: 5 | AN140: 31 | AO140: 14 | AP140: 18 | AQ140: 18
A141: 136 | C141: 中洲村 | D141: 626 | E141: 288 | F141: 123 | G141: 94 | H141: 26 | I141: 3 | J141: 10.87 | K141: 65 | L141: 22 | M141: - | N141: 22 | O141: - | P141: - | Q141: 5 | R141: 5 | S141: - | T141: - | U141: 5 | V141: - | W141: - | X141: - | Y141: - | Z141: - | AA141: 5 | AB141: 5 | AC141: 5 | AD141: 5 | AE141: 5 | AF141: 5 | AG141: 0 | AH141: 5 | AI141: 1 | AJ141: 1 | AK141: 1 | AL141: 0 | AM141: 0 | AN141: 5 | AO141: 2 | AP141: 5 | AQ141: 5
A142: 137 | C142: 湖南村 | D142: 3424 | E142: 2896 | F142: 184 | G142: 136 | H142: 44 | I142: 4 | J142: 30.75 | K142: 117 | L142: 20 | M142: - | N142: 19 | O142: - | P142: 2 | Q142: 8 | R142: 3 | S142: 3 | T142: 2 | U142: 4 | V142: 2 | W142: - | X142: 2 | Y142: - | Z142: - | AA142: 6 | AB142: 6 | AC142: 6 | AD142: 6 | AE142: 6 | AF142: 6 | AG142: 2 | AH142: 6 | AI142: 6 | AJ142: 7 | AK142: 1 | AL142: 2 | AM142: 1 | AN142: 8 | AO142: 4 | AP142: 6 | AQ142: 6
A143: 138 | B143: 須坂市 | D143: 14967 | E143: 10270 | F143: 1778 | G143: 272 | H143: 261 | I143: 1245 | J143: 305.07 | K143: 1426 | L143: 260 | M143: 19 | N143: 249 | O143: 9 | P143: 8 | Q143: 61 | R143: 1 | S143: 14 | T143: 46 | U143: 20 | V143: 13 | W143: 13 | X143: 14 | Y143: 1 | Z143: - | AA143: 47 | AB143: 55 | AC143: 52 | AD143: 53 | AE143: 52 | AF143: 50 | AG143: 0 | AH143: 60 | AI143: 7 | AJ143: 34 | AK143: 14 | AL143: 4 | AM143: 4 | AN143: 55 | AO143: 44 | AP143: 55 | AQ143: 54
A144: 139 | C144: 須坂町 | D144: 1496 | E144: 355 | F144: 377 | G144: 28 | H144: 42 | I144: 307 | J144: 42.42 | K144: 274 | L144: 75 | M144: 6 | N144: 72 | O144: 1 | P144: 3 | Q144: 14 | R144: - | S144: 1 | T144: 13 | U144: 9 | V144: 2 | W144: 2 | X144: 1 | Y144: - | Z144: - | AA144: 11 | AB144: 10 | AC144: 14 | AD144: 14 | AE144: 14 | AF144: 14 | AG144: 0 | AH144: 13 | AI144: 0 | AJ144: 7 | AK144: 1 | AL144: 2 | AM144: 2 | AN144: 9 | AO144: 5 | AP144: 11 | AQ144: 10
A145: 140 | C145: 井上村 | D145: 822 | E145: 157 | F145: 231 | G145: 64 | H145: 20 | I145: 147 | J145: 34.72 | K145: 313 | L145: 35 | M145: 1 | N145: 34 | O145: 2 | P145: - | Q145: 7 | R145: - | S145: 1 | T145: 6 | U145: 2 | V145: 1 | W145: 2 | X145: 2 | Y145: - | Z145: - | AA145: 7 | AB145: 6 | AC145: 7 | AD145: 7 | AE145: 7 | AF145: 7 | AG145: 0 | AH145: 7 | AI145: 0 | AJ145: 1 | AK145: 0 | AL145: 0 | AM145: 0 | AN145: 7 | AO145: 7 | AP145: 6 | AQ145: 6
A146: 141 | C146: 豊洲村 | D146: 787 | E146: 7 | F146: 357 | G146: 48 | H146: 14 | I146: 295 | J146: 23.97 | K146: 245 | L146: 55 | M146: 5 | N146: 53 | O146: 6 | P146: 2 | Q146: 7 | R146: - | S146: 1 | T146: 6 | U146: 2 | V146: 2 | W146: 3 | X146: - | Y146: - | Z146: - | AA146: 7 | AB146: 6 | AC146: 7 | AD146: 7 | AE146: 7 | AF146: 7 | AG146: 0 | AH146: 7 | AI146: 0 | AJ146: 3 | AK146: 0 | AL146: 0 | AM146: 0 | AN146: 6 | AO146: 5 | AP146: 5 | AQ146: 5
A147: 142 | C147: 日野村（須坂市） | D147: 492 | E147: - | F147: 190 | G147: 26 | H147: 6 | I147: 158 | J147: 25.22 | K147: 185 | L147: 35 | M147: 4 | N147: 33 | O147: - | P147: 2 | Q147: 6 | R147: - | S147: 1 | T147: 5 | U147: 2 | V147: 2 | W147: 1 | X147: 1 | Y147: - | Z147: - | AA147: 6 | AB147: 6 | AC147: 6 | AD147: 6 | AE147: 6 | AF147: 6 | AG147: 0 | AH147: 6 | AI147: 0 | AJ147: 0 | AK147: 0 | AL147: 0 | AM147: 0 | AN147: 6 | AO147: 6 | AP147: 6 | AQ147: 6
A148: 143 | C148: 高甫村 | D148: 1130 | E148: 597 | F148: 287 | G148: 10 | H148: 19 | I148: 258 | J148: 25.87 | K148: 217 | L148: 27 | M148: 1 | N148: 26 | O148: - | P148: - | Q148: 4 | R148: - | S148: - | T148: 4 | U148: 1 | V148: 1 | W148: - | X148: 2 | Y148: - | Z148: - | AA148: 4 | AB148: 4 | AC148: 4 | AD148: 4 | AE148: 4 | AF148: 4 | AG148: 0 | AH148: 4 | AI148: 0 | AJ148: 2 | AK148: 2 | AL148: 0 | AM148: 0 | AN148: 4 | AO148: 4 | AP148: 4 | AQ148: 4
A149: 144 | C149: 仁礼村 | D149: 7929 | E149: 7119 | F149: 213 | G149: 83 | H149: 71 | I149: 59 | J149: 109.51 | K149: 115 | L149: 20 | M149: - | N149: 20 | O149: - | P149: 1 | Q149: 14 | R149: 1 | S149: 9 | T149: 4 | U149: 2 | V149: 4 | W149: 3 | X149: 4 | Y149: 1 | Z149: - | AA149: 4 | AB149: 14 | AC149: 5 | AD149: 6 | AE149: 5 | AF149: 3 | AG149: 0 | AH149: 14 | AI149: 5 | AJ149: 12 | AK149: 7 | AL149: 1 | AM149: 1 | AN149: 14 | AO149: 12 | AP149: 14 | AQ149: 14
A150: 145 | C150: 豊丘村 | D150: 2311 | E150: 2035 | F150: 123 | G150: 13 | H150: 89 | I150: 21 | J150: 43.36 | K150: 77 | L150: 13 | M150: 2 | N150: 11 | O150: - | P150: - | Q150: 9 | R150: - | S150: 1 | T150: 8 | U150: 2 | V150: 1 | W150: 2 | X150: 4 | Y150: - | Z150: - | AA150: 8 | AB150: 9 | AC150: 9 | AD150: 9 | AE150: 9 | AF150: 9 | AG150: 0 | AH150: 9 | AI150: 2 | AJ150: 9 | AK150: 4 | AL150: 1 | AM150: 1 | AN150: 9 | AO150: 5 | AP150: 9 | AQ150: 9
A151: 146 | B151: 小諸市 | D151: 9855 | E151: 3478 | F151: 2799 | G151: 1069 | H151: 1109 | I151: 621 | J151: 590.37 | K151: 1110 | L151: 165 | M151: 26 | N151: 152 | O151: 13 | P151: 7 | Q151: 55 | R151: 6 | S151: 29 | T151: 20 | U151: 17 | V151: 19 | W151: 12 | X151: 6 | Y151: 1 | Z151: - | AA151: 34 | AB151: 47 | AC151: 54 | AD151: 55 | AE151: 55 | AF151: 55 | AG151: 0 | AH151: 52 | AI151: 15 | AJ151: 47 | AK151: 13 | AL151: 20 | AM151: 12 | AN151: 55 | AO151: 39 | AP151: 51 | AQ151: 46
A152: 147 | C152: 小諸町 | D152: 1905 | E152: 710 | F152: 437 | G152: 150 | H152: 144 | I152: 143 | J152: 82.86 | K152: 91 | L152: 26 | M152: 6 | N152: 23 | O152: 6 | P152: 2 | Q152: 16 | R152: 4 | S152: 6 | T152: 6 | U152: 10 | V152: 6 | W152: - | X152: - | Y152: - | Z152: - | AA152: 4 | AB152: 10 | AC152: 16 | AD152: 16 | AE152: 16 | AF152: 16 | AG152: 0 | AH152: 13 | AI152: 1 | AJ152: 11 | AK152: 1 | AL152: 0 | AM152: 0 | AN152: 16 | AO152: 8 | AP152: 13 | AQ152: 10
A153: 148 | C153: 大里村 | D153: 2880 | E153: 1577 | F153: 448 | G153: 194 | H153: 151 | I153: 103 | J153: 124.47 | K153: 177 | L153: 32 | M153: 4 | N153: 28 | O153: 1 | P153: 1 | Q153: 5 | R153: - | S153: 4 | T153: 1 | U153: - | V153: 2 | W153: 1 | X153: 1 | Y153: 1 | Z153: - | AA153: 3 | AB153: 5 | AC153: 5 | AD153: 5 | AE153: 5 | AF153: 5 | AG153: 0 | AH153: 5 | AI153: 3 | AJ153: 5 | AK153: 4 | AL153: 3 | AM153: 0 | AN153: 5 | AO153: 5 | AP153: 5 | AQ153: 5
A154: 149 | C154: 北大井村 | D154: 1042 | E154: 189 | F154: 428 | G154: 142 | H154: 235 | I154: 51 | J154: 84.69 | K154: 129 | L154: 14 | M154: 1 | N154: 14 | O154: 1 | P154: 1 | Q154: 12 | R154: 2 | S154: 4 | T154: 6 | U154: 3 | V154: 6 | W154: 2 | X154: 1 | Y154: - | Z154: - | AA154: 9 | AB154: 11 | AC154: 12 | AD154: 12 | AE154: 12 | AF154: 12 | AG154: 0 | AH154: 12 | AI154: 5 | AJ154: 9 | AK154: 0 | AL154: 2 | AM154: 1 | AN154: 12 | AO154: 9 | AP154: 11 | AQ154: 10
A155: 150 | C155: 南大井村 | D155: 891 | E155: 89 | F155: 366 | G155: 154 | H155: 162 | I155: 50 | J155: 56.01 | K155: 161 | L155: 12 | M155: 3 | N155: 11 | O155: 2 | P155: - | Q155: 4 | R155: - | S155: 3 | T155: 1 | U155: 2 | V155: 2 | W155: - | X155: - | Y155: - | Z155: - | AA155: 4 | AB155: 4 | AC155: 4 | AD155: 4 | AE155: 4 | AF155: 4 | AG155: 0 | AH155: 4 | AI155: 0 | AJ155: 4 | AK155: 1 | AL155: 1 | AM155: 1 | AN155: 4 | AO155: 4 | AP155: 4 | AQ155: 4
A156: 151 | C156: 三岡村 | D156: 672 | E156: 34 | F156: 433 | G156: 197 | H156: 82 | I156: 154 | J156: 32.27 | K156: 221 | L156: 32 | M156: 5 | N156: 31 | O156: 1 | P156: - | Q156: 3 | R156: - | S156: 3 | T156: - | U156: - | V156: 2 | W156: 1 | X156: - | Y156: - | Z156: - | AA156: 3 | AB156: 3 | AC156: 3 | AD156: 3 | AE156: 3 | AF156: 3 | AG156: 0 | AH156: 3 | AI156: 1 | AJ156: 3 | AK156: 1 | AL156: 1 | AM156: 0 | AN156: 3 | AO156: 3 | AP156: 3 | AQ156: 3
A157: 152 | C157: 川辺村（小諸市） | D157: 1654 | E157: 754 | F157: 336 | G157: 120 | H157: 183 | I157: 33 | J157: 104.4 | K157: 187 | L157: 28 | M157: 3 | N157: 28 | O157: 1 | P157: 2 | Q157: 10 | R157: - | S157: 6 | T157: 4 | U157: 1 | V157: - | W157: 6 | X157: 3 | Y157: - | Z157: - | AA157: 9 | AB157: 10 | AC157: 10 | AD157: 10 | AE157: 10 | AF157: 10 | AG157: 0 | AH157: 10 | AI157: 3 | AJ157: 10 | AK157: 2 | AL157: 10 | AM157: 7 | AN157: 10 | AO157: 6 | AP157: 10 | AQ157: 10
A158: 153 | C158: 小沼村２－２ | D158: 92 | E158: 5 | F158: 56 | G158: 29 | H158: 25 | I158: 2 | J158: x | K158: 53 | L158: x | M158: x | N158: x | O158: x | P158: x | Q158: 1 | R158: - | S158: 1 | T158: - | U158: - | V158: - | W158: 1 | X158: - | Y158: - | Z158: - | AA158: 1 | AB158: 1 | AC158: 1 | AD158: 1 | AE158: 1 | AF158: 1 | AG158: 0 | AH158: 1 | AI158: 0 | AJ158: 1 | AK158: 1 | AL158: 0 | AM158: 0 | AN158: 1 | AO158: 1 | AP158: 1 | AQ158: 1
A159: 154 | C159: 滋野村２－２ | D159: 620 | E159: 111 | F159: 249 | G159: 83 | H159: 87 | I159: 79 | J159: 90.07 | K159: 90 | L159: 14 | M159: 3 | N159: 11 | O159: - | P159: - | Q159: 3 | R159: - | S159: 2 | T159: 1 | U159: - | V159: 1 | W159: 1 | X159: 1 | Y159: - | Z159: - | AA159: 1 | AB159: 3 | AC159: 3 | AD159: 3 | AE159: 3 | AF159: 3 | AG159: 0 | AH159: 3 | AI159: 2 | AJ159: 3 | AK159: 3 | AL159: 3 | AM159: 3 | AN159: 3 | AO159: 3 | AP159: 3 | AQ159: 3
A160: 155 | C160: 小沼村２－１－２ | D160: 99 | E160: 9 | F160: 46 | G160: - | H160: 40 | I160: 6 | J160: x | K160: 1 | L160: x | M160: x | N160: x | O160: x | P160: x | Q160: 1 | R160: - | S160: - | T160: 1 | U160: 1 | V160: - | W160: - | X160: - | Y160: - | Z160: - | AA160: 0 | AB160: 0 | AC160: 0 | AD160: 1 | AE160: 1 | AF160: 1 | AG160: 0 | AH160: 1 | AI160: 0 | AJ160: 1 | AK160: 0 | AL160: 0 | AM160: 0 | AN160: 1 | AO160: 0 | AP160: 1 | AQ160: 0
A161: 156 | B161: 伊那市 | D161: 66793 | E161: 52522 | F161: 5220 | G161: 3429 | H161: 1647 | I161: 144 | J161: 458.04 | K161: 1472 | L161: 300 | M161: 20 | N161: 281 | O161: 10 | P161: 25 | Q161: 237 | R161: 114 | S161: 76 | T161: 47 | U161: 56 | V161: 79 | W161: 72 | X161: 26 | Y161: 4 | Z161: - | AA161: 169 | AB161: 214 | AC161: 228 | AD161: 229 | AE161: 226 | AF161: 226 | AG161: 8 | AH161: 220 | AI161: 155 | AJ161: 197 | AK161: 121 | AL161: 39 | AM161: 21 | AN161: 231 | AO161: 143 | AP161: 224 | AQ161: 212
A162: 157 | C162: 伊那町 | D162: 5798 | E162: 3313 | F162: 1025 | G162: 652 | H162: 360 | I162: 13 | J162: 59.04 | K162: 321 | L162: 60 | M162: 4 | N162: 54 | O162: 1 | P162: 5 | Q162: 38 | R162: 12 | S162: 14 | T162: 12 | U162: 25 | V162: 10 | W162: 2 | X162: 1 | Y162: - | Z162: - | AA162: 25 | AB162: 32 | AC162: 38 | AD162: 38 | AE162: 38 | AF162: 38 | AG162: 0 | AH162: 33 | AI162: 16 | AJ162: 22 | AK162: 9 | AL162: 3 | AM162: 3 | AN162: 37 | AO162: 27 | AP162: 37 | AQ162: 31
A163: 158 | C163: 西箕輪村２－１ | D163: 2365 | E163: 1260 | F163: 652 | G163: 118 | H163: 471 | I163: 63 | J163: 100.44 | K163: 158 | L163: 54 | M163: 4 | N163: 53 | O163: 7 | P163: 4 | Q163: 9 | R163: - | S163: 1 | T163: 8 | U163: 2 | V163: 2 | W163: 4 | X163: 1 | Y163: - | Z163: - | AA163: 9 | AB163: 9 | AC163: 9 | AD163: 9 | AE163: 9 | AF163: 9 | AG163: 0 | AH163: 9 | AI163: 4 | AJ163: 9 | AK163: 8 | AL163: 3 | AM163: 2 | AN163: 9 | AO163: 5 | AP163: 9 | AQ163: 9
A164: 159 | C164: 手良村 | D164: 2488 | E164: 1917 | F164: 276 | G164: 200 | H164: 63 | I164: 13 | J164: 18.08 | K164: 98 | L164: 13 | M164: - | N164: 13 | O164: - | P164: 1 | Q164: 20 | R164: 11 | S164: 9 | T164: - | U164: - | V164: 4 | W164: 11 | X164: 4 | Y164: 1 | Z164: - | AA164: 19 | AB164: 20 | AC164: 20 | AD164: 20 | AE164: 20 | AF164: 20 | AG164: 0 | AH164: 20 | AI164: 14 | AJ164: 16 | AK164: 6 | AL164: 5 | AM164: 3 | AN164: 20 | AO164: 10 | AP164: 20 | AQ164: 20
A165: 160 | C165: 美篶村 | D165: 1348 | E165: 303 | F165: 497 | G165: 443 | H165: 47 | I165: 7 | J165: 26.16 | K165: 203 | L165: 24 | M165: 2 | N165: 23 | O165: - | P165: 1 | Q165: 11 | R165: 11 | S165: - | T165: - | U165: 1 | V165: 8 | W165: 2 | X165: - | Y165: - | Z165: - | AA165: 11 | AB165: 11 | AC165: 11 | AD165: 11 | AE165: 11 | AF165: 11 | AG165: 0 | AH165: 11 | AI165: 6 | AJ165: 10 | AK165: 4 | AL165: 1 | AM165: 1 | AN165: 11 | AO165: 6 | AP165: 11 | AQ165: 10
A166: 161 | C166: 富県村 | D166: 3309 | E166: 2309 | F166: 602 | G166: 483 | H166: 112 | I166: 7 | J166: 38.58 | K166: 129 | L166: 18 | M166: 3 | N166: 16 | O166: - | P166: 2 | Q166: 25 | R166: 20 | S166: 4 | T166: 1 | U166: 1 | V166: 5 | W166: 13 | X166: 6 | Y166: - | Z166: - | AA166: 24 | AB166: 25 | AC166: 25 | AD166: 25 | AE166: 25 | AF166: 25 | AG166: 0 | AH166: 25 | AI166: 25 | AJ166: 22 | AK166: 19 | AL166: 8 | AM166: 7 | AN166: 25 | AO166: 24 | AP166: 25 | AQ166: 25
A167: 162 | C167: 東春近村 | D167: 1676 | E167: 346 | F167: 726 | G167: 604 | H167: 114 | I167: 8 | J167: 16.91 | K167: 172 | L167: 32 | M167: 2 | N167: 30 | O167: - | P167: 2 | Q167: 25 | R167: 21 | S167: 2 | T167: 2 | U167: 2 | V167: 17 | W167: 4 | X167: 2 | Y167: - | Z167: - | AA167: 25 | AB167: 25 | AC167: 25 | AD167: 25 | AE167: 25 | AF167: 25 | AG167: 0 | AH167: 25 | AI167: 14 | AJ167: 16 | AK167: 7 | AL167: 1 | AM167: 1 | AN167: 24 | AO167: 15 | AP167: 25 | AQ167: 25
A168: 163 | C168: 西春近村 | D168: 3803 | E168: 2699 | F168: 633 | G168: 382 | H168: 241 | I168: 10 | J168: 37.64 | K168: 171 | L168: 40 | M168: 2 | N168: 39 | O168: 1 | P168: 1 | Q168: 23 | R168: 9 | S168: 9 | T168: 5 | U168: 1 | V168: 12 | W168: 9 | X168: 1 | Y168: - | Z168: - | AA168: 22 | AB168: 23 | AC168: 23 | AD168: 23 | AE168: 23 | AF168: 23 | AG168: 0 | AH168: 23 | AI168: 20 | AJ168: 21 | AK168: 18 | AL168: 1 | AM168: 0 | AN168: 23 | AO168: 19 | AP168: 23 | AQ168: 23
A169: 164 | C169: 高遠町 | D169: 1194 | E169: 950 | F169: 29 | G169: 11 | H169: 18 | I169: - | J169: 17.79 | K169: 6 | L169: 1 | M169: - | N169: 1 | O169: - | P169: - | Q169: 15 | R169: 1 | S169: 5 | T169: 9 | U169: 9 | V169: 5 | W169: 1 | X169: - | Y169: - | Z169: - | AA169: 1 | AB169: 7 | AC169: 14 | AD169: 15 | AE169: 13 | AF169: 13 | AG169: 0 | AH169: 11 | AI169: 0 | AJ169: 11 | AK169: 0 | AL169: 2 | AM169: 0 | AN169: 13 | AO169: 6 | AP169: 11 | AQ169: 7
A170: 165 | C170: 長藤村 | D170: 2140 | E170: 1884 | F170: 134 | G170: 74 | H170: 45 | I170: 15 | J170: 49.37 | K170: 33 | L170: 14 | M170: - | N170: 14 | O170: 1 | P170: 1 | Q170: 11 | R170: 1 | S170: 10 | T170: - | U170: - | V170: 1 | W170: 8 | X170: 2 | Y170: - | Z170: - | AA170: 11 | AB170: 11 | AC170: 11 | AD170: 11 | AE170: 11 | AF170: 11 | AG170: 0 | AH170: 11 | AI170: 11 | AJ170: 11 | AK170: 9 | AL170: 0 | AM170: 0 | AN170: 11 | AO170: 9 | AP170: 11 | AQ170: 11
A171: 166 | C171: 三義村 | D171: 4732 | E171: 4374 | F171: 57 | G171: 32 | H171: 25 | I171: - | J171: 12.63 | K171: 13 | L171: 7 | M171: - | N171: 5 | O171: - | P171: 2 | Q171: 14 | R171: 2 | S171: 7 | T171: 5 | U171: 5 | V171: 2 | W171: 4 | X171: 3 | Y171: - | Z171: - | AA171: 5 | AB171: 10 | AC171: 10 | AD171: 10 | AE171: 10 | AF171: 10 | AG171: 4 | AH171: 10 | AI171: 7 | AJ171: 14 | AK171: 9 | AL171: 0 | AM171: 0 | AN171: 14 | AO171: 9 | AP171: 10 | AQ171: 10
A172: 167 | C172: 藤沢村 | D172: 4406 | E172: 3890 | F172: 113 | G172: 85 | H172: 28 | I172: - | J172: 25.1 | K172: 11 | L172: 3 | M172: 1 | N172: 2 | O172: - | P172: 1 | Q172: 7 | R172: 4 | S172: 3 | T172: - | U172: - | V172: 5 | W172: - | X172: 2 | Y172: - | Z172: - | AA172: 6 | AB172: 7 | AC172: 7 | AD172: 7 | AE172: 7 | AF172: 7 | AG172: 0 | AH172: 7 | AI172: 7 | AJ172: 7 | AK172: 6 | AL172: 1 | AM172: 1 | AN172: 7 | AO172: 7 | AP172: 7 | AQ172: 7
A173: 168 | C173: 河南村 | D173: 1475 | E173: 928 | F173: 259 | G173: 191 | H173: 66 | I173: 2 | J173: 26.78 | K173: 53 | L173: 18 | M173: - | N173: 16 | O173: - | P173: 2 | Q173: 6 | R173: 4 | S173: 2 | T173: - | U173: - | V173: 1 | W173: 4 | X173: 1 | Y173: - | Z173: - | AA173: 6 | AB173: 6 | AC173: 6 | AD173: 6 | AE173: 6 | AF173: 6 | AG173: 0 | AH173: 6 | AI173: 6 | AJ173: 6 | AK173: 5 | AL173: 5 | AM173: 3 | AN173: 6 | AO173: 6 | AP173: 6 | AQ173: 6
A174: 169 | C174: 伊那里村 | D174: 18522 | E174: 16459 | F174: 56 | G174: 40 | H174: 16 | I174: - | J174: 11.28 | K174: 9 | L174: 1 | M174: - | N174: 1 | O174: - | P174: - | Q174: 15 | R174: 8 | S174: 3 | T174: 4 | U174: 9 | V174: 1 | W174: 5 | X174: - | Y174: - | Z174: - | AA174: 2 | AB174: 11 | AC174: 12 | AD174: 12 | AE174: 11 | AF174: 11 | AG174: 3 | AH174: 11 | AI174: 8 | AJ174: 14 | AK174: 5 | AL174: 1 | AM174: 0 | AN174: 14 | AO174: 0 | AP174: 11 | AQ174: 11
A175: 170 | C175: 美和村 | D175: 13537 | E175: 11890 | F175: 161 | G175: 114 | H175: 41 | I175: 6 | J175: 18.24 | K175: 95 | L175: 15 | M175: 2 | N175: 14 | O175: - | P175: 3 | Q175: 18 | R175: 10 | S175: 7 | T175: 1 | U175: 1 | V175: 6 | W175: 5 | X175: 3 | Y175: 3 | Z175: - | AA175: 3 | AB175: 17 | AC175: 17 | AD175: 17 | AE175: 17 | AF175: 17 | AG175: 1 | AH175: 18 | AI175: 17 | AJ175: 18 | AK175: 16 | AL175: 8 | AM175: 0 | AN175: 17 | AO175: 0 | AP175: 18 | AQ175: 17
A176: 171 | B176: 駒ヶ根市 | D176: 16586 | E176: 12112 | F176: 1884 | G176: 1405 | H176: 402 | I176: 77 | J176: 117.23 | K176: 760 | L176: 189 | M176: 16 | N176: 182 | O176: 14 | P176: 5 | Q176: 84 | R176: 61 | S176: 16 | T176: 7 | U176: 32 | V176: 20 | W176: 20 | X176: 9 | Y176: 3 | Z176: - | AA176: 76 | AB176: 82 | AC176: 84 | AD176: 84 | AE176: 83 | AF176: 82 | AG176: 0 | AH176: 79 | AI176: 76 | AJ176: 56 | AK176: 10 | AL176: 10 | AM176: 1 | AN176: 82 | AO176: 72 | AP176: 80 | AQ176: 80
A177: 172 | C177: 赤穂町 | D177: 8057 | E177: 4883 | F177: 1212 | G177: 955 | H177: 222 | I177: 35 | J177: 43.26 | K177: 400 | L177: 87 | M177: 8 | N177: 84 | O177: 4 | P177: 2 | Q177: 67 | R177: 52 | S177: 9 | T177: 6 | U177: 32 | V177: 18 | W177: 13 | X177: 3 | Y177: 1 | Z177: - | AA177: 59 | AB177: 65 | AC177: 67 | AD177: 67 | AE177: 67 | AF177: 67 | AG177: 0 | AH177: 62 | AI177: 59 | AJ177: 39 | AK177: 5 | AL177: 5 | AM177: 0 | AN177: 65 | AO177: 60 | AP177: 63 | AQ177: 63
A178: 173 | C178: 中沢村 | D178: 6793 | E178: 6000 | F178: 393 | G178: 270 | H178: 104 | I178: 19 | J178: 53.03 | K178: 195 | L178: 32 | M178: 4 | N178: 30 | O178: 2 | P178: 2 | Q178: 12 | R178: 7 | S178: 4 | T178: 1 | U178: - | V178: 2 | W178: 4 | X178: 4 | Y178: 2 | Z178: - | AA178: 12 | AB178: 12 | AC178: 12 | AD178: 12 | AE178: 11 | AF178: 10 | AG178: 0 | AH178: 12 | AI178: 12 | AJ178: 12 | AK178: 2 | AL178: 2 | AM178: 1 | AN178: 12 | AO178: 8 | AP178: 12 | AQ178: 12
A179: 174 | C179: 伊那村 | D179: 1736 | E179: 1229 | F179: 279 | G179: 180 | H179: 76 | I179: 23 | J179: 20.94 | K179: 165 | L179: 70 | M179: 4 | N179: 68 | O179: 8 | P179: 1 | Q179: 5 | R179: 2 | S179: 3 | T179: - | U179: - | V179: - | W179: 3 | X179: 2 | Y179: - | Z179: - | AA179: 5 | AB179: 5 | AC179: 5 | AD179: 5 | AE179: 5 | AF179: 5 | AG179: 0 | AH179: 5 | AI179: 5 | AJ179: 5 | AK179: 3 | AL179: 3 | AM179: 0 | AN179: 5 | AO179: 4 | AP179: 5 | AQ179: 5
A180: 175 | B180: 中野市 | D180: 11218 | E180: 4714 | F180: 3026 | G180: 607 | H180: 895 | I180: 1524 | J180: 493.33 | K180: 2018 | L180: 459 | M180: 59 | N180: 434 | O180: 30 | P180: 13 | Q180: 74 | R180: 4 | S180: 24 | T180: 46 | U180: 14 | V180: 16 | W180: 19 | X180: 15 | Y180: 9 | Z180: 1 | AA180: 53 | AB180: 72 | AC180: 68 | AD180: 72 | AE180: 71 | AF180: 69 | AG180: 2 | AH180: 71 | AI180: 15 | AJ180: 54 | AK180: 11 | AL180: 20 | AM180: 7 | AN180: 74 | AO180: 41 | AP180: 74 | AQ180: 68
A181: 176 | C181: 中野町 | D181: 768 | E181: 126 | F181: 204 | G181: 50 | H181: 53 | I181: 101 | J181: 36.92 | K181: 169 | L181: 33 | M181: 4 | N181: 32 | O181: 2 | P181: - | Q181: 11 | R181: - | S181: 4 | T181: 7 | U181: 8 | V181: 3 | W181: - | X181: - | Y181: - | Z181: - | AA181: 7 | AB181: 11 | AC181: 8 | AD181: 11 | AE181: 11 | AF181: 11 | AG181: 0 | AH181: 8 | AI181: 0 | AJ181: 4 | AK181: 0 | AL181: 0 | AM181: 0 | AN181: 11 | AO181: 2 | AP181: 11 | AQ181: 8
A182: 177 | C182: 日野村（中野市） | D182: 1064 | E182: 751 | F182: 183 | G182: 28 | H182: 100 | I182: 55 | J182: 39.53 | K182: 141 | L182: 23 | M182: - | N182: 22 | O182: 2 | P182: 1 | Q182: 4 | R182: - | S182: - | T182: 4 | U182: - | V182: - | W182: 2 | X182: 2 | Y182: - | Z182: - | AA182: 4 | AB182: 4 | AC182: 4 | AD182: 4 | AE182: 4 | AF182: 4 | AG182: 0 | AH182: 4 | AI182: 1 | AJ182: 4 | AK182: 1 | AL182: 1 | AM182: 1 | AN182: 4 | AO182: 4 | AP182: 4 | AQ182: 4
A183: 178 | C183: 延徳村 | D183: 791 | E183: 305 | F183: 237 | G183: 100 | H183: 115 | I183: 22 | J183: 40.88 | K183: 168 | L183: 26 | M183: 4 | N183: 25 | O183: - | P183: 1 | Q183: 6 | R183: - | S183: 3 | T183: 3 | U183: - | V183: 3 | W183: 1 | X183: 1 | Y183: 1 | Z183: - | AA183: 6 | AB183: 6 | AC183: 6 | AD183: 6 | AE183: 6 | AF183: 6 | AG183: 0 | AH183: 6 | AI183: 0 | AJ183: 4 | AK183: 1 | AL183: 2 | AM183: 1 | AN183: 6 | AO183: 5 | AP183: 6 | AQ183: 6
A184: 179 | C184: 平野村 | D184: 742 | E184: 79 | F184: 260 | G184: 52 | H184: 146 | I184: 62 | J184: 62.93 | K184: 184 | L184: 41 | M184: 6 | N184: 37 | O184: 4 | P184: 2 | Q184: 7 | R184: - | S184: 2 | T184: 5 | U184: 4 | V184: 3 | W184: - | X184: - | Y184: - | Z184: - | AA184: 4 | AB184: 7 | AC184: 7 | AD184: 7 | AE184: 7 | AF184: 7 | AG184: 0 | AH184: 7 | AI184: 2 | AJ184: 2 | AK184: 1 | AL184: 1 | AM184: 0 | AN184: 7 | AO184: 7 | AP184: 7 | AQ184: 7
A185: 180 | C185: 高丘村 | D185: 673 | E185: 69 | F185: 306 | G185: 37 | H185: 89 | I185: 180 | J185: 41.07 | K185: 195 | L185: 80 | M185: 8 | N185: 75 | O185: 6 | P185: 5 | Q185: 5 | R185: - | S185: - | T185: 5 | U185: - | V185: 2 | W185: 3 | X185: - | Y185: - | Z185: - | AA185: 5 | AB185: 5 | AC185: 5 | AD185: 5 | AE185: 5 | AF185: 5 | AG185: 0 | AH185: 5 | AI185: 0 | AJ185: 5 | AK185: 0 | AL185: 1 | AM185: 1 | AN185: 5 | AO185: 3 | AP185: 5 | AQ185: 5
A186: 181 | C186: 長丘村 | D186: 706 | E186: 142 | F186: 301 | G186: 68 | H186: 80 | I186: 153 | J186: 63.05 | K186: 177 | L186: 40 | M186: 3 | N186: 39 | O186: 5 | P186: 1 | Q186: 5 | R186: - | S186: 2 | T186: 3 | U186: - | V186: - | W186: 2 | X186: 1 | Y186: 1 | Z186: 1 | AA186: 3 | AB186: 5 | AC186: 5 | AD186: 5 | AE186: 5 | AF186: 5 | AG186: 0 | AH186: 5 | AI186: 0 | AJ186: 5 | AK186: 1 | AL186: 1 | AM186: 1 | AN186: 5 | AO186: 5 | AP186: 5 | AQ186: 5
A187: 182 | C187: 平岡村（中野市） | D187: 724 | E187: 1 | F187: 432 | G187: 12 | H187: 60 | I187: 360 | J187: 33.17 | K187: 305 | L187: 67 | M187: 14 | N187: 60 | O187: 10 | P187: 2 | Q187: 8 | R187: - | S187: 1 | T187: 7 | U187: - | V187: 3 | W187: 4 | X187: - | Y187: 1 | Z187: - | AA187: 8 | AB187: 8 | AC187: 8 | AD187: 8 | AE187: 8 | AF187: 8 | AG187: 0 | AH187: 8 | AI187: 0 | AJ187: 2 | AK187: 0 | AL187: 0 | AM187: 0 | AN187: 8 | AO187: 7 | AP187: 8 | AQ187: 8
A188: 183 | C188: 科野村 | D188: 1010 | E188: 537 | F188: 296 | G188: 26 | H188: 40 | I188: 230 | J188: 29.82 | K188: 198 | L188: 27 | M188: 3 | N188: 26 | O188: 1 | P188: - | Q188: 3 | R188: - | S188: - | T188: 3 | U188: - | V188: - | W188: 2 | X188: - | Y188: 1 | Z188: - | AA188: 3 | AB188: 3 | AC188: 3 | AD188: 3 | AE188: 3 | AF188: 3 | AG188: 0 | AH188: 3 | AI188: 1 | AJ188: 3 | AK188: 2 | AL188: 1 | AM188: 0 | AN188: 3 | AO188: 2 | AP188: 3 | AQ188: 3
A189: 184 | C189: 倭村（中野市） | D189: 1262 | E189: 790 | F189: 289 | G189: 74 | H189: 129 | I189: 86 | J189: 37.1 | K189: 169 | L189: 28 | M189: 3 | N189: 27 | O189: - | P189: - | Q189: 5 | R189: - | S189: 2 | T189: 3 | U189: - | V189: 1 | W189: - | X189: 3 | Y189: 1 | Z189: - | AA189: 5 | AB189: 5 | AC189: 5 | AD189: 5 | AE189: 4 | AF189: 5 | AG189: 0 | AH189: 5 | AI189: 1 | AJ189: 5 | AK189: 1 | AL189: 1 | AM189: 0 | AN189: 5 | AO189: 2 | AP189: 5 | AQ189: 4
A190: 185 | C190: 豊井村 | D190: 1399 | E190: 558 | F190: 296 | G190: 62 | H190: 36 | I190: 198 | J190: 53.07 | K190: 165 | L190: 59 | M190: 11 | N190: 56 | O190: - | P190: 1 | Q190: 8 | R190: - | S190: 4 | T190: 4 | U190: - | V190: - | W190: 5 | X190: 2 | Y190: 1 | Z190: - | AA190: 2 | AB190: 8 | AC190: 8 | AD190: 8 | AE190: 8 | AF190: 8 | AG190: 0 | AH190: 8 | AI190: 4 | AJ190: 8 | AK190: 0 | AL190: 2 | AM190: 1 | AN190: 8 | AO190: 3 | AP190: 8 | AQ190: 8
A191: 186 | C191: 永田村 | D191: 2079 | E191: 1356 | F191: 222 | G191: 98 | H191: 47 | I191: 77 | J191: 55.79 | K191: 147 | L191: 35 | M191: 3 | N191: 35 | O191: - | P191: - | Q191: 12 | R191: 4 | S191: 6 | T191: 2 | U191: 2 | V191: 1 | W191: - | X191: 6 | Y191: 3 | Z191: - | AA191: 6 | AB191: 10 | AC191: 9 | AD191: 10 | AE191: 10 | AF191: 7 | AG191: 2 | AH191: 12 | AI191: 6 | AJ191: 12 | AK191: 4 | AL191: 10 | AM191: 2 | AN191: 12 | AO191: 1 | AP191: 12 | AQ191: 10
A192: 187 | B192: 大町市 | D192: 56515 | E192: 40673 | F192: 2587 | G192: 2229 | H192: 276 | I192: 82 | J192: 179.81 | K192: 1120 | L192: 160 | M192: 9 | N192: 151 | O192: 4 | P192: 18 | Q192: 175 | R192: 95 | S192: 21 | T192: 59 | U192: 57 | V192: 42 | W192: 35 | X192: 26 | Y192: 12 | Z192: 3 | AA192: 114 | AB192: 115 | AC192: 123 | AD192: 148 | AE192: 146 | AF192: 146 | AG192: 27 | AH192: 150 | AI192: 52 | AJ192: 127 | AK192: 35 | AL192: 26 | AM192: 12 | AN192: 125 | AO192: 69 | AP192: 130 | AQ192: 93
A193: 188 | C193: 大町 | D193: 2099 | E193: 1004 | F193: 369 | G193: 317 | H193: 36 | I193: 16 | J193: 21.79 | K193: 178 | L193: 36 | M193: 4 | N193: 34 | O193: 3 | P193: 7 | Q193: 25 | R193: 12 | S193: 2 | T193: 11 | U193: 20 | V193: 5 | W193: - | X193: - | Y193: - | Z193: - | AA193: 15 | AB193: 12 | AC193: 25 | AD193: 25 | AE193: 25 | AF193: 25 | AG193: 0 | AH193: 24 | AI193: 0 | AJ193: 6 | AK193: 3 | AL193: 2 | AM193: 0 | AN193: 18 | AO193: 4 | AP193: 18 | AQ193: 1
A194: 189 | C194: 平村 | D194: 35846 | E194: 23725 | F194: 682 | G194: 606 | H194: 53 | I194: 23 | J194: 58.68 | K194: 258 | L194: 25 | M194: 2 | N194: 21 | O194: - | P194: 5 | Q194: 28 | R194: 24 | S194: 3 | T194: 1 | U194: 2 | V194: 11 | W194: 10 | X194: 4 | Y194: 1 | Z194: - | AA194: 27 | AB194: 27 | AC194: 28 | AD194: 28 | AE194: 28 | AF194: 27 | AG194: 0 | AH194: 28 | AI194: 4 | AJ194: 21 | AK194: 14 | AL194: 12 | AM194: 4 | AN194: 28 | AO194: 28 | AP194: 28 | AQ194: 26
A195: 190 | C195: 常盤村（大町市） | D195: 7109 | E195: 5961 | F195: 1010 | G195: 926 | H195: 50 | I195: 34 | J195: 22.04 | K195: 409 | L195: 69 | M195: 3 | N195: 66 | O195: 1 | P195: 6 | Q195: 32 | R195: 32 | S195: - | T195: - | U195: 3 | V195: 10 | W195: 9 | X195: 6 | Y195: 4 | Z195: - | AA195: 23 | AB195: 31 | AC195: 12 | AD195: 32 | AE195: 30 | AF195: 32 | AG195: 0 | AH195: 32 | AI195: 30 | AJ195: 14 | AK195: 12 | AL195: 1 | AM195: 0 | AN195: 32 | AO195: 31 | AP195: 32 | AQ195: 31
A196: 191 | C196: 社村 | D196: 1460 | E196: 884 | F196: 290 | G196: 265 | H196: 25 | I196: - | J196: 16.42 | K196: 138 | L196: 16 | M196: - | N196: 16 | O196: - | P196: - | Q196: 10 | R196: 9 | S196: 1 | T196: - | U196: - | V196: 4 | W196: 5 | X196: 1 | Y196: - | Z196: - | AA196: 10 | AB196: 7 | AC196: 10 | AD196: 10 | AE196: 10 | AF196: 10 | AG196: 0 | AH196: 10 | AI196: 5 | AJ196: 6 | AK196: 2 | AL196: 0 | AM196: 0 | AN196: 10 | AO196: 2 | AP196: 10 | AQ196: 6
A197: 192 | C197: 八坂村２－１ | D197: 3367 | E197: 2965 | F197: 103 | G197: 34 | H197: 63 | I197: 6 | J197: 25.98 | K197: 68 | L197: 6 | M197: - | N197: 6 | O197: - | P197: - | Q197: 37 | R197: 8 | S197: 3 | T197: 26 | U197: 15 | V197: 4 | W197: 6 | X197: 7 | Y197: 3 | Z197: 2 | AA197: 23 | AB197: 19 | AC197: 22 | AD197: 25 | AE197: 25 | AF197: 24 | AG197: 12 | AH197: 26 | AI197: 9 | AJ197: 37 | AK197: 0 | AL197: 4 | AM197: 3 | AN197: 22 | AO197: 0 | AP197: 19 | AQ197: 16
A198: 193 | C198: 広津村３－３ | D198: 27 | E198: 21 | F198: 0 | G198: - | H198: 0 | I198: - | J198: - | K198: - | L198: - | M198: - | N198: - | O198: - | P198: - | Q198: 1 | R198: - | S198: - | T198: 1 | U198: 1 | V198: - | W198: - | X198: - | Y198: - | Z198: - | AA198: 0 | AB198: 0 | AC198: 0 | AD198: 0 | AE198: 0 | AF198: 0 | AG198: 1 | AH198: 1 | AI198: 0 | AJ198: 1 | AK198: 0 | AL198: 0 | AM198: 0 | AN198: 1 | AO198: 0 | AP198: 0 | AQ198: 0
A199: 194 | C199: 美麻村 | D199: 6607 | E199: 6113 | F199: 133 | G199: 81 | H199: 49 | I199: 3 | J199: 34.9 | K199: 69 | L199: 8 | M199: - | N199: 8 | O199: - | P199: - | Q199: 42 | R199: 10 | S199: 12 | T199: 20 | U199: 16 | V199: 8 | W199: 5 | X199: 8 | Y199: 4 | Z199: 1 | AA199: 16 | AB199: 19 | AC199: 26 | AD199: 28 | AE199: 28 | AF199: 28 | AG199: 14 | AH199: 29 | AI199: 4 | AJ199: 42 | AK199: 4 | AL199: 7 | AM199: 5 | AN199: 14 | AO199: 4 | AP199: 23 | AQ199: 13
A200: 195 | B200: 飯山市 | D200: 20243 | E200: 12470 | F200: 3415 | G200: 1855 | H200: 1523 | I200: 37 | J200: 500.59 | K200: 1220 | L200: 212 | M200: 13 | N200: 183 | O200: 4 | P200: 30 | Q200: 117 | R200: 28 | S200: 53 | T200: 36 | U200: 22 | V200: 12 | W200: 23 | X200: 50 | Y200: 8 | Z200: 2 | AA200: 89 | AB200: 98 | AC200: 102 | AD200: 103 | AE200: 106 | AF200: 97 | AG200: 10 | AH200: 109 | AI200: 61 | AJ200: 99 | AK200: 20 | AL200: 42 | AM200: 33 | AN200: 110 | AO200: 72 | AP200: 105 | AQ200: 95
... 305 more rows

Sheet 指定地域 (hidden)
B1: KCITY_NAME | C1: 森林地域_森林地域 | D1: 農業地域_農業地域 | E1: 都市地域_市街化区域 | F1: 都市地域_市街化調整 | G1: 商業関連 | H1: 工業関連
A2: 1 | B2: 長野県 | C2: 328006 | D2: 492501 | E2: 12629 | F2: 54999 | G2: 2344 | H2: 7321
A3: 2 | B3: 長野市 | C3: 11167 | D3: 45926 | E3: 6186 | F3: 14207 | G3: 443 | H3: 1131
A4: 3 | B4: 長野市（旧） | C4: 0 | D4: 427 | E4: 2404 | F4: 571 | G4: 363 | H4: 495
A5: 4 | B5: 芋井村 | C5: 108 | D5: 2646 | E5: 0 | F5: 6 | G5: 0 | H5: 0
A6: 5 | B6: 浅川村 | C6: 3 | D6: 1863 | E6: 78 | F6: 467 | G6: 0 | H6: 0
A7: 6 | B7: 若槻村 | C7: 50 | D7: 727 | E7: 333 | F7: 829 | G7: 0 | H7: 18
A8: 7 | B8: 古里村 | C8: 10 | D8: 278 | E8: 236 | F8: 278 | G8: 0 | H8: 33
A9: 8 | B9: 長沼村 | C9: 0 | D9: 689 | E9: 12 | F9: 689 | G9: 0 | H9: 12
A10: 9 | B10: 柳原村（長野市） | C10: 0 | D10: 284 | E10: 116 | F10: 284 | G10: 0 | H10: 33
A11: 10 | B11: 朝陽村 | C11: 0 | D11: 360 | E11: 254 | F11: 360 | G11: 0 | H11: 57
A12: 11 | B12: 大豆島村 | C12: 0 | D12: 254 | E12: 251 | F12: 254 | G12: 0 | H12: 103
A13: 12 | B13: 安茂里村 | C13: 0 | D13: 428 | E13: 395 | F13: 841 | G13: 0 | H13: 36
A14: 13 | B14: 小田切村 | C14: 234 | D14: 1451 | E14: 0 | F14: 4 | G14: 0 | H14: 0
A15: 14 | B15: 篠ノ井町 | C15: 7 | D15: 257 | E15: 404 | F15: 257 | G15: 29 | H15: 82
A16: 15 | B16: 川柳村 | C16: 63 | D16: 330 | E16: 63 | F16: 330 | G16: 0 | H16: 3
A17: 16 | B17: 塩崎村 | C17: 0 | D17: 751 | E17: 76 | F17: 705 | G17: 0 | H17: 2
A18: 17 | B18: 東福寺村 | C18: 0 | D18: 379 | E18: 40 | F18: 379 | G18: 0 | H18: 10
A19: 18 | B19: 信里村 | C19: 145 | D19: 1236 | E19: 0 | F19: 26 | G19: 0 | H19: 0
A20: 19 | B20: 西寺尾村２－１ | C20: 0 | D20: 165 | E20: 53 | F20: 165 | G20: 0 | H20: 0
A21: 20 | B21: 共和村 | C21: 0 | D21: 653 | E21: 38 | F21: 885 | G21: 0 | H21: 16
A22: 21 | B22: 川中島村 | C22: 0 | D22: 327 | E22: 125 | F22: 337 | G22: 2 | H22: 0
A23: 22 | B23: 中津村（長野市） | C23: 0 | D23: 158 | E23: 152 | F23: 158 | G23: 0 | H23: 34
A24: 23 | B24: 御厨村 | C24: 0 | D24: 203 | E24: 51 | F24: 203 | G24: 0 | H24: 23
A25: 24 | B25: 信田村 | C25: 48 | D25: 1622 | E25: 0 | F25: 13 | G25: 0 | H25: 0
A26: 25 | B26: 更府村 | C26: 23 | D26: 1147 | E26: 0 | F26: 0 | G26: 0 | H26: 0
A27: 26 | B27: 青木島村 | C27: 0 | D27: 287 | E27: 286 | F27: 287 | G27: 14 | H27: 43
A28: 27 | B28: 稲里村 | C28: 0 | D28: 196 | E28: 217 | F28: 196 | G28: 0 | H28: 65
A29: 28 | B29: 小島田村 | C29: 0 | D29: 272 | E29: 0 | F29: 272 | G29: 0 | H29: 1
A30: 29 | B30: 真島村 | C30: 0 | D30: 441 | E30: 27 | F30: 441 | G30: 0 | H30: 0
A31: 30 | B31: 松代町 | C31: 0 | D31: 4 | E31: 146 | F31: 4 | G31: 25 | H31: 1
A32: 31 | B32: 東条村 | C32: 474 | D32: 453 | E32: 29 | F32: 491 | G32: 0 | H32: 0
A33: 32 | B33: 清野村 | C33: 233 | D33: 364 | E33: 6 | F33: 455 | G33: 0 | H33: 0
A34: 33 | B34: 豊栄村 | C34: 1777 | D34: 726 | E34: 0 | F34: 11 | G34: 0 | H34: 0
A35: 34 | B35: 寺尾村 | C35: 407 | D35: 710 | E35: 32 | F35: 886 | G35: 0 | H35: 5
A36: 35 | B36: 西寺尾村２－２ | C36: 0 | D36: 84 | E36: 14 | F36: 84 | G36: 0 | H36: 10
A37: 36 | B37: 西条村 | C37: 1019 | D37: 640 | E37: 23 | F37: 182 | G37: 0 | H37: 0
A38: 37 | B38: 保科村 | C38: 2936 | D38: 931 | E38: 0 | F38: 324 | G38: 0 | H38: 0
A39: 38 | B39: 川田村 | C39: 160 | D39: 607 | E39: 0 | F39: 766 | G39: 0 | H39: 0
A40: 39 | B40: 綿内村 | C40: 667 | D40: 833 | E40: 99 | F40: 727 | G40: 3 | H40: 0
A41: 40 | B41: 七二会村 | C41: 384 | D41: 1411 | E41: 0 | F41: 0 | G41: 0 | H41: 0
A42: 41 | B42: 神郷村 | C42: 380 | D42: 852 | E42: 121 | F42: 619 | G42: 5 | H42: 9
A43: 42 | B43: 鳥居村 | C43: 287 | D43: 593 | E43: 106 | F43: 426 | G43: 2 | H43: 39
A44: 43 | B44: 戸隠村 | C44: 19 | D44: 1543 | E44: 0 | F44: 0 | G44: 0 | H44: 0
A45: 44 | B45: 柵村 | C45: 54 | D45: 1178 | E45: 0 | F45: 0 | G45: 0 | H45: 0
A46: 45 | B46: 鬼無里村 | C46: 50 | D46: 5782 | E46: 0 | F46: 0 | G46: 0 | H46: 0
A47: 46 | B47: 大岡村 | C47: 19 | D47: 2999 | E47: 0 | F47: 0 | G47: 0 | H47: 0
A48: 47 | B48: 牧郷村２－２ | C48: 6 | D48: 833 | E48: 0 | F48: 0 | G48: 0 | H48: 0
A49: 48 | B49: 水内村（長野市） | C49: 282 | D49: 798 | E49: 0 | F49: 0 | G49: 0 | H49: 0
A50: 49 | B50: 津和村 | C50: 235 | D50: 2143 | E50: 0 | F50: 0 | G50: 0 | H50: 0
A51: 50 | B51: 日原村 | C51: 0 | D51: 233 | E51: 0 | F51: 0 | G51: 0 | H51: 0
A52: 51 | B52: 八坂村２－２ | C52: 0 | D52: 104 | E52: 0 | F52: 0 | G52: 0 | H52: 0
A53: 52 | B53: 信級村 | C53: 0 | D53: 421 | E53: 0 | F53: 0 | G53: 0 | H53: 0
A54: 53 | B54: 牧郷村２－１ | C54: 1 | D54: 1228 | E54: 0 | F54: 0 | G54: 0 | H54: 0
A55: 54 | B55: 栄村（長野市） | C55: 708 | D55: 1508 | E55: 0 | F55: 0 | G55: 0 | H55: 0
A56: 55 | B56: 日里村 | C56: 381 | D56: 1118 | E56: 0 | F56: 0 | G56: 0 | H56: 0
A57: 56 | B57: 松本市 | C57: 385 | D57: 26160 | E57: 3883 | F57: 24505 | G57: 275 | H57: 984
A58: 57 | B58: 松本市（旧） | C58: 39 | D58: 219 | E58: 1876 | F58: 220 | G58: 195 | H58: 462
A59: 58 | B59: 島内村 | C59: 3 | D59: 1369 | E59: 168 | F59: 1370 | G59: 5 | H59: 4
A60: 59 | B60: 中山村 | C60: 106 | D60: 1096 | E60: 0 | F60: 2139 | G60: 0 | H60: 0
A61: 60 | B61: 島立村 | C61: 0 | D61: 545 | E61: 84 | F61: 545 | G61: 3 | H61: 0
A62: 61 | B62: 和田村（松本市） | C62: 0 | D62: 701 | E62: 81 | F62: 699 | G62: 0 | H62: 84
A63: 62 | B63: 笹賀村 | C63: 11 | D63: 644 | E63: 238 | F63: 644 | G63: 0 | H63: 153
A64: 63 | B64: 芳川村 | C64: 0 | D64: 150 | E64: 416 | F64: 155 | G64: 13 | H64: 143
A65: 64 | B65: 寿村 | C65: 93 | D65: 683 | E65: 265 | F65: 683 | G65: 2 | H65: 0
A66: 65 | B66: 岡田村 | C66: 0 | D66: 658 | E66: 144 | F66: 910 | G66: 0 | H66: 0
A67: 66 | B67: 入山辺村 | C67: 1 | D67: 1644 | E67: 0 | F67: 7693 | G67: 0 | H67: 0
A68: 67 | B68: 里山辺村 | C68: 0 | D68: 479 | E68: 168 | F68: 976 | G68: 17 | H68: 0
A69: 68 | B69: 今井村 | C69: 12 | D69: 1012 | E69: 145 | F69: 994 | G69: 0 | H69: 129
A70: 69 | B70: 新村 | C70: 0 | D70: 462 | E70: 0 | F70: 462 | G70: 0 | H70: 0
A71: 70 | B71: 神林村 | C71: 0 | D71: 539 | E71: 19 | F71: 539 | G71: 0 | H71: 1
A72: 71 | B72: 片丘村２－２ | C72: 8 | D72: 682 | E72: 15 | F72: 1133 | G72: 0 | H72: 0
A73: 72 | B73: 本郷村（松本市） | C73: 18 | D73: 1719 | E73: 261 | F73: 3392 | G73: 27 | H73: 0
A74: 73 | B74: 洗馬村２－２ | C74: 0 | D74: 39 | E74: 0 | F74: 6 | G74: 0 | H74: 0
A75: 74 | B75: 錦部村 | C75: 0 | D75: 1694 | E75: 0 | F75: 1 | G75: 0 | H75: 0
A76: 75 | B76: 会田村 | C76: 26 | D76: 1260 | E76: 0 | F76: 0 | G76: 0 | H76: 0
A77: 76 | B77: 五常村 | C77: 15 | D77: 1175 | E77: 0 | F77: 1 | G77: 0 | H77: 0
A78: 77 | B78: 中川村（松本市） | C78: 10 | D78: 1731 | E78: 0 | F78: 0 | G78: 0 | H78: 0
A79: 78 | B79: 安曇村 | C79: 10 | D79: 1500 | E79: 0 | F79: 0 | G79: 0 | H79: 0
A80: 79 | B80: 奈川村 | C80: 21 | D80: 2790 | E80: 0 | F80: 0 | G80: 0 | H80: 0
A81: 80 | B81: 梓村 | C81: 0 | D81: 1224 | E81: 0 | F81: 1281 | G81: 0 | H81: 0
A82: 81 | B82: 倭村（松本市） | C82: 0 | D82: 636 | E82: 0 | F82: 634 | G82: 0 | H82: 0
A83: 82 | B83: 波田町 | C83: 12 | D83: 1506 | E83: 2 | F83: 27 | G83: 13 | H83: 7
A84: 83 | B84: 上田市 | C84: 19272 | D84: 19497 | E84: 0 | F84: 1 | G84: 199 | H84: 355
A85: 84 | B85: 上田市（旧） | C85: 625 | D85: 322 | E85: 0 | F85: 0 | G85: 154 | H85: 172
A86: 85 | B86: 塩尻村 | C86: 309 | D86: 248 | E86: 0 | F86: 0 | G86: 23 | H86: 56
A87: 86 | B87: 川辺村（上田市） | C87: 107 | D87: 467 | E87: 0 | F87: 0 | G87: 1 | H87: 0
A88: 87 | B88: 泉田村２－２ | C88: 1 | D88: 322 | E88: 0 | F88: 0 | G88: 0 | H88: 0
A89: 88 | B89: 神川村 | C89: 2 | D89: 425 | E89: 0 | F89: 0 | G89: 0 | H89: 25
A90: 89 | B90: 神科村 | C90: 814 | D90: 1131 | E90: 0 | F90: 0 | G90: 0 | H90: 5
A91: 90 | B91: 豊里村 | C91: 103 | D91: 452 | E91: 0 | F91: 0 | G91: 0 | H91: 0
A92: 91 | B92: 殿城村 | C92: 689 | D92: 764 | E92: 0 | F92: 0 | G92: 0 | H92: 0
A93: 92 | B93: 中塩田村 | C93: 4 | D93: 967 | E93: 0 | F93: 0 | G93: 0 | H93: 0
A94: 93 | B94: 別所村 | C94: 7 | D94: 227 | E94: 0 | F94: 0 | G94: 0 | H94: 0
A95: 94 | B95: 西塩田村 | C95: 16 | D95: 743 | E95: 0 | F95: 0 | G95: 0 | H95: 0
A96: 95 | B96: 東塩田村 | C96: 502 | D96: 1236 | E96: 0 | F96: 0 | G96: 0 | H96: 0
A97: 96 | B97: 泉田村２－１ | C97: 1 | D97: 273 | E97: 0 | F97: 0 | G97: 0 | H97: 0
A98: 97 | B98: 室賀村 | C98: 0 | D98: 379 | E98: 0 | F98: 0 | G98: 0 | H98: 0
A99: 98 | B99: 浦里村２－１ | C99: 0 | D99: 719 | E99: 0 | F99: 0 | G99: 0 | H99: 0
A100: 99 | B100: 丸子町 | C100: 177 | D100: 1195 | E100: 0 | F100: 0 | G100: 15 | H100: 57
A101: 100 | B101: 東内村 | C101: 2 | D101: 369 | E101: 0 | F101: 0 | G101: 0 | H101: 0
A102: 101 | B102: 西内村 | C102: 0 | D102: 369 | E102: 0 | F102: 0 | G102: 0 | H102: 0
A103: 102 | B103: 依田村 | C103: 449 | D103: 1273 | E103: 0 | F103: 0 | G103: 0 | H103: 0
A104: 103 | B104: 長瀬村 | C104: 49 | D104: 278 | E104: 0 | F104: 0 | G104: 2 | H104: 26
A105: 104 | B105: 塩川村 | C105: 262 | D105: 937 | E105: 0 | F105: 0 | G105: 3 | H105: 15
A106: 105 | B106: 傍陽村 | C106: 6954 | D106: 1087 | E106: 0 | F106: 0 | G106: 0 | H106: 0
A107: 106 | B107: 本原村 | C107: 464 | D107: 458 | E107: 0 | F107: 0 | G107: 0 | H107: 0
A108: 107 | B108: 長村 | C108: 7733 | D108: 3441 | E108: 0 | F108: 0 | G108: 0 | H108: 0
A109: 108 | B109: 武石村 | C109: 1 | D109: 1413 | E109: 0 | F109: 1 | G109: 0 | H109: 0
A110: 109 | B110: 岡谷市 | C110: 1118 | D110: 123 | E110: 0 | F110: 24 | G110: 73 | H110: 514
A111: 110 | B111: 岡谷市（旧） | C111: 9 | D111: 95 | E111: 0 | F111: 24 | G111: 73 | H111: 296
A112: 111 | B112: 湊村 | C112: 619 | D112: 17 | E112: 0 | F112: 0 | G112: 0 | H112: 0
A113: 112 | B113: 川岸村 | C113: 490 | D113: 0 | E113: 0 | F113: 0 | G113: 0 | H113: 19
A114: 113 | B114: 長地村２－１ | C114: 0 | D114: 10 | E114: 0 | F114: 0 | G114: 0 | H114: 199
A115: 114 | B115: 飯田市 | C115: 41042 | D115: 16409 | E115: 0 | F115: 0 | G115: 195 | H115: 392
A116: 115 | B116: 飯田市（旧） | C116: 11 | D116: 129 | E116: 0 | F116: 0 | G116: 121 | H116: 42
A117: 116 | B117: 竜丘村 | C117: 223 | D117: 748 | E117: 0 | F117: 0 | G117: 0 | H117: 21
A118: 117 | B118: 下久堅村 | C118: 468 | D118: 1192 | E118: 0 | F118: 0 | G118: 0 | H118: 0
A119: 118 | B119: 座光寺村 | C119: 53 | D119: 611 | E119: 0 | F119: 0 | G119: 0 | H119: 0
A120: 119 | B120: 松尾村 | C120: 52 | D120: 344 | E120: 0 | F120: 0 | G120: 38 | H120: 136
A121: 120 | B121: 山本村 | C121: 231 | D121: 1447 | E121: 0 | F121: 0 | G121: 0 | H121: 0
A122: 121 | B122: 三穂村 | C122: 188 | D122: 1251 | E122: 0 | F122: 0 | G122: 0 | H122: 0
A123: 122 | B123: 伊賀良村 | C123: 205 | D123: 1248 | E123: 0 | F123: 0 | G123: 12 | H123: 83
A124: 123 | B124: 川路村 | C124: 223 | D124: 526 | E124: 0 | F124: 0 | G124: 4 | H124: 28
A125: 124 | B125: 千代村 | C125: 5121 | D125: 1339 | E125: 0 | F125: 0 | G125: 0 | H125: 0
A126: 125 | B126: 竜江村 | C126: 629 | D126: 1225 | E126: 0 | F126: 0 | G126: 0 | H126: 0
A127: 126 | B127: 上久堅村 | C127: 1097 | D127: 1041 | E127: 0 | F127: 0 | G127: 0 | H127: 0
A128: 127 | B128: 鼎町 | C128: 27 | D128: 331 | E128: 0 | F128: 0 | G128: 17 | H128: 49
A129: 128 | B129: 上郷町 | C129: 39 | D129: 783 | E129: 0 | F129: 0 | G129: 3 | H129: 33
A130: 129 | B130: 上村 | C130: 13051 | D130: 2123 | E130: 0 | F130: 0 | G130: 0 | H130: 0
A131: 130 | B131: 木沢村 | C131: 11152 | D131: 575 | E131: 0 | F131: 0 | G131: 0 | H131: 0
A132: 131 | B132: 和田村（飯田市） | C132: 2683 | D132: 857 | E132: 0 | F132: 0 | G132: 0 | H132: 0
A133: 132 | B133: 八重河内村 | C133: 3761 | D133: 315 | E133: 0 | F133: 0 | G133: 0 | H133: 0
A134: 133 | B134: 南和田村 | C134: 1827 | D134: 326 | E134: 0 | F134: 0 | G134: 0 | H134: 0
A135: 134 | B135: 諏訪市 | C135: 3646 | D135: 929 | E135: 0 | F135: 0 | G135: 65 | H135: 397
A136: 135 | B136: 諏訪市（旧） | C136: 613 | D136: 503 | E136: 0 | F136: 0 | G136: 65 | H136: 243
A137: 136 | B137: 中洲村 | C137: 176 | D137: 47 | E137: 0 | F137: 0 | G137: 0 | H137: 111
A138: 137 | B138: 湖南村 | C138: 2857 | D138: 378 | E138: 0 | F138: 0 | G138: 0 | H138: 44
A139: 138 | B139: 須坂市 | C139: 10220 | D139: 4956 | E139: 903 | F139: 2827 | G139: 56 | H139: 229
A140: 139 | B140: 須坂町 | C140: 336 | D140: 626 | E140: 570 | F140: 643 | G140: 54 | H140: 55
A141: 140 | B141: 井上村 | C141: 151 | D141: 580 | E141: 105 | F141: 605 | G141: 0 | H141: 102
A142: 141 | B142: 豊洲村 | C142: 28 | D142: 677 | E142: 100 | F142: 686 | G142: 0 | H142: 32
A143: 142 | B143: 日野村（須坂市） | C143: 0 | D143: 399 | E143: 92 | F143: 399 | G143: 2 | H143: 12
A144: 143 | B144: 高甫村 | C144: 582 | D144: 546 | E144: 33 | F144: 486 | G144: 0 | H144: 28
A145: 144 | B145: 仁礼村 | C145: 7136 | D145: 1266 | E145: 0 | F145: 8 | G145: 0 | H145: 0
A146: 145 | B146: 豊丘村（須坂市） | C146: 1988 | D146: 862 | E146: 3 | F146: 0 | G146: 0 | H146: 0
A147: 146 | B147: 小諸市 | C147: 4181 | D147: 7386 | E147: 0 | F147: 0 | G147: 55 | H147: 187
A148: 147 | B148: 小諸町 | C148: 806 | D148: 943 | E148: 0 | F148: 0 | G148: 54 | H148: 76
A149: 148 | B149: 大里村 | C149: 1910 | D149: 1621 | E149: 0 | F149: 0 | G149: 0 | H149: 5
A150: 149 | B150: 北大井村 | C150: 194 | D150: 855 | E150: 0 | F150: 0 | G150: 1 | H150: 53
A151: 150 | B151: 南大井村 | C151: 198 | D151: 858 | E151: 0 | F151: 0 | G151: 0 | H151: 35
A152: 151 | B152: 三岡村 | C152: 86 | D152: 653 | E152: 0 | F152: 0 | G152: 0 | H152: 17
A153: 152 | B153: 川辺村（小諸市） | C153: 801 | D153: 1654 | E153: 0 | F153: 0 | G153: 0 | H153: 0
A154: 153 | B154: 小沼村２－２ | C154: 7 | D154: 92 | E154: 0 | F154: 0 | G154: 0 | H154: 0
A155: 154 | B155: 滋野村２－２ | C155: 157 | D155: 616 | E155: 0 | F155: 0 | G155: 0 | H155: 0
A156: 155 | B156: 小沼村２－１－２ | C156: 22 | D156: 93 | E156: 0 | F156: 0 | G156: 0 | H156: 0
A157: 156 | B157: 伊那市 | C157: 48212 | D157: 11587 | E157: 0 | F157: 0 | G157: 66 | H157: 111
A158: 157 | B158: 伊那町 | C158: 299 | D158: 1944 | E158: 0 | F158: 0 | G158: 66 | H158: 110
A159: 158 | B159: 西箕輪村２－１ | C159: 49 | D159: 1213 | E159: 0 | F159: 0 | G159: 0 | H159: 0
A160: 159 | B160: 手良村 | C160: 1855 | D160: 667 | E160: 0 | F160: 0 | G160: 0 | H160: 0
A161: 160 | B161: 美篶村 | C161: 325 | D161: 1064 | E161: 0 | F161: 0 | G161: 0 | H161: 0
A162: 161 | B162: 富県村 | C162: 2276 | D162: 1175 | E162: 0 | F162: 0 | G162: 0 | H162: 0
A163: 162 | B163: 東春近村 | C163: 396 | D163: 1304 | E163: 0 | F163: 0 | G163: 0 | H163: 0
A164: 163 | B164: 西春近村 | C164: 106 | D164: 1263 | E164: 0 | F164: 0 | G164: 0 | H164: 1
A165: 164 | B165: 高遠町 | C165: 936 | D165: 110 | E165: 0 | F165: 0 | G165: 0 | H165: 0
A166: 165 | B166: 長藤村 | C166: 1738 | D166: 393 | E166: 0 | F166: 0 | G166: 0 | H166: 0
A167: 166 | B167: 三義村 | C167: 4222 | D167: 517 | E167: 0 | F167: 0 | G167: 0 | H167: 0
A168: 167 | B168: 藤沢村 | C168: 3944 | D168: 444 | E168: 0 | F168: 0 | G168: 0 | H168: 0
A169: 168 | B169: 河南村 | C169: 950 | D169: 462 | E169: 0 | F169: 0 | G169: 0 | H169: 0
A170: 169 | B170: 伊那里村 | C170: 18203 | D170: 347 | E170: 0 | F170: 0 | G170: 0 | H170: 0
A171: 170 | B171: 美和村 | C171: 12910 | D171: 684 | E171: 0 | F171: 0 | G171: 0 | H171: 0
A172: 171 | B172: 駒ヶ根市 | C172: 7305 | D172: 4867 | E172: 0 | F172: 0 | G172: 24 | H172: 103
A173: 172 | B173: 赤穂町 | C173: 313 | D173: 2599 | E173: 0 | F173: 0 | G173: 24 | H173: 103
A174: 173 | B174: 中沢村 | C174: 5786 | D174: 1678 | E174: 0 | F174: 0 | G174: 0 | H174: 0
A175: 174 | B175: 伊那村 | C175: 1206 | D175: 591 | E175: 0 | F175: 0 | G175: 0 | H175: 0
A176: 175 | B176: 中野市 | C176: 3505 | D176: 8742 | E176: 0 | F176: 6 | G176: 30 | H176: 49
A177: 176 | B177: 中野町 | C177: 129 | D177: 351 | E177: 0 | F177: 0 | G177: 28 | H177: 13
A178: 177 | B178: 日野村（中野市） | C178: 679 | D178: 449 | E178: 0 | F178: 0 | G178: 0 | H178: 0
A179: 178 | B179: 延徳村 | C179: 288 | D179: 587 | E179: 0 | F179: 0 | G179: 0 | H179: 0
A180: 179 | B180: 平野村 | C180: 63 | D180: 678 | E180: 0 | F180: 0 | G180: 3 | H180: 22
A181: 180 | B181: 高丘村 | C181: 91 | D181: 672 | E181: 0 | F181: 6 | G181: 0 | H181: 0
A182: 181 | B182: 長丘村 | C182: 163 | D182: 706 | E182: 0 | F182: 0 | G182: 0 | H182: 0
A183: 182 | B183: 平岡村（中野市） | C183: 5 | D183: 710 | E183: 0 | F183: 0 | G183: 0 | H183: 14
A184: 183 | B184: 科野村 | C184: 508 | D184: 504 | E184: 0 | F184: 0 | G184: 0 | H184: 0
A185: 184 | B185: 倭村（中野市） | C185: 706 | D185: 659 | E185: 0 | F185: 0 | G185: 0 | H185: 0
A186: 185 | B186: 豊井村 | C186: 566 | D186: 1395 | E186: 0 | F186: 0 | G186: 0 | H186: 0
A187: 186 | B187: 永田村 | C187: 305 | D187: 2030 | E187: 0 | F187: 0 | G187: 0 | H187: 0
A188: 187 | B188: 大町市 | C188: 367 | D188: 13022 | E188: 0 | F188: 0 | G188: 20 | H188: 182
A189: 188 | B189: 大町 | C189: 0 | D189: 506 | E189: 0 | F189: 0 | G189: 20 | H189: 123
A190: 189 | B190: 平村 | C190: 262 | D190: 2837 | E190: 0 | F190: 0 | G190: 0 | H190: 13
A191: 190 | B191: 常盤村（大町市） | C191: 28 | D191: 1986 | E191: 0 | F191: 0 | G191: 0 | H191: 0
A192: 191 | B192: 社村 | C192: 31 | D192: 515 | E192: 0 | F192: 0 | G192: 0 | H192: 46
A193: 192 | B193: 八坂村２－１ | C193: 2 | D193: 2641 | E193: 0 | F193: 0 | G193: 0 | H193: 0
A194: 193 | B194: 広津村３－３ | C194: 2 | D194: 27 | E194: 0 | F194: 0 | G194: 0 | H194: 0
A195: 194 | B195: 美麻村 | C195: 43 | D195: 4510 | E195: 0 | F195: 0 | G195: 0 | H195: 0
A196: 195 | B196: 飯山市 | C196: 9794 | D196: 17113 | E196: 0 | F196: 0 | G196: 29 | H196: 44
A197: 196 | B197: 飯山町 | C197: 45 | D197: 1351 | E197: 0 | F197: 0 | G197: 29 | H197: 10
A198: 197 | B198: 秋津村 | C198: 61 | D198: 1872 | E198: 0 | F198: 0 | G198: 0 | H198: 9
A199: 198 | B199: 柳原村（飯山市） | C199: 1521 | D199: 3104 | E199: 0 | F199: 0 | G199: 0 | H199: 0
A200: 199 | B200: 外様村 | C200: 685 | D200: 1197 | E200: 0 | F200: 0 | G200: 0 | H200: 0
... 301 more rows

Sheet 地域類型区分 (hidden)
A2: 1 | B2: 長野県 | C2: 設定 | D2: されていません
A3: 2 | B3: 長野市 | C3: 都市的地域 | D3: 畑地型 | E3: 長野市 | G3: 1 | H3: 3 | I3: 都市的地域 | J3: 畑地型
A4: 3 | B4: 長野市（旧） | C4: 都市的地域 | D4: 畑地型 | E4: 長野市 | F4: 長野市 | G4: 1 | H4: 3 | I4: 都市的地域 | J4: 畑地型
A5: 4 | B5: 芋井村 | C5: 中間農業地域 | D5: 田畑型 | E5: 長野市 | F5: 芋井村 | G5: 3 | H5: 2 | I5: 中間農業地域 | J5: 田畑型
A6: 5 | B6: 浅川村 | C6: 中間農業地域 | D6: 畑地型 | E6: 長野市 | F6: 浅川村 | G6: 3 | H6: 3 | I6: 中間農業地域 | J6: 畑地型
A7: 6 | B7: 若槻村 | C7: 都市的地域 | D7: 畑地型 | E7: 長野市 | F7: 若槻村 | G7: 1 | H7: 3 | I7: 都市的地域 | J7: 畑地型
A8: 7 | B8: 古里村 | C8: 都市的地域 | D8: 田畑型 | E8: 長野市 | F8: 古里村 | G8: 1 | H8: 2 | I8: 都市的地域 | J8: 田畑型
A9: 8 | B9: 長沼村 | C9: 平地農業地域 | D9: 畑地型 | E9: 長野市 | F9: 長沼村 | G9: 2 | H9: 3 | I9: 平地農業地域 | J9: 畑地型
A10: 9 | B10: 柳原村（長野市） | C10: 都市的地域 | D10: 田畑型 | E10: 長野市 | F10: 柳原村 | G10: 1 | H10: 2 | I10: 都市的地域 | J10: 田畑型
A11: 10 | B11: 朝陽村 | C11: 都市的地域 | D11: 田畑型 | E11: 長野市 | F11: 朝陽村 | G11: 1 | H11: 2 | I11: 都市的地域 | J11: 田畑型
A12: 11 | B12: 大豆島村 | C12: 都市的地域 | D12: 田畑型 | E12: 長野市 | F12: 大豆島村 | G12: 1 | H12: 2 | I12: 都市的地域 | J12: 田畑型
A13: 12 | B13: 安茂里村 | C13: 都市的地域 | D13: 畑地型 | E13: 長野市 | F13: 安茂里村 | G13: 1 | H13: 3 | I13: 都市的地域 | J13: 畑地型
A14: 13 | B14: 小田切村 | C14: 中間農業地域 | D14: 畑地型 | E14: 長野市 | F14: 小田切村 | G14: 3 | H14: 3 | I14: 中間農業地域 | J14: 畑地型
A15: 14 | B15: 篠ノ井町 | C15: 都市的地域 | D15: 畑地型 | E15: 長野市 | F15: 篠ノ井町 | G15: 1 | H15: 3 | I15: 都市的地域 | J15: 畑地型
A16: 15 | B16: 川柳村 | C16: 都市的地域 | D16: 田畑型 | E16: 長野市 | F16: 川柳村 | G16: 1 | H16: 2 | I16: 都市的地域 | J16: 田畑型
A17: 16 | B17: 塩崎村 | C17: 平地農業地域 | D17: 畑地型 | E17: 長野市 | F17: 塩崎村 | G17: 2 | H17: 3 | I17: 平地農業地域 | J17: 畑地型
A18: 17 | B18: 東福寺村 | C18: 平地農業地域 | D18: 畑地型 | E18: 長野市 | F18: 東福寺村 | G18: 2 | H18: 3 | I18: 平地農業地域 | J18: 畑地型
A19: 18 | B19: 信里村 | C19: 中間農業地域 | D19: 田畑型 | E19: 長野市 | F19: 信里村 | G19: 3 | H19: 2 | I19: 中間農業地域 | J19: 田畑型
A20: 19 | B20: 西寺尾村２－１ | C20: 都市的地域 | D20: 畑地型 | E20: 長野市 | F20: 西寺尾村２－１ | G20: 1 | H20: 3 | I20: 都市的地域 | J20: 畑地型
A21: 20 | B21: 共和村 | C21: 平地農業地域 | D21: 畑地型 | E21: 長野市 | F21: 共和村 | G21: 2 | H21: 3 | I21: 平地農業地域 | J21: 畑地型
A22: 21 | B22: 川中島村 | C22: 都市的地域 | D22: 田畑型 | E22: 長野市 | F22: 川中島村 | G22: 1 | H22: 2 | I22: 都市的地域 | J22: 田畑型
A23: 22 | B23: 中津村（長野市） | C23: 都市的地域 | D23: 田畑型 | E23: 長野市 | F23: 中津村 | G23: 1 | H23: 2 | I23: 都市的地域 | J23: 田畑型
A24: 23 | B24: 御厨村 | C24: 都市的地域 | D24: 田畑型 | E24: 長野市 | F24: 御厨村 | G24: 1 | H24: 2 | I24: 都市的地域 | J24: 田畑型
A25: 24 | B25: 信田村 | C25: 中間農業地域 | D25: 田畑型 | E25: 長野市 | F25: 信田村 | G25: 3 | H25: 2 | I25: 中間農業地域 | J25: 田畑型
A26: 25 | B26: 更府村 | C26: 中間農業地域 | D26: 田畑型 | E26: 長野市 | F26: 更府村 | G26: 3 | H26: 2 | I26: 中間農業地域 | J26: 田畑型
A27: 26 | B27: 青木島村 | C27: 都市的地域 | D27: 田畑型 | E27: 長野市 | F27: 青木島村 | G27: 1 | H27: 2 | I27: 都市的地域 | J27: 田畑型
A28: 27 | B28: 稲里村 | C28: 都市的地域 | D28: 田畑型 | E28: 長野市 | F28: 稲里村 | G28: 1 | H28: 2 | I28: 都市的地域 | J28: 田畑型
A29: 28 | B29: 小島田村 | C29: 都市的地域 | D29: 田畑型 | E29: 長野市 | F29: 小島田村 | G29: 1 | H29: 2 | I29: 都市的地域 | J29: 田畑型
A30: 29 | B30: 真島村 | C30: 都市的地域 | D30: 畑地型 | E30: 長野市 | F30: 真島村 | G30: 1 | H30: 3 | I30: 都市的地域 | J30: 畑地型
A31: 30 | B31: 松代町 | C31: 都市的地域 | D31: 畑地型 | E31: 長野市 | F31: 松代町 | G31: 1 | H31: 3 | I31: 都市的地域 | J31: 畑地型
A32: 31 | B32: 東条村 | C32: 中間農業地域 | D32: 畑地型 | E32: 長野市 | F32: 東条村 | G32: 3 | H32: 3 | I32: 中間農業地域 | J32: 畑地型
A33: 32 | B33: 清野村 | C33: 平地農業地域 | D33: 畑地型 | E33: 長野市 | F33: 清野村 | G33: 2 | H33: 3 | I33: 平地農業地域 | J33: 畑地型
A34: 33 | B34: 豊栄村 | C34: 山間農業地域 | D34: 田畑型 | E34: 長野市 | F34: 豊栄村 | G34: 4 | H34: 2 | I34: 山間農業地域 | J34: 田畑型
A35: 34 | B35: 寺尾村 | C35: 平地農業地域 | D35: 畑地型 | E35: 長野市 | F35: 寺尾村 | G35: 2 | H35: 3 | I35: 平地農業地域 | J35: 畑地型
A36: 35 | B36: 西寺尾村２－２ | C36: 都市的地域 | D36: 畑地型 | E36: 長野市 | F36: 西寺尾村２－２ | G36: 1 | H36: 3 | I36: 都市的地域 | J36: 畑地型
A37: 36 | B37: 西条村 | C37: 山間農業地域 | D37: 田畑型 | E37: 長野市 | F37: 西条村 | G37: 4 | H37: 2 | I37: 山間農業地域 | J37: 田畑型
A38: 37 | B38: 保科村 | C38: 山間農業地域 | D38: 畑地型 | E38: 長野市 | F38: 保科村 | G38: 4 | H38: 3 | I38: 山間農業地域 | J38: 畑地型
A39: 38 | B39: 川田村 | C39: 平地農業地域 | D39: 畑地型 | E39: 長野市 | F39: 川田村 | G39: 2 | H39: 3 | I39: 平地農業地域 | J39: 畑地型
A40: 39 | B40: 綿内村 | C40: 平地農業地域 | D40: 畑地型 | E40: 長野市 | F40: 綿内村 | G40: 2 | H40: 3 | I40: 平地農業地域 | J40: 畑地型
A41: 40 | B41: 七二会村 | C41: 中間農業地域 | D41: 畑地型 | E41: 長野市 | F41: 七二会村 | G41: 3 | H41: 3 | I41: 中間農業地域 | J41: 畑地型
A42: 41 | B42: 神郷村 | C42: 都市的地域 | D42: 畑地型 | E42: 長野市 | F42: 神郷村 | G42: 1 | H42: 3 | I42: 都市的地域 | J42: 畑地型
A43: 42 | B43: 鳥居村 | C43: 平地農業地域 | D43: 畑地型 | E43: 長野市 | F43: 鳥居村 | G43: 2 | H43: 3 | I43: 平地農業地域 | J43: 畑地型
A44: 43 | B44: 戸隠村 | C44: 中間農業地域 | D44: 田畑型 | E44: 長野市 | F44: 戸隠村 | G44: 3 | H44: 2 | I44: 中間農業地域 | J44: 田畑型
A45: 44 | B45: 柵村 | C45: 中間農業地域 | D45: 田畑型 | E45: 長野市 | F45: 柵村 | G45: 3 | H45: 2 | I45: 中間農業地域 | J45: 田畑型
A46: 45 | B46: 鬼無里村 | C46: 山間農業地域 | D46: 田畑型 | E46: 長野市 | F46: 鬼無里村 | G46: 4 | H46: 2 | I46: 山間農業地域 | J46: 田畑型
A47: 46 | B47: 大岡村 | C47: 中間農業地域 | D47: 田畑型 | E47: 長野市 | F47: 大岡村 | G47: 3 | H47: 2 | I47: 中間農業地域 | J47: 田畑型
A48: 47 | B48: 牧郷村２－２ | C48: 中間農業地域 | D48: 田畑型 | E48: 長野市 | F48: 牧郷村２－２ | G48: 3 | H48: 2 | I48: 中間農業地域 | J48: 田畑型
A49: 48 | B49: 水内村（長野市） | C49: 中間農業地域 | D49: 畑地型 | E49: 長野市 | F49: 水内村 | G49: 3 | H49: 3 | I49: 中間農業地域 | J49: 畑地型
A50: 49 | B50: 津和村 | C50: 中間農業地域 | D50: 畑地型 | E50: 長野市 | F50: 津和村 | G50: 3 | H50: 3 | I50: 中間農業地域 | J50: 畑地型
A51: 50 | B51: 日原村 | C51: 山間農業地域 | D51: 田畑型 | E51: 長野市 | F51: 日原村 | G51: 4 | H51: 2 | I51: 山間農業地域 | J51: 田畑型
A52: 51 | B52: 八坂村２－２ | C52: 山間農業地域 | D52: 田畑型 | E52: 長野市 | F52: 八坂村２－２ | G52: 4 | H52: 2 | I52: 山間農業地域 | J52: 田畑型
A53: 52 | B53: 信級村 | C53: 山間農業地域 | D53: 田畑型 | E53: 長野市 | F53: 信級村 | G53: 4 | H53: 2 | I53: 山間農業地域 | J53: 田畑型
A54: 53 | B54: 牧郷村２－１ | C54: 中間農業地域 | D54: 田畑型 | E54: 長野市 | F54: 牧郷村２－１ | G54: 3 | H54: 2 | I54: 中間農業地域 | J54: 田畑型
A55: 54 | B55: 栄村（長野市） | C55: 中間農業地域 | D55: 畑地型 | E55: 長野市 | F55: 栄村 | G55: 3 | H55: 3 | I55: 中間農業地域 | J55: 畑地型
A56: 55 | B56: 日里村 | C56: 中間農業地域 | D56: 田畑型 | E56: 長野市 | F56: 日里村 | G56: 3 | H56: 2 | I56: 中間農業地域 | J56: 田畑型
A57: 56 | B57: 松本市 | C57: 都市的地域 | D57: 田畑型 | E57: 松本市 | G57: 1 | H57: 2 | I57: 都市的地域 | J57: 田畑型
A58: 57 | B58: 松本市（旧） | C58: 都市的地域 | D58: 田畑型 | E58: 松本市 | F58: 松本市 | G58: 1 | H58: 2 | I58: 都市的地域 | J58: 田畑型
A59: 58 | B59: 島内村 | C59: 都市的地域 | D59: 水田型 | E59: 松本市 | F59: 島内村 | G59: 1 | H59: 1 | I59: 都市的地域 | J59: 水田型
A60: 59 | B60: 中山村 | C60: 中間農業地域 | D60: 田畑型 | E60: 松本市 | F60: 中山村 | G60: 3 | H60: 2 | I60: 中間農業地域 | J60: 田畑型
A61: 60 | B61: 島立村 | C61: 都市的地域 | D61: 水田型 | E61: 松本市 | F61: 島立村 | G61: 1 | H61: 1 | I61: 都市的地域 | J61: 水田型
A62: 61 | B62: 和田村（松本市） | C62: 平地農業地域 | D62: 水田型 | E62: 松本市 | F62: 和田村 | G62: 2 | H62: 1 | I62: 平地農業地域 | J62: 水田型
A63: 62 | B63: 笹賀村 | C63: 都市的地域 | D63: 水田型 | E63: 松本市 | F63: 笹賀村 | G63: 1 | H63: 1 | I63: 都市的地域 | J63: 水田型
A64: 63 | B64: 芳川村 | C64: 都市的地域 | D64: 水田型 | E64: 松本市 | F64: 芳川村 | G64: 1 | H64: 1 | I64: 都市的地域 | J64: 水田型
A65: 64 | B65: 寿村 | C65: 都市的地域 | D65: 田畑型 | E65: 松本市 | F65: 寿村 | G65: 1 | H65: 2 | I65: 都市的地域 | J65: 田畑型
A66: 65 | B66: 岡田村 | C66: 都市的地域 | D66: 田畑型 | E66: 松本市 | F66: 岡田村 | G66: 1 | H66: 2 | I66: 都市的地域 | J66: 田畑型
A67: 66 | B67: 入山辺村 | C67: 山間農業地域 | D67: 田畑型 | E67: 松本市 | F67: 入山辺村 | G67: 4 | H67: 2 | I67: 山間農業地域 | J67: 田畑型
A68: 67 | B68: 里山辺村 | C68: 都市的地域 | D68: 田畑型 | E68: 松本市 | F68: 里山辺村 | G68: 1 | H68: 2 | I68: 都市的地域 | J68: 田畑型
A69: 68 | B69: 今井村 | C69: 平地農業地域 | D69: 田畑型 | E69: 松本市 | F69: 今井村 | G69: 2 | H69: 2 | I69: 平地農業地域 | J69: 田畑型
A70: 69 | B70: 新村 | C70: 平地農業地域 | D70: 水田型 | E70: 松本市 | F70: 新村 | G70: 2 | H70: 1 | I70: 平地農業地域 | J70: 水田型
A71: 70 | B71: 神林村 | C71: 平地農業地域 | D71: 水田型 | E71: 松本市 | F71: 神林村 | G71: 2 | H71: 1 | I71: 平地農業地域 | J71: 水田型
A72: 71 | B72: 片丘村２－２ | C72: 中間農業地域 | D72: 田畑型 | E72: 松本市 | F72: 片丘村２－２ | G72: 3 | H72: 2 | I72: 中間農業地域 | J72: 田畑型
A73: 72 | B73: 本郷村（松本市） | C73: 山間農業地域 | D73: 田畑型 | E73: 松本市 | F73: 本郷村 | G73: 4 | H73: 2 | I73: 山間農業地域 | J73: 田畑型
A74: 73 | B74: 洗馬村２－２ | C74: 都市的地域 | D74: 畑地型 | E74: 松本市 | F74: 洗馬村２－２ | G74: 1 | H74: 3 | I74: 都市的地域 | J74: 畑地型
A75: 74 | B75: 錦部村 | C75: 山間農業地域 | D75: 田畑型 | E75: 松本市 | F75: 錦部村 | G75: 4 | H75: 2 | I75: 山間農業地域 | J75: 田畑型
A76: 75 | B76: 会田村 | C76: 中間農業地域 | D76: 田畑型 | E76: 松本市 | F76: 会田村 | G76: 3 | H76: 2 | I76: 中間農業地域 | J76: 田畑型
A77: 76 | B77: 五常村 | C77: 中間農業地域 | D77: 田畑型 | E77: 松本市 | F77: 五常村 | G77: 3 | H77: 2 | I77: 中間農業地域 | J77: 田畑型
A78: 77 | B78: 中川村（松本市） | C78: 山間農業地域 | D78: 田畑型 | E78: 松本市 | F78: 中川村 | G78: 4 | H78: 2 | I78: 山間農業地域 | J78: 田畑型
A79: 78 | B79: 安曇村 | C79: 山間農業地域 | D79: 畑地型 | E79: 松本市 | F79: 安曇村 | G79: 4 | H79: 3 | I79: 山間農業地域 | J79: 畑地型
A80: 79 | B80: 奈川村 | C80: 山間農業地域 | D80: 畑地型 | E80: 松本市 | F80: 奈川村 | G80: 4 | H80: 3 | I80: 山間農業地域 | J80: 畑地型
A81: 80 | B81: 梓村 | C81: 平地農業地域 | D81: 田畑型 | E81: 松本市 | F81: 梓村 | G81: 2 | H81: 2 | I81: 平地農業地域 | J81: 田畑型
A82: 81 | B82: 倭村（松本市） | C82: 平地農業地域 | D82: 水田型 | E82: 松本市 | F82: 倭村 | G82: 2 | H82: 1 | I82: 平地農業地域 | J82: 水田型
A83: 82 | B83: 波田町 | C83: 中間農業地域 | D83: 田畑型 | E83: 松本市 | F83: 波田町 | G83: 3 | H83: 2 | I83: 中間農業地域 | J83: 田畑型
A84: 83 | B84: 上田市 | C84: 都市的地域 | D84: 田畑型 | E84: 上田市 | G84: 1 | H84: 2 | I84: 都市的地域 | J84: 田畑型
A85: 84 | B85: 上田市（旧） | C85: 都市的地域 | D85: 田畑型 | E85: 上田市 | F85: 上田市 | G85: 1 | H85: 2 | I85: 都市的地域 | J85: 田畑型
A86: 85 | B86: 塩尻村 | C86: 都市的地域 | D86: 田畑型 | E86: 上田市 | F86: 塩尻村 | G86: 1 | H86: 2 | I86: 都市的地域 | J86: 田畑型
A87: 86 | B87: 川辺村（上田市） | C87: 都市的地域 | D87: 田畑型 | E87: 上田市 | F87: 川辺村 | G87: 1 | H87: 2 | I87: 都市的地域 | J87: 田畑型
A88: 87 | B88: 泉田村２－２ | C88: 中間農業地域 | D88: 田畑型 | E88: 上田市 | F88: 泉田村２－２ | G88: 3 | H88: 2 | I88: 中間農業地域 | J88: 田畑型
A89: 88 | B89: 神川村 | C89: 都市的地域 | D89: 田畑型 | E89: 上田市 | F89: 神川村 | G89: 1 | H89: 2 | I89: 都市的地域 | J89: 田畑型
A90: 89 | B90: 神科村 | C90: 都市的地域 | D90: 田畑型 | E90: 上田市 | F90: 神科村 | G90: 1 | H90: 2 | I90: 都市的地域 | J90: 田畑型
A91: 90 | B91: 豊里村 | C91: 平地農業地域 | D91: 田畑型 | E91: 上田市 | F91: 豊里村 | G91: 2 | H91: 2 | I91: 平地農業地域 | J91: 田畑型
A92: 91 | B92: 殿城村 | C92: 中間農業地域 | D92: 田畑型 | E92: 上田市 | F92: 殿城村 | G92: 3 | H92: 2 | I92: 中間農業地域 | J92: 田畑型
A93: 92 | B93: 中塩田村 | C93: 平地農業地域 | D93: 水田型 | E93: 上田市 | F93: 中塩田村 | G93: 2 | H93: 1 | I93: 平地農業地域 | J93: 水田型
A94: 93 | B94: 別所村 | C94: 中間農業地域 | D94: 田畑型 | E94: 上田市 | F94: 別所村 | G94: 3 | H94: 2 | I94: 中間農業地域 | J94: 田畑型
A95: 94 | B95: 西塩田村 | C95: 中間農業地域 | D95: 水田型 | E95: 上田市 | F95: 西塩田村 | G95: 3 | H95: 1 | I95: 中間農業地域 | J95: 水田型
A96: 95 | B96: 東塩田村 | C96: 平地農業地域 | D96: 田畑型 | E96: 上田市 | F96: 東塩田村 | G96: 2 | H96: 2 | I96: 平地農業地域 | J96: 田畑型
A97: 96 | B97: 泉田村２－１ | C97: 平地農業地域 | D97: 水田型 | E97: 上田市 | F97: 泉田村２－１ | G97: 2 | H97: 1 | I97: 平地農業地域 | J97: 水田型
A98: 97 | B98: 室賀村 | C98: 山間農業地域 | D98: 田畑型 | E98: 上田市 | F98: 室賀村 | G98: 4 | H98: 2 | I98: 山間農業地域 | J98: 田畑型
A99: 98 | B99: 浦里村２－１ | C99: 平地農業地域 | D99: 田畑型 | E99: 上田市 | F99: 浦里村２－１ | G99: 2 | H99: 2 | I99: 平地農業地域 | J99: 田畑型
A100: 99 | B100: 丸子町 | C100: 都市的地域 | D100: 田畑型 | E100: 上田市 | F100: 丸子町 | G100: 1 | H100: 2 | I100: 都市的地域 | J100: 田畑型
A101: 100 | B101: 東内村 | C101: 山間農業地域 | D101: 田畑型 | E101: 上田市 | F101: 東内村 | G101: 4 | H101: 2 | I101: 山間農業地域 | J101: 田畑型
A102: 101 | B102: 西内村 | C102: 山間農業地域 | D102: 田畑型 | E102: 上田市 | F102: 西内村 | G102: 4 | H102: 2 | I102: 山間農業地域 | J102: 田畑型
A103: 102 | B103: 依田村 | C103: 中間農業地域 | D103: 田畑型 | E103: 上田市 | F103: 依田村 | G103: 3 | H103: 2 | I103: 中間農業地域 | J103: 田畑型
A104: 103 | B104: 長瀬村 | C104: 都市的地域 | D104: 田畑型 | E104: 上田市 | F104: 長瀬村 | G104: 1 | H104: 2 | I104: 都市的地域 | J104: 田畑型
A105: 104 | B105: 塩川村 | C105: 平地農業地域 | D105: 田畑型 | E105: 上田市 | F105: 塩川村 | G105: 2 | H105: 2 | I105: 平地農業地域 | J105: 田畑型
A106: 105 | B106: 傍陽村 | C106: 山間農業地域 | D106: 田畑型 | E106: 上田市 | F106: 傍陽村 | G106: 4 | H106: 2 | I106: 山間農業地域 | J106: 田畑型
A107: 106 | B107: 本原村 | C107: 中間農業地域 | D107: 田畑型 | E107: 上田市 | F107: 本原村 | G107: 3 | H107: 2 | I107: 中間農業地域 | J107: 田畑型
A108: 107 | B108: 長村 | C108: 山間農業地域 | D108: 畑地型 | E108: 上田市 | F108: 長村 | G108: 4 | H108: 3 | I108: 山間農業地域 | J108: 畑地型
A109: 108 | B109: 武石村 | C109: 山間農業地域 | D109: 田畑型 | E109: 上田市 | F109: 武石村 | G109: 4 | H109: 2 | I109: 山間農業地域 | J109: 田畑型
A110: 109 | B110: 岡谷市 | C110: 都市的地域 | D110: 田畑型 | E110: 岡谷市 | G110: 1 | H110: 2 | I110: 都市的地域 | J110: 田畑型
A111: 110 | B111: 岡谷市（旧） | C111: 都市的地域 | D111: 畑地型 | E111: 岡谷市 | F111: 岡谷市 | G111: 1 | H111: 3 | I111: 都市的地域 | J111: 畑地型
A112: 111 | B112: 湊村 | C112: 中間農業地域 | D112: 畑地型 | E112: 岡谷市 | F112: 湊村 | G112: 3 | H112: 3 | I112: 中間農業地域 | J112: 畑地型
A113: 112 | B113: 川岸村 | C113: 中間農業地域 | D113: 田畑型 | E113: 岡谷市 | F113: 川岸村 | G113: 3 | H113: 2 | I113: 中間農業地域 | J113: 田畑型
A114: 113 | B114: 長地村２－１ | C114: 都市的地域 | D114: 田畑型 | E114: 岡谷市 | F114: 長地村２－１ | G114: 1 | H114: 2 | I114: 都市的地域 | J114: 田畑型
A115: 114 | B115: 飯田市 | C115: 都市的地域 | D115: 田畑型 | E115: 飯田市 | G115: 1 | H115: 2 | I115: 都市的地域 | J115: 田畑型
A116: 115 | B116: 飯田市（旧） | C116: 山間農業地域 | D116: 畑地型 | E116: 飯田市 | F116: 飯田市 | G116: 4 | H116: 3 | I116: 山間農業地域 | J116: 畑地型
A117: 116 | B117: 竜丘村 | C117: 都市的地域 | D117: 田畑型 | E117: 飯田市 | F117: 竜丘村 | G117: 1 | H117: 2 | I117: 都市的地域 | J117: 田畑型
A118: 117 | B118: 下久堅村 | C118: 平地農業地域 | D118: 畑地型 | E118: 飯田市 | F118: 下久堅村 | G118: 2 | H118: 3 | I118: 平地農業地域 | J118: 畑地型
A119: 118 | B119: 座光寺村 | C119: 平地農業地域 | D119: 畑地型 | E119: 飯田市 | F119: 座光寺村 | G119: 2 | H119: 3 | I119: 平地農業地域 | J119: 畑地型
A120: 119 | B120: 松尾村 | C120: 都市的地域 | D120: 田畑型 | E120: 飯田市 | F120: 松尾村 | G120: 1 | H120: 2 | I120: 都市的地域 | J120: 田畑型
A121: 120 | B121: 山本村 | C121: 中間農業地域 | D121: 田畑型 | E121: 飯田市 | F121: 山本村 | G121: 3 | H121: 2 | I121: 中間農業地域 | J121: 田畑型
A122: 121 | B122: 三穂村 | C122: 中間農業地域 | D122: 田畑型 | E122: 飯田市 | F122: 三穂村 | G122: 3 | H122: 2 | I122: 中間農業地域 | J122: 田畑型
A123: 122 | B123: 伊賀良村 | C123: 中間農業地域 | D123: 田畑型 | E123: 飯田市 | F123: 伊賀良村 | G123: 3 | H123: 2 | I123: 中間農業地域 | J123: 田畑型
A124: 123 | B124: 川路村 | C124: 中間農業地域 | D124: 田畑型 | E124: 飯田市 | F124: 川路村 | G124: 3 | H124: 2 | I124: 中間農業地域 | J124: 田畑型
A125: 124 | B125: 千代村 | C125: 山間農業地域 | D125: 畑地型 | E125: 飯田市 | F125: 千代村 | G125: 4 | H125: 3 | I125: 山間農業地域 | J125: 畑地型
A126: 125 | B126: 竜江村 | C126: 中間農業地域 | D126: 畑地型 | E126: 飯田市 | F126: 竜江村 | G126: 3 | H126: 3 | I126: 中間農業地域 | J126: 畑地型
A127: 126 | B127: 上久堅村 | C127: 中間農業地域 | D127: 田畑型 | E127: 飯田市 | F127: 上久堅村 | G127: 3 | H127: 2 | I127: 中間農業地域 | J127: 田畑型
A128: 127 | B128: 鼎町 | C128: 都市的地域 | D128: 田畑型 | E128: 飯田市 | F128: 鼎町 | G128: 1 | H128: 2 | I128: 都市的地域 | J128: 田畑型
A129: 128 | B129: 上郷町 | C129: 都市的地域 | D129: 田畑型 | E129: 飯田市 | F129: 上郷町 | G129: 1 | H129: 2 | I129: 都市的地域 | J129: 田畑型
A130: 129 | B130: 上村 | C130: 山間農業地域 | D130: 畑地型 | E130: 飯田市 | F130: 上村 | G130: 4 | H130: 3 | I130: 山間農業地域 | J130: 畑地型
A131: 130 | B131: 木沢村 | C131: 山間農業地域 | D131: 畑地型 | E131: 飯田市 | F131: 木沢村 | G131: 4 | H131: 3 | I131: 山間農業地域 | J131: 畑地型
A132: 131 | B132: 和田村（飯田市） | C132: 山間農業地域 | D132: 畑地型 | E132: 飯田市 | F132: 和田村 | G132: 4 | H132: 3 | I132: 山間農業地域 | J132: 畑地型
A133: 132 | B133: 八重河内村 | C133: 山間農業地域 | D133: 畑地型 | E133: 飯田市 | F133: 八重河内村 | G133: 4 | H133: 3 | I133: 山間農業地域 | J133: 畑地型
A134: 133 | B134: 南和田村 | C134: 山間農業地域 | D134: 畑地型 | E134: 飯田市 | F134: 南和田村 | G134: 4 | H134: 3 | I134: 山間農業地域 | J134: 畑地型
A135: 134 | B135: 諏訪市 | C135: 中間農業地域 | D135: 田畑型 | E135: 諏訪市 | G135: 3 | H135: 2 | I135: 中間農業地域 | J135: 田畑型
A136: 135 | B136: 諏訪市（旧） | C136: 中間農業地域 | D136: 田畑型 | E136: 諏訪市 | F136: 諏訪市 | G136: 3 | H136: 2 | I136: 中間農業地域 | J136: 田畑型
A137: 136 | B137: 中洲村 | C137: 都市的地域 | D137: 水田型 | E137: 諏訪市 | F137: 中洲村 | G137: 1 | H137: 1 | I137: 都市的地域 | J137: 水田型
A138: 137 | B138: 湖南村 | C138: 山間農業地域 | D138: 水田型 | E138: 諏訪市 | F138: 湖南村 | G138: 4 | H138: 1 | I138: 山間農業地域 | J138: 水田型
A139: 138 | B139: 須坂市 | C139: 都市的地域 | D139: 畑地型 | E139: 須坂市 | G139: 1 | H139: 3 | I139: 都市的地域 | J139: 畑地型
A140: 139 | B140: 須坂町 | C140: 都市的地域 | D140: 畑地型 | E140: 須坂市 | F140: 須坂町 | G140: 1 | H140: 3 | I140: 都市的地域 | J140: 畑地型
A141: 140 | B141: 井上村 | C141: 平地農業地域 | D141: 畑地型 | E141: 須坂市 | F141: 井上村 | G141: 2 | H141: 3 | I141: 平地農業地域 | J141: 畑地型
A142: 141 | B142: 豊洲村 | C142: 平地農業地域 | D142: 畑地型 | E142: 須坂市 | F142: 豊洲村 | G142: 2 | H142: 3 | I142: 平地農業地域 | J142: 畑地型
A143: 142 | B143: 日野村（須坂市） | C143: 都市的地域 | D143: 畑地型 | E143: 須坂市 | F143: 日野村 | G143: 1 | H143: 3 | I143: 都市的地域 | J143: 畑地型
A144: 143 | B144: 高甫村 | C144: 平地農業地域 | D144: 畑地型 | E144: 須坂市 | F144: 高甫村 | G144: 2 | H144: 3 | I144: 平地農業地域 | J144: 畑地型
A145: 144 | B145: 仁礼村 | C145: 山間農業地域 | D145: 田畑型 | E145: 須坂市 | F145: 仁礼村 | G145: 4 | H145: 2 | I145: 山間農業地域 | J145: 田畑型
A146: 145 | B146: 豊丘村（須坂市） | C146: 山間農業地域 | D146: 畑地型 | E146: 須坂市 | F146: 豊丘村 | G146: 4 | H146: 3 | I146: 山間農業地域 | J146: 畑地型
A147: 146 | B147: 小諸市 | C147: 平地農業地域 | D147: 田畑型 | E147: 小諸市 | G147: 2 | H147: 2 | I147: 平地農業地域 | J147: 田畑型
A148: 147 | B148: 小諸町 | C148: 都市的地域 | D148: 田畑型 | E148: 小諸市 | F148: 小諸町 | G148: 1 | H148: 2 | I148: 都市的地域 | J148: 田畑型
A149: 148 | B149: 大里村 | C149: 中間農業地域 | D149: 田畑型 | E149: 小諸市 | F149: 大里村 | G149: 3 | H149: 2 | I149: 中間農業地域 | J149: 田畑型
A150: 149 | B150: 北大井村 | C150: 平地農業地域 | D150: 畑地型 | E150: 小諸市 | F150: 北大井村 | G150: 2 | H150: 3 | I150: 平地農業地域 | J150: 畑地型
A151: 150 | B151: 南大井村 | C151: 平地農業地域 | D151: 田畑型 | E151: 小諸市 | F151: 南大井村 | G151: 2 | H151: 2 | I151: 平地農業地域 | J151: 田畑型
A152: 151 | B152: 三岡村 | C152: 平地農業地域 | D152: 田畑型 | E152: 小諸市 | F152: 三岡村 | G152: 2 | H152: 2 | I152: 平地農業地域 | J152: 田畑型
A153: 152 | B153: 川辺村（小諸市） | C153: 平地農業地域 | D153: 田畑型 | E153: 小諸市 | F153: 川辺村 | G153: 2 | H153: 2 | I153: 平地農業地域 | J153: 田畑型
A154: 153 | B154: 小沼村２－２ | C154: 平地農業地域 | D154: 田畑型 | E154: 小諸市 | F154: 小沼村２－２ | G154: 2 | H154: 2 | I154: 平地農業地域 | J154: 田畑型
A155: 154 | B155: 滋野村２－２ | C155: 平地農業地域 | D155: 田畑型 | E155: 小諸市 | F155: 滋野村２－２ | G155: 2 | H155: 2 | I155: 平地農業地域 | J155: 田畑型
A156: 155 | B156: 小沼村２－１－２ | C156: 平地農業地域 | D156: 畑地型 | E156: 小諸市 | F156: 小沼村２－１－２ | G156: 2 | H156: 3 | I156: 平地農業地域 | J156: 畑地型
A157: 156 | B157: 伊那市 | C157: 中間農業地域 | D157: 田畑型 | E157: 伊那市 | G157: 3 | H157: 2 | I157: 中間農業地域 | J157: 田畑型
A158: 157 | B158: 伊那町 | C158: 中間農業地域 | D158: 田畑型 | E158: 伊那市 | F158: 伊那町 | G158: 3 | H158: 2 | I158: 中間農業地域 | J158: 田畑型
A159: 158 | B159: 西箕輪村２－１ | C159: 中間農業地域 | D159: 畑地型 | E159: 伊那市 | F159: 西箕輪村２－１ | G159: 3 | H159: 3 | I159: 中間農業地域 | J159: 畑地型
A160: 159 | B160: 手良村 | C160: 中間農業地域 | D160: 水田型 | E160: 伊那市 | F160: 手良村 | G160: 3 | H160: 1 | I160: 中間農業地域 | J160: 水田型
A161: 160 | B161: 美篶村 | C161: 平地農業地域 | D161: 水田型 | E161: 伊那市 | F161: 美篶村 | G161: 2 | H161: 1 | I161: 平地農業地域 | J161: 水田型
A162: 161 | B162: 富県村 | C162: 中間農業地域 | D162: 水田型 | E162: 伊那市 | F162: 富県村 | G162: 3 | H162: 1 | I162: 中間農業地域 | J162: 水田型
A163: 162 | B163: 東春近村 | C163: 平地農業地域 | D163: 水田型 | E163: 伊那市 | F163: 東春近村 | G163: 2 | H163: 1 | I163: 平地農業地域 | J163: 水田型
A164: 163 | B164: 西春近村 | C164: 中間農業地域 | D164: 田畑型 | E164: 伊那市 | F164: 西春近村 | G164: 3 | H164: 2 | I164: 中間農業地域 | J164: 田畑型
A165: 164 | B165: 高遠町 | C165: 中間農業地域 | D165: 田畑型 | E165: 伊那市 | F165: 高遠町 | G165: 3 | H165: 2 | I165: 中間農業地域 | J165: 田畑型
A166: 165 | B166: 長藤村 | C166: 山間農業地域 | D166: 田畑型 | E166: 伊那市 | F166: 長藤村 | G166: 4 | H166: 2 | I166: 山間農業地域 | J166: 田畑型
A167: 166 | B167: 三義村 | C167: 山間農業地域 | D167: 田畑型 | E167: 伊那市 | F167: 三義村 | G167: 4 | H167: 2 | I167: 山間農業地域 | J167: 田畑型
A168: 167 | B168: 藤沢村 | C168: 山間農業地域 | D168: 水田型 | E168: 伊那市 | F168: 藤沢村 | G168: 4 | H168: 1 | I168: 山間農業地域 | J168: 水田型
A169: 168 | B169: 河南村 | C169: 中間農業地域 | D169: 水田型 | E169: 伊那市 | F169: 河南村 | G169: 3 | H169: 1 | I169: 中間農業地域 | J169: 水田型
A170: 169 | B170: 伊那里村 | C170: 山間農業地域 | D170: 水田型 | E170: 伊那市 | F170: 伊那里村 | G170: 4 | H170: 1 | I170: 山間農業地域 | J170: 水田型
A171: 170 | B171: 美和村 | C171: 山間農業地域 | D171: 水田型 | E171: 伊那市 | F171: 美和村 | G171: 4 | H171: 1 | I171: 山間農業地域 | J171: 水田型
A172: 171 | B172: 駒ヶ根市 | C172: 中間農業地域 | D172: 水田型 | E172: 駒ヶ根市 | G172: 3 | H172: 1 | I172: 中間農業地域 | J172: 水田型
A173: 172 | B173: 赤穂町 | C173: 中間農業地域 | D173: 水田型 | E173: 駒ヶ根市 | F173: 赤穂町 | G173: 3 | H173: 1 | I173: 中間農業地域 | J173: 水田型
A174: 173 | B174: 中沢村 | C174: 山間農業地域 | D174: 田畑型 | E174: 駒ヶ根市 | F174: 中沢村 | G174: 4 | H174: 2 | I174: 山間農業地域 | J174: 田畑型
A175: 174 | B175: 伊那村 | C175: 中間農業地域 | D175: 田畑型 | E175: 駒ヶ根市 | F175: 伊那村 | G175: 3 | H175: 2 | I175: 中間農業地域 | J175: 田畑型
A176: 175 | B176: 中野市 | C176: 平地農業地域 | D176: 畑地型 | E176: 中野市 | G176: 2 | H176: 3 | I176: 平地農業地域 | J176: 畑地型
A177: 176 | B177: 中野町 | C177: 都市的地域 | D177: 畑地型 | E177: 中野市 | F177: 中野町 | G177: 1 | H177: 3 | I177: 都市的地域 | J177: 畑地型
A178: 177 | B178: 日野村（中野市） | C178: 中間農業地域 | D178: 畑地型 | E178: 中野市 | F178: 日野村 | G178: 3 | H178: 3 | I178: 中間農業地域 | J178: 畑地型
A179: 178 | B179: 延徳村 | C179: 平地農業地域 | D179: 田畑型 | E179: 中野市 | F179: 延徳村 | G179: 2 | H179: 2 | I179: 平地農業地域 | J179: 田畑型
A180: 179 | B180: 平野村 | C180: 都市的地域 | D180: 畑地型 | E180: 中野市 | F180: 平野村 | G180: 1 | H180: 3 | I180: 都市的地域 | J180: 畑地型
A181: 180 | B181: 高丘村 | C181: 平地農業地域 | D181: 畑地型 | E181: 中野市 | F181: 高丘村 | G181: 2 | H181: 3 | I181: 平地農業地域 | J181: 畑地型
A182: 181 | B182: 長丘村 | C182: 平地農業地域 | D182: 畑地型 | E182: 中野市 | F182: 長丘村 | G182: 2 | H182: 3 | I182: 平地農業地域 | J182: 畑地型
A183: 182 | B183: 平岡村（中野市） | C183: 平地農業地域 | D183: 畑地型 | E183: 中野市 | F183: 平岡村 | G183: 2 | H183: 3 | I183: 平地農業地域 | J183: 畑地型
A184: 183 | B184: 科野村 | C184: 中間農業地域 | D184: 畑地型 | E184: 中野市 | F184: 科野村 | G184: 3 | H184: 3 | I184: 中間農業地域 | J184: 畑地型
A185: 184 | B185: 倭村（中野市） | C185: 中間農業地域 | D185: 畑地型 | E185: 中野市 | F185: 倭村 | G185: 3 | H185: 3 | I185: 中間農業地域 | J185: 畑地型
A186: 185 | B186: 豊井村 | C186: 中間農業地域 | D186: 畑地型 | E186: 中野市 | F186: 豊井村 | G186: 3 | H186: 3 | I186: 中間農業地域 | J186: 畑地型
A187: 186 | B187: 永田村 | C187: 中間農業地域 | D187: 田畑型 | E187: 中野市 | F187: 永田村 | G187: 3 | H187: 2 | I187: 中間農業地域 | J187: 田畑型
A188: 187 | B188: 大町市 | C188: 中間農業地域 | D188: 水田型 | E188: 大町市 | G188: 3 | H188: 1 | I188: 中間農業地域 | J188: 水田型
A189: 188 | B189: 大町 | C189: 都市的地域 | D189: 水田型 | E189: 大町市 | F189: 大町 | G189: 1 | H189: 1 | I189: 都市的地域 | J189: 水田型
A190: 189 | B190: 平村 | C190: 中間農業地域 | D190: 水田型 | E190: 大町市 | F190: 平村 | G190: 3 | H190: 1 | I190: 中間農業地域 | J190: 水田型
A191: 190 | B191: 常盤村（大町市） | C191: 中間農業地域 | D191: 水田型 | E191: 大町市 | F191: 常盤村 | G191: 3 | H191: 1 | I191: 中間農業地域 | J191: 水田型
A192: 191 | B192: 社村 | C192: 中間農業地域 | D192: 水田型 | E192: 大町市 | F192: 社村 | G192: 3 | H192: 1 | I192: 中間農業地域 | J192: 水田型
A193: 192 | B193: 八坂村２－１ | C193: 山間農業地域 | D193: 田畑型 | E193: 大町市 | F193: 八坂村２－１ | G193: 4 | H193: 2 | I193: 山間農業地域 | J193: 田畑型
A194: 193 | B194: 広津村３－３ | C194: 中間農業地域 | D194: 田畑型 | E194: 大町市 | F194: 広津村３－３ | G194: 3 | H194: 2 | I194: 中間農業地域 | J194: 田畑型
A195: 194 | B195: 美麻村 | C195: 山間農業地域 | D195: 田畑型 | E195: 大町市 | F195: 美麻村 | G195: 4 | H195: 2 | I195: 山間農業地域 | J195: 田畑型
A196: 195 | B196: 飯山市 | C196: 中間農業地域 | D196: 田畑型 | E196: 飯山市 | G196: 3 | H196: 2 | I196: 中間農業地域 | J196: 田畑型
A197: 196 | B197: 飯山町 | C197: 中間農業地域 | D197: 畑地型 | E197: 飯山市 | F197: 飯山町 | G197: 3 | H197: 3 | I197: 中間農業地域 | J197: 畑地型
A198: 197 | B198: 秋津村 | C198: 中間農業地域 | D198: 田畑型 | E198: 飯山市 | F198: 秋津村 | G198: 3 | H198: 2 | I198: 中間農業地域 | J198: 田畑型
A199: 198 | B199: 柳原村（飯山市） | C199: 中間農業地域 | D199: 田畑型 | E199: 飯山市 | F199: 柳原村 | G199: 3 | H199: 2 | I199: 中間農業地域 | J199: 田畑型
A200: 199 | B200: 外様村 | C200: 中間農業地域 | D200: 田畑型 | E200: 飯山市 | F200: 外様村 | G200: 3 | H200: 2 | I200: 中間農業地域 | J200: 田畑型
A201: 200 | B201: 常盤村（飯山市） | C201: 平地農業地域 | D201: 田畑型 | E201: 飯山市 | F201: 常盤村 | G201: 2 | H201: 2 | I201: 平地農業地域 | J201: 田畑型
... 300 more rows

Sheet 元データ (hidden)
A1: 注意事項 | C1: ･･･ | D1: 空欄追記:『調査外(湖､無人島等)』 | Z1: 別紙 2 | AB1: 市区町村名 | AC1: 旧市区町村 | AD1: 農業集落
C2: ･･･ | D2: 全角変換:『2-1』⇒『2-1』 | K2: =IF(AB2=0,"",AB2) ->  | S2: =IF(AC2=0,"",AC2) ->  | AA2: 長野県 | AB2: =kadft!F5 -> 0 | AC2: =kadft!J5 ->  | AD2: =#REF! -> 
K3: 市町村 | Q3: 旧市区町村 | V3: 農業集落
A4: 農業集落 | B4: 県 | C4: 市区町村 | D4: 旧市区町村 | E4: 農業集落 | F4: 県名 | G4: 市町村名 | H4: 旧市町村名 | I4: 農業集落名 | K4: 判定１ | O4: 抽出１ | Q4: 判定2 | S4: 抽出2 | V4: 抽出3 | Z4: 通し | AA4: 都県名 | AB4: 市区町村名 | AC4: 旧区市町村名 | AD4: 農業集落名
A5: ｺｰﾄﾞ | B5: 番号 | C5: 番号 | D5: 番号 | E5: 番号 | K5: 判定 | L5: 市区町村名 | M5: 連番 | N5: 補記 | O5: 抽出 | P5: 名 | Q5: 判定 | R5: 名 | S5: 抽出 | T5: 旧区市町村名 | U5: 連番 | V5: 抽出 | W5: 農業集落名 | X5: 連番 | Z5: №
Z6: 0
A7: 2000000000 | B7: 20 | C7: 000 | D7: 00 | E7: 000 | F7: 長野県 | K7: =IF(AND($C7>0,$H7=""),"ﾘｽﾄ１","") ->  | L7: =IF(K7="ﾘｽﾄ１",G7,"") ->  | M7: =IF(K7="","",COUNTIF($K7:K$7,"ﾘｽﾄ１")) ->  | N7: =IF(AND(D7=0,E7>0),"同一区","") ->  | O7: =IF(AND(EXACT($K$2,G7),H7>0),"該当１","") ->  | P7: =IF(O7="該当１",G7,"") ->  | Q7: =IF(O7="該当１","ﾘｽﾄ2","") ->  | R7: =IF(Q7="ﾘｽﾄ2",H7,"") ->  | S7: =IF(AND(Q7="ﾘｽﾄ2",OR(I7=0,AND(N7="同一区",E7=1))),"該当２","") ->  | T7: =IF(S7="該当２",H7,"") ->  | U7: =IF(S7="","",COUNTIF($S$7:S7,"該当２")) ->  | V7: =IF(AND($S$2=H7,E7>0,E7<998),"該当３","") ->  | W7: =IF(V7="該当３",I7,"") ->  | X7: =IF(V7="","",COUNTIF($V7:V$7,"該当３")) ->  | Z7: 1 | AA7: =AA2 -> 長野県 | AB7: 長野市 | AC7: =IF($Z7>MAX($U$7:$U$5356),"",INDEX($T$7:$T$5356,MATCH($Z7,$U$7:$U$5356,0),MATCH($AC$4,$T$5:$U$5,0))) ->  | AD7: =IF($Z7>MAX($X$7:$X$3715),"",INDEX($W$7:$W$3715,MATCH($Z7,$X$7:$X$3715,0),MATCH($AD$4,$W$5:$X$5,0))) -> 
A8: 2020100000 | B8: 20 | C8: 201 | D8: 00 | E8: 000 | F8: 長野県 | G8: 長野市 | K8: ﾘｽﾄ１ | L8: 長野市 | M8: =IF(K8="","",COUNTIF($K$7:K8,"ﾘｽﾄ１")) -> 1 | O8: =IF(AND(EXACT($K$2,G8),H8>0),"該当１","") ->  | U8: =IF(S8="","",COUNTIF($S$7:S8,"該当２")) ->  | X8: =IF(V8="","",COUNTIF($V$7:V8,"該当３")) ->  | Z8: 2 | AB8: 松本市 | AC8: =IF($Z8>MAX($U$7:$U$5356),"",INDEX($T$7:$T$5356,MATCH($Z8,$U$7:$U$5356,0),MATCH($AC$4,$T$5:$U$5,0))) ->  | AD8: =IF($Z8>MAX($X$7:$X$3715),"",INDEX($W$7:$W$3715,MATCH($Z8,$X$7:$X$3715,0),MATCH($AD$4,$W$5:$X$5,0))) -> 
A9: 2020101000 | B9: 20 | C9: 201 | D9: 01 | E9: 000 | F9: 長野県 | G9: 長野市 | H9: 長野市（旧） | M9: =IF(K9="","",COUNTIF($K$7:K9,"ﾘｽﾄ１")) ->  | O9: =IF(AND(EXACT($K$2,G9),H9>0),"該当１","") ->  | U9: =IF(S9="","",COUNTIF($S$7:S9,"該当２")) ->  | X9: =IF(V9="","",COUNTIF($V$7:V9,"該当３")) ->  | Z9: 3 | AB9: 上田市
A10: 2020101001 | B10: 20 | C10: 201 | D10: 01 | E10: 001 | F10: 長野県 | G10: 長野市 | H10: 長野市（旧） | I10: 茂菅 | M10: =IF(K10="","",COUNTIF($K$7:K10,"ﾘｽﾄ１")) ->  | U10: =IF(S10="","",COUNTIF($S$7:S10,"該当２")) ->  | X10: =IF(V10="","",COUNTIF($V$7:V10,"該当３")) ->  | Z10: 4 | AB10: 岡谷市
A11: 2020101002 | B11: 20 | C11: 201 | D11: 01 | E11: 002 | F11: 長野県 | G11: 長野市 | H11: 長野市（旧） | I11: 新諏訪 | M11: =IF(K11="","",COUNTIF($K$7:K11,"ﾘｽﾄ１")) ->  | U11: =IF(S11="","",COUNTIF($S$7:S11,"該当２")) ->  | X11: =IF(V11="","",COUNTIF($V$7:V11,"該当３")) ->  | Z11: 5 | AB11: 飯田市
A12: 2020101003 | B12: 20 | C12: 201 | D12: 01 | E12: 003 | F12: 長野県 | G12: 長野市 | H12: 長野市（旧） | I12: 西長野 | M12: =IF(K12="","",COUNTIF($K$7:K12,"ﾘｽﾄ１")) ->  | U12: =IF(S12="","",COUNTIF($S$7:S12,"該当２")) ->  | X12: =IF(V12="","",COUNTIF($V$7:V12,"該当３")) ->  | Z12: 6 | AB12: 諏訪市
A13: 2020101004 | B13: 20 | C13: 201 | D13: 01 | E13: 004 | F13: 長野県 | G13: 長野市 | H13: 長野市（旧） | I13: 桜枝町外 | M13: =IF(K13="","",COUNTIF($K$7:K13,"ﾘｽﾄ１")) ->  | U13: =IF(S13="","",COUNTIF($S$7:S13,"該当２")) ->  | X13: =IF(V13="","",COUNTIF($V$7:V13,"該当３")) ->  | Z13: 7 | AB13: 須坂市
A14: 2020101005 | B14: 20 | C14: 201 | D14: 01 | E14: 005 | F14: 長野県 | G14: 長野市 | H14: 長野市（旧） | I14: 花咲町外 | M14: =IF(K14="","",COUNTIF($K$7:K14,"ﾘｽﾄ１")) ->  | U14: =IF(S14="","",COUNTIF($S$7:S14,"該当２")) ->  | X14: =IF(V14="","",COUNTIF($V$7:V14,"該当３")) ->  | Z14: 8 | AB14: 小諸市
A15: 2020101006 | B15: 20 | C15: 201 | D15: 01 | E15: 006 | F15: 長野県 | G15: 長野市 | H15: 長野市（旧） | I15: 往生地 | M15: =IF(K15="","",COUNTIF($K$7:K15,"ﾘｽﾄ１")) ->  | U15: =IF(S15="","",COUNTIF($S$7:S15,"該当２")) ->  | X15: =IF(V15="","",COUNTIF($V$7:V15,"該当３")) ->  | Z15: 9 | AB15: 伊那市
A16: 2020101007 | B16: 20 | C16: 201 | D16: 01 | E16: 007 | F16: 長野県 | G16: 長野市 | H16: 長野市（旧） | I16: 横沢町外 | M16: =IF(K16="","",COUNTIF($K$7:K16,"ﾘｽﾄ１")) ->  | U16: =IF(S16="","",COUNTIF($S$7:S16,"該当２")) ->  | X16: =IF(V16="","",COUNTIF($V$7:V16,"該当３")) ->  | Z16: 10 | AB16: 駒ヶ根市
A17: 2020101008 | B17: 20 | C17: 201 | D17: 01 | E17: 008 | F17: 長野県 | G17: 長野市 | H17: 長野市（旧） | I17: 箱清水 | M17: =IF(K17="","",COUNTIF($K$7:K17,"ﾘｽﾄ１")) ->  | U17: =IF(S17="","",COUNTIF($S$7:S17,"該当２")) ->  | X17: =IF(V17="","",COUNTIF($V$7:V17,"該当３")) ->  | Z17: 11 | AB17: 中野市
A18: 2020101009 | B18: 20 | C18: 201 | D18: 01 | E18: 009 | F18: 長野県 | G18: 長野市 | H18: 長野市（旧） | I18: 元善町外 | M18: =IF(K18="","",COUNTIF($K$7:K18,"ﾘｽﾄ１")) ->  | U18: =IF(S18="","",COUNTIF($S$7:S18,"該当２")) ->  | X18: =IF(V18="","",COUNTIF($V$7:V18,"該当３")) ->  | Z18: 12 | AB18: 大町市
A19: 2020101010 | B19: 20 | C19: 201 | D19: 01 | E19: 010 | F19: 長野県 | G19: 長野市 | H19: 長野市（旧） | I19: 三輪田町 | M19: =IF(K19="","",COUNTIF($K$7:K19,"ﾘｽﾄ１")) ->  | U19: =IF(S19="","",COUNTIF($S$7:S19,"該当２")) ->  | X19: =IF(V19="","",COUNTIF($V$7:V19,"該当３")) ->  | Z19: 13 | AB19: 飯山市
A20: 2020101011 | B20: 20 | C20: 201 | D20: 01 | E20: 011 | F20: 長野県 | G20: 長野市 | H20: 長野市（旧） | I20: 淀ケ橋 | M20: =IF(K20="","",COUNTIF($K$7:K20,"ﾘｽﾄ１")) ->  | U20: =IF(S20="","",COUNTIF($S$7:S20,"該当２")) ->  | X20: =IF(V20="","",COUNTIF($V$7:V20,"該当３")) ->  | Z20: 14 | AB20: 茅野市
A21: 2020101012 | B21: 20 | C21: 201 | D21: 01 | E21: 012 | F21: 長野県 | G21: 長野市 | H21: 長野市（旧） | I21: 上松滝 | M21: =IF(K21="","",COUNTIF($K$7:K21,"ﾘｽﾄ１")) ->  | U21: =IF(S21="","",COUNTIF($S$7:S21,"該当２")) ->  | X21: =IF(V21="","",COUNTIF($V$7:V21,"該当３")) ->  | Z21: 15 | AB21: 塩尻市
A22: 2020101013 | B22: 20 | C22: 201 | D22: 01 | E22: 013 | F22: 長野県 | G22: 長野市 | H22: 長野市（旧） | I22: 上松 | M22: =IF(K22="","",COUNTIF($K$7:K22,"ﾘｽﾄ１")) ->  | U22: =IF(S22="","",COUNTIF($S$7:S22,"該当２")) ->  | X22: =IF(V22="","",COUNTIF($V$7:V22,"該当３")) ->  | Z22: 16 | AB22: 佐久市
A23: 2020101014 | B23: 20 | C23: 201 | D23: 01 | E23: 014 | F23: 長野県 | G23: 長野市 | H23: 長野市（旧） | I23: 湯谷 | M23: =IF(K23="","",COUNTIF($K$7:K23,"ﾘｽﾄ１")) ->  | U23: =IF(S23="","",COUNTIF($S$7:S23,"該当２")) ->  | X23: =IF(V23="","",COUNTIF($V$7:V23,"該当３")) ->  | Z23: 17 | AB23: 千曲市
A24: 2020101015 | B24: 20 | C24: 201 | D24: 01 | E24: 015 | F24: 長野県 | G24: 長野市 | H24: 長野市（旧） | I24: 東後町外 | M24: =IF(K24="","",COUNTIF($K$7:K24,"ﾘｽﾄ１")) ->  | U24: =IF(S24="","",COUNTIF($S$7:S24,"該当２")) ->  | X24: =IF(V24="","",COUNTIF($V$7:V24,"該当３")) ->  | Z24: 18 | AB24: 東御市
A25: 2020101016 | B25: 20 | C25: 201 | D25: 01 | E25: 016 | F25: 長野県 | G25: 長野市 | H25: 長野市（旧） | I25: 田町外 | M25: =IF(K25="","",COUNTIF($K$7:K25,"ﾘｽﾄ１")) ->  | U25: =IF(S25="","",COUNTIF($S$7:S25,"該当２")) ->  | X25: =IF(V25="","",COUNTIF($V$7:V25,"該当３")) ->  | Z25: 19 | AB25: 安曇野市
A26: 2020101017 | B26: 20 | C26: 201 | D26: 01 | E26: 017 | F26: 長野県 | G26: 長野市 | H26: 長野市（旧） | I26: 上千歳町外 | M26: =IF(K26="","",COUNTIF($K$7:K26,"ﾘｽﾄ１")) ->  | U26: =IF(S26="","",COUNTIF($S$7:S26,"該当２")) ->  | X26: =IF(V26="","",COUNTIF($V$7:V26,"該当３")) ->  | Z26: 20 | AB26: 小海町
A27: 2020101018 | B27: 20 | C27: 201 | D27: 01 | E27: 018 | F27: 長野県 | G27: 長野市 | H27: 長野市（旧） | I27: 諏訪町外 | M27: =IF(K27="","",COUNTIF($K$7:K27,"ﾘｽﾄ１")) ->  | U27: =IF(S27="","",COUNTIF($S$7:S27,"該当２")) ->  | X27: =IF(V27="","",COUNTIF($V$7:V27,"該当３")) ->  | Z27: 21 | AB27: 川上村
A28: 2020101019 | B28: 20 | C28: 201 | D28: 01 | E28: 019 | F28: 長野県 | G28: 長野市 | H28: 長野市（旧） | I28: 北石堂町外 | M28: =IF(K28="","",COUNTIF($K$7:K28,"ﾘｽﾄ１")) ->  | U28: =IF(S28="","",COUNTIF($S$7:S28,"該当２")) ->  | X28: =IF(V28="","",COUNTIF($V$7:V28,"該当３")) ->  | Z28: 22 | AB28: 南牧村
A29: 2020101020 | B29: 20 | C29: 201 | D29: 01 | E29: 020 | F29: 長野県 | G29: 長野市 | H29: 長野市（旧） | I29: 岡田町 | M29: =IF(K29="","",COUNTIF($K$7:K29,"ﾘｽﾄ１")) ->  | U29: =IF(S29="","",COUNTIF($S$7:S29,"該当２")) ->  | X29: =IF(V29="","",COUNTIF($V$7:V29,"該当３")) ->  | Z29: 23 | AB29: 南相木村
A30: 2020101021 | B30: 20 | C30: 201 | D30: 01 | E30: 021 | F30: 長野県 | G30: 長野市 | H30: 長野市（旧） | I30: 中御所 | M30: =IF(K30="","",COUNTIF($K$7:K30,"ﾘｽﾄ１")) ->  | U30: =IF(S30="","",COUNTIF($S$7:S30,"該当２")) ->  | X30: =IF(V30="","",COUNTIF($V$7:V30,"該当３")) ->  | Z30: 24 | AB30: 北相木村
A31: 2020101022 | B31: 20 | C31: 201 | D31: 01 | E31: 022 | F31: 長野県 | G31: 長野市 | H31: 長野市（旧） | I31: 七瀬中部 | M31: =IF(K31="","",COUNTIF($K$7:K31,"ﾘｽﾄ１")) ->  | U31: =IF(S31="","",COUNTIF($S$7:S31,"該当２")) ->  | X31: =IF(V31="","",COUNTIF($V$7:V31,"該当３")) ->  | Z31: 25 | AB31: 佐久穂町
A32: 2020101023 | B32: 20 | C32: 201 | D32: 01 | E32: 023 | F32: 長野県 | G32: 長野市 | H32: 長野市（旧） | I32: 七瀬北部 | M32: =IF(K32="","",COUNTIF($K$7:K32,"ﾘｽﾄ１")) ->  | U32: =IF(S32="","",COUNTIF($S$7:S32,"該当２")) ->  | X32: =IF(V32="","",COUNTIF($V$7:V32,"該当３")) ->  | Z32: 26 | AB32: 軽井沢町
A33: 2020101024 | B33: 20 | C33: 201 | D33: 01 | E33: 024 | F33: 長野県 | G33: 長野市 | H33: 長野市（旧） | I33: 七瀬南部 | M33: =IF(K33="","",COUNTIF($K$7:K33,"ﾘｽﾄ１")) ->  | U33: =IF(S33="","",COUNTIF($S$7:S33,"該当２")) ->  | X33: =IF(V33="","",COUNTIF($V$7:V33,"該当３")) ->  | Z33: 27 | AB33: 御代田町
A34: 2020101025 | B34: 20 | C34: 201 | D34: 01 | E34: 025 | F34: 長野県 | G34: 長野市 | H34: 長野市（旧） | I34: 栗田北中 | M34: =IF(K34="","",COUNTIF($K$7:K34,"ﾘｽﾄ１")) ->  | U34: =IF(S34="","",COUNTIF($S$7:S34,"該当２")) ->  | X34: =IF(V34="","",COUNTIF($V$7:V34,"該当３")) ->  | Z34: 28 | AB34: 立科町
A35: 2020101026 | B35: 20 | C35: 201 | D35: 01 | E35: 026 | F35: 長野県 | G35: 長野市 | H35: 長野市（旧） | I35: 栗田 | M35: =IF(K35="","",COUNTIF($K$7:K35,"ﾘｽﾄ１")) ->  | U35: =IF(S35="","",COUNTIF($S$7:S35,"該当２")) ->  | X35: =IF(V35="","",COUNTIF($V$7:V35,"該当３")) ->  | Z35: 29 | AB35: 青木村
A36: 2020101027 | B36: 20 | C36: 201 | D36: 01 | E36: 027 | F36: 長野県 | G36: 長野市 | H36: 長野市（旧） | I36: 北市 | M36: =IF(K36="","",COUNTIF($K$7:K36,"ﾘｽﾄ１")) ->  | U36: =IF(S36="","",COUNTIF($S$7:S36,"該当２")) ->  | X36: =IF(V36="","",COUNTIF($V$7:V36,"該当３")) ->  | Z36: 30 | AB36: 長和町
A37: 2020101028 | B37: 20 | C37: 201 | D37: 01 | E37: 028 | F37: 長野県 | G37: 長野市 | H37: 長野市（旧） | I37: 北荒木 | M37: =IF(K37="","",COUNTIF($K$7:K37,"ﾘｽﾄ１")) ->  | U37: =IF(S37="","",COUNTIF($S$7:S37,"該当２")) ->  | X37: =IF(V37="","",COUNTIF($V$7:V37,"該当３")) ->  | Z37: 31 | AB37: 下諏訪町
A38: 2020101029 | B38: 20 | C38: 201 | D38: 01 | E38: 029 | F38: 長野県 | G38: 長野市 | H38: 長野市（旧） | I38: 吹上 | M38: =IF(K38="","",COUNTIF($K$7:K38,"ﾘｽﾄ１")) ->  | U38: =IF(S38="","",COUNTIF($S$7:S38,"該当２")) ->  | X38: =IF(V38="","",COUNTIF($V$7:V38,"該当３")) ->  | Z38: 32 | AB38: 富士見町
A39: 2020101030 | B39: 20 | C39: 201 | D39: 01 | E39: 030 | F39: 長野県 | G39: 長野市 | H39: 長野市（旧） | I39: 南荒木 | M39: =IF(K39="","",COUNTIF($K$7:K39,"ﾘｽﾄ１")) ->  | U39: =IF(S39="","",COUNTIF($S$7:S39,"該当２")) ->  | X39: =IF(V39="","",COUNTIF($V$7:V39,"該当３")) ->  | Z39: 33 | AB39: 原村
A40: 2020101031 | B40: 20 | C40: 201 | D40: 01 | E40: 031 | F40: 長野県 | G40: 長野市 | H40: 長野市（旧） | I40: 南市 | M40: =IF(K40="","",COUNTIF($K$7:K40,"ﾘｽﾄ１")) ->  | U40: =IF(S40="","",COUNTIF($S$7:S40,"該当２")) ->  | X40: =IF(V40="","",COUNTIF($V$7:V40,"該当３")) ->  | Z40: 34 | AB40: 辰野町
A41: 2020101032 | B41: 20 | C41: 201 | D41: 01 | E41: 032 | F41: 長野県 | G41: 長野市 | H41: 長野市（旧） | I41: 川合新田 | M41: =IF(K41="","",COUNTIF($K$7:K41,"ﾘｽﾄ１")) ->  | U41: =IF(S41="","",COUNTIF($S$7:S41,"該当２")) ->  | X41: =IF(V41="","",COUNTIF($V$7:V41,"該当３")) ->  | Z41: 35 | AB41: 箕輪町
A42: 2020101033 | B42: 20 | C42: 201 | D42: 01 | E42: 033 | F42: 長野県 | G42: 長野市 | H42: 長野市（旧） | I42: 上千田 | M42: =IF(K42="","",COUNTIF($K$7:K42,"ﾘｽﾄ１")) ->  | U42: =IF(S42="","",COUNTIF($S$7:S42,"該当２")) ->  | X42: =IF(V42="","",COUNTIF($V$7:V42,"該当３")) ->  | Z42: 36 | AB42: 飯島町
A43: 2020101034 | B43: 20 | C43: 201 | D43: 01 | E43: 034 | F43: 長野県 | G43: 長野市 | H43: 長野市（旧） | I43: 母袋 | M43: =IF(K43="","",COUNTIF($K$7:K43,"ﾘｽﾄ１")) ->  | U43: =IF(S43="","",COUNTIF($S$7:S43,"該当２")) ->  | X43: =IF(V43="","",COUNTIF($V$7:V43,"該当３")) ->  | Z43: 37 | AB43: 南箕輪村
A44: 2020101035 | B44: 20 | C44: 201 | D44: 01 | E44: 035 | F44: 長野県 | G44: 長野市 | H44: 長野市（旧） | I44: 中千田 | M44: =IF(K44="","",COUNTIF($K$7:K44,"ﾘｽﾄ１")) ->  | U44: =IF(S44="","",COUNTIF($S$7:S44,"該当２")) ->  | X44: =IF(V44="","",COUNTIF($V$7:V44,"該当３")) ->  | Z44: 38 | AB44: 中川村
A45: 2020101036 | B45: 20 | C45: 201 | D45: 01 | E45: 036 | F45: 長野県 | G45: 長野市 | H45: 長野市（旧） | I45: 日詰 | M45: =IF(K45="","",COUNTIF($K$7:K45,"ﾘｽﾄ１")) ->  | U45: =IF(S45="","",COUNTIF($S$7:S45,"該当２")) ->  | X45: =IF(V45="","",COUNTIF($V$7:V45,"該当３")) ->  | Z45: 39 | AB45: 宮田村
A46: 2020101037 | B46: 20 | C46: 201 | D46: 01 | E46: 037 | F46: 長野県 | G46: 長野市 | H46: 長野市（旧） | I46: 南俣 | M46: =IF(K46="","",COUNTIF($K$7:K46,"ﾘｽﾄ１")) ->  | U46: =IF(S46="","",COUNTIF($S$7:S46,"該当２")) ->  | X46: =IF(V46="","",COUNTIF($V$7:V46,"該当３")) ->  | Z46: 40 | AB46: 松川町
A47: 2020101038 | B47: 20 | C47: 201 | D47: 01 | E47: 038 | F47: 長野県 | G47: 長野市 | H47: 長野市（旧） | I47: 上高田 | M47: =IF(K47="","",COUNTIF($K$7:K47,"ﾘｽﾄ１")) ->  | U47: =IF(S47="","",COUNTIF($S$7:S47,"該当２")) ->  | X47: =IF(V47="","",COUNTIF($V$7:V47,"該当３")) ->  | Z47: 41 | AB47: 高森町
A48: 2020101039 | B48: 20 | C48: 201 | D48: 01 | E48: 039 | F48: 長野県 | G48: 長野市 | H48: 長野市（旧） | I48: 川端 | M48: =IF(K48="","",COUNTIF($K$7:K48,"ﾘｽﾄ１")) ->  | U48: =IF(S48="","",COUNTIF($S$7:S48,"該当２")) ->  | X48: =IF(V48="","",COUNTIF($V$7:V48,"該当３")) ->  | Z48: 42 | AB48: 阿南町
A49: 2020101040 | B49: 20 | C49: 201 | D49: 01 | E49: 040 | F49: 長野県 | G49: 長野市 | H49: 長野市（旧） | I49: 中村 | M49: =IF(K49="","",COUNTIF($K$7:K49,"ﾘｽﾄ１")) ->  | U49: =IF(S49="","",COUNTIF($S$7:S49,"該当２")) ->  | X49: =IF(V49="","",COUNTIF($V$7:V49,"該当３")) ->  | Z49: 43 | AB49: 阿智村
A50: 2020101041 | B50: 20 | C50: 201 | D50: 01 | E50: 041 | F50: 長野県 | G50: 長野市 | H50: 長野市（旧） | I50: 五分一 | M50: =IF(K50="","",COUNTIF($K$7:K50,"ﾘｽﾄ１")) ->  | U50: =IF(S50="","",COUNTIF($S$7:S50,"該当２")) ->  | X50: =IF(V50="","",COUNTIF($V$7:V50,"該当３")) ->  | Z50: 44 | AB50: 平谷村
A51: 2020101042 | B51: 20 | C51: 201 | D51: 01 | E51: 042 | F51: 長野県 | G51: 長野市 | H51: 長野市（旧） | I51: 南高田 | M51: =IF(K51="","",COUNTIF($K$7:K51,"ﾘｽﾄ１")) ->  | U51: =IF(S51="","",COUNTIF($S$7:S51,"該当２")) ->  | X51: =IF(V51="","",COUNTIF($V$7:V51,"該当３")) ->  | Z51: 45 | AB51: 根羽村
A52: 2020101043 | B52: 20 | C52: 201 | D52: 01 | E52: 043 | F52: 長野県 | G52: 長野市 | H52: 長野市（旧） | I52: 南長池 | M52: =IF(K52="","",COUNTIF($K$7:K52,"ﾘｽﾄ１")) ->  | U52: =IF(S52="","",COUNTIF($S$7:S52,"該当２")) ->  | X52: =IF(V52="","",COUNTIF($V$7:V52,"該当３")) ->  | Z52: 46 | AB52: 下條村
A53: 2020101044 | B53: 20 | C53: 201 | D53: 01 | E53: 044 | F53: 長野県 | G53: 長野市 | H53: 長野市（旧） | I53: 若宮 | M53: =IF(K53="","",COUNTIF($K$7:K53,"ﾘｽﾄ１")) ->  | U53: =IF(S53="","",COUNTIF($S$7:S53,"該当２")) ->  | X53: =IF(V53="","",COUNTIF($V$7:V53,"該当３")) ->  | Z53: 47 | AB53: 売木村
A54: 2020101045 | B54: 20 | C54: 201 | D54: 01 | E54: 045 | F54: 長野県 | G54: 長野市 | H54: 長野市（旧） | I54: 西尾張部 | M54: =IF(K54="","",COUNTIF($K$7:K54,"ﾘｽﾄ１")) ->  | U54: =IF(S54="","",COUNTIF($S$7:S54,"該当２")) ->  | X54: =IF(V54="","",COUNTIF($V$7:V54,"該当３")) ->  | Z54: 48 | AB54: 天龍村
A55: 2020101046 | B55: 20 | C55: 201 | D55: 01 | E55: 046 | F55: 長野県 | G55: 長野市 | H55: 長野市（旧） | I55: 東和田 | M55: =IF(K55="","",COUNTIF($K$7:K55,"ﾘｽﾄ１")) ->  | U55: =IF(S55="","",COUNTIF($S$7:S55,"該当２")) ->  | X55: =IF(V55="","",COUNTIF($V$7:V55,"該当３")) ->  | Z55: 49 | AB55: 泰阜村
A56: 2020101047 | B56: 20 | C56: 201 | D56: 01 | E56: 047 | F56: 長野県 | G56: 長野市 | H56: 長野市（旧） | I56: 西和田 | M56: =IF(K56="","",COUNTIF($K$7:K56,"ﾘｽﾄ１")) ->  | U56: =IF(S56="","",COUNTIF($S$7:S56,"該当２")) ->  | X56: =IF(V56="","",COUNTIF($V$7:V56,"該当３")) ->  | Z56: 50 | AB56: 喬木村
A57: 2020101048 | B57: 20 | C57: 201 | D57: 01 | E57: 048 | F57: 長野県 | G57: 長野市 | H57: 長野市（旧） | I57: 平林 | M57: =IF(K57="","",COUNTIF($K$7:K57,"ﾘｽﾄ１")) ->  | U57: =IF(S57="","",COUNTIF($S$7:S57,"該当２")) ->  | X57: =IF(V57="","",COUNTIF($V$7:V57,"該当３")) ->  | Z57: 51 | AB57: 豊丘村
A58: 2020101049 | B58: 20 | C58: 201 | D58: 01 | E58: 049 | F58: 長野県 | G58: 長野市 | H58: 長野市（旧） | I58: 北条 | M58: =IF(K58="","",COUNTIF($K$7:K58,"ﾘｽﾄ１")) ->  | U58: =IF(S58="","",COUNTIF($S$7:S58,"該当２")) ->  | X58: =IF(V58="","",COUNTIF($V$7:V58,"該当３")) ->  | Z58: 52 | AB58: 大鹿村
A59: 2020101050 | B59: 20 | C59: 201 | D59: 01 | E59: 050 | F59: 長野県 | G59: 長野市 | H59: 長野市（旧） | I59: 荒屋 | M59: =IF(K59="","",COUNTIF($K$7:K59,"ﾘｽﾄ１")) ->  | U59: =IF(S59="","",COUNTIF($S$7:S59,"該当２")) ->  | X59: =IF(V59="","",COUNTIF($V$7:V59,"該当３")) ->  | Z59: 53 | AB59: 上松町 | AC59: =IF($Z59>MAX($U$7:$U$5356),"",INDEX($T$7:$T$5356,MATCH($Z59,$U$7:$U$5356,0),MATCH($AC$4,$T$5:$U$5,0))) -> 
A60: 2020101051 | B60: 20 | C60: 201 | D60: 01 | E60: 051 | F60: 長野県 | G60: 長野市 | H60: 長野市（旧） | I60: 桐原 | M60: =IF(K60="","",COUNTIF($K$7:K60,"ﾘｽﾄ１")) ->  | U60: =IF(S60="","",COUNTIF($S$7:S60,"該当２")) ->  | X60: =IF(V60="","",COUNTIF($V$7:V60,"該当３")) ->  | Z60: 54 | AB60: 南木曽町 | AC60: =IF($Z60>MAX($U$7:$U$5356),"",INDEX($T$7:$T$5356,MATCH($Z60,$U$7:$U$5356,0),MATCH($AC$4,$T$5:$U$5,0))) -> 
A61: 2020101052 | B61: 20 | C61: 201 | D61: 01 | E61: 052 | F61: 長野県 | G61: 長野市 | H61: 長野市（旧） | I61: 中越 | M61: =IF(K61="","",COUNTIF($K$7:K61,"ﾘｽﾄ１")) ->  | U61: =IF(S61="","",COUNTIF($S$7:S61,"該当２")) ->  | X61: =IF(V61="","",COUNTIF($V$7:V61,"該当３")) ->  | Z61: 55 | AB61: 木祖村
A62: 2020101053 | B62: 20 | C62: 201 | D62: 01 | E62: 053 | F62: 長野県 | G62: 長野市 | H62: 長野市（旧） | I62: 鍋屋 | M62: =IF(K62="","",COUNTIF($K$7:K62,"ﾘｽﾄ１")) ->  | U62: =IF(S62="","",COUNTIF($S$7:S62,"該当２")) ->  | X62: =IF(V62="","",COUNTIF($V$7:V62,"該当３")) ->  | Z62: 56 | AB62: 王滝村
A63: 2020101054 | B63: 20 | C63: 201 | D63: 01 | E63: 054 | F63: 長野県 | G63: 長野市 | H63: 長野市（旧） | I63: 太田 | M63: =IF(K63="","",COUNTIF($K$7:K63,"ﾘｽﾄ１")) ->  | U63: =IF(S63="","",COUNTIF($S$7:S63,"該当２")) ->  | X63: =IF(V63="","",COUNTIF($V$7:V63,"該当３")) ->  | Z63: 57 | AB63: 大桑村
A64: 2020101055 | B64: 20 | C64: 201 | D64: 01 | E64: 055 | F64: 長野県 | G64: 長野市 | H64: 長野市（旧） | I64: 東部 | M64: =IF(K64="","",COUNTIF($K$7:K64,"ﾘｽﾄ１")) ->  | U64: =IF(S64="","",COUNTIF($S$7:S64,"該当２")) ->  | X64: =IF(V64="","",COUNTIF($V$7:V64,"該当３")) ->  | Z64: 58 | AB64: 木曽町
A65: 2020101056 | B65: 20 | C65: 201 | D65: 01 | E65: 056 | F65: 長野県 | G65: 長野市 | H65: 長野市（旧） | I65: 西部 | M65: =IF(K65="","",COUNTIF($K$7:K65,"ﾘｽﾄ１")) ->  | U65: =IF(S65="","",COUNTIF($S$7:S65,"該当２")) ->  | X65: =IF(V65="","",COUNTIF($V$7:V65,"該当３")) ->  | Z65: 59 | AB65: 麻績村
A66: 2020101057 | B66: 20 | C66: 201 | D66: 01 | E66: 057 | F66: 長野県 | G66: 長野市 | H66: 長野市（旧） | I66: 中部 | M66: =IF(K66="","",COUNTIF($K$7:K66,"ﾘｽﾄ１")) ->  | U66: =IF(S66="","",COUNTIF($S$7:S66,"該当２")) ->  | X66: =IF(V66="","",COUNTIF($V$7:V66,"該当３")) ->  | Z66: 60 | AB66: 生坂村
A67: 2020101058 | B67: 20 | C67: 201 | D67: 01 | E67: 058 | F67: 長野県 | G67: 長野市 | H67: 長野市（旧） | I67: 押鐘 | M67: =IF(K67="","",COUNTIF($K$7:K67,"ﾘｽﾄ１")) ->  | U67: =IF(S67="","",COUNTIF($S$7:S67,"該当２")) ->  | X67: =IF(V67="","",COUNTIF($V$7:V67,"該当３")) ->  | Z67: 61 | AB67: 山形村
A68: 2020101059 | B68: 20 | C68: 201 | D68: 01 | E68: 059 | F68: 長野県 | G68: 長野市 | H68: 長野市（旧） | I68: 上宇木 | M68: =IF(K68="","",COUNTIF($K$7:K68,"ﾘｽﾄ１")) ->  | U68: =IF(S68="","",COUNTIF($S$7:S68,"該当２")) ->  | X68: =IF(V68="","",COUNTIF($V$7:V68,"該当３")) ->  | Z68: 62 | AB68: 朝日村
A69: 2020101060 | B69: 20 | C69: 201 | D69: 01 | E69: 060 | F69: 長野県 | G69: 長野市 | H69: 長野市（旧） | I69: 下宇木 | M69: =IF(K69="","",COUNTIF($K$7:K69,"ﾘｽﾄ１")) ->  | U69: =IF(S69="","",COUNTIF($S$7:S69,"該当２")) ->  | X69: =IF(V69="","",COUNTIF($V$7:V69,"該当３")) ->  | Z69: 63 | AB69: 筑北村
A70: 2020101061 | B70: 20 | C70: 201 | D70: 01 | E70: 061 | F70: 長野県 | G70: 長野市 | H70: 長野市（旧） | I70: 相ノ木東 | M70: =IF(K70="","",COUNTIF($K$7:K70,"ﾘｽﾄ１")) ->  | U70: =IF(S70="","",COUNTIF($S$7:S70,"該当２")) ->  | X70: =IF(V70="","",COUNTIF($V$7:V70,"該当３")) ->  | Z70: 64 | AB70: 池田町
A71: 2020101062 | B71: 20 | C71: 201 | D71: 01 | E71: 062 | F71: 長野県 | G71: 長野市 | H71: 長野市（旧） | I71: 相ノ木西 | M71: =IF(K71="","",COUNTIF($K$7:K71,"ﾘｽﾄ１")) ->  | U71: =IF(S71="","",COUNTIF($S$7:S71,"該当２")) ->  | X71: =IF(V71="","",COUNTIF($V$7:V71,"該当３")) ->  | Z71: 65 | AB71: 松川村
A72: 2020101063 | B72: 20 | C72: 201 | D72: 01 | E72: 063 | F72: 長野県 | G72: 長野市 | H72: 長野市（旧） | I72: 横山 | M72: =IF(K72="","",COUNTIF($K$7:K72,"ﾘｽﾄ１")) ->  | P72: =IF(O72="該当１",G72,"") ->  | Q72: =IF(O72="該当１","ﾘｽﾄ2","") ->  | R72: =IF(Q72="ﾘｽﾄ2",H72,"") ->  | T72: =IF(S72="該当２",H72,"") ->  | U72: =IF(S72="","",COUNTIF($S$7:S72,"該当２")) ->  | V72: =IF(AND($S$2=H72,E72>0,E72<998),"該当３","") ->  | W72: =IF(V72="該当３",I72,"") ->  | X72: =IF(V72="","",COUNTIF($V$7:V72,"該当３")) ->  | Z72: 66 | AB72: 白馬村 | AD72: =IF($Z72>MAX($X$7:$X$3715),"",INDEX($W$7:$W$3715,MATCH($Z72,$X$7:$X$3715,0),MATCH($AD$4,$W$5:$X$5,0))) -> 
A73: 2020101064 | B73: 20 | C73: 201 | D73: 01 | E73: 064 | F73: 長野県 | G73: 長野市 | H73: 長野市（旧） | I73: 本郷 | K73: =IF(AND($C73>0,$H73=""),"ﾘｽﾄ１","") ->  | L73: =IF(K73="ﾘｽﾄ１",G73,"") ->  | M73: =IF(K73="","",COUNTIF($K$7:K73,"ﾘｽﾄ１")) ->  | N73: =IF(AND(D73=0,E73>0),"同一区","") ->  | O73: =IF(AND(EXACT($K$2,G73),H73>0),"該当１","") ->  | S73: =IF(AND(Q73="ﾘｽﾄ2",OR(I73=0,AND(N73="同一区",E73=1))),"該当２","") ->  | U73: =IF(S73="","",COUNTIF($S$7:S73,"該当２")) ->  | X73: =IF(V73="","",COUNTIF($V$7:V73,"該当３")) ->  | Z73: 67 | AB73: 小谷村
A74: 2020101065 | B74: 20 | C74: 201 | D74: 01 | E74: 065 | F74: 長野県 | G74: 長野市 | H74: 長野市（旧） | I74: 返目 | M74: =IF(K74="","",COUNTIF($K$7:K74,"ﾘｽﾄ１")) ->  | U74: =IF(S74="","",COUNTIF($S$7:S74,"該当２")) ->  | X74: =IF(V74="","",COUNTIF($V$7:V74,"該当３")) ->  | Z74: 68 | AB74: 坂城町
A75: 2020102000 | B75: 20 | C75: 201 | D75: 02 | E75: 000 | F75: 長野県 | G75: 長野市 | H75: 芋井村 | M75: =IF(K75="","",COUNTIF($K$7:K75,"ﾘｽﾄ１")) ->  | U75: =IF(S75="","",COUNTIF($S$7:S75,"該当２")) ->  | X75: =IF(V75="","",COUNTIF($V$7:V75,"該当３")) ->  | Z75: 69 | AB75: 小布施町
A76: 2020102001 | B76: 20 | C76: 201 | D76: 02 | E76: 001 | F76: 長野県 | G76: 長野市 | H76: 芋井村 | I76: 新安 | M76: =IF(K76="","",COUNTIF($K$7:K76,"ﾘｽﾄ１")) ->  | U76: =IF(S76="","",COUNTIF($S$7:S76,"該当２")) ->  | X76: =IF(V76="","",COUNTIF($V$7:V76,"該当３")) ->  | Z76: 70 | AB76: 高山村
A77: 2020102002 | B77: 20 | C77: 201 | D77: 02 | E77: 002 | F77: 長野県 | G77: 長野市 | H77: 芋井村 | I77: 荒安 | M77: =IF(K77="","",COUNTIF($K$7:K77,"ﾘｽﾄ１")) ->  | U77: =IF(S77="","",COUNTIF($S$7:S77,"該当２")) ->  | X77: =IF(V77="","",COUNTIF($V$7:V77,"該当３")) ->  | Z77: 71 | AB77: 山ノ内町
A78: 2020102003 | B78: 20 | C78: 201 | D78: 02 | E78: 003 | F78: 長野県 | G78: 長野市 | H78: 芋井村 | I78: たたら | M78: =IF(K78="","",COUNTIF($K$7:K78,"ﾘｽﾄ１")) ->  | U78: =IF(S78="","",COUNTIF($S$7:S78,"該当２")) ->  | X78: =IF(V78="","",COUNTIF($V$7:V78,"該当３")) ->  | Z78: 72 | AB78: 木島平村
A79: 2020102004 | B79: 20 | C79: 201 | D79: 02 | E79: 004 | F79: 長野県 | G79: 長野市 | H79: 芋井村 | I79: 坂額 | M79: =IF(K79="","",COUNTIF($K$7:K79,"ﾘｽﾄ１")) ->  | U79: =IF(S79="","",COUNTIF($S$7:S79,"該当２")) ->  | X79: =IF(V79="","",COUNTIF($V$7:V79,"該当３")) ->  | Z79: 73 | AB79: 野沢温泉村
A80: 2020102005 | B80: 20 | C80: 201 | D80: 02 | E80: 005 | F80: 長野県 | G80: 長野市 | H80: 芋井村 | I80: 泉平 | M80: =IF(K80="","",COUNTIF($K$7:K80,"ﾘｽﾄ１")) ->  | U80: =IF(S80="","",COUNTIF($S$7:S80,"該当２")) ->  | X80: =IF(V80="","",COUNTIF($V$7:V80,"該当３")) ->  | Z80: 74 | AB80: 信濃町
A81: 2020102006 | B81: 20 | C81: 201 | D81: 02 | E81: 006 | F81: 長野県 | G81: 長野市 | H81: 芋井村 | I81: 中村 | M81: =IF(K81="","",COUNTIF($K$7:K81,"ﾘｽﾄ１")) ->  | U81: =IF(S81="","",COUNTIF($S$7:S81,"該当２")) ->  | X81: =IF(V81="","",COUNTIF($V$7:V81,"該当３")) ->  | Z81: 75 | AB81: 小川村
A82: 2020102007 | B82: 20 | C82: 201 | D82: 02 | E82: 007 | F82: 長野県 | G82: 長野市 | H82: 芋井村 | I82: 坂高木 | M82: =IF(K82="","",COUNTIF($K$7:K82,"ﾘｽﾄ１")) ->  | U82: =IF(S82="","",COUNTIF($S$7:S82,"該当２")) ->  | X82: =IF(V82="","",COUNTIF($V$7:V82,"該当３")) ->  | Z82: 76 | AB82: 飯綱町
A83: 2020102008 | B83: 20 | C83: 201 | D83: 02 | E83: 008 | F83: 長野県 | G83: 長野市 | H83: 芋井村 | I83: 松久保 | M83: =IF(K83="","",COUNTIF($K$7:K83,"ﾘｽﾄ１")) ->  | U83: =IF(S83="","",COUNTIF($S$7:S83,"該当２")) ->  | X83: =IF(V83="","",COUNTIF($V$7:V83,"該当３")) ->  | Z83: 77 | AB83: 栄村
A84: 2020102009 | B84: 20 | C84: 201 | D84: 02 | E84: 009 | F84: 長野県 | G84: 長野市 | H84: 芋井村 | I84: 池平 | M84: =IF(K84="","",COUNTIF($K$7:K84,"ﾘｽﾄ１")) ->  | U84: =IF(S84="","",COUNTIF($S$7:S84,"該当２")) ->  | X84: =IF(V84="","",COUNTIF($V$7:V84,"該当３")) ->  | Z84: 78
A85: 2020102010 | B85: 20 | C85: 201 | D85: 02 | E85: 010 | F85: 長野県 | G85: 長野市 | H85: 芋井村 | I85: 洞 | M85: =IF(K85="","",COUNTIF($K$7:K85,"ﾘｽﾄ１")) ->  | U85: =IF(S85="","",COUNTIF($S$7:S85,"該当２")) ->  | X85: =IF(V85="","",COUNTIF($V$7:V85,"該当３")) ->  | Z85: 79
A86: 2020102011 | B86: 20 | C86: 201 | D86: 02 | E86: 011 | F86: 長野県 | G86: 長野市 | H86: 芋井村 | I86: 清水 | M86: =IF(K86="","",COUNTIF($K$7:K86,"ﾘｽﾄ１")) ->  | U86: =IF(S86="","",COUNTIF($S$7:S86,"該当２")) ->  | X86: =IF(V86="","",COUNTIF($V$7:V86,"該当３")) ->  | Z86: 80
A87: 2020102012 | B87: 20 | C87: 201 | D87: 02 | E87: 012 | F87: 長野県 | G87: 長野市 | H87: 芋井村 | I87: 岩戸 | M87: =IF(K87="","",COUNTIF($K$7:K87,"ﾘｽﾄ１")) ->  | U87: =IF(S87="","",COUNTIF($S$7:S87,"該当２")) ->  | X87: =IF(V87="","",COUNTIF($V$7:V87,"該当３")) ->  | Z87: 81
A88: 2020102013 | B88: 20 | C88: 201 | D88: 02 | E88: 013 | F88: 長野県 | G88: 長野市 | H88: 芋井村 | I88: 曲戸 | M88: =IF(K88="","",COUNTIF($K$7:K88,"ﾘｽﾄ１")) ->  | U88: =IF(S88="","",COUNTIF($S$7:S88,"該当２")) ->  | X88: =IF(V88="","",COUNTIF($V$7:V88,"該当３")) -> 
A89: 2020102014 | B89: 20 | C89: 201 | D89: 02 | E89: 014 | F89: 長野県 | G89: 長野市 | H89: 芋井村 | I89: 沢尻 | M89: =IF(K89="","",COUNTIF($K$7:K89,"ﾘｽﾄ１")) ->  | U89: =IF(S89="","",COUNTIF($S$7:S89,"該当２")) ->  | X89: =IF(V89="","",COUNTIF($V$7:V89,"該当３")) -> 
A90: 2020102015 | B90: 20 | C90: 201 | D90: 02 | E90: 015 | F90: 長野県 | G90: 長野市 | H90: 芋井村 | I90: 上野平 | M90: =IF(K90="","",COUNTIF($K$7:K90,"ﾘｽﾄ１")) ->  | U90: =IF(S90="","",COUNTIF($S$7:S90,"該当２")) ->  | X90: =IF(V90="","",COUNTIF($V$7:V90,"該当３")) -> 
A91: 2020102016 | B91: 20 | C91: 201 | D91: 02 | E91: 016 | F91: 長野県 | G91: 長野市 | H91: 芋井村 | I91: 上中犬飼 | M91: =IF(K91="","",COUNTIF($K$7:K91,"ﾘｽﾄ１")) ->  | U91: =IF(S91="","",COUNTIF($S$7:S91,"該当２")) ->  | X91: =IF(V91="","",COUNTIF($V$7:V91,"該当３")) -> 
A92: 2020102017 | B92: 20 | C92: 201 | D92: 02 | E92: 017 | F92: 長野県 | G92: 長野市 | H92: 芋井村 | I92: 下犬飼 | M92: =IF(K92="","",COUNTIF($K$7:K92,"ﾘｽﾄ１")) ->  | U92: =IF(S92="","",COUNTIF($S$7:S92,"該当２")) ->  | X92: =IF(V92="","",COUNTIF($V$7:V92,"該当３")) -> 
A93: 2020102018 | B93: 20 | C93: 201 | D93: 02 | E93: 018 | F93: 長野県 | G93: 長野市 | H93: 芋井村 | I93: 荻久保 | M93: =IF(K93="","",COUNTIF($K$7:K93,"ﾘｽﾄ１")) ->  | U93: =IF(S93="","",COUNTIF($S$7:S93,"該当２")) ->  | X93: =IF(V93="","",COUNTIF($V$7:V93,"該当３")) -> 
A94: 2020102019 | B94: 20 | C94: 201 | D94: 02 | E94: 019 | F94: 長野県 | G94: 長野市 | H94: 芋井村 | I94: 影山 | M94: =IF(K94="","",COUNTIF($K$7:K94,"ﾘｽﾄ１")) ->  | U94: =IF(S94="","",COUNTIF($S$7:S94,"該当２")) ->  | X94: =IF(V94="","",COUNTIF($V$7:V94,"該当３")) -> 
A95: 2020102020 | B95: 20 | C95: 201 | D95: 02 | E95: 020 | F95: 長野県 | G95: 長野市 | H95: 芋井村 | I95: 沢浦 | M95: =IF(K95="","",COUNTIF($K$7:K95,"ﾘｽﾄ１")) ->  | U95: =IF(S95="","",COUNTIF($S$7:S95,"該当２")) ->  | X95: =IF(V95="","",COUNTIF($V$7:V95,"該当３")) -> 
A96: 2020102021 | B96: 20 | C96: 201 | D96: 02 | E96: 021 | F96: 長野県 | G96: 長野市 | H96: 芋井村 | I96: 扇平 | M96: =IF(K96="","",COUNTIF($K$7:K96,"ﾘｽﾄ１")) ->  | U96: =IF(S96="","",COUNTIF($S$7:S96,"該当２")) ->  | X96: =IF(V96="","",COUNTIF($V$7:V96,"該当３")) -> 
A97: 2020102022 | B97: 20 | C97: 201 | D97: 02 | E97: 022 | F97: 長野県 | G97: 長野市 | H97: 芋井村 | I97: 百舌原 | M97: =IF(K97="","",COUNTIF($K$7:K97,"ﾘｽﾄ１")) ->  | U97: =IF(S97="","",COUNTIF($S$7:S97,"該当２")) ->  | X97: =IF(V97="","",COUNTIF($V$7:V97,"該当３")) -> 
A98: 2020102023 | B98: 20 | C98: 201 | D98: 02 | E98: 023 | F98: 長野県 | G98: 長野市 | H98: 芋井村 | I98: 広瀬 | M98: =IF(K98="","",COUNTIF($K$7:K98,"ﾘｽﾄ１")) ->  | U98: =IF(S98="","",COUNTIF($S$7:S98,"該当２")) ->  | X98: =IF(V98="","",COUNTIF($V$7:V98,"該当３")) -> 
A99: 2020102024 | B99: 20 | C99: 201 | D99: 02 | E99: 024 | F99: 長野県 | G99: 長野市 | H99: 芋井村 | I99: 新屋 | M99: =IF(K99="","",COUNTIF($K$7:K99,"ﾘｽﾄ１")) ->  | U99: =IF(S99="","",COUNTIF($S$7:S99,"該当２")) ->  | X99: =IF(V99="","",COUNTIF($V$7:V99,"該当３")) -> 
A100: 2020102025 | B100: 20 | C100: 201 | D100: 02 | E100: 025 | F100: 長野県 | G100: 長野市 | H100: 芋井村 | I100: 荒井 | M100: =IF(K100="","",COUNTIF($K$7:K100,"ﾘｽﾄ１")) ->  | U100: =IF(S100="","",COUNTIF($S$7:S100,"該当２")) ->  | X100: =IF(V100="","",COUNTIF($V$7:V100,"該当３")) -> 
A101: 2020102026 | B101: 20 | C101: 201 | D101: 02 | E101: 026 | F101: 長野県 | G101: 長野市 | H101: 芋井村 | I101: 平 | M101: =IF(K101="","",COUNTIF($K$7:K101,"ﾘｽﾄ１")) ->  | U101: =IF(S101="","",COUNTIF($S$7:S101,"該当２")) ->  | X101: =IF(V101="","",COUNTIF($V$7:V101,"該当３")) -> 
A102: 2020102027 | B102: 20 | C102: 201 | D102: 02 | E102: 027 | F102: 長野県 | G102: 長野市 | H102: 芋井村 | I102: 京田，貉久保 | M102: =IF(K102="","",COUNTIF($K$7:K102,"ﾘｽﾄ１")) ->  | U102: =IF(S102="","",COUNTIF($S$7:S102,"該当２")) ->  | X102: =IF(V102="","",COUNTIF($V$7:V102,"該当３")) -> 
A103: 2020102028 | B103: 20 | C103: 201 | D103: 02 | E103: 028 | F103: 長野県 | G103: 長野市 | H103: 芋井村 | I103: 軍足 | M103: =IF(K103="","",COUNTIF($K$7:K103,"ﾘｽﾄ１")) ->  | U103: =IF(S103="","",COUNTIF($S$7:S103,"該当２")) ->  | X103: =IF(V103="","",COUNTIF($V$7:V103,"該当３")) -> 
A104: 2020102029 | B104: 20 | C104: 201 | D104: 02 | E104: 029 | F104: 長野県 | G104: 長野市 | H104: 芋井村 | I104: 麓原 | M104: =IF(K104="","",COUNTIF($K$7:K104,"ﾘｽﾄ１")) ->  | U104: =IF(S104="","",COUNTIF($S$7:S104,"該当２")) ->  | X104: =IF(V104="","",COUNTIF($V$7:V104,"該当３")) -> 
A105: 2020102030 | B105: 20 | C105: 201 | D105: 02 | E105: 030 | F105: 長野県 | G105: 長野市 | H105: 芋井村 | I105: 栄峯，銚子口 | M105: =IF(K105="","",COUNTIF($K$7:K105,"ﾘｽﾄ１")) ->  | U105: =IF(S105="","",COUNTIF($S$7:S105,"該当２")) ->  | X105: =IF(V105="","",COUNTIF($V$7:V105,"該当３")) -> 
A106: 2020103000 | B106: 20 | C106: 201 | D106: 03 | E106: 000 | F106: 長野県 | G106: 長野市 | H106: 浅川村 | M106: =IF(K106="","",COUNTIF($K$7:K106,"ﾘｽﾄ１")) ->  | U106: =IF(S106="","",COUNTIF($S$7:S106,"該当２")) ->  | X106: =IF(V106="","",COUNTIF($V$7:V106,"該当３")) -> 
A107: 2020103001 | B107: 20 | C107: 201 | D107: 03 | E107: 001 | F107: 長野県 | G107: 長野市 | H107: 浅川村 | I107: 東条 | M107: =IF(K107="","",COUNTIF($K$7:K107,"ﾘｽﾄ１")) ->  | U107: =IF(S107="","",COUNTIF($S$7:S107,"該当２")) ->  | X107: =IF(V107="","",COUNTIF($V$7:V107,"該当３")) -> 
A108: 2020103002 | B108: 20 | C108: 201 | D108: 03 | E108: 002 | F108: 長野県 | G108: 長野市 | H108: 浅川村 | I108: 伺去 | M108: =IF(K108="","",COUNTIF($K$7:K108,"ﾘｽﾄ１")) ->  | U108: =IF(S108="","",COUNTIF($S$7:S108,"該当２")) ->  | X108: =IF(V108="","",COUNTIF($V$7:V108,"該当３")) -> 
A109: 2020103003 | B109: 20 | C109: 201 | D109: 03 | E109: 003 | F109: 長野県 | G109: 長野市 | H109: 浅川村 | I109: 真光寺 | M109: =IF(K109="","",COUNTIF($K$7:K109,"ﾘｽﾄ１")) ->  | U109: =IF(S109="","",COUNTIF($S$7:S109,"該当２")) ->  | X109: =IF(V109="","",COUNTIF($V$7:V109,"該当３")) -> 
A110: 2020103004 | B110: 20 | C110: 201 | D110: 03 | E110: 004 | F110: 長野県 | G110: 長野市 | H110: 浅川村 | I110: 一ノ瀬 | M110: =IF(K110="","",COUNTIF($K$7:K110,"ﾘｽﾄ１")) ->  | U110: =IF(S110="","",COUNTIF($S$7:S110,"該当２")) ->  | X110: =IF(V110="","",COUNTIF($V$7:V110,"該当３")) -> 
A111: 2020103005 | B111: 20 | C111: 201 | D111: 03 | E111: 005 | F111: 長野県 | G111: 長野市 | H111: 浅川村 | I111: 清水 | M111: =IF(K111="","",COUNTIF($K$7:K111,"ﾘｽﾄ１")) ->  | U111: =IF(S111="","",COUNTIF($S$7:S111,"該当２")) ->  | X111: =IF(V111="","",COUNTIF($V$7:V111,"該当３")) -> 
A112: 2020103006 | B112: 20 | C112: 201 | D112: 03 | E112: 006 | F112: 長野県 | G112: 長野市 | H112: 浅川村 | I112: 畑山 | M112: =IF(K112="","",COUNTIF($K$7:K112,"ﾘｽﾄ１")) ->  | U112: =IF(S112="","",COUNTIF($S$7:S112,"該当２")) ->  | X112: =IF(V112="","",COUNTIF($V$7:V112,"該当３")) -> 
A113: 2020103007 | B113: 20 | C113: 201 | D113: 03 | E113: 007 | F113: 長野県 | G113: 長野市 | H113: 浅川村 | I113: 門沢 | M113: =IF(K113="","",COUNTIF($K$7:K113,"ﾘｽﾄ１")) ->  | U113: =IF(S113="","",COUNTIF($S$7:S113,"該当２")) ->  | X113: =IF(V113="","",COUNTIF($V$7:V113,"該当３")) -> 
A114: 2020103008 | B114: 20 | C114: 201 | D114: 03 | E114: 008 | F114: 長野県 | G114: 長野市 | H114: 浅川村 | I114: 中曽根 | M114: =IF(K114="","",COUNTIF($K$7:K114,"ﾘｽﾄ１")) ->  | U114: =IF(S114="","",COUNTIF($S$7:S114,"該当２")) ->  | X114: =IF(V114="","",COUNTIF($V$7:V114,"該当３")) -> 
A115: 2020103009 | B115: 20 | C115: 201 | D115: 03 | E115: 009 | F115: 長野県 | G115: 長野市 | H115: 浅川村 | I115: 本郷 | M115: =IF(K115="","",COUNTIF($K$7:K115,"ﾘｽﾄ１")) ->  | U115: =IF(S115="","",COUNTIF($S$7:S115,"該当２")) ->  | X115: =IF(V115="","",COUNTIF($V$7:V115,"該当３")) -> 
A116: 2020103010 | B116: 20 | C116: 201 | D116: 03 | E116: 010 | F116: 長野県 | G116: 長野市 | H116: 浅川村 | I116: 三ツ出 | M116: =IF(K116="","",COUNTIF($K$7:K116,"ﾘｽﾄ１")) ->  | U116: =IF(S116="","",COUNTIF($S$7:S116,"該当２")) ->  | X116: =IF(V116="","",COUNTIF($V$7:V116,"該当３")) -> 
A117: 2020103011 | B117: 20 | C117: 201 | D117: 03 | E117: 011 | F117: 長野県 | G117: 長野市 | H117: 浅川村 | I117: 台ケ窪 | M117: =IF(K117="","",COUNTIF($K$7:K117,"ﾘｽﾄ１")) ->  | U117: =IF(S117="","",COUNTIF($S$7:S117,"該当２")) ->  | X117: =IF(V117="","",COUNTIF($V$7:V117,"該当３")) -> 
A118: 2020103012 | B118: 20 | C118: 201 | D118: 03 | E118: 012 | F118: 長野県 | G118: 長野市 | H118: 浅川村 | I118: 坂中 | M118: =IF(K118="","",COUNTIF($K$7:K118,"ﾘｽﾄ１")) ->  | U118: =IF(S118="","",COUNTIF($S$7:S118,"該当２")) ->  | X118: =IF(V118="","",COUNTIF($V$7:V118,"該当３")) -> 
A119: 2020103013 | B119: 20 | C119: 201 | D119: 03 | E119: 013 | F119: 長野県 | G119: 長野市 | H119: 浅川村 | I119: 西平 | M119: =IF(K119="","",COUNTIF($K$7:K119,"ﾘｽﾄ１")) ->  | U119: =IF(S119="","",COUNTIF($S$7:S119,"該当２")) ->  | X119: =IF(V119="","",COUNTIF($V$7:V119,"該当３")) -> 
A120: 2020103014 | B120: 20 | C120: 201 | D120: 03 | E120: 014 | F120: 長野県 | G120: 長野市 | H120: 浅川村 | I120: 福岡 | M120: =IF(K120="","",COUNTIF($K$7:K120,"ﾘｽﾄ１")) ->  | U120: =IF(S120="","",COUNTIF($S$7:S120,"該当２")) ->  | X120: =IF(V120="","",COUNTIF($V$7:V120,"該当３")) -> 
A121: 2020103015 | B121: 20 | C121: 201 | D121: 03 | E121: 015 | F121: 長野県 | G121: 長野市 | H121: 浅川村 | I121: 押田 | M121: =IF(K121="","",COUNTIF($K$7:K121,"ﾘｽﾄ１")) ->  | U121: =IF(S121="","",COUNTIF($S$7:S121,"該当２")) ->  | X121: =IF(V121="","",COUNTIF($V$7:V121,"該当３")) -> 
A122: 2020103016 | B122: 20 | C122: 201 | D122: 03 | E122: 016 | F122: 長野県 | G122: 長野市 | H122: 浅川村 | I122: 西条 | M122: =IF(K122="","",COUNTIF($K$7:K122,"ﾘｽﾄ１")) ->  | U122: =IF(S122="","",COUNTIF($S$7:S122,"該当２")) ->  | X122: =IF(V122="","",COUNTIF($V$7:V122,"該当３")) -> 
A123: 2020104000 | B123: 20 | C123: 201 | D123: 04 | E123: 000 | F123: 長野県 | G123: 長野市 | H123: 若槻村 | M123: =IF(K123="","",COUNTIF($K$7:K123,"ﾘｽﾄ１")) ->  | U123: =IF(S123="","",COUNTIF($S$7:S123,"該当２")) ->  | X123: =IF(V123="","",COUNTIF($V$7:V123,"該当３")) -> 
A124: 2020104001 | B124: 20 | C124: 201 | D124: 04 | E124: 001 | F124: 長野県 | G124: 長野市 | H124: 若槻村 | I124: 檀田 | M124: =IF(K124="","",COUNTIF($K$7:K124,"ﾘｽﾄ１")) ->  | U124: =IF(S124="","",COUNTIF($S$7:S124,"該当２")) ->  | X124: =IF(V124="","",COUNTIF($V$7:V124,"該当３")) -> 
A125: 2020104002 | B125: 20 | C125: 201 | D125: 04 | E125: 002 | F125: 長野県 | G125: 長野市 | H125: 若槻村 | I125: 稲田 | M125: =IF(K125="","",COUNTIF($K$7:K125,"ﾘｽﾄ１")) ->  | U125: =IF(S125="","",COUNTIF($S$7:S125,"該当２")) ->  | X125: =IF(V125="","",COUNTIF($V$7:V125,"該当３")) -> 
A126: 2020104003 | B126: 20 | C126: 201 | D126: 04 | E126: 003 | F126: 長野県 | G126: 長野市 | H126: 若槻村 | I126: 徳間 | M126: =IF(K126="","",COUNTIF($K$7:K126,"ﾘｽﾄ１")) ->  | U126: =IF(S126="","",COUNTIF($S$7:S126,"該当２")) ->  | X126: =IF(V126="","",COUNTIF($V$7:V126,"該当３")) -> 
A127: 2020104004 | B127: 20 | C127: 201 | D127: 04 | E127: 004 | F127: 長野県 | G127: 長野市 | H127: 若槻村 | I127: 若槻東条 | M127: =IF(K127="","",COUNTIF($K$7:K127,"ﾘｽﾄ１")) ->  | U127: =IF(S127="","",COUNTIF($S$7:S127,"該当２")) ->  | X127: =IF(V127="","",COUNTIF($V$7:V127,"該当３")) -> 
A128: 2020104005 | B128: 20 | C128: 201 | D128: 04 | E128: 005 | F128: 長野県 | G128: 長野市 | H128: 若槻村 | I128: 上野 | M128: =IF(K128="","",COUNTIF($K$7:K128,"ﾘｽﾄ１")) ->  | U128: =IF(S128="","",COUNTIF($S$7:S128,"該当２")) ->  | X128: =IF(V128="","",COUNTIF($V$7:V128,"該当３")) -> 
A129: 2020104006 | B129: 20 | C129: 201 | D129: 04 | E129: 006 | F129: 長野県 | G129: 長野市 | H129: 若槻村 | I129: 田中 | M129: =IF(K129="","",COUNTIF($K$7:K129,"ﾘｽﾄ１")) ->  | U129: =IF(S129="","",COUNTIF($S$7:S129,"該当２")) ->  | X129: =IF(V129="","",COUNTIF($V$7:V129,"該当３")) -> 
A130: 2020104007 | B130: 20 | C130: 201 | D130: 04 | E130: 007 | F130: 長野県 | G130: 長野市 | H130: 若槻村 | I130: 田子 | M130: =IF(K130="","",COUNTIF($K$7:K130,"ﾘｽﾄ１")) ->  | U130: =IF(S130="","",COUNTIF($S$7:S130,"該当２")) ->  | X130: =IF(V130="","",COUNTIF($V$7:V130,"該当３")) -> 
A131: 2020104008 | B131: 20 | C131: 201 | D131: 04 | E131: 008 | F131: 長野県 | G131: 長野市 | H131: 若槻村 | I131: 吉 | M131: =IF(K131="","",COUNTIF($K$7:K131,"ﾘｽﾄ１")) ->  | U131: =IF(S131="","",COUNTIF($S$7:S131,"該当２")) ->  | X131: =IF(V131="","",COUNTIF($V$7:V131,"該当３")) -> 
A132: 2020104009 | B132: 20 | C132: 201 | D132: 04 | E132: 009 | F132: 長野県 | G132: 長野市 | H132: 若槻村 | I132: 山千寺 | M132: =IF(K132="","",COUNTIF($K$7:K132,"ﾘｽﾄ１")) ->  | U132: =IF(S132="","",COUNTIF($S$7:S132,"該当２")) ->  | X132: =IF(V132="","",COUNTIF($V$7:V132,"該当３")) -> 
A133: 2020104010 | B133: 20 | C133: 201 | D133: 04 | E133: 010 | F133: 長野県 | G133: 長野市 | H133: 若槻村 | I133: 髻 | M133: =IF(K133="","",COUNTIF($K$7:K133,"ﾘｽﾄ１")) ->  | U133: =IF(S133="","",COUNTIF($S$7:S133,"該当２")) ->  | X133: =IF(V133="","",COUNTIF($V$7:V133,"該当３")) -> 
A134: 2020105000 | B134: 20 | C134: 201 | D134: 05 | E134: 000 | F134: 長野県 | G134: 長野市 | H134: 古里村 | M134: =IF(K134="","",COUNTIF($K$7:K134,"ﾘｽﾄ１")) ->  | U134: =IF(S134="","",COUNTIF($S$7:S134,"該当２")) ->  | X134: =IF(V134="","",COUNTIF($V$7:V134,"該当３")) -> 
A135: 2020105001 | B135: 20 | C135: 201 | D135: 05 | E135: 001 | F135: 長野県 | G135: 長野市 | H135: 古里村 | I135: 西富竹 | M135: =IF(K135="","",COUNTIF($K$7:K135,"ﾘｽﾄ１")) ->  | U135: =IF(S135="","",COUNTIF($S$7:S135,"該当２")) ->  | X135: =IF(V135="","",COUNTIF($V$7:V135,"該当３")) -> 
A136: 2020105002 | B136: 20 | C136: 201 | D136: 05 | E136: 002 | F136: 長野県 | G136: 長野市 | H136: 古里村 | I136: 東富竹 | M136: =IF(K136="","",COUNTIF($K$7:K136,"ﾘｽﾄ１")) ->  | P136: =IF(O136="該当１",G136,"") ->  | Q136: =IF(O136="該当１","ﾘｽﾄ2","") ->  | R136: =IF(Q136="ﾘｽﾄ2",H136,"") ->  | T136: =IF(S136="該当２",H136,"") ->  | U136: =IF(S136="","",COUNTIF($S$7:S136,"該当２")) ->  | V136: =IF(AND($S$2=H136,E136>0,E136<998),"該当３","") ->  | W136: =IF(V136="該当３",I136,"") ->  | X136: =IF(V136="","",COUNTIF($V$7:V136,"該当３")) -> 
A137: 2020105003 | B137: 20 | C137: 201 | D137: 05 | E137: 003 | F137: 長野県 | G137: 長野市 | H137: 古里村 | I137: 荒屋 | K137: =IF(AND($C137>0,$H137=""),"ﾘｽﾄ１","") ->  | L137: =IF(K137="ﾘｽﾄ１",G137,"") ->  | M137: =IF(K137="","",COUNTIF($K$7:K137,"ﾘｽﾄ１")) ->  | N137: =IF(AND(D137=0,E137>0),"同一区","") ->  | O137: =IF(AND(EXACT($K$2,G137),H137>0),"該当１","") ->  | S137: =IF(AND(Q137="ﾘｽﾄ2",OR(I137=0,AND(N137="同一区",E137=1))),"該当２","") ->  | U137: =IF(S137="","",COUNTIF($S$7:S137,"該当２")) ->  | X137: =IF(V137="","",COUNTIF($V$7:V137,"該当３")) -> 
A138: 2020105004 | B138: 20 | C138: 201 | D138: 05 | E138: 004 | F138: 長野県 | G138: 長野市 | H138: 古里村 | I138: 金箱 | M138: =IF(K138="","",COUNTIF($K$7:K138,"ﾘｽﾄ１")) ->  | U138: =IF(S138="","",COUNTIF($S$7:S138,"該当２")) ->  | X138: =IF(V138="","",COUNTIF($V$7:V138,"該当３")) -> 
A139: 2020105005 | B139: 20 | C139: 201 | D139: 05 | E139: 005 | F139: 長野県 | G139: 長野市 | H139: 古里村 | I139: 下駒沢 | M139: =IF(K139="","",COUNTIF($K$7:K139,"ﾘｽﾄ１")) ->  | U139: =IF(S139="","",COUNTIF($S$7:S139,"該当２")) ->  | X139: =IF(V139="","",COUNTIF($V$7:V139,"該当３")) -> 
A140: 2020105006 | B140: 20 | C140: 201 | D140: 05 | E140: 006 | F140: 長野県 | G140: 長野市 | H140: 古里村 | I140: 上駒沢 | M140: =IF(K140="","",COUNTIF($K$7:K140,"ﾘｽﾄ１")) ->  | U140: =IF(S140="","",COUNTIF($S$7:S140,"該当２")) ->  | X140: =IF(V140="","",COUNTIF($V$7:V140,"該当３")) -> 
A141: 2020105007 | B141: 20 | C141: 201 | D141: 05 | E141: 007 | F141: 長野県 | G141: 長野市 | H141: 古里村 | I141: 三才 | M141: =IF(K141="","",COUNTIF($K$7:K141,"ﾘｽﾄ１")) ->  | U141: =IF(S141="","",COUNTIF($S$7:S141,"該当２")) ->  | X141: =IF(V141="","",COUNTIF($V$7:V141,"該当３")) -> 
A142: 2020106000 | B142: 20 | C142: 201 | D142: 06 | E142: 000 | F142: 長野県 | G142: 長野市 | H142: 長沼村 | M142: =IF(K142="","",COUNTIF($K$7:K142,"ﾘｽﾄ１")) ->  | U142: =IF(S142="","",COUNTIF($S$7:S142,"該当２")) ->  | X142: =IF(V142="","",COUNTIF($V$7:V142,"該当３")) -> 
A143: 2020106001 | B143: 20 | C143: 201 | D143: 06 | E143: 001 | F143: 長野県 | G143: 長野市 | H143: 長沼村 | I143: 大町 | M143: =IF(K143="","",COUNTIF($K$7:K143,"ﾘｽﾄ１")) ->  | U143: =IF(S143="","",COUNTIF($S$7:S143,"該当２")) ->  | X143: =IF(V143="","",COUNTIF($V$7:V143,"該当３")) -> 
A144: 2020106002 | B144: 20 | C144: 201 | D144: 06 | E144: 002 | F144: 長野県 | G144: 長野市 | H144: 長沼村 | I144: 穂保 | M144: =IF(K144="","",COUNTIF($K$7:K144,"ﾘｽﾄ１")) ->  | U144: =IF(S144="","",COUNTIF($S$7:S144,"該当２")) ->  | X144: =IF(V144="","",COUNTIF($V$7:V144,"該当３")) -> 
A145: 2020106003 | B145: 20 | C145: 201 | D145: 06 | E145: 003 | F145: 長野県 | G145: 長野市 | H145: 長沼村 | I145: 津野 | M145: =IF(K145="","",COUNTIF($K$7:K145,"ﾘｽﾄ１")) ->  | U145: =IF(S145="","",COUNTIF($S$7:S145,"該当２")) ->  | X145: =IF(V145="","",COUNTIF($V$7:V145,"該当３")) -> 
A146: 2020106004 | B146: 20 | C146: 201 | D146: 06 | E146: 004 | F146: 長野県 | G146: 長野市 | H146: 長沼村 | I146: 赤沼 | M146: =IF(K146="","",COUNTIF($K$7:K146,"ﾘｽﾄ１")) ->  | U146: =IF(S146="","",COUNTIF($S$7:S146,"該当２")) ->  | X146: =IF(V146="","",COUNTIF($V$7:V146,"該当３")) -> 
A147: 2020107000 | B147: 20 | C147: 201 | D147: 07 | E147: 000 | F147: 長野県 | G147: 長野市 | H147: 柳原村（長野市） | M147: =IF(K147="","",COUNTIF($K$7:K147,"ﾘｽﾄ１")) ->  | U147: =IF(S147="","",COUNTIF($S$7:S147,"該当２")) ->  | X147: =IF(V147="","",COUNTIF($V$7:V147,"該当３")) -> 
A148: 2020107001 | B148: 20 | C148: 201 | D148: 07 | E148: 001 | F148: 長野県 | G148: 長野市 | H148: 柳原村（長野市） | I148: 小島 | M148: =IF(K148="","",COUNTIF($K$7:K148,"ﾘｽﾄ１")) ->  | U148: =IF(S148="","",COUNTIF($S$7:S148,"該当２")) ->  | X148: =IF(V148="","",COUNTIF($V$7:V148,"該当３")) -> 
A149: 2020107002 | B149: 20 | C149: 201 | D149: 07 | E149: 002 | F149: 長野県 | G149: 長野市 | H149: 柳原村（長野市） | I149: 中俣 | M149: =IF(K149="","",COUNTIF($K$7:K149,"ﾘｽﾄ１")) ->  | U149: =IF(S149="","",COUNTIF($S$7:S149,"該当２")) ->  | X149: =IF(V149="","",COUNTIF($V$7:V149,"該当３")) -> 
A150: 2020107003 | B150: 20 | C150: 201 | D150: 07 | E150: 003 | F150: 長野県 | G150: 長野市 | H150: 柳原村（長野市） | I150: 布野 | M150: =IF(K150="","",COUNTIF($K$7:K150,"ﾘｽﾄ１")) ->  | U150: =IF(S150="","",COUNTIF($S$7:S150,"該当２")) ->  | X150: =IF(V150="","",COUNTIF($V$7:V150,"該当３")) -> 
A151: 2020107004 | B151: 20 | C151: 201 | D151: 07 | E151: 004 | F151: 長野県 | G151: 長野市 | H151: 柳原村（長野市） | I151: 村山 | M151: =IF(K151="","",COUNTIF($K$7:K151,"ﾘｽﾄ１")) ->  | U151: =IF(S151="","",COUNTIF($S$7:S151,"該当２")) ->  | X151: =IF(V151="","",COUNTIF($V$7:V151,"該当３")) -> 
A152: 2020108000 | B152: 20 | C152: 201 | D152: 08 | E152: 000 | F152: 長野県 | G152: 長野市 | H152: 朝陽村 | M152: =IF(K152="","",COUNTIF($K$7:K152,"ﾘｽﾄ１")) ->  | U152: =IF(S152="","",COUNTIF($S$7:S152,"該当２")) ->  | X152: =IF(V152="","",COUNTIF($V$7:V152,"該当３")) -> 
A153: 2020108001 | B153: 20 | C153: 201 | D153: 08 | E153: 001 | F153: 長野県 | G153: 長野市 | H153: 朝陽村 | I153: 南屋島 | M153: =IF(K153="","",COUNTIF($K$7:K153,"ﾘｽﾄ１")) ->  | U153: =IF(S153="","",COUNTIF($S$7:S153,"該当２")) ->  | X153: =IF(V153="","",COUNTIF($V$7:V153,"該当３")) -> 
A154: 2020108002 | B154: 20 | C154: 201 | D154: 08 | E154: 002 | F154: 長野県 | G154: 長野市 | H154: 朝陽村 | I154: 北屋島 | M154: =IF(K154="","",COUNTIF($K$7:K154,"ﾘｽﾄ１")) ->  | U154: =IF(S154="","",COUNTIF($S$7:S154,"該当２")) ->  | X154: =IF(V154="","",COUNTIF($V$7:V154,"該当３")) -> 
A155: 2020108003 | B155: 20 | C155: 201 | D155: 08 | E155: 003 | F155: 長野県 | G155: 長野市 | H155: 朝陽村 | I155: 北長池 | M155: =IF(K155="","",COUNTIF($K$7:K155,"ﾘｽﾄ１")) ->  | U155: =IF(S155="","",COUNTIF($S$7:S155,"該当２")) ->  | X155: =IF(V155="","",COUNTIF($V$7:V155,"該当３")) -> 
A156: 2020108004 | B156: 20 | C156: 201 | D156: 08 | E156: 004 | F156: 長野県 | G156: 長野市 | H156: 朝陽村 | I156: 北尾張部 | M156: =IF(K156="","",COUNTIF($K$7:K156,"ﾘｽﾄ１")) ->  | U156: =IF(S156="","",COUNTIF($S$7:S156,"該当２")) ->  | X156: =IF(V156="","",COUNTIF($V$7:V156,"該当３")) -> 
A157: 2020108005 | B157: 20 | C157: 201 | D157: 08 | E157: 005 | F157: 長野県 | G157: 長野市 | H157: 朝陽村 | I157: 石渡 | M157: =IF(K157="","",COUNTIF($K$7:K157,"ﾘｽﾄ１")) ->  | U157: =IF(S157="","",COUNTIF($S$7:S157,"該当２")) ->  | X157: =IF(V157="","",COUNTIF($V$7:V157,"該当３")) -> 
A158: 2020108006 | B158: 20 | C158: 201 | D158: 08 | E158: 006 | F158: 長野県 | G158: 長野市 | H158: 朝陽村 | I158: 南堀 | M158: =IF(K158="","",COUNTIF($K$7:K158,"ﾘｽﾄ１")) ->  | U158: =IF(S158="","",COUNTIF($S$7:S158,"該当２")) ->  | X158: =IF(V158="","",COUNTIF($V$7:V158,"該当３")) -> 
A159: 2020108007 | B159: 20 | C159: 201 | D159: 08 | E159: 007 | F159: 長野県 | G159: 長野市 | H159: 朝陽村 | I159: 北堀 | M159: =IF(K159="","",COUNTIF($K$7:K159,"ﾘｽﾄ１")) ->  | U159: =IF(S159="","",COUNTIF($S$7:S159,"該当２")) ->  | X159: =IF(V159="","",COUNTIF($V$7:V159,"該当３")) -> 
A160: 2020109000 | B160: 20 | C160: 201 | D160: 09 | E160: 000 | F160: 長野県 | G160: 長野市 | H160: 大豆島村 | M160: =IF(K160="","",COUNTIF($K$7:K160,"ﾘｽﾄ１")) ->  | U160: =IF(S160="","",COUNTIF($S$7:S160,"該当２")) ->  | X160: =IF(V160="","",COUNTIF($V$7:V160,"該当３")) -> 
A161: 2020109001 | B161: 20 | C161: 201 | D161: 09 | E161: 001 | F161: 長野県 | G161: 長野市 | H161: 大豆島村 | I161: 松岡 | M161: =IF(K161="","",COUNTIF($K$7:K161,"ﾘｽﾄ１")) ->  | U161: =IF(S161="","",COUNTIF($S$7:S161,"該当２")) ->  | X161: =IF(V161="","",COUNTIF($V$7:V161,"該当３")) -> 
A162: 2020109002 | B162: 20 | C162: 201 | D162: 09 | E162: 002 | F162: 長野県 | G162: 長野市 | H162: 大豆島村 | I162: 上区 | M162: =IF(K162="","",COUNTIF($K$7:K162,"ﾘｽﾄ１")) ->  | U162: =IF(S162="","",COUNTIF($S$7:S162,"該当２")) ->  | X162: =IF(V162="","",COUNTIF($V$7:V162,"該当３")) -> 
A163: 2020109003 | B163: 20 | C163: 201 | D163: 09 | E163: 003 | F163: 長野県 | G163: 長野市 | H163: 大豆島村 | I163: 中区 | M163: =IF(K163="","",COUNTIF($K$7:K163,"ﾘｽﾄ１")) ->  | U163: =IF(S163="","",COUNTIF($S$7:S163,"該当２")) ->  | X163: =IF(V163="","",COUNTIF($V$7:V163,"該当３")) -> 
A164: 2020109004 | B164: 20 | C164: 201 | D164: 09 | E164: 004 | F164: 長野県 | G164: 長野市 | H164: 大豆島村 | I164: 下区 | M164: =IF(K164="","",COUNTIF($K$7:K164,"ﾘｽﾄ１")) ->  | U164: =IF(S164="","",COUNTIF($S$7:S164,"該当２")) ->  | X164: =IF(V164="","",COUNTIF($V$7:V164,"該当３")) -> 
A165: 2020109006 | B165: 20 | C165: 201 | D165: 09 | E165: 006 | F165: 長野県 | G165: 長野市 | H165: 大豆島村 | I165: 西風間 | M165: =IF(K165="","",COUNTIF($K$7:K165,"ﾘｽﾄ１")) ->  | U165: =IF(S165="","",COUNTIF($S$7:S165,"該当２")) ->  | X165: =IF(V165="","",COUNTIF($V$7:V165,"該当３")) -> 
A166: 2020109007 | B166: 20 | C166: 201 | D166: 09 | E166: 007 | F166: 長野県 | G166: 長野市 | H166: 大豆島村 | I166: 東風間 | M166: =IF(K166="","",COUNTIF($K$7:K166,"ﾘｽﾄ１")) ->  | U166: =IF(S166="","",COUNTIF($S$7:S166,"該当２")) ->  | X166: =IF(V166="","",COUNTIF($V$7:V166,"該当３")) -> 
A167: 2020110000 | B167: 20 | C167: 201 | D167: 10 | E167: 000 | F167: 長野県 | G167: 長野市 | H167: 安茂里村 | M167: =IF(K167="","",COUNTIF($K$7:K167,"ﾘｽﾄ１")) ->  | U167: =IF(S167="","",COUNTIF($S$7:S167,"該当２")) ->  | X167: =IF(V167="","",COUNTIF($V$7:V167,"該当３")) -> 
A168: 2020110001 | B168: 20 | C168: 201 | D168: 10 | E168: 001 | F168: 長野県 | G168: 長野市 | H168: 安茂里村 | I168: 平柴 | M168: =IF(K168="","",COUNTIF($K$7:K168,"ﾘｽﾄ１")) ->  | U168: =IF(S168="","",COUNTIF($S$7:S168,"該当２")) ->  | X168: =IF(V168="","",COUNTIF($V$7:V168,"該当３")) -> 
A169: 2020110002 | B169: 20 | C169: 201 | D169: 10 | E169: 002 | F169: 長野県 | G169: 長野市 | H169: 安茂里村 | I169: 小柴見 | M169: =IF(K169="","",COUNTIF($K$7:K169,"ﾘｽﾄ１")) ->  | U169: =IF(S169="","",COUNTIF($S$7:S169,"該当２")) ->  | X169: =IF(V169="","",COUNTIF($V$7:V169,"該当３")) -> 
A170: 2020110003 | B170: 20 | C170: 201 | D170: 10 | E170: 003 | F170: 長野県 | G170: 長野市 | H170: 安茂里村 | I170: 差出 | M170: =IF(K170="","",COUNTIF($K$7:K170,"ﾘｽﾄ１")) ->  | U170: =IF(S170="","",COUNTIF($S$7:S170,"該当２")) ->  | X170: =IF(V170="","",COUNTIF($V$7:V170,"該当３")) -> 
A171: 2020110004 | B171: 20 | C171: 201 | D171: 10 | E171: 004 | F171: 長野県 | G171: 長野市 | H171: 安茂里村 | I171: 大門 | M171: =IF(K171="","",COUNTIF($K$7:K171,"ﾘｽﾄ１")) ->  | U171: =IF(S171="","",COUNTIF($S$7:S171,"該当２")) ->  | X171: =IF(V171="","",COUNTIF($V$7:V171,"該当３")) -> 
A172: 2020110005 | B172: 20 | C172: 201 | D172: 10 | E172: 005 | F172: 長野県 | G172: 長野市 | H172: 安茂里村 | I172: 小路 | M172: =IF(K172="","",COUNTIF($K$7:K172,"ﾘｽﾄ１")) ->  | U172: =IF(S172="","",COUNTIF($S$7:S172,"該当２")) ->  | X172: =IF(V172="","",COUNTIF($V$7:V172,"該当３")) -> 
A173: 2020110006 | B173: 20 | C173: 201 | D173: 10 | E173: 006 | F173: 長野県 | G173: 長野市 | H173: 安茂里村 | I173: 西河原 | M173: =IF(K173="","",COUNTIF($K$7:K173,"ﾘｽﾄ１")) ->  | U173: =IF(S173="","",COUNTIF($S$7:S173,"該当２")) ->  | X173: =IF(V173="","",COUNTIF($V$7:V173,"該当３")) -> 
A174: 2020110007 | B174: 20 | C174: 201 | D174: 10 | E174: 007 | F174: 長野県 | G174: 長野市 | H174: 安茂里村 | I174: 小市 | M174: =IF(K174="","",COUNTIF($K$7:K174,"ﾘｽﾄ１")) ->  | U174: =IF(S174="","",COUNTIF($S$7:S174,"該当２")) ->  | X174: =IF(V174="","",COUNTIF($V$7:V174,"該当３")) -> 
A175: 2020111000 | B175: 20 | C175: 201 | D175: 11 | E175: 000 | F175: 長野県 | G175: 長野市 | H175: 小田切村 | M175: =IF(K175="","",COUNTIF($K$7:K175,"ﾘｽﾄ１")) ->  | U175: =IF(S175="","",COUNTIF($S$7:S175,"該当２")) ->  | X175: =IF(V175="","",COUNTIF($V$7:V175,"該当３")) -> 
A176: 2020111001 | B176: 20 | C176: 201 | D176: 11 | E176: 001 | F176: 長野県 | G176: 長野市 | H176: 小田切村 | I176: 平林 | M176: =IF(K176="","",COUNTIF($K$7:K176,"ﾘｽﾄ１")) ->  | U176: =IF(S176="","",COUNTIF($S$7:S176,"該当２")) ->  | X176: =IF(V176="","",COUNTIF($V$7:V176,"該当３")) -> 
A177: 2020111002 | B177: 20 | C177: 201 | D177: 11 | E177: 002 | F177: 長野県 | G177: 長野市 | H177: 小田切村 | I177: 下深沢 | M177: =IF(K177="","",COUNTIF($K$7:K177,"ﾘｽﾄ１")) ->  | U177: =IF(S177="","",COUNTIF($S$7:S177,"該当２")) ->  | X177: =IF(V177="","",COUNTIF($V$7:V177,"該当３")) -> 
A178: 2020111003 | B178: 20 | C178: 201 | D178: 11 | E178: 003 | F178: 長野県 | G178: 長野市 | H178: 小田切村 | I178: 平深沢 | M178: =IF(K178="","",COUNTIF($K$7:K178,"ﾘｽﾄ１")) ->  | U178: =IF(S178="","",COUNTIF($S$7:S178,"該当２")) ->  | X178: =IF(V178="","",COUNTIF($V$7:V178,"該当３")) -> 
A179: 2020111004 | B179: 20 | C179: 201 | D179: 11 | E179: 004 | F179: 長野県 | G179: 長野市 | H179: 小田切村 | I179: 上深沢 | M179: =IF(K179="","",COUNTIF($K$7:K179,"ﾘｽﾄ１")) ->  | U179: =IF(S179="","",COUNTIF($S$7:S179,"該当２")) ->  | X179: =IF(V179="","",COUNTIF($V$7:V179,"該当３")) -> 
A180: 2020111005 | B180: 20 | C180: 201 | D180: 11 | E180: 005 | F180: 長野県 | G180: 長野市 | H180: 小田切村 | I180: 本郷 | M180: =IF(K180="","",COUNTIF($K$7:K180,"ﾘｽﾄ１")) ->  | U180: =IF(S180="","",COUNTIF($S$7:S180,"該当２")) ->  | X180: =IF(V180="","",COUNTIF($V$7:V180,"該当３")) -> 
A181: 2020111006 | B181: 20 | C181: 201 | D181: 11 | E181: 006 | F181: 長野県 | G181: 長野市 | H181: 小田切村 | I181: 中組 | M181: =IF(K181="","",COUNTIF($K$7:K181,"ﾘｽﾄ１")) ->  | U181: =IF(S181="","",COUNTIF($S$7:S181,"該当２")) ->  | X181: =IF(V181="","",COUNTIF($V$7:V181,"該当３")) -> 
A182: 2020111007 | B182: 20 | C182: 201 | D182: 11 | E182: 007 | F182: 長野県 | G182: 長野市 | H182: 小田切村 | I182: 塩日方 | M182: =IF(K182="","",COUNTIF($K$7:K182,"ﾘｽﾄ１")) ->  | U182: =IF(S182="","",COUNTIF($S$7:S182,"該当２")) ->  | X182: =IF(V182="","",COUNTIF($V$7:V182,"該当３")) -> 
A183: 2020111008 | B183: 20 | C183: 201 | D183: 11 | E183: 008 | F183: 長野県 | G183: 長野市 | H183: 小田切村 | I183: 無及平 | M183: =IF(K183="","",COUNTIF($K$7:K183,"ﾘｽﾄ１")) ->  | U183: =IF(S183="","",COUNTIF($S$7:S183,"該当２")) ->  | X183: =IF(V183="","",COUNTIF($V$7:V183,"該当３")) -> 
A184: 2020111009 | B184: 20 | C184: 201 | D184: 11 | E184: 009 | F184: 長野県 | G184: 長野市 | H184: 小田切村 | I184: 草崎 | M184: =IF(K184="","",COUNTIF($K$7:K184,"ﾘｽﾄ１")) ->  | U184: =IF(S184="","",COUNTIF($S$7:S184,"該当２")) ->  | X184: =IF(V184="","",COUNTIF($V$7:V184,"該当３")) -> 
A185: 2020111010 | B185: 20 | C185: 201 | D185: 11 | E185: 010 | F185: 長野県 | G185: 長野市 | H185: 小田切村 | I185: 榎，新分市 | M185: =IF(K185="","",COUNTIF($K$7:K185,"ﾘｽﾄ１")) ->  | U185: =IF(S185="","",COUNTIF($S$7:S185,"該当２")) ->  | X185: =IF(V185="","",COUNTIF($V$7:V185,"該当３")) -> 
A186: 2020111011 | B186: 20 | C186: 201 | D186: 11 | E186: 011 | F186: 長野県 | G186: 長野市 | H186: 小田切村 | I186: 久保北畠 | M186: =IF(K186="","",COUNTIF($K$7:K186,"ﾘｽﾄ１")) ->  | U186: =IF(S186="","",COUNTIF($S$7:S186,"該当２")) ->  | X186: =IF(V186="","",COUNTIF($V$7:V186,"該当３")) -> 
A187: 2020111012 | B187: 20 | C187: 201 | D187: 11 | E187: 012 | F187: 長野県 | G187: 長野市 | H187: 小田切村 | I187: 三組 | M187: =IF(K187="","",COUNTIF($K$7:K187,"ﾘｽﾄ１")) ->  | U187: =IF(S187="","",COUNTIF($S$7:S187,"該当２")) ->  | X187: =IF(V187="","",COUNTIF($V$7:V187,"該当３")) -> 
A188: 2020111013 | B188: 20 | C188: 201 | D188: 11 | E188: 013 | F188: 長野県 | G188: 長野市 | H188: 小田切村 | I188: 麻庭 | M188: =IF(K188="","",COUNTIF($K$7:K188,"ﾘｽﾄ１")) ->  | U188: =IF(S188="","",COUNTIF($S$7:S188,"該当２")) ->  | X188: =IF(V188="","",COUNTIF($V$7:V188,"該当３")) -> 
A189: 2020111014 | B189: 20 | C189: 201 | D189: 11 | E189: 014 | F189: 長野県 | G189: 長野市 | H189: 小田切村 | I189: 山田中 | M189: =IF(K189="","",COUNTIF($K$7:K189,"ﾘｽﾄ１")) ->  | U189: =IF(S189="","",COUNTIF($S$7:S189,"該当２")) ->  | X189: =IF(V189="","",COUNTIF($V$7:V189,"該当３")) -> 
A190: 2020111015 | B190: 20 | C190: 201 | D190: 11 | E190: 015 | F190: 長野県 | G190: 長野市 | H190: 小田切村 | I190: 川後 | M190: =IF(K190="","",COUNTIF($K$7:K190,"ﾘｽﾄ１")) ->  | U190: =IF(S190="","",COUNTIF($S$7:S190,"該当２")) ->  | X190: =IF(V190="","",COUNTIF($V$7:V190,"該当３")) -> 
A191: 2020111016 | B191: 20 | C191: 201 | D191: 11 | E191: 016 | F191: 長野県 | G191: 長野市 | H191: 小田切村 | I191: 松枇 | M191: =IF(K191="","",COUNTIF($K$7:K191,"ﾘｽﾄ１")) ->  | U191: =IF(S191="","",COUNTIF($S$7:S191,"該当２")) ->  | X191: =IF(V191="","",COUNTIF($V$7:V191,"該当３")) -> 
A192: 2020111017 | B192: 20 | C192: 201 | D192: 11 | E192: 017 | F192: 長野県 | G192: 長野市 | H192: 小田切村 | I192: 日影繁 | M192: =IF(K192="","",COUNTIF($K$7:K192,"ﾘｽﾄ１")) ->  | U192: =IF(S192="","",COUNTIF($S$7:S192,"該当２")) ->  | X192: =IF(V192="","",COUNTIF($V$7:V192,"該当３")) -> 
A193: 2020111018 | B193: 20 | C193: 201 | D193: 11 | E193: 018 | F193: 長野県 | G193: 長野市 | H193: 小田切村 | I193: 西繁 | M193: =IF(K193="","",COUNTIF($K$7:K193,"ﾘｽﾄ１")) ->  | U193: =IF(S193="","",COUNTIF($S$7:S193,"該当２")) ->  | X193: =IF(V193="","",COUNTIF($V$7:V193,"該当３")) -> 
A194: 2020111019 | B194: 20 | C194: 201 | D194: 11 | E194: 019 | F194: 長野県 | G194: 長野市 | H194: 小田切村 | I194: 小野平 | M194: =IF(K194="","",COUNTIF($K$7:K194,"ﾘｽﾄ１")) ->  | U194: =IF(S194="","",COUNTIF($S$7:S194,"該当２")) ->  | X194: =IF(V194="","",COUNTIF($V$7:V194,"該当３")) -> 
A195: 2020111020 | B195: 20 | C195: 201 | D195: 11 | E195: 020 | F195: 長野県 | G195: 長野市 | H195: 小田切村 | I195: 東繁 | M195: =IF(K195="","",COUNTIF($K$7:K195,"ﾘｽﾄ１")) ->  | U195: =IF(S195="","",COUNTIF($S$7:S195,"該当２")) ->  | X195: =IF(V195="","",COUNTIF($V$7:V195,"該当３")) -> 
A196: 2020111021 | B196: 20 | C196: 201 | D196: 11 | E196: 021 | F196: 長野県 | G196: 長野市 | H196: 小田切村 | I196: 二ツ石 | M196: =IF(K196="","",COUNTIF($K$7:K196,"ﾘｽﾄ１")) ->  | U196: =IF(S196="","",COUNTIF($S$7:S196,"該当２")) ->  | X196: =IF(V196="","",COUNTIF($V$7:V196,"該当３")) -> 
A197: 2020111022 | B197: 20 | C197: 201 | D197: 11 | E197: 022 | F197: 長野県 | G197: 長野市 | H197: 小田切村 | I197: 国見 | M197: =IF(K197="","",COUNTIF($K$7:K197,"ﾘｽﾄ１")) ->  | U197: =IF(S197="","",COUNTIF($S$7:S197,"該当２")) ->  | X197: =IF(V197="","",COUNTIF($V$7:V197,"該当３")) -> 
A198: 2020111023 | B198: 20 | C198: 201 | D198: 11 | E198: 023 | F198: 長野県 | G198: 長野市 | H198: 小田切村 | I198: 湯山 | M198: =IF(K198="","",COUNTIF($K$7:K198,"ﾘｽﾄ１")) ->  | U198: =IF(S198="","",COUNTIF($S$7:S198,"該当２")) ->  | X198: =IF(V198="","",COUNTIF($V$7:V198,"該当３")) -> 
A199: 2020111024 | B199: 20 | C199: 201 | D199: 11 | E199: 024 | F199: 長野県 | G199: 長野市 | H199: 小田切村 | I199: 百瀬 | M199: =IF(K199="","",COUNTIF($K$7:K199,"ﾘｽﾄ１")) ->  | U199: =IF(S199="","",COUNTIF($S$7:S199,"該当２")) ->  | X199: =IF(V199="","",COUNTIF($V$7:V199,"該当３")) -> 
A200: 2020111025 | B200: 20 | C200: 201 | D200: 11 | E200: 025 | F200: 長野県 | G200: 長野市 | H200: 小田切村 | I200: 下小鍋 | M200: =IF(K200="","",COUNTIF($K$7:K200,"ﾘｽﾄ１")) ->  | P200: =IF(O200="該当１",G200,"") ->  | Q200: =IF(O200="該当１","ﾘｽﾄ2","") ->  | R200: =IF(Q200="ﾘｽﾄ2",H200,"") ->  | T200: =IF(S200="該当２",H200,"") ->  | U200: =IF(S200="","",COUNTIF($S$7:S200,"該当２")) ->  | V200: =IF(AND($S$2=H200,E200>0,E200<998),"該当３","") ->  | W200: =IF(V200="該当３",I200,"") ->  | X200: =IF(V200="","",COUNTIF($V$7:V200,"該当３")) -> 
... 2050 more rows
